Workbook

Sheet Help
A1: Setup and data entry:
A2: 1 | B2: Turn calcuation to Manual on Formulas tab.
A3: 2 | B3: Enter intersection numbers on Setup tab.
A4: 3 | B4: Enter peak names (up to 4) on Setup tab.
A5: 4 | B5: Enter peak time range start/end on Setup tab.
A6: 5 | B6: Enter TMC info (dates, times, , INTIDs, movements) on Cars+ tab (columns A-C, Row 3).
A7: 6 | B7: Enter TMC volumes in Cars+ and Trucks tabs.
A8: 7 | B8: Verify valid data by checking the graphs tabs (EW, NS, All) and tracking tab. Make sure to refresh the data by clicking on the graph and selecting 'Refresh' under the 'Analyze' tab.
A9: 8 | B9: Use the PkHr tab to determine each peak hour (shown in columns I-L). The bottom of the columns include a mode and median peak hour. The times shown are the start of the peak hour.
A10: 9 | B10: Enter peak hour start times on Setup tab. The peak hour end time is calculated automatically.
A11: 11 | B11: Turn calcuation to Automatic on Formulas tab.
A12: 12 | B12: Click the 'Refresh Graphs and Filters' button on the Setup tab.
A13: 13 | B13: Save.
A15: Data exporting to CSV and importing into Synchro:
A16: 1 | B16: Determine which tab to export:
B17: A | C17: PkHr60 tab: peak hour volumes in 60-minute bins. General traffic study use.
B18: B | C18: PkHr60r5 tab: Same, rounded to nearest 5 vehicles.
B19: C | C19: PkHr15 tab: peak hour volumes in 15 minute bins. Use when peak hour factor will be determined by Synchro on import.
B20: D | C20: PkHr15rd tab: Same, rounded to nearest 5 vehicles.
B21: E | C21: PkHr15x4 tab: peak 15-minutes of peak HOUR multiplied by 4. Used on MnDOT signal timing projects. PHF must be set to 1 in Synchro to use this method. Copy over only Columns A-W.
B22: F | C22: PkPd15x4 tab: peak 15-minutes of peak PERIOD multiplied by 4. Used on MnDOT signal timing projects. PHF must be set to 1 in Synchro to use this method. Copy over only Columns A-W.
B23: G | C23: TPPPam: AM Peak Hour Truck Percentages, Conflicting Ped Volumes, and Peak Hour Factor. Use Either PHF or PPF Rows (relabel as PHF), not both. Copy over only Columns A-V.
B24: H | C24: TPPPmd: Same, for Midday peak hour.
B25: I | C25: TPPPpm: Same, for PM peak hour.
B26: J | C26: TPPPzz: Same, for other peak hour.
A27: 2 | B27: On the desired tab(s), select desired data records using filters in cells A1 and B1.
A28: 3 | B28: Copy the data from the desired tab to a fresh workbook. Eliminate U-turn and ped columns if desired. Save as a CSV.
A29: 4 | B29: Import CSV files into Synchro as follows:
B30: A-F | C30: Hit Ctrl-D in Synchro. Click on Read Volumes tab and follow instructions.
B31: G-J | C31: Use Synchro 'Merge' functionality (file menu).
A33: Legend:
C34: fields to fill in by the user

Sheet Setup
A1: Peak | B1: Range Start | C1: Range End | D1: Peak Hour Start | E1: Peak Hour End | G1: Index | H1: INTID | J1: Interval Lookup | O1: Row | P1: INTID 4x40 | Q1: PEAK | R1: TIME | S1: INTID 16x40 | T1: PEAK | U1: TIME | V1: INTID 1x40x4 | W1: PEAK | X1: TIME | Z1: Conflicting Ped Lookup
A2: AM | B2: 600 | C2: 900 | D2: 700 | E2: =VLOOKUP(D2,IntervalLookup,4) -> 745 | G2: 1 | H2: 810 | J2: 1 | K2: 2 | L2: 3 | M2: 4 | O2: 1 | P2: =VLOOKUP(CEILING($O2/4,1),INTIDLookup,2) -> 810 | Q2: =A2 -> AM | R2: =VLOOKUP($Q2,Intervals,4,FALSE) -> 700 | S2: =VLOOKUP(CEILING($O2/16,1),INTIDLookup,2) -> 810 | T2: =A2 -> AM | U2: =$D$2 -> 700 | V2: =VLOOKUP(MOD($O2-1,40)+1,INTIDLookup,2) -> 810 | W2: =A2 -> AM | X2: =VLOOKUP($W2,Intervals,4,FALSE) -> 700 | Z2: Mvmt | AA2: ConflPed
A3: MD | B3: 1100 | C3: 1300 | D3: 1145 | E3: =VLOOKUP(D3,IntervalLookup,4) -> 1230 | G3: 2 | H3: 820 | J3: 0 | K3: 15 | L3: 30 | M3: 45 | O3: 2 | P3: =VLOOKUP(CEILING(O3/4,1),INTIDLookup,2) -> 810 | Q3: =A3 -> MD | R3: 1145 | S3: 810 | T3: =T2 -> AM | U3: =VLOOKUP($D$2,IntervalLookup,2) -> 715 | V3: 820 | W3: =W2 -> AM | X3: 700 | Z3: Nped
A4: PM | B4: 1500 | C4: 1800 | D4: 1615 | E4: =VLOOKUP(D4,IntervalLookup,4) -> 1700 | G4: 3 | J4: 15 | K4: 30 | L4: 45 | M4: 100 | O4: 3 | P4: 810 | Q4: =A4 -> PM | R4: 1615 | S4: 810 | T4: =T3 -> AM | U4: =VLOOKUP($D$2,IntervalLookup,3) -> 730 | V4: 0 | W4: =W3 -> AM | X4: 700 | Z4: SBR | AA4: Wped
A5: ZZ | B5: 1400 | C5: 1600 | D5: 1430 | E5: =VLOOKUP(D5,IntervalLookup,4) -> 1515 | G5: 4 | J5: 30 | K5: 45 | L5: 100 | M5: 115 | O5: 4 | P5: 810 | Q5: =A5 -> ZZ | R5: 1430 | S5: 810 | T5: AM | U5: =VLOOKUP($D$2,IntervalLookup,4) -> 745 | V5: 0 | W5: AM | X5: 700 | Z5: SBT
G6: 5 | J6: 45 | K6: 100 | L6: 115 | M6: 130 | O6: 5 | P6: 820 | Q6: =Q2 -> AM | R6: 700 | S6: 810 | T6: =A3 -> MD | U6: =$D$3 -> 1145 | V6: 0 | W6: AM | X6: 700 | Z6: SBL | AA6: Eped
A7: Heavy Vehicle Percentages: | G7: 6 | J7: 100 | K7: 115 | L7: 130 | M7: 145 | O7: 6 | P7: 820 | Q7: =Q3 -> MD | R7: 1145 | S7: 810 | T7: =T6 -> MD | U7: =VLOOKUP($D$3,IntervalLookup,2) -> 1200 | V7: 0 | W7: AM | X7: 700 | Z7: SBU
A8: 0.02 | B8: Minimum | G8: 7 | J8: 115 | K8: 130 | L8: 145 | M8: 200 | O8: 7 | P8: 820 | Q8: PM | R8: 1615 | S8: 810 | T8: =T7 -> MD | U8: =VLOOKUP($D$3,IntervalLookup,3) -> 1215 | V8: 0 | W8: AM | X8: 700 | Z8: Eped
A9: 0.2 | B9: Maximum | G9: 8 | J9: 130 | K9: 145 | L9: 200 | M9: 215 | O9: 8 | P9: 820 | Q9: ZZ | R9: 1430 | S9: 810 | T9: MD | U9: =VLOOKUP($D$3,IntervalLookup,4) -> 1230 | V9: 0 | W9: AM | X9: 700 | Z9: WBR | AA9: Nped
G10: 9 | J10: 145 | K10: 200 | L10: 215 | M10: 230 | O10: 9 | P10: 0 | Q10: AM | R10: 700 | S10: 810 | T10: =A4 -> PM | U10: =$D$4 -> 1615 | V10: 0 | W10: AM | X10: 700 | Z10: WBT
A11: Peak Hour Factor: | G11: 10 | J11: 200 | K11: 215 | L11: 230 | M11: 245 | O11: 10 | P11: 0 | Q11: MD | R11: 1145 | S11: 810 | T11: =T10 -> PM | U11: =VLOOKUP($D$4,IntervalLookup,2) -> 1630 | V11: 0 | W11: AM | X11: 700 | Z11: WBL | AA11: Sped
A12: 0.25 | B12: Minimum | G12: 11 | J12: 215 | K12: 230 | L12: 245 | M12: 300 | O12: 11 | P12: 0 | Q12: PM | R12: 1615 | S12: 810 | T12: =T11 -> PM | U12: =VLOOKUP($D$4,IntervalLookup,3) -> 1645 | V12: 0 | W12: AM | X12: 700 | Z12: WBU
A13: 1 | B13: Maximum | G13: 12 | J13: 230 | K13: 245 | L13: 300 | M13: 315 | O13: 12 | P13: 0 | Q13: ZZ | R13: 1430 | S13: 810 | T13: PM | U13: =VLOOKUP($D$4,IntervalLookup,4) -> 1700 | V13: 0 | W13: AM | X13: 700 | Z13: Sped
G14: 13 | J14: 245 | K14: 300 | L14: 315 | M14: 330 | O14: 13 | P14: 0 | Q14: AM | R14: 700 | S14: 810 | T14: =A5 -> ZZ | U14: =$D$5 -> 1430 | V14: 0 | W14: AM | X14: 700 | Z14: NBR | AA14: Eped
A15: Peak Period Factor: | G15: 14 | J15: 300 | K15: 315 | L15: 330 | M15: 345 | O15: 14 | P15: 0 | Q15: MD | R15: 1145 | S15: 810 | T15: =T14 -> ZZ | U15: =VLOOKUP($D$5,IntervalLookup,2) -> 1445 | V15: 0 | W15: AM | X15: 700 | Z15: NBT
A16: 0.25 | B16: Minimum | G16: 15 | J16: 315 | K16: 330 | L16: 345 | M16: 400 | O16: 15 | P16: 0 | Q16: PM | R16: 1615 | S16: 810 | T16: =T15 -> ZZ | U16: =VLOOKUP($D$5,IntervalLookup,3) -> 1500 | V16: 0 | W16: AM | X16: 700 | Z16: NBL | AA16: Wped
A17: 1 | B17: Maximum | G17: 16 | J17: 330 | K17: 345 | L17: 400 | M17: 415 | O17: 16 | P17: 0 | Q17: ZZ | R17: 1430 | S17: 810 | T17: ZZ | U17: =VLOOKUP($D$5,IntervalLookup,4) -> 1515 | V17: 0 | W17: AM | X17: 700 | Z17: NBU
G18: 17 | J18: 345 | K18: 400 | L18: 415 | M18: 430 | O18: 17 | P18: 0 | Q18: AM | R18: 700 | S18: 820 | T18: =T2 -> AM | U18: =U2 -> 700 | V18: 0 | W18: AM | X18: 700 | Z18: Wped
G19: 18 | J19: 400 | K19: 415 | L19: 430 | M19: 445 | O19: 18 | P19: 0 | Q19: MD | R19: 1145 | S19: 820 | T19: =T3 -> AM | U19: =U3 -> 715 | V19: 0 | W19: AM | X19: 700 | Z19: EBR | AA19: Sped
G20: 19 | J20: 415 | K20: 430 | L20: 445 | M20: 500 | O20: 19 | P20: 0 | Q20: PM | R20: 1615 | S20: 820 | T20: AM | U20: 730 | V20: 0 | W20: AM | X20: 700 | Z20: EBT
G21: 20 | J21: 430 | K21: 445 | L21: 500 | M21: 515 | O21: 20 | P21: 0 | Q21: ZZ | R21: 1430 | S21: 820 | T21: AM | U21: 745 | V21: 0 | W21: AM | X21: 700 | Z21: EBL | AA21: Nped
G22: 21 | J22: 445 | K22: 500 | L22: 515 | M22: 530 | O22: 21 | P22: 0 | Q22: AM | R22: 700 | S22: 820 | T22: MD | U22: 1145 | V22: 0 | W22: AM | X22: 700 | Z22: EBU
G23: 22 | J23: 500 | K23: 515 | L23: 530 | M23: 545 | O23: 22 | P23: 0 | Q23: MD | R23: 1145 | S23: 820 | T23: MD | U23: 1200 | V23: 0 | W23: AM | X23: 700
G24: 23 | J24: 515 | K24: 530 | L24: 545 | M24: 600 | O24: 23 | P24: 0 | Q24: PM | R24: 1615 | S24: 820 | T24: MD | U24: 1215 | V24: 0 | W24: AM | X24: 700
G25: 24 | J25: 530 | K25: 545 | L25: 600 | M25: 615 | O25: 24 | P25: 0 | Q25: ZZ | R25: 1430 | S25: 820 | T25: MD | U25: 1230 | V25: 0 | W25: AM | X25: 700
G26: 25 | J26: 545 | K26: 600 | L26: 615 | M26: 630 | O26: 25 | P26: 0 | Q26: AM | R26: 700 | S26: 820 | T26: PM | U26: 1615 | V26: 0 | W26: AM | X26: 700
G27: 26 | J27: 600 | K27: 615 | L27: 630 | M27: 645 | O27: 26 | P27: 0 | Q27: MD | R27: 1145 | S27: 820 | T27: PM | U27: 1630 | V27: 0 | W27: AM | X27: 700
G28: 27 | J28: 615 | K28: 630 | L28: 645 | M28: 700 | O28: 27 | P28: 0 | Q28: PM | R28: 1615 | S28: 820 | T28: PM | U28: 1645 | V28: 0 | W28: AM | X28: 700
G29: 28 | J29: 630 | K29: 645 | L29: 700 | M29: 715 | O29: 28 | P29: 0 | Q29: ZZ | R29: 1430 | S29: 820 | T29: PM | U29: 1700 | V29: 0 | W29: AM | X29: 700
G30: 29 | J30: 645 | K30: 700 | L30: 715 | M30: 730 | O30: 29 | P30: 0 | Q30: AM | R30: 700 | S30: 820 | T30: ZZ | U30: 1430 | V30: 0 | W30: AM | X30: 700
G31: 30 | J31: 700 | K31: 715 | L31: 730 | M31: 745 | O31: 30 | P31: 0 | Q31: MD | R31: 1145 | S31: 820 | T31: ZZ | U31: 1445 | V31: 0 | W31: AM | X31: 700
G32: 31 | J32: 715 | K32: 730 | L32: 745 | M32: 800 | O32: 31 | P32: 0 | Q32: PM | R32: 1615 | S32: 820 | T32: ZZ | U32: 1500 | V32: 0 | W32: AM | X32: 700
G33: 32 | J33: 730 | K33: 745 | L33: 800 | M33: 815 | O33: 32 | P33: 0 | Q33: ZZ | R33: 1430 | S33: 820 | T33: ZZ | U33: 1515 | V33: 0 | W33: AM | X33: 700
G34: 33 | J34: 745 | K34: 800 | L34: 815 | M34: 830 | O34: 33 | P34: 0 | Q34: AM | R34: =VLOOKUP($Q34,Intervals,4,FALSE) -> 700 | S34: 0 | T34: AM | U34: 700 | V34: =VLOOKUP(MOD($O34-1,40)+1,INTIDLookup,2) -> 0 | W34: AM | X34: 700
G35: 34 | J35: 800 | K35: 815 | L35: 830 | M35: 845 | O35: 34 | P35: =VLOOKUP(CEILING(O35/4,1),INTIDLookup,2) -> 0 | Q35: MD | R35: 1145 | S35: 0 | T35: AM | U35: 715 | V35: 0 | W35: AM | X35: 700
G36: 35 | J36: 815 | K36: 830 | L36: 845 | M36: 900 | O36: 35 | P36: 0 | Q36: PM | R36: 1615 | S36: 0 | T36: AM | U36: 730 | V36: 0 | W36: AM | X36: 700
G37: 36 | J37: 830 | K37: 845 | L37: 900 | M37: 915 | O37: 36 | P37: 0 | Q37: ZZ | R37: 1430 | S37: 0 | T37: AM | U37: 745 | V37: 0 | W37: AM | X37: 700
G38: 37 | J38: 845 | K38: 900 | L38: 915 | M38: 930 | O38: 37 | P38: 0 | Q38: AM | R38: 700 | S38: 0 | T38: MD | U38: 1145 | V38: 0 | W38: AM | X38: 700
G39: 38 | J39: 900 | K39: 915 | L39: 930 | M39: 945 | O39: 38 | P39: 0 | Q39: MD | R39: 1145 | S39: 0 | T39: MD | U39: 1200 | V39: 0 | W39: AM | X39: 700
G40: 39 | J40: 915 | K40: 930 | L40: 945 | M40: 1000 | O40: 39 | P40: 0 | Q40: PM | R40: 1615 | S40: 0 | T40: MD | U40: 1215 | V40: 0 | W40: AM | X40: 700
G41: 40 | J41: 930 | K41: 945 | L41: 1000 | M41: 1015 | O41: 40 | P41: 0 | Q41: ZZ | R41: 1430 | S41: 0 | T41: MD | U41: 1230 | V41: 0 | W41: AM | X41: 700
J42: 945 | K42: 1000 | L42: 1015 | M42: 1030 | O42: 41 | P42: 0 | Q42: AM | R42: 700 | S42: 0 | T42: PM | U42: 1615 | V42: 810 | W42: =A3 -> MD | X42: 1145
J43: 1000 | K43: 1015 | L43: 1030 | M43: 1045 | O43: 42 | P43: 0 | Q43: MD | R43: 1145 | S43: 0 | T43: PM | U43: 1630 | V43: 820 | W43: =W42 -> MD | X43: 1145
J44: 1015 | K44: 1030 | L44: 1045 | M44: 1100 | O44: 43 | P44: 0 | Q44: PM | R44: 1615 | S44: 0 | T44: PM | U44: 1645 | V44: 0 | W44: =W43 -> MD | X44: 1145
J45: 1030 | K45: 1045 | L45: 1100 | M45: 1115 | O45: 44 | P45: 0 | Q45: ZZ | R45: 1430 | S45: 0 | T45: PM | U45: 1700 | V45: 0 | W45: MD | X45: 1145
J46: 1045 | K46: 1100 | L46: 1115 | M46: 1130 | O46: 45 | P46: 0 | Q46: AM | R46: 700 | S46: 0 | T46: ZZ | U46: 1430 | V46: 0 | W46: MD | X46: 1145
J47: 1100 | K47: 1115 | L47: 1130 | M47: 1145 | O47: 46 | P47: 0 | Q47: MD | R47: 1145 | S47: 0 | T47: ZZ | U47: 1445 | V47: 0 | W47: MD | X47: 1145
J48: 1115 | K48: 1130 | L48: 1145 | M48: 1200 | O48: 47 | P48: 0 | Q48: PM | R48: 1615 | S48: 0 | T48: ZZ | U48: 1500 | V48: 0 | W48: MD | X48: 1145
J49: 1130 | K49: 1145 | L49: 1200 | M49: 1215 | O49: 48 | P49: 0 | Q49: ZZ | R49: 1430 | S49: 0 | T49: ZZ | U49: 1515 | V49: 0 | W49: MD | X49: 1145
J50: 1145 | K50: 1200 | L50: 1215 | M50: 1230 | O50: 49 | P50: 0 | Q50: AM | R50: 700 | S50: 0 | T50: AM | U50: 700 | V50: 0 | W50: MD | X50: 1145
J51: 1200 | K51: 1215 | L51: 1230 | M51: 1245 | O51: 50 | P51: 0 | Q51: MD | R51: 1145 | S51: 0 | T51: AM | U51: 715 | V51: 0 | W51: MD | X51: 1145
J52: 1215 | K52: 1230 | L52: 1245 | M52: 1300 | O52: 51 | P52: 0 | Q52: PM | R52: 1615 | S52: 0 | T52: AM | U52: 730 | V52: 0 | W52: MD | X52: 1145
J53: 1230 | K53: 1245 | L53: 1300 | M53: 1315 | O53: 52 | P53: 0 | Q53: ZZ | R53: 1430 | S53: 0 | T53: AM | U53: 745 | V53: 0 | W53: MD | X53: 1145
J54: 1245 | K54: 1300 | L54: 1315 | M54: 1330 | O54: 53 | P54: 0 | Q54: AM | R54: 700 | S54: 0 | T54: MD | U54: 1145 | V54: 0 | W54: MD | X54: 1145
J55: 1300 | K55: 1315 | L55: 1330 | M55: 1345 | O55: 54 | P55: 0 | Q55: MD | R55: 1145 | S55: 0 | T55: MD | U55: 1200 | V55: 0 | W55: MD | X55: 1145
J56: 1315 | K56: 1330 | L56: 1345 | M56: 1400 | O56: 55 | P56: 0 | Q56: PM | R56: 1615 | S56: 0 | T56: MD | U56: 1215 | V56: 0 | W56: MD | X56: 1145
J57: 1330 | K57: 1345 | L57: 1400 | M57: 1415 | O57: 56 | P57: 0 | Q57: ZZ | R57: 1430 | S57: 0 | T57: MD | U57: 1230 | V57: 0 | W57: MD | X57: 1145
J58: 1345 | K58: 1400 | L58: 1415 | M58: 1430 | O58: 57 | P58: 0 | Q58: AM | R58: 700 | S58: 0 | T58: PM | U58: 1615 | V58: 0 | W58: MD | X58: 1145
J59: 1400 | K59: 1415 | L59: 1430 | M59: 1445 | O59: 58 | P59: 0 | Q59: MD | R59: 1145 | S59: 0 | T59: PM | U59: 1630 | V59: 0 | W59: MD | X59: 1145
J60: 1415 | K60: 1430 | L60: 1445 | M60: 1500 | O60: 59 | P60: 0 | Q60: PM | R60: 1615 | S60: 0 | T60: PM | U60: 1645 | V60: 0 | W60: MD | X60: 1145
J61: 1430 | K61: 1445 | L61: 1500 | M61: 1515 | O61: 60 | P61: 0 | Q61: ZZ | R61: 1430 | S61: 0 | T61: PM | U61: 1700 | V61: 0 | W61: MD | X61: 1145
J62: 1445 | K62: 1500 | L62: 1515 | M62: 1530 | O62: 61 | P62: 0 | Q62: AM | R62: 700 | S62: 0 | T62: ZZ | U62: 1430 | V62: 0 | W62: MD | X62: 1145
J63: 1500 | K63: 1515 | L63: 1530 | M63: 1545 | O63: 62 | P63: 0 | Q63: MD | R63: 1145 | S63: 0 | T63: ZZ | U63: 1445 | V63: 0 | W63: MD | X63: 1145
J64: 1515 | K64: 1530 | L64: 1545 | M64: 1600 | O64: 63 | P64: 0 | Q64: PM | R64: 1615 | S64: 0 | T64: ZZ | U64: 1500 | V64: 0 | W64: MD | X64: 1145
J65: 1530 | K65: 1545 | L65: 1600 | M65: 1615 | O65: 64 | P65: 0 | Q65: ZZ | R65: 1430 | S65: 0 | T65: ZZ | U65: 1515 | V65: 0 | W65: MD | X65: 1145
J66: 1545 | K66: 1600 | L66: 1615 | M66: 1630 | O66: 65 | P66: 0 | Q66: AM | R66: =VLOOKUP($Q66,Intervals,4,FALSE) -> 700 | S66: =VLOOKUP(CEILING($O66/16,1),INTIDLookup,2) -> 0 | T66: AM | U66: 700 | V66: =VLOOKUP(MOD($O66-1,40)+1,INTIDLookup,2) -> 0 | W66: MD | X66: =VLOOKUP($W66,Intervals,4,FALSE) -> 1145
J67: 1600 | K67: 1615 | L67: 1630 | M67: 1645 | O67: 66 | P67: =VLOOKUP(CEILING(O67/4,1),INTIDLookup,2) -> 0 | Q67: MD | R67: 1145 | S67: 0 | T67: AM | U67: 715 | V67: 0 | W67: MD | X67: 1145
J68: 1615 | K68: 1630 | L68: 1645 | M68: 1700 | O68: 67 | P68: 0 | Q68: PM | R68: 1615 | S68: 0 | T68: AM | U68: 730 | V68: 0 | W68: MD | X68: 1145
J69: 1630 | K69: 1645 | L69: 1700 | M69: 1715 | O69: 68 | P69: 0 | Q69: ZZ | R69: 1430 | S69: 0 | T69: AM | U69: 745 | V69: 0 | W69: MD | X69: 1145
J70: 1645 | K70: 1700 | L70: 1715 | M70: 1730 | O70: 69 | P70: 0 | Q70: AM | R70: 700 | S70: 0 | T70: MD | U70: 1145 | V70: 0 | W70: MD | X70: 1145
J71: 1700 | K71: 1715 | L71: 1730 | M71: 1745 | O71: 70 | P71: 0 | Q71: =Q67 -> MD | R71: 1145 | S71: 0 | T71: MD | U71: 1200 | V71: 0 | W71: MD | X71: 1145
J72: 1715 | K72: 1730 | L72: 1745 | M72: 1800 | O72: 71 | P72: 0 | Q72: PM | R72: 1615 | S72: 0 | T72: MD | U72: 1215 | V72: 0 | W72: MD | X72: 1145
J73: 1730 | K73: 1745 | L73: 1800 | M73: 1815 | O73: 72 | P73: 0 | Q73: ZZ | R73: 1430 | S73: 0 | T73: MD | U73: 1230 | V73: 0 | W73: MD | X73: 1145
J74: 1745 | K74: 1800 | L74: 1815 | M74: 1830 | O74: 73 | P74: 0 | Q74: AM | R74: 700 | S74: 0 | T74: PM | U74: 1615 | V74: 0 | W74: MD | X74: 1145
J75: 1800 | K75: 1815 | L75: 1830 | M75: 1845 | O75: 74 | P75: 0 | Q75: MD | R75: 1145 | S75: 0 | T75: PM | U75: 1630 | V75: 0 | W75: MD | X75: 1145
J76: 1815 | K76: 1830 | L76: 1845 | M76: 1900 | O76: 75 | P76: 0 | Q76: PM | R76: 1615 | S76: 0 | T76: PM | U76: 1645 | V76: 0 | W76: MD | X76: 1145
J77: 1830 | K77: 1845 | L77: 1900 | M77: 1915 | O77: 76 | P77: 0 | Q77: ZZ | R77: 1430 | S77: 0 | T77: PM | U77: 1700 | V77: 0 | W77: MD | X77: 1145
J78: 1845 | K78: 1900 | L78: 1915 | M78: 1930 | O78: 77 | P78: 0 | Q78: AM | R78: 700 | S78: 0 | T78: ZZ | U78: 1430 | V78: 0 | W78: MD | X78: 1145
J79: 1900 | K79: 1915 | L79: 1930 | M79: 1945 | O79: 78 | P79: 0 | Q79: MD | R79: 1145 | S79: 0 | T79: ZZ | U79: 1445 | V79: 0 | W79: MD | X79: 1145
J80: 1915 | K80: 1930 | L80: 1945 | M80: 2000 | O80: 79 | P80: 0 | Q80: PM | R80: 1615 | S80: 0 | T80: ZZ | U80: 1500 | V80: 0 | W80: MD | X80: 1145
J81: 1930 | K81: 1945 | L81: 2000 | M81: 2015 | O81: 80 | P81: 0 | Q81: ZZ | R81: 1430 | S81: 0 | T81: ZZ | U81: 1515 | V81: 0 | W81: MD | X81: 1145
J82: 1945 | K82: 2000 | L82: 2015 | M82: 2030 | O82: 81 | P82: 0 | Q82: AM | R82: 700 | S82: 0 | T82: AM | U82: 700 | V82: 810 | W82: =A4 -> PM | X82: 1615
J83: 2000 | K83: 2015 | L83: 2030 | M83: 2045 | O83: 82 | P83: 0 | Q83: MD | R83: 1145 | S83: 0 | T83: =T67 -> AM | U83: =U67 -> 715 | V83: 820 | W83: =W82 -> PM | X83: 1615
J84: 2015 | K84: 2030 | L84: 2045 | M84: 2100 | O84: 83 | P84: 0 | Q84: PM | R84: 1615 | S84: 0 | T84: AM | U84: 730 | V84: 0 | W84: =W83 -> PM | X84: 1615
J85: 2030 | K85: 2045 | L85: 2100 | M85: 2115 | O85: 84 | P85: 0 | Q85: ZZ | R85: 1430 | S85: 0 | T85: AM | U85: 745 | V85: 0 | W85: PM | X85: 1615
J86: 2045 | K86: 2100 | L86: 2115 | M86: 2130 | O86: 85 | P86: 0 | Q86: AM | R86: 700 | S86: 0 | T86: MD | U86: 1145 | V86: 0 | W86: PM | X86: 1615
J87: 2100 | K87: 2115 | L87: 2130 | M87: 2145 | O87: 86 | P87: 0 | Q87: MD | R87: 1145 | S87: 0 | T87: MD | U87: 1200 | V87: 0 | W87: PM | X87: 1615
J88: 2115 | K88: 2130 | L88: 2145 | M88: 2200 | O88: 87 | P88: 0 | Q88: PM | R88: 1615 | S88: 0 | T88: MD | U88: 1215 | V88: 0 | W88: PM | X88: 1615
J89: 2130 | K89: 2145 | L89: 2200 | M89: 2215 | O89: 88 | P89: 0 | Q89: ZZ | R89: 1430 | S89: 0 | T89: MD | U89: 1230 | V89: 0 | W89: PM | X89: 1615
J90: 2145 | K90: 2200 | L90: 2215 | M90: 2230 | O90: 89 | P90: 0 | Q90: AM | R90: 700 | S90: 0 | T90: PM | U90: 1615 | V90: 0 | W90: PM | X90: 1615
J91: 2200 | K91: 2215 | L91: 2230 | M91: 2245 | O91: 90 | P91: 0 | Q91: MD | R91: 1145 | S91: 0 | T91: PM | U91: 1630 | V91: 0 | W91: PM | X91: 1615
J92: 2215 | K92: 2230 | L92: 2245 | M92: 2300 | O92: 91 | P92: 0 | Q92: PM | R92: 1615 | S92: 0 | T92: PM | U92: 1645 | V92: 0 | W92: PM | X92: 1615
J93: 2230 | K93: 2245 | L93: 2300 | M93: 2315 | O93: 92 | P93: 0 | Q93: ZZ | R93: 1430 | S93: 0 | T93: PM | U93: 1700 | V93: 0 | W93: PM | X93: 1615
J94: 2245 | K94: 2300 | L94: 2315 | M94: 2330 | O94: 93 | P94: 0 | Q94: AM | R94: 700 | S94: 0 | T94: ZZ | U94: 1430 | V94: 0 | W94: PM | X94: 1615
J95: 2300 | K95: 2315 | L95: 2330 | M95: 2345 | O95: 94 | P95: 0 | Q95: MD | R95: 1145 | S95: 0 | T95: ZZ | U95: 1445 | V95: 0 | W95: PM | X95: 1615
J96: 2315 | K96: 2330 | L96: 2345 | M96: 30 | O96: 95 | P96: 0 | Q96: PM | R96: 1615 | S96: 0 | T96: ZZ | U96: 1500 | V96: 0 | W96: PM | X96: 1615
J97: 2330 | K97: 2345 | L97: 0 | M97: 15 | O97: 96 | P97: 0 | Q97: ZZ | R97: 1430 | S97: 0 | T97: ZZ | U97: 1515 | V97: 0 | W97: PM | X97: 1615
J98: 2345 | K98: 0 | L98: 15 | M98: 30 | O98: 97 | P98: 0 | Q98: AM | R98: =VLOOKUP($Q98,Intervals,4,FALSE) -> 700 | S98: 0 | T98: AM | U98: 700 | V98: =VLOOKUP(MOD($O98-1,40)+1,INTIDLookup,2) -> 0 | W98: PM | X98: 1615
O99: 98 | P99: =VLOOKUP(CEILING(O99/4,1),INTIDLookup,2) -> 0 | Q99: MD | R99: 1145 | S99: 0 | T99: AM | U99: 715 | V99: 0 | W99: PM | X99: 1615
O100: 99 | P100: 0 | Q100: PM | R100: 1615 | S100: 0 | T100: AM | U100: 730 | V100: 0 | W100: PM | X100: 1615
O101: 100 | P101: 0 | Q101: ZZ | R101: 1430 | S101: 0 | T101: AM | U101: 745 | V101: 0 | W101: PM | X101: 1615
O102: 101 | P102: 0 | Q102: AM | R102: 700 | S102: 0 | T102: MD | U102: 1145 | V102: 0 | W102: PM | X102: 1615
O103: 102 | P103: 0 | Q103: MD | R103: 1145 | S103: 0 | T103: MD | U103: 1200 | V103: 0 | W103: PM | X103: 1615
O104: 103 | P104: 0 | Q104: PM | R104: 1615 | S104: 0 | T104: MD | U104: 1215 | V104: 0 | W104: PM | X104: 1615
O105: 104 | P105: 0 | Q105: ZZ | R105: 1430 | S105: 0 | T105: MD | U105: 1230 | V105: 0 | W105: PM | X105: 1615
O106: 105 | P106: 0 | Q106: AM | R106: 700 | S106: 0 | T106: PM | U106: 1615 | V106: 0 | W106: PM | X106: 1615
O107: 106 | P107: 0 | Q107: MD | R107: 1145 | S107: 0 | T107: PM | U107: 1630 | V107: 0 | W107: PM | X107: 1615
O108: 107 | P108: 0 | Q108: PM | R108: 1615 | S108: 0 | T108: PM | U108: 1645 | V108: 0 | W108: PM | X108: 1615
O109: 108 | P109: 0 | Q109: ZZ | R109: 1430 | S109: 0 | T109: PM | U109: 1700 | V109: 0 | W109: PM | X109: 1615
O110: 109 | P110: 0 | Q110: AM | R110: 700 | S110: 0 | T110: ZZ | U110: 1430 | V110: 0 | W110: PM | X110: 1615
O111: 110 | P111: 0 | Q111: MD | R111: 1145 | S111: 0 | T111: ZZ | U111: 1445 | V111: 0 | W111: PM | X111: 1615
O112: 111 | P112: 0 | Q112: PM | R112: 1615 | S112: 0 | T112: ZZ | U112: 1500 | V112: 0 | W112: PM | X112: 1615
O113: 112 | P113: 0 | Q113: ZZ | R113: 1430 | S113: 0 | T113: ZZ | U113: 1515 | V113: 0 | W113: PM | X113: 1615
O114: 113 | P114: 0 | Q114: AM | R114: 700 | S114: 0 | T114: AM | U114: 700 | V114: 0 | W114: PM | X114: 1615
O115: 114 | P115: 0 | Q115: MD | R115: 1145 | S115: 0 | T115: AM | U115: 715 | V115: 0 | W115: PM | X115: 1615
O116: 115 | P116: 0 | Q116: PM | R116: 1615 | S116: 0 | T116: AM | U116: 730 | V116: 0 | W116: PM | X116: 1615
O117: 116 | P117: 0 | Q117: ZZ | R117: 1430 | S117: 0 | T117: AM | U117: 745 | V117: 0 | W117: PM | X117: 1615
O118: 117 | P118: 0 | Q118: AM | R118: 700 | S118: 0 | T118: MD | U118: 1145 | V118: 0 | W118: PM | X118: 1615
O119: 118 | P119: 0 | Q119: MD | R119: 1145 | S119: 0 | T119: MD | U119: 1200 | V119: 0 | W119: PM | X119: 1615
O120: 119 | P120: 0 | Q120: PM | R120: 1615 | S120: 0 | T120: MD | U120: 1215 | V120: 0 | W120: PM | X120: 1615
O121: 120 | P121: 0 | Q121: ZZ | R121: 1430 | S121: 0 | T121: MD | U121: 1230 | V121: 0 | W121: PM | X121: 1615
O122: 121 | P122: 0 | Q122: AM | R122: 700 | S122: 0 | T122: PM | U122: 1615 | V122: 810 | W122: =A5 -> ZZ | X122: 1430
O123: 122 | P123: 0 | Q123: MD | R123: 1145 | S123: 0 | T123: PM | U123: 1630 | V123: 820 | W123: =W122 -> ZZ | X123: 1430
O124: 123 | P124: 0 | Q124: PM | R124: 1615 | S124: 0 | T124: PM | U124: 1645 | V124: 0 | W124: ZZ | X124: 1430
O125: 124 | P125: 0 | Q125: ZZ | R125: 1430 | S125: 0 | T125: PM | U125: 1700 | V125: 0 | W125: ZZ | X125: 1430
O126: 125 | P126: 0 | Q126: AM | R126: 700 | S126: 0 | T126: ZZ | U126: 1430 | V126: 0 | W126: ZZ | X126: 1430
O127: 126 | P127: 0 | Q127: MD | R127: 1145 | S127: 0 | T127: ZZ | U127: 1445 | V127: 0 | W127: =W126 -> ZZ | X127: 1430
O128: 127 | P128: 0 | Q128: PM | R128: 1615 | S128: 0 | T128: ZZ | U128: 1500 | V128: 0 | W128: ZZ | X128: 1430
O129: 128 | P129: 0 | Q129: ZZ | R129: 1430 | S129: 0 | T129: ZZ | U129: 1515 | V129: 0 | W129: ZZ | X129: 1430
O130: 129 | P130: 0 | Q130: AM | R130: 700 | S130: =VLOOKUP(CEILING($O130/16,1),INTIDLookup,2) -> 0 | T130: AM | U130: 700 | V130: =VLOOKUP(MOD($O130-1,40)+1,INTIDLookup,2) -> 0 | W130: ZZ | X130: =VLOOKUP($W130,Intervals,4,FALSE) -> 1430
O131: 130 | P131: 0 | Q131: MD | R131: 1145 | S131: 0 | T131: AM | U131: 715 | V131: 0 | W131: ZZ | X131: 1430
O132: 131 | P132: 0 | Q132: PM | R132: 1615 | S132: 0 | T132: AM | U132: 730 | V132: 0 | W132: ZZ | X132: 1430
O133: 132 | P133: 0 | Q133: ZZ | R133: 1430 | S133: 0 | T133: AM | U133: 745 | V133: 0 | W133: ZZ | X133: 1430
O134: 133 | P134: 0 | Q134: AM | R134: 700 | S134: 0 | T134: MD | U134: 1145 | V134: 0 | W134: ZZ | X134: 1430
O135: 134 | P135: 0 | Q135: =Q131 -> MD | R135: 1145 | S135: 0 | T135: MD | U135: 1200 | V135: 0 | W135: ZZ | X135: 1430
O136: 135 | P136: 0 | Q136: PM | R136: 1615 | S136: 0 | T136: MD | U136: 1215 | V136: 0 | W136: ZZ | X136: 1430
O137: 136 | P137: 0 | Q137: ZZ | R137: 1430 | S137: 0 | T137: MD | U137: 1230 | V137: 0 | W137: ZZ | X137: 1430
O138: 137 | P138: 0 | Q138: AM | R138: 700 | S138: 0 | T138: PM | U138: 1615 | V138: 0 | W138: ZZ | X138: 1430
O139: 138 | P139: 0 | Q139: MD | R139: 1145 | S139: 0 | T139: PM | U139: 1630 | V139: 0 | W139: ZZ | X139: 1430
O140: 139 | P140: 0 | Q140: PM | R140: 1615 | S140: 0 | T140: PM | U140: 1645 | V140: 0 | W140: ZZ | X140: 1430
O141: 140 | P141: 0 | Q141: ZZ | R141: 1430 | S141: 0 | T141: PM | U141: 1700 | V141: 0 | W141: ZZ | X141: 1430
O142: 141 | P142: 0 | Q142: AM | R142: 700 | S142: 0 | T142: ZZ | U142: 1430 | V142: 0 | W142: ZZ | X142: 1430
O143: 142 | P143: 0 | Q143: MD | R143: 1145 | S143: 0 | T143: ZZ | U143: 1445 | V143: 0 | W143: ZZ | X143: 1430
O144: 143 | P144: 0 | Q144: PM | R144: 1615 | S144: 0 | T144: ZZ | U144: 1500 | V144: 0 | W144: ZZ | X144: 1430
O145: 144 | P145: 0 | Q145: ZZ | R145: 1430 | S145: 0 | T145: ZZ | U145: 1515 | V145: 0 | W145: ZZ | X145: 1430
O146: 145 | P146: 0 | Q146: AM | R146: 700 | S146: 0 | T146: AM | U146: 700 | V146: 0 | W146: ZZ | X146: 1430
O147: 146 | P147: 0 | Q147: MD | R147: 1145 | S147: 0 | T147: =T131 -> AM | U147: =U131 -> 715 | V147: 0 | W147: ZZ | X147: 1430
O148: 147 | P148: 0 | Q148: PM | R148: 1615 | S148: 0 | T148: AM | U148: 730 | V148: 0 | W148: ZZ | X148: 1430
O149: 148 | P149: 0 | Q149: ZZ | R149: 1430 | S149: 0 | T149: AM | U149: 745 | V149: 0 | W149: ZZ | X149: 1430
O150: 149 | P150: 0 | Q150: AM | R150: 700 | S150: 0 | T150: MD | U150: 1145 | V150: 0 | W150: ZZ | X150: 1430
O151: 150 | P151: 0 | Q151: MD | R151: 1145 | S151: 0 | T151: MD | U151: 1200 | V151: 0 | W151: ZZ | X151: 1430
O152: 151 | P152: 0 | Q152: PM | R152: 1615 | S152: 0 | T152: MD | U152: 1215 | V152: 0 | W152: ZZ | X152: 1430
O153: 152 | P153: 0 | Q153: ZZ | R153: 1430 | S153: 0 | T153: MD | U153: 1230 | V153: 0 | W153: ZZ | X153: 1430
O154: 153 | P154: 0 | Q154: AM | R154: 700 | S154: 0 | T154: PM | U154: 1615 | V154: 0 | W154: ZZ | X154: 1430
O155: 154 | P155: 0 | Q155: MD | R155: 1145 | S155: 0 | T155: PM | U155: 1630 | V155: 0 | W155: ZZ | X155: 1430
O156: 155 | P156: 0 | Q156: PM | R156: 1615 | S156: 0 | T156: PM | U156: 1645 | V156: 0 | W156: ZZ | X156: 1430
O157: 156 | P157: 0 | Q157: ZZ | R157: 1430 | S157: 0 | T157: PM | U157: 1700 | V157: 0 | W157: ZZ | X157: 1430
O158: 157 | P158: 0 | Q158: AM | R158: 700 | S158: 0 | T158: ZZ | U158: 1430 | V158: 0 | W158: ZZ | X158: 1430
O159: 158 | P159: 0 | Q159: MD | R159: 1145 | S159: 0 | T159: ZZ | U159: 1445 | V159: 0 | W159: ZZ | X159: 1430
O160: 159 | P160: 0 | Q160: PM | R160: 1615 | S160: 0 | T160: ZZ | U160: 1500 | V160: 0 | W160: ZZ | X160: 1430
O161: 160 | P161: 0 | Q161: ZZ | R161: 1430 | S161: 0 | T161: ZZ | U161: 1515 | V161: 0 | W161: ZZ | X161: 1430
O162: 161 | S162: 0 | T162: AM | U162: 700
O163: 162 | S163: 0 | T163: AM | U163: 715
O164: 163 | S164: 0 | T164: AM | U164: 730
O165: 164 | S165: 0 | T165: AM | U165: 745
O166: 165 | S166: 0 | T166: MD | U166: 1145
O167: 166 | S167: 0 | T167: MD | U167: 1200
O168: 167 | S168: 0 | T168: MD | U168: 1215
O169: 168 | S169: 0 | T169: MD | U169: 1230
O170: 169 | S170: 0 | T170: PM | U170: 1615
O171: 170 | S171: 0 | T171: PM | U171: 1630
O172: 171 | S172: 0 | T172: PM | U172: 1645
O173: 172 | S173: 0 | T173: PM | U173: 1700
O174: 173 | S174: 0 | T174: ZZ | U174: 1430
O175: 174 | S175: 0 | T175: ZZ | U175: 1445
O176: 175 | S176: 0 | T176: ZZ | U176: 1500
O177: 176 | S177: 0 | T177: ZZ | U177: 1515
O178: 177 | S178: 0 | T178: AM | U178: 700
O179: 178 | S179: 0 | T179: AM | U179: 715
O180: 179 | S180: 0 | T180: AM | U180: 730
O181: 180 | S181: 0 | T181: AM | U181: 745
O182: 181 | S182: 0 | T182: MD | U182: 1145
O183: 182 | S183: 0 | T183: MD | U183: 1200
O184: 183 | S184: 0 | T184: MD | U184: 1215
O185: 184 | S185: 0 | T185: MD | U185: 1230
O186: 185 | S186: 0 | T186: PM | U186: 1615
O187: 186 | S187: 0 | T187: PM | U187: 1630
O188: 187 | S188: 0 | T188: PM | U188: 1645
O189: 188 | S189: 0 | T189: PM | U189: 1700
O190: 189 | S190: 0 | T190: ZZ | U190: 1430
O191: 190 | S191: 0 | T191: ZZ | U191: 1445
O192: 191 | S192: 0 | T192: ZZ | U192: 1500
O193: 192 | S193: 0 | T193: ZZ | U193: 1515
O194: 193 | S194: =VLOOKUP(CEILING($O194/16,1),INTIDLookup,2) -> 0 | T194: AM | U194: 700
O195: 194 | S195: 0 | T195: AM | U195: 715
O196: 195 | S196: 0 | T196: AM | U196: 730
O197: 196 | S197: 0 | T197: AM | U197: 745
O198: 197 | S198: 0 | T198: MD | U198: 1145
O199: 198 | S199: 0 | T199: MD | U199: 1200
O200: 199 | S200: 0 | T200: MD | U200: 1215
... 441 more rows

Sheet Cars+
A1: Turning Movement Count
A2: 15 Minute Counts
A3: DATE | B3: TIME | C3: INTID | D3: SBU | E3: SBL | F3: SBT | G3: SBR | H3: NPed | I3: WBU | J3: WBL | K3: WBT | L3: WBR | M3: EPed | N3: NBU | O3: NBL | P3: NBT | Q3: NBR | R3: SPed | S3: EBU | T3: EBL | U3: EBT | V3: EBR | W3: WPed | Y3: Tracking Total
A4: 2018-10-04 | B4: 600 | C4: 810 | D4: 0 | E4: 62 | F4: 85 | G4: 0 | H4: 0 | I4: 0 | J4: 69 | K4: 0 | L4: 3 | M4: 0 | N4: 0 | O4: 0 | P4: 29 | Q4: 10 | R4: 0 | S4: 0 | T4: 0 | U4: 0 | V4: 0 | W4: 0 | Y4: =SUM(D4:W4) -> 258
A5: 2018-10-04 | B5: 615 | C5: 810 | D5: 0 | E5: 77 | F5: 147 | G5: 0 | H5: 0 | I5: 0 | J5: 63 | K5: 0 | L5: 10 | M5: 0 | N5: 0 | O5: 0 | P5: 39 | Q5: 16 | R5: 0 | S5: 0 | T5: 0 | U5: 0 | V5: 0 | W5: 0 | Y5: =SUM(D5:W5) -> 352
A6: 2018-10-04 | B6: 630 | C6: 810 | D6: 0 | E6: 130 | F6: 160 | G6: 0 | H6: 0 | I6: 0 | J6: 66 | K6: 0 | L6: 16 | M6: 0 | N6: 0 | O6: 0 | P6: 57 | Q6: 21 | R6: 0 | S6: 0 | T6: 0 | U6: 0 | V6: 0 | W6: 0 | Y6: 450
A7: 2018-10-04 | B7: 645 | C7: 810 | D7: 0 | E7: 117 | F7: 158 | G7: 0 | H7: 0 | I7: 0 | J7: 62 | K7: 0 | L7: 12 | M7: 0 | N7: 0 | O7: 0 | P7: 63 | Q7: 28 | R7: 0 | S7: 0 | T7: 0 | U7: 0 | V7: 0 | W7: 0 | Y7: 440
A8: 2018-10-04 | B8: 700 | C8: 810 | D8: 0 | E8: 171 | F8: 204 | G8: 0 | H8: 0 | I8: 0 | J8: 39 | K8: 0 | L8: 11 | M8: 0 | N8: 0 | O8: 0 | P8: 56 | Q8: 35 | R8: 0 | S8: 0 | T8: 0 | U8: 0 | V8: 0 | W8: 0 | Y8: 516
A9: 2018-10-04 | B9: 715 | C9: 810 | D9: 0 | E9: 193 | F9: 209 | G9: 0 | H9: 0 | I9: 0 | J9: 37 | K9: 0 | L9: 5 | M9: 0 | N9: 0 | O9: 0 | P9: 58 | Q9: 32 | R9: 0 | S9: 0 | T9: 0 | U9: 0 | V9: 0 | W9: 0 | Y9: 534
A10: 2018-10-04 | B10: 730 | C10: 810 | D10: 0 | E10: 225 | F10: 227 | G10: 0 | H10: 0 | I10: 0 | J10: 32 | K10: 0 | L10: 3 | M10: 0 | N10: 0 | O10: 0 | P10: 69 | Q10: 38 | R10: 0 | S10: 0 | T10: 0 | U10: 0 | V10: 0 | W10: 0 | Y10: 594
A11: 2018-10-04 | B11: 745 | C11: 810 | D11: 1 | E11: 213 | F11: 212 | G11: 0 | H11: 0 | I11: 0 | J11: 41 | K11: 0 | L11: 15 | M11: 0 | N11: 0 | O11: 0 | P11: 86 | Q11: 47 | R11: 0 | S11: 0 | T11: 0 | U11: 0 | V11: 0 | W11: 0 | Y11: 615
A12: 2018-10-04 | B12: 800 | C12: 810 | D12: 0 | E12: 135 | F12: 161 | G12: 0 | H12: 0 | I12: 0 | J12: 38 | K12: 0 | L12: 9 | M12: 0 | N12: 0 | O12: 0 | P12: 56 | Q12: 48 | R12: 0 | S12: 0 | T12: 0 | U12: 0 | V12: 0 | W12: 0 | Y12: 447
A13: 2018-10-04 | B13: 815 | C13: 810 | D13: 0 | E13: 134 | F13: 136 | G13: 0 | H13: 0 | I13: 0 | J13: 41 | K13: 0 | L13: 9 | M13: 0 | N13: 0 | O13: 0 | P13: 60 | Q13: 39 | R13: 0 | S13: 0 | T13: 0 | U13: 0 | V13: 0 | W13: 0 | Y13: 419
A14: 2018-10-04 | B14: 830 | C14: 810 | D14: 0 | E14: 107 | F14: 101 | G14: 0 | H14: 0 | I14: 0 | J14: 31 | K14: 0 | L14: 18 | M14: 0 | N14: 0 | O14: 0 | P14: 49 | Q14: 45 | R14: 0 | S14: 0 | T14: 0 | U14: 0 | V14: 0 | W14: 0 | Y14: 351
A15: 2018-10-04 | B15: 845 | C15: 810 | D15: 0 | E15: 82 | F15: 84 | G15: 0 | H15: 0 | I15: 0 | J15: 29 | K15: 0 | L15: 29 | M15: 1 | N15: 0 | O15: 0 | P15: 83 | Q15: 31 | R15: 0 | S15: 0 | T15: 0 | U15: 0 | V15: 0 | W15: 0 | Y15: 339
A16: 2018-10-04 | B16: 900 | C16: 810 | D16: 0 | E16: 0 | F16: 0 | G16: 0 | H16: 0 | I16: 0 | J16: 0 | K16: 0 | L16: 0 | M16: 0 | N16: 0 | O16: 0 | P16: 0 | Q16: 0 | R16: 0 | S16: 0 | T16: 0 | U16: 0 | V16: 0 | W16: 0 | Y16: 0
A17: 2018-10-04 | B17: 915 | C17: 810 | D17: 0 | E17: 0 | F17: 0 | G17: 0 | H17: 0 | I17: 0 | J17: 0 | K17: 0 | L17: 0 | M17: 0 | N17: 0 | O17: 0 | P17: 0 | Q17: 0 | R17: 0 | S17: 0 | T17: 0 | U17: 0 | V17: 0 | W17: 0 | Y17: 0
A18: 2018-10-04 | B18: 930 | C18: 810 | D18: 0 | E18: 0 | F18: 0 | G18: 0 | H18: 0 | I18: 0 | J18: 0 | K18: 0 | L18: 0 | M18: 0 | N18: 0 | O18: 0 | P18: 0 | Q18: 0 | R18: 0 | S18: 0 | T18: 0 | U18: 0 | V18: 0 | W18: 0 | Y18: 0
A19: 2018-10-04 | B19: 945 | C19: 810 | D19: 0 | E19: 0 | F19: 0 | G19: 0 | H19: 0 | I19: 0 | J19: 0 | K19: 0 | L19: 0 | M19: 0 | N19: 0 | O19: 0 | P19: 0 | Q19: 0 | R19: 0 | S19: 0 | T19: 0 | U19: 0 | V19: 0 | W19: 0 | Y19: 0
A20: 2018-10-04 | B20: 1000 | C20: 810 | D20: 0 | E20: 0 | F20: 0 | G20: 0 | H20: 0 | I20: 0 | J20: 0 | K20: 0 | L20: 0 | M20: 0 | N20: 0 | O20: 0 | P20: 0 | Q20: 0 | R20: 0 | S20: 0 | T20: 0 | U20: 0 | V20: 0 | W20: 0 | Y20: 0
A21: 2018-10-04 | B21: 1015 | C21: 810 | D21: 0 | E21: 0 | F21: 0 | G21: 0 | H21: 0 | I21: 0 | J21: 0 | K21: 0 | L21: 0 | M21: 0 | N21: 0 | O21: 0 | P21: 0 | Q21: 0 | R21: 0 | S21: 0 | T21: 0 | U21: 0 | V21: 0 | W21: 0 | Y21: 0
A22: 2018-10-04 | B22: 1030 | C22: 810 | D22: 0 | E22: 0 | F22: 0 | G22: 0 | H22: 0 | I22: 0 | J22: 0 | K22: 0 | L22: 0 | M22: 0 | N22: 0 | O22: 0 | P22: 0 | Q22: 0 | R22: 0 | S22: 0 | T22: 0 | U22: 0 | V22: 0 | W22: 0 | Y22: 0
A23: 2018-10-04 | B23: 1045 | C23: 810 | D23: 0 | E23: 0 | F23: 0 | G23: 0 | H23: 0 | I23: 0 | J23: 0 | K23: 0 | L23: 0 | M23: 0 | N23: 0 | O23: 0 | P23: 0 | Q23: 0 | R23: 0 | S23: 0 | T23: 0 | U23: 0 | V23: 0 | W23: 0 | Y23: 0
A24: 2018-10-04 | B24: 1100 | C24: 810 | D24: 1 | E24: 40 | F24: 47 | G24: 0 | H24: 0 | I24: 0 | J24: 21 | K24: 0 | L24: 18 | M24: 0 | N24: 0 | O24: 0 | P24: 66 | Q24: 29 | R24: 0 | S24: 0 | T24: 0 | U24: 0 | V24: 0 | W24: 0 | Y24: 222
A25: 2018-10-04 | B25: 1115 | C25: 810 | D25: 0 | E25: 37 | F25: 50 | G25: 0 | H25: 0 | I25: 0 | J25: 29 | K25: 0 | L25: 18 | M25: 0 | N25: 2 | O25: 0 | P25: 39 | Q25: 36 | R25: 0 | S25: 0 | T25: 0 | U25: 0 | V25: 0 | W25: 0 | Y25: 211
A26: 2018-10-04 | B26: 1130 | C26: 810 | D26: 0 | E26: 41 | F26: 46 | G26: 0 | H26: 0 | I26: 0 | J26: 32 | K26: 0 | L26: 17 | M26: 0 | N26: 1 | O26: 0 | P26: 64 | Q26: 35 | R26: 0 | S26: 0 | T26: 0 | U26: 0 | V26: 0 | W26: 0 | Y26: 236
A27: 2018-10-04 | B27: 1145 | C27: 810 | D27: 0 | E27: 27 | F27: 46 | G27: 0 | H27: 0 | I27: 0 | J27: 40 | K27: 0 | L27: 24 | M27: 0 | N27: 0 | O27: 0 | P27: 77 | Q27: 45 | R27: 0 | S27: 0 | T27: 0 | U27: 0 | V27: 0 | W27: 0 | Y27: 259
A28: 2018-10-04 | B28: 1200 | C28: 810 | D28: 0 | E28: 25 | F28: 38 | G28: 0 | H28: 0 | I28: 0 | J28: 40 | K28: 0 | L28: 22 | M28: 0 | N28: 0 | O28: 0 | P28: 79 | Q28: 38 | R28: 0 | S28: 0 | T28: 0 | U28: 0 | V28: 0 | W28: 0 | Y28: 242
A29: 2018-10-04 | B29: 1215 | C29: 810 | D29: 0 | E29: 38 | F29: 40 | G29: 0 | H29: 0 | I29: 0 | J29: 54 | K29: 0 | L29: 32 | M29: 0 | N29: 0 | O29: 0 | P29: 75 | Q29: 33 | R29: 0 | S29: 0 | T29: 0 | U29: 0 | V29: 0 | W29: 0 | Y29: 272
A30: 2018-10-04 | B30: 1230 | C30: 810 | D30: 0 | E30: 41 | F30: 45 | G30: 0 | H30: 0 | I30: 0 | J30: 54 | K30: 0 | L30: 26 | M30: 0 | N30: 0 | O30: 0 | P30: 61 | Q30: 41 | R30: 0 | S30: 0 | T30: 0 | U30: 0 | V30: 0 | W30: 0 | Y30: 268
A31: 2018-10-04 | B31: 1245 | C31: 810 | D31: 0 | E31: 46 | F31: 39 | G31: 0 | H31: 0 | I31: 0 | J31: 54 | K31: 0 | L31: 26 | M31: 1 | N31: 0 | O31: 0 | P31: 72 | Q31: 35 | R31: 0 | S31: 0 | T31: 0 | U31: 0 | V31: 0 | W31: 0 | Y31: 273
A32: 2018-10-04 | B32: 1300 | C32: 810 | D32: 0 | E32: 0 | F32: 0 | G32: 0 | H32: 0 | I32: 0 | J32: 0 | K32: 0 | L32: 0 | M32: 0 | N32: 0 | O32: 0 | P32: 0 | Q32: 0 | R32: 0 | S32: 0 | T32: 0 | U32: 0 | V32: 0 | W32: 0 | Y32: 0
A33: 2018-10-04 | B33: 1315 | C33: 810 | D33: 0 | E33: 0 | F33: 0 | G33: 0 | H33: 0 | I33: 0 | J33: 0 | K33: 0 | L33: 0 | M33: 0 | N33: 0 | O33: 0 | P33: 0 | Q33: 0 | R33: 0 | S33: 0 | T33: 0 | U33: 0 | V33: 0 | W33: 0 | Y33: 0
A34: 2018-10-04 | B34: 1330 | C34: 810 | D34: 0 | E34: 0 | F34: 0 | G34: 0 | H34: 0 | I34: 0 | J34: 0 | K34: 0 | L34: 0 | M34: 0 | N34: 0 | O34: 0 | P34: 0 | Q34: 0 | R34: 0 | S34: 0 | T34: 0 | U34: 0 | V34: 0 | W34: 0 | Y34: 0
A35: 2018-10-04 | B35: 1345 | C35: 810 | D35: 0 | E35: 0 | F35: 0 | G35: 0 | H35: 0 | I35: 0 | J35: 0 | K35: 0 | L35: 0 | M35: 0 | N35: 0 | O35: 0 | P35: 0 | Q35: 0 | R35: 0 | S35: 0 | T35: 0 | U35: 0 | V35: 0 | W35: 0 | Y35: 0
A36: 2018-10-04 | B36: 1400 | C36: 810 | D36: 0 | E36: 0 | F36: 0 | G36: 0 | H36: 0 | I36: 0 | J36: 0 | K36: 0 | L36: 0 | M36: 0 | N36: 0 | O36: 0 | P36: 0 | Q36: 0 | R36: 0 | S36: 0 | T36: 0 | U36: 0 | V36: 0 | W36: 0 | Y36: 0
A37: 2018-10-04 | B37: 1415 | C37: 810 | D37: 0 | E37: 0 | F37: 0 | G37: 0 | H37: 0 | I37: 0 | J37: 0 | K37: 0 | L37: 0 | M37: 0 | N37: 0 | O37: 0 | P37: 0 | Q37: 0 | R37: 0 | S37: 0 | T37: 0 | U37: 0 | V37: 0 | W37: 0 | Y37: 0
A38: 2018-10-04 | B38: 1430 | C38: 810 | D38: 0 | E38: 0 | F38: 0 | G38: 0 | H38: 0 | I38: 0 | J38: 0 | K38: 0 | L38: 0 | M38: 0 | N38: 0 | O38: 0 | P38: 0 | Q38: 0 | R38: 0 | S38: 0 | T38: 0 | U38: 0 | V38: 0 | W38: 0 | Y38: 0
A39: 2018-10-04 | B39: 1445 | C39: 810 | D39: 0 | E39: 0 | F39: 0 | G39: 0 | H39: 0 | I39: 0 | J39: 0 | K39: 0 | L39: 0 | M39: 0 | N39: 0 | O39: 0 | P39: 0 | Q39: 0 | R39: 0 | S39: 0 | T39: 0 | U39: 0 | V39: 0 | W39: 0 | Y39: 0
A40: 2018-10-04 | B40: 1500 | C40: 810 | D40: 0 | E40: 53 | F40: 57 | G40: 0 | H40: 0 | I40: 0 | J40: 17 | K40: 0 | L40: 31 | M40: 0 | N40: 0 | O40: 0 | P40: 156 | Q40: 70 | R40: 0 | S40: 0 | T40: 0 | U40: 0 | V40: 0 | W40: 0 | Y40: 384
A41: 2018-10-04 | B41: 1515 | C41: 810 | D41: 0 | E41: 48 | F41: 41 | G41: 0 | H41: 0 | I41: 1 | J41: 18 | K41: 0 | L41: 38 | M41: 0 | N41: 0 | O41: 0 | P41: 197 | Q41: 80 | R41: 0 | S41: 0 | T41: 0 | U41: 0 | V41: 0 | W41: 0 | Y41: 423
A42: 2018-10-04 | B42: 1530 | C42: 810 | D42: 0 | E42: 69 | F42: 43 | G42: 0 | H42: 0 | I42: 0 | J42: 17 | K42: 0 | L42: 32 | M42: 0 | N42: 0 | O42: 0 | P42: 215 | Q42: 92 | R42: 0 | S42: 0 | T42: 0 | U42: 0 | V42: 0 | W42: 0 | Y42: 468
A43: 2018-10-04 | B43: 1545 | C43: 810 | D43: 0 | E43: 67 | F43: 79 | G43: 0 | H43: 0 | I43: 0 | J43: 15 | K43: 0 | L43: 30 | M43: 0 | N43: 0 | O43: 0 | P43: 274 | Q43: 81 | R43: 0 | S43: 0 | T43: 0 | U43: 0 | V43: 0 | W43: 0 | Y43: 546
A44: 2018-10-04 | B44: 1600 | C44: 810 | D44: 0 | E44: 84 | F44: 68 | G44: 0 | H44: 0 | I44: 1 | J44: 13 | K44: 0 | L44: 31 | M44: 0 | N44: 0 | O44: 0 | P44: 272 | Q44: 120 | R44: 0 | S44: 0 | T44: 0 | U44: 0 | V44: 0 | W44: 0 | Y44: 589
A45: 2018-10-04 | B45: 1615 | C45: 810 | D45: 0 | E45: 63 | F45: 66 | G45: 0 | H45: 0 | I45: 0 | J45: 8 | K45: 0 | L45: 32 | M45: 0 | N45: 0 | O45: 0 | P45: 296 | Q45: 113 | R45: 0 | S45: 0 | T45: 0 | U45: 0 | V45: 0 | W45: 0 | Y45: 578
A46: 2018-10-04 | B46: 1630 | C46: 810 | D46: 0 | E46: 69 | F46: 65 | G46: 0 | H46: 0 | I46: 0 | J46: 10 | K46: 0 | L46: 25 | M46: 0 | N46: 0 | O46: 0 | P46: 291 | Q46: 134 | R46: 0 | S46: 0 | T46: 0 | U46: 0 | V46: 0 | W46: 0 | Y46: 594
A47: 2018-10-04 | B47: 1645 | C47: 810 | D47: 0 | E47: 72 | F47: 71 | G47: 0 | H47: 0 | I47: 0 | J47: 20 | K47: 0 | L47: 27 | M47: 0 | N47: 0 | O47: 0 | P47: 269 | Q47: 106 | R47: 0 | S47: 0 | T47: 0 | U47: 0 | V47: 0 | W47: 0 | Y47: 565
A48: 2018-10-04 | B48: 1700 | C48: 810 | D48: 0 | E48: 58 | F48: 49 | G48: 0 | H48: 0 | I48: 0 | J48: 17 | K48: 0 | L48: 26 | M48: 0 | N48: 0 | O48: 0 | P48: 339 | Q48: 156 | R48: 0 | S48: 0 | T48: 0 | U48: 0 | V48: 0 | W48: 0 | Y48: 645
A49: 2018-10-04 | B49: 1715 | C49: 810 | D49: 0 | E49: 82 | F49: 66 | G49: 0 | H49: 0 | I49: 0 | J49: 13 | K49: 0 | L49: 18 | M49: 0 | N49: 0 | O49: 0 | P49: 258 | Q49: 138 | R49: 0 | S49: 0 | T49: 0 | U49: 0 | V49: 0 | W49: 0 | Y49: 575
A50: 2018-10-04 | B50: 1730 | C50: 810 | D50: 1 | E50: 66 | F50: 58 | G50: 0 | H50: 0 | I50: 0 | J50: 9 | K50: 0 | L50: 23 | M50: 0 | N50: 0 | O50: 0 | P50: 215 | Q50: 83 | R50: 0 | S50: 0 | T50: 0 | U50: 0 | V50: 0 | W50: 0 | Y50: 455
A51: 2018-10-04 | B51: 1745 | C51: 810 | D51: 0 | E51: 54 | F51: 53 | G51: 0 | H51: 0 | I51: 0 | J51: 12 | K51: 0 | L51: 33 | M51: 0 | N51: 0 | O51: 0 | P51: 175 | Q51: 70 | R51: 0 | S51: 0 | T51: 0 | U51: 0 | V51: 0 | W51: 0 | Y51: 397
Y52: 0
A53: 2018-10-04 | B53: 600 | C53: 820 | D53: 0 | E53: 29 | F53: 121 | G53: 0 | H53: 0 | I53: 0 | J53: 59 | K53: 0 | L53: 25 | M53: 0 | N53: 0 | O53: 0 | P53: 12 | Q53: 43 | R53: 0 | S53: 0 | T53: 0 | U53: 0 | V53: 0 | W53: 0 | Y53: 289
A54: 2018-10-04 | B54: 615 | C54: 820 | D54: 0 | E54: 47 | F54: 170 | G54: 0 | H54: 0 | I54: 0 | J54: 61 | K54: 0 | L54: 33 | M54: 0 | N54: 0 | O54: 0 | P54: 22 | Q54: 67 | R54: 0 | S54: 0 | T54: 0 | U54: 0 | V54: 0 | W54: 0 | Y54: 400
A55: 2018-10-04 | B55: 630 | C55: 820 | D55: 0 | E55: 40 | F55: 168 | G55: 0 | H55: 0 | I55: 0 | J55: 64 | K55: 0 | L55: 47 | M55: 0 | N55: 0 | O55: 0 | P55: 33 | Q55: 58 | R55: 0 | S55: 0 | T55: 0 | U55: 0 | V55: 0 | W55: 0 | Y55: 410
A56: 2018-10-04 | B56: 645 | C56: 820 | D56: 1 | E56: 42 | F56: 193 | G56: 0 | H56: 0 | I56: 0 | J56: 100 | K56: 0 | L56: 59 | M56: 0 | N56: 0 | O56: 0 | P56: 32 | Q56: 54 | R56: 0 | S56: 0 | T56: 0 | U56: 0 | V56: 0 | W56: 0 | Y56: 481
A57: 2018-10-04 | B57: 700 | C57: 820 | D57: 0 | E57: 65 | F57: 182 | G57: 0 | H57: 0 | I57: 0 | J57: 76 | K57: 0 | L57: 37 | M57: 0 | N57: 0 | O57: 0 | P57: 54 | Q57: 91 | R57: 0 | S57: 0 | T57: 0 | U57: 0 | V57: 0 | W57: 0 | Y57: 505
A58: 2018-10-04 | B58: 715 | C58: 820 | D58: 1 | E58: 58 | F58: 193 | G58: 0 | H58: 0 | I58: 0 | J58: 73 | K58: 0 | L58: 46 | M58: 0 | N58: 0 | O58: 0 | P58: 46 | Q58: 74 | R58: 0 | S58: 0 | T58: 0 | U58: 0 | V58: 0 | W58: 0 | Y58: 491
A59: 2018-10-04 | B59: 730 | C59: 820 | D59: 1 | E59: 50 | F59: 215 | G59: 0 | H59: 0 | I59: 0 | J59: 81 | K59: 0 | L59: 42 | M59: 0 | N59: 0 | O59: 0 | P59: 62 | Q59: 84 | R59: 0 | S59: 0 | T59: 0 | U59: 0 | V59: 0 | W59: 0 | Y59: 535
A60: 2018-10-04 | B60: 745 | C60: 820 | D60: 1 | E60: 41 | F60: 198 | G60: 0 | H60: 0 | I60: 0 | J60: 116 | K60: 0 | L60: 71 | M60: 0 | N60: 0 | O60: 0 | P60: 64 | Q60: 72 | R60: 0 | S60: 0 | T60: 0 | U60: 0 | V60: 0 | W60: 0 | Y60: 563
A61: 2018-10-04 | B61: 800 | C61: 820 | D61: 0 | E61: 29 | F61: 179 | G61: 0 | H61: 0 | I61: 0 | J61: 66 | K61: 0 | L61: 39 | M61: 0 | N61: 0 | O61: 0 | P61: 60 | Q61: 61 | R61: 0 | S61: 0 | T61: 0 | U61: 0 | V61: 0 | W61: 0 | Y61: 434
A62: 2018-10-04 | B62: 815 | C62: 820 | D62: 0 | E62: 39 | F62: 141 | G62: 0 | H62: 0 | I62: 0 | J62: 55 | K62: 0 | L62: 44 | M62: 0 | N62: 0 | O62: 0 | P62: 50 | Q62: 81 | R62: 0 | S62: 0 | T62: 0 | U62: 0 | V62: 0 | W62: 0 | Y62: 410
A63: 2018-10-04 | B63: 830 | C63: 820 | D63: 0 | E63: 40 | F63: 92 | G63: 0 | H63: 0 | I63: 0 | J63: 52 | K63: 0 | L63: 36 | M63: 0 | N63: 0 | O63: 0 | P63: 65 | Q63: 75 | R63: 0 | S63: 0 | T63: 0 | U63: 0 | V63: 0 | W63: 0 | Y63: 360
A64: 2018-10-04 | B64: 845 | C64: 820 | D64: 0 | E64: 26 | F64: 91 | G64: 0 | H64: 0 | I64: 0 | J64: 56 | K64: 0 | L64: 53 | M64: 1 | N64: 0 | O64: 0 | P64: 52 | Q64: 52 | R64: 0 | S64: 0 | T64: 0 | U64: 0 | V64: 0 | W64: 0 | Y64: 331
A65: 2018-10-04 | B65: 900 | C65: 820 | D65: 0 | E65: 0 | F65: 0 | G65: 0 | H65: 0 | I65: 0 | J65: 0 | K65: 0 | L65: 0 | M65: 0 | N65: 0 | O65: 0 | P65: 0 | Q65: 0 | R65: 0 | S65: 0 | T65: 0 | U65: 0 | V65: 0 | W65: 0 | Y65: 0
A66: 2018-10-04 | B66: 915 | C66: 820 | D66: 0 | E66: 0 | F66: 0 | G66: 0 | H66: 0 | I66: 0 | J66: 0 | K66: 0 | L66: 0 | M66: 0 | N66: 0 | O66: 0 | P66: 0 | Q66: 0 | R66: 0 | S66: 0 | T66: 0 | U66: 0 | V66: 0 | W66: 0 | Y66: 0
A67: 2018-10-04 | B67: 930 | C67: 820 | D67: 0 | E67: 0 | F67: 0 | G67: 0 | H67: 0 | I67: 0 | J67: 0 | K67: 0 | L67: 0 | M67: 0 | N67: 0 | O67: 0 | P67: 0 | Q67: 0 | R67: 0 | S67: 0 | T67: 0 | U67: 0 | V67: 0 | W67: 0 | Y67: 0
A68: 2018-10-04 | B68: 945 | C68: 820 | D68: 0 | E68: 0 | F68: 0 | G68: 0 | H68: 0 | I68: 0 | J68: 0 | K68: 0 | L68: 0 | M68: 0 | N68: 0 | O68: 0 | P68: 0 | Q68: 0 | R68: 0 | S68: 0 | T68: 0 | U68: 0 | V68: 0 | W68: 0 | Y68: 0
A69: 2018-10-04 | B69: 1000 | C69: 820 | D69: 0 | E69: 0 | F69: 0 | G69: 0 | H69: 0 | I69: 0 | J69: 0 | K69: 0 | L69: 0 | M69: 0 | N69: 0 | O69: 0 | P69: 0 | Q69: 0 | R69: 0 | S69: 0 | T69: 0 | U69: 0 | V69: 0 | W69: 0 | Y69: =SUM(D69:W69) -> 0
A70: 2018-10-04 | B70: 1015 | C70: 820 | D70: 0 | E70: 0 | F70: 0 | G70: 0 | H70: 0 | I70: 0 | J70: 0 | K70: 0 | L70: 0 | M70: 0 | N70: 0 | O70: 0 | P70: 0 | Q70: 0 | R70: 0 | S70: 0 | T70: 0 | U70: 0 | V70: 0 | W70: 0 | Y70: 0
A71: 2018-10-04 | B71: 1030 | C71: 820 | D71: 0 | E71: 0 | F71: 0 | G71: 0 | H71: 0 | I71: 0 | J71: 0 | K71: 0 | L71: 0 | M71: 0 | N71: 0 | O71: 0 | P71: 0 | Q71: 0 | R71: 0 | S71: 0 | T71: 0 | U71: 0 | V71: 0 | W71: 0 | Y71: 0
A72: 2018-10-04 | B72: 1045 | C72: 820 | D72: 0 | E72: 0 | F72: 0 | G72: 0 | H72: 0 | I72: 0 | J72: 0 | K72: 0 | L72: 0 | M72: 0 | N72: 0 | O72: 0 | P72: 0 | Q72: 0 | R72: 0 | S72: 0 | T72: 0 | U72: 0 | V72: 0 | W72: 0 | Y72: 0
A73: 2018-10-04 | B73: 1100 | C73: 820 | D73: 0 | E73: 27 | F73: 41 | G73: 0 | H73: 0 | I73: 0 | J73: 29 | K73: 0 | L73: 48 | M73: 1 | N73: 0 | O73: 0 | P73: 50 | Q73: 89 | R73: 0 | S73: 0 | T73: 0 | U73: 0 | V73: 0 | W73: 0 | Y73: 285
A74: 2018-10-04 | B74: 1115 | C74: 820 | D74: 0 | E74: 21 | F74: 56 | G74: 0 | H74: 0 | I74: 0 | J74: 33 | K74: 0 | L74: 28 | M74: 0 | N74: 0 | O74: 0 | P74: 52 | Q74: 64 | R74: 0 | S74: 0 | T74: 0 | U74: 0 | V74: 0 | W74: 0 | Y74: 254
A75: 2018-10-04 | B75: 1130 | C75: 820 | D75: 0 | E75: 28 | F75: 55 | G75: 0 | H75: 0 | I75: 0 | J75: 28 | K75: 0 | L75: 46 | M75: 0 | N75: 0 | O75: 0 | P75: 53 | Q75: 83 | R75: 0 | S75: 0 | T75: 0 | U75: 0 | V75: 0 | W75: 0 | Y75: 293
A76: 2018-10-04 | B76: 1145 | C76: 820 | D76: 0 | E76: 19 | F76: 70 | G76: 0 | H76: 0 | I76: 0 | J76: 38 | K76: 0 | L76: 39 | M76: 0 | N76: 0 | O76: 0 | P76: 81 | Q76: 78 | R76: 0 | S76: 0 | T76: 0 | U76: 0 | V76: 0 | W76: 0 | Y76: 325
A77: 2018-10-04 | B77: 1200 | C77: 820 | D77: 0 | E77: 22 | F77: 59 | G77: 0 | H77: 0 | I77: 0 | J77: 51 | K77: 0 | L77: 46 | M77: 0 | N77: 0 | O77: 0 | P77: 71 | Q77: 90 | R77: 0 | S77: 0 | T77: 0 | U77: 0 | V77: 0 | W77: 0 | Y77: 339
A78: 2018-10-04 | B78: 1215 | C78: 820 | D78: 2 | E78: 25 | F78: 67 | G78: 0 | H78: 0 | I78: 0 | J78: 30 | K78: 0 | L78: 43 | M78: 0 | N78: 0 | O78: 0 | P78: 63 | Q78: 85 | R78: 0 | S78: 0 | T78: 0 | U78: 0 | V78: 0 | W78: 0 | Y78: 315
A79: 2018-10-04 | B79: 1230 | C79: 820 | D79: 1 | E79: 14 | F79: 83 | G79: 0 | H79: 0 | I79: 0 | J79: 35 | K79: 0 | L79: 40 | M79: 0 | N79: 0 | O79: 0 | P79: 56 | Q79: 65 | R79: 0 | S79: 0 | T79: 0 | U79: 0 | V79: 0 | W79: 0 | Y79: 294
A80: 2018-10-04 | B80: 1245 | C80: 820 | D80: 2 | E80: 14 | F80: 71 | G80: 0 | H80: 0 | I80: 0 | J80: 34 | K80: 0 | L80: 45 | M80: 1 | N80: 0 | O80: 0 | P80: 54 | Q80: 64 | R80: 0 | S80: 0 | T80: 0 | U80: 0 | V80: 0 | W80: 0 | Y80: 285
A81: 2018-10-04 | B81: 1300 | C81: 820 | D81: 0 | E81: 0 | F81: 0 | G81: 0 | H81: 0 | I81: 0 | J81: 0 | K81: 0 | L81: 0 | M81: 0 | N81: 0 | O81: 0 | P81: 0 | Q81: 0 | R81: 0 | S81: 0 | T81: 0 | U81: 0 | V81: 0 | W81: 0 | Y81: 0
A82: 2018-10-04 | B82: 1315 | C82: 820 | D82: 0 | E82: 0 | F82: 0 | G82: 0 | H82: 0 | I82: 0 | J82: 0 | K82: 0 | L82: 0 | M82: 0 | N82: 0 | O82: 0 | P82: 0 | Q82: 0 | R82: 0 | S82: 0 | T82: 0 | U82: 0 | V82: 0 | W82: 0 | Y82: 0
A83: 2018-10-04 | B83: 1330 | C83: 820 | D83: 0 | E83: 0 | F83: 0 | G83: 0 | H83: 0 | I83: 0 | J83: 0 | K83: 0 | L83: 0 | M83: 0 | N83: 0 | O83: 0 | P83: 0 | Q83: 0 | R83: 0 | S83: 0 | T83: 0 | U83: 0 | V83: 0 | W83: 0 | Y83: 0
A84: 2018-10-04 | B84: 1345 | C84: 820 | D84: 0 | E84: 0 | F84: 0 | G84: 0 | H84: 0 | I84: 0 | J84: 0 | K84: 0 | L84: 0 | M84: 0 | N84: 0 | O84: 0 | P84: 0 | Q84: 0 | R84: 0 | S84: 0 | T84: 0 | U84: 0 | V84: 0 | W84: 0 | Y84: 0
A85: 2018-10-04 | B85: 1400 | C85: 820 | D85: 0 | E85: 0 | F85: 0 | G85: 0 | H85: 0 | I85: 0 | J85: 0 | K85: 0 | L85: 0 | M85: 0 | N85: 0 | O85: 0 | P85: 0 | Q85: 0 | R85: 0 | S85: 0 | T85: 0 | U85: 0 | V85: 0 | W85: 0 | Y85: 0
A86: 2018-10-04 | B86: 1415 | C86: 820 | D86: 0 | E86: 0 | F86: 0 | G86: 0 | H86: 0 | I86: 0 | J86: 0 | K86: 0 | L86: 0 | M86: 0 | N86: 0 | O86: 0 | P86: 0 | Q86: 0 | R86: 0 | S86: 0 | T86: 0 | U86: 0 | V86: 0 | W86: 0 | Y86: 0
A87: 2018-10-04 | B87: 1430 | C87: 820 | D87: 0 | E87: 0 | F87: 0 | G87: 0 | H87: 0 | I87: 0 | J87: 0 | K87: 0 | L87: 0 | M87: 0 | N87: 0 | O87: 0 | P87: 0 | Q87: 0 | R87: 0 | S87: 0 | T87: 0 | U87: 0 | V87: 0 | W87: 0 | Y87: 0
A88: 2018-10-04 | B88: 1445 | C88: 820 | D88: 0 | E88: 0 | F88: 0 | G88: 0 | H88: 0 | I88: 0 | J88: 0 | K88: 0 | L88: 0 | M88: 0 | N88: 0 | O88: 0 | P88: 0 | Q88: 0 | R88: 0 | S88: 0 | T88: 0 | U88: 0 | V88: 0 | W88: 0 | Y88: 0
A89: 2018-10-04 | B89: 1500 | C89: 820 | D89: 0 | E89: 25 | F89: 46 | G89: 0 | H89: 0 | I89: 0 | J89: 22 | K89: 0 | L89: 81 | M89: 0 | N89: 0 | O89: 0 | P89: 151 | Q89: 84 | R89: 0 | S89: 0 | T89: 0 | U89: 0 | V89: 0 | W89: 0 | Y89: 409
A90: 2018-10-04 | B90: 1515 | C90: 820 | D90: 2 | E90: 18 | F90: 38 | G90: 0 | H90: 0 | I90: 0 | J90: 24 | K90: 0 | L90: 119 | M90: 0 | N90: 0 | O90: 0 | P90: 163 | Q90: 83 | R90: 0 | S90: 0 | T90: 0 | U90: 0 | V90: 0 | W90: 0 | Y90: 447
A91: 2018-10-04 | B91: 1530 | C91: 820 | D91: 0 | E91: 18 | F91: 43 | G91: 0 | H91: 0 | I91: 0 | J91: 31 | K91: 0 | L91: 125 | M91: 0 | N91: 0 | O91: 0 | P91: 190 | Q91: 111 | R91: 0 | S91: 0 | T91: 0 | U91: 0 | V91: 0 | W91: 0 | Y91: 518
A92: 2018-10-04 | B92: 1545 | C92: 820 | D92: 1 | E92: 35 | F92: 53 | G92: 0 | H92: 0 | I92: 0 | J92: 29 | K92: 0 | L92: 145 | M92: 0 | N92: 0 | O92: 0 | P92: 197 | Q92: 100 | R92: 0 | S92: 0 | T92: 0 | U92: 0 | V92: 0 | W92: 0 | Y92: 560
A93: 2018-10-04 | B93: 1600 | C93: 820 | D93: 1 | E93: 28 | F93: 53 | G93: 0 | H93: 0 | I93: 0 | J93: 19 | K93: 0 | L93: 146 | M93: 0 | N93: 0 | O93: 0 | P93: 254 | Q93: 134 | R93: 0 | S93: 0 | T93: 0 | U93: 0 | V93: 0 | W93: 0 | Y93: 635
A94: 2018-10-04 | B94: 1615 | C94: 820 | D94: 0 | E94: 23 | F94: 51 | G94: 0 | H94: 0 | I94: 0 | J94: 25 | K94: 0 | L94: 152 | M94: 0 | N94: 0 | O94: 0 | P94: 252 | Q94: 89 | R94: 0 | S94: 0 | T94: 0 | U94: 0 | V94: 0 | W94: 0 | Y94: 592
A95: 2018-10-04 | B95: 1630 | C95: 820 | D95: 2 | E95: 18 | F95: 52 | G95: 0 | H95: 0 | I95: 0 | J95: 28 | K95: 0 | L95: 145 | M95: 0 | N95: 0 | O95: 0 | P95: 291 | Q95: 106 | R95: 0 | S95: 0 | T95: 0 | U95: 0 | V95: 0 | W95: 0 | Y95: 642
A96: 2018-10-04 | B96: 1645 | C96: 820 | D96: 3 | E96: 21 | F96: 68 | G96: 0 | H96: 0 | I96: 0 | J96: 24 | K96: 0 | L96: 145 | M96: 0 | N96: 0 | O96: 0 | P96: 246 | Q96: 106 | R96: 0 | S96: 0 | T96: 0 | U96: 0 | V96: 0 | W96: 0 | Y96: 613
A97: 2018-10-04 | B97: 1700 | C97: 820 | D97: 0 | E97: 20 | F97: 46 | G97: 0 | H97: 0 | I97: 0 | J97: 24 | K97: 0 | L97: 139 | M97: 0 | N97: 0 | O97: 0 | P97: 349 | Q97: 133 | R97: 0 | S97: 0 | T97: 0 | U97: 0 | V97: 0 | W97: 0 | Y97: 711
A98: 2018-10-04 | B98: 1715 | C98: 820 | D98: 1 | E98: 22 | F98: 54 | G98: 0 | H98: 0 | I98: 0 | J98: 19 | K98: 0 | L98: 143 | M98: 0 | N98: 0 | O98: 0 | P98: 234 | Q98: 88 | R98: 0 | S98: 0 | T98: 0 | U98: 0 | V98: 0 | W98: 0 | Y98: 561
A99: 2018-10-04 | B99: 1730 | C99: 820 | D99: 0 | E99: 26 | F99: 40 | G99: 0 | H99: 0 | I99: 0 | J99: 26 | K99: 0 | L99: 145 | M99: 0 | N99: 0 | O99: 0 | P99: 167 | Q99: 95 | R99: 0 | S99: 0 | T99: 0 | U99: 0 | V99: 0 | W99: 0 | Y99: 499
A100: 2018-10-04 | B100: 1745 | C100: 820 | D100: 0 | E100: 32 | F100: 31 | G100: 0 | H100: 0 | I100: 0 | J100: 19 | K100: 0 | L100: 103 | M100: 0 | N100: 0 | O100: 0 | P100: 142 | Q100: 77 | R100: 0 | S100: 0 | T100: 0 | U100: 0 | V100: 0 | W100: 0 | Y100: 404
Y101: 0
Y102: 0
Y103: 0
Y104: 0
Y105: 0
Y106: 0
Y107: 0
Y108: 0
Y109: 0
Y110: 0
Y111: 0
Y112: 0
Y113: 0
Y114: 0
Y115: 0
Y116: 0
Y117: 0
Y118: 0
Y119: 0
Y120: 0
Y121: 0
Y122: 0
Y123: 0
Y124: 0
Y125: 0
Y126: 0
Y127: 0
Y128: 0
Y129: 0
Y130: 0
Y131: 0
Y132: 0
Y133: =SUM(D133:W133) -> 0
Y134: 0
Y135: 0
Y136: 0
Y137: 0
Y138: 0
Y139: 0
Y140: 0
Y141: 0
Y142: 0
Y143: 0
Y144: 0
Y145: 0
Y146: 0
Y147: 0
Y148: 0
Y149: 0
Y150: 0
Y151: 0
Y152: 0
Y153: 0
Y154: 0
Y155: 0
Y156: 0
Y157: 0
Y158: 0
Y159: 0
Y160: 0
Y161: 0
Y162: 0
Y163: 0
Y164: 0
Y165: 0
Y166: 0
Y167: 0
Y168: 0
Y169: 0
Y170: 0
Y171: 0
Y172: 0
Y173: 0
Y174: 0
Y175: 0
Y176: 0
Y177: 0
Y178: 0
Y179: 0
Y180: 0
Y181: 0
Y182: 0
Y183: 0
Y184: 0
Y185: 0
Y186: 0
Y187: 0
Y188: 0
Y189: 0
Y190: 0
Y191: 0
Y192: 0
Y193: 0
Y194: 0
Y195: 0
Y196: 0
Y197: =SUM(D197:W197) -> 0
Y198: 0
Y199: 0
Y200: 0
... 1800 more rows

Sheet Trucks
A1: Turning Movement Count
A2: 15 Minute Counts
A3: DATE | B3: TIME | C3: INTID | D3: ='Cars+'!D3 -> SBU | E3: ='Cars+'!E3 -> SBL | F3: ='Cars+'!F3 -> SBT | G3: ='Cars+'!G3 -> SBR | H3: ='Cars+'!H3 -> NPed | I3: ='Cars+'!I3 -> WBU | J3: ='Cars+'!J3 -> WBL | K3: ='Cars+'!K3 -> WBT | L3: ='Cars+'!L3 -> WBR | M3: ='Cars+'!M3 -> EPed | N3: ='Cars+'!N3 -> NBU | O3: ='Cars+'!O3 -> NBL | P3: ='Cars+'!P3 -> NBT | Q3: ='Cars+'!Q3 -> NBR | R3: ='Cars+'!R3 -> SPed | S3: ='Cars+'!S3 -> EBU | T3: ='Cars+'!T3 -> EBL | U3: ='Cars+'!U3 -> EBT | V3: ='Cars+'!V3 -> EBR | W3: ='Cars+'!W3 -> WPed
A4: ='Cars+'!A4 -> 2018-10-04 | B4: ='Cars+'!B4 -> 600 | C4: ='Cars+'!C4 -> 810 | D4: 0 | E4: 3 | F4: 1 | G4: 0 | I4: 0 | J4: 5 | K4: 0 | L4: 0 | N4: 0 | O4: 0 | P4: 1 | Q4: 3 | S4: 0 | T4: 0 | U4: 0 | V4: 0
A5: ='Cars+'!A5 -> 2018-10-04 | B5: ='Cars+'!B5 -> 615 | C5: ='Cars+'!C5 -> 810 | D5: 0 | E5: 7 | F5: 8 | G5: 0 | I5: 0 | J5: 2 | K5: 0 | L5: 0 | N5: 0 | O5: 0 | P5: 3 | Q5: 10 | S5: 0 | T5: 0 | U5: 0 | V5: 0
A6: ='Cars+'!A6 -> 2018-10-04 | B6: ='Cars+'!B6 -> 630 | C6: ='Cars+'!C6 -> 810 | D6: 0 | E6: 5 | F6: 4 | G6: 0 | I6: 0 | J6: 4 | K6: 0 | L6: 0 | N6: 0 | O6: 0 | P6: 2 | Q6: 7 | S6: 0 | T6: 0 | U6: 0 | V6: 0
A7: ='Cars+'!A7 -> 2018-10-04 | B7: ='Cars+'!B7 -> 645 | C7: ='Cars+'!C7 -> 810 | D7: 0 | E7: 9 | F7: 2 | G7: 0 | I7: 0 | J7: 3 | K7: 0 | L7: 0 | N7: 0 | O7: 0 | P7: 2 | Q7: 8 | S7: 0 | T7: 0 | U7: 0 | V7: 0
A8: ='Cars+'!A8 -> 2018-10-04 | B8: ='Cars+'!B8 -> 700 | C8: ='Cars+'!C8 -> 810 | D8: 0 | E8: 7 | F8: 2 | G8: 0 | I8: 0 | J8: 7 | K8: 0 | L8: 0 | N8: 0 | O8: 0 | P8: 5 | Q8: 13 | S8: 0 | T8: 0 | U8: 0 | V8: 0
A9: ='Cars+'!A9 -> 2018-10-04 | B9: ='Cars+'!B9 -> 715 | C9: ='Cars+'!C9 -> 810 | D9: 0 | E9: 8 | F9: 9 | G9: 0 | I9: 0 | J9: 4 | K9: 0 | L9: 0 | N9: 0 | O9: 0 | P9: 5 | Q9: 6 | S9: 0 | T9: 0 | U9: 0 | V9: 0
A10: ='Cars+'!A10 -> 2018-10-04 | B10: ='Cars+'!B10 -> 730 | C10: ='Cars+'!C10 -> 810 | D10: 0 | E10: 3 | F10: 8 | G10: 0 | I10: 0 | J10: 3 | K10: 0 | L10: 0 | N10: 0 | O10: 0 | P10: 3 | Q10: 10 | S10: 0 | T10: 0 | U10: 0 | V10: 0
A11: ='Cars+'!A11 -> 2018-10-04 | B11: ='Cars+'!B11 -> 745 | C11: ='Cars+'!C11 -> 810 | D11: 0 | E11: 9 | F11: 6 | G11: 0 | I11: 0 | J11: 5 | K11: 0 | L11: 0 | N11: 0 | O11: 0 | P11: 3 | Q11: 10 | S11: 0 | T11: 0 | U11: 0 | V11: 0
A12: ='Cars+'!A12 -> 2018-10-04 | B12: ='Cars+'!B12 -> 800 | C12: ='Cars+'!C12 -> 810 | D12: 0 | E12: 5 | F12: 6 | G12: 0 | I12: 0 | J12: 6 | K12: 0 | L12: 0 | N12: 0 | O12: 0 | P12: 6 | Q12: 6 | S12: 0 | T12: 0 | U12: 0 | V12: 0
A13: ='Cars+'!A13 -> 2018-10-04 | B13: ='Cars+'!B13 -> 815 | C13: ='Cars+'!C13 -> 810 | D13: 0 | E13: 4 | F13: 9 | G13: 0 | I13: 0 | J13: 3 | K13: 0 | L13: 0 | N13: 0 | O13: 0 | P13: 2 | Q13: 13 | S13: 0 | T13: 0 | U13: 0 | V13: 0
A14: ='Cars+'!A14 -> 2018-10-04 | B14: ='Cars+'!B14 -> 830 | C14: ='Cars+'!C14 -> 810 | D14: 0 | E14: 6 | F14: 8 | G14: 0 | I14: 0 | J14: 6 | K14: 0 | L14: 0 | N14: 0 | O14: 0 | P14: 6 | Q14: 11 | S14: 0 | T14: 0 | U14: 0 | V14: 0
A15: ='Cars+'!A15 -> 2018-10-04 | B15: ='Cars+'!B15 -> 845 | C15: ='Cars+'!C15 -> 810 | D15: 0 | E15: 1 | F15: 4 | G15: 0 | I15: 0 | J15: 5 | K15: 0 | L15: 0 | N15: 0 | O15: 0 | P15: 18 | Q15: 7 | S15: 0 | T15: 0 | U15: 0 | V15: 0
A16: ='Cars+'!A16 -> 2018-10-04 | B16: ='Cars+'!B16 -> 900 | C16: ='Cars+'!C16 -> 810 | D16: 0 | E16: 0 | F16: 0 | G16: 0 | I16: 0 | J16: 0 | K16: 0 | L16: 0 | N16: 0 | O16: 0 | P16: 0 | Q16: 0 | S16: 0 | T16: 0 | U16: 0 | V16: 0
A17: ='Cars+'!A17 -> 2018-10-04 | B17: ='Cars+'!B17 -> 915 | C17: ='Cars+'!C17 -> 810 | D17: 0 | E17: 0 | F17: 0 | G17: 0 | I17: 0 | J17: 0 | K17: 0 | L17: 0 | N17: 0 | O17: 0 | P17: 0 | Q17: 0 | S17: 0 | T17: 0 | U17: 0 | V17: 0
A18: ='Cars+'!A18 -> 2018-10-04 | B18: ='Cars+'!B18 -> 930 | C18: ='Cars+'!C18 -> 810 | D18: 0 | E18: 0 | F18: 0 | G18: 0 | I18: 0 | J18: 0 | K18: 0 | L18: 0 | N18: 0 | O18: 0 | P18: 0 | Q18: 0 | S18: 0 | T18: 0 | U18: 0 | V18: 0
A19: ='Cars+'!A19 -> 2018-10-04 | B19: ='Cars+'!B19 -> 945 | C19: ='Cars+'!C19 -> 810 | D19: 0 | E19: 0 | F19: 0 | G19: 0 | I19: 0 | J19: 0 | K19: 0 | L19: 0 | N19: 0 | O19: 0 | P19: 0 | Q19: 0 | S19: 0 | T19: 0 | U19: 0 | V19: 0
A20: ='Cars+'!A20 -> 2018-10-04 | B20: ='Cars+'!B20 -> 1000 | C20: ='Cars+'!C20 -> 810 | D20: 0 | E20: 0 | F20: 0 | G20: 0 | I20: 0 | J20: 0 | K20: 0 | L20: 0 | N20: 0 | O20: 0 | P20: 0 | Q20: 0 | S20: 0 | T20: 0 | U20: 0 | V20: 0
A21: ='Cars+'!A21 -> 2018-10-04 | B21: ='Cars+'!B21 -> 1015 | C21: ='Cars+'!C21 -> 810 | D21: 0 | E21: 0 | F21: 0 | G21: 0 | I21: 0 | J21: 0 | K21: 0 | L21: 0 | N21: 0 | O21: 0 | P21: 0 | Q21: 0 | S21: 0 | T21: 0 | U21: 0 | V21: 0
A22: ='Cars+'!A22 -> 2018-10-04 | B22: ='Cars+'!B22 -> 1030 | C22: ='Cars+'!C22 -> 810 | D22: 0 | E22: 0 | F22: 0 | G22: 0 | I22: 0 | J22: 0 | K22: 0 | L22: 0 | N22: 0 | O22: 0 | P22: 0 | Q22: 0 | S22: 0 | T22: 0 | U22: 0 | V22: 0
A23: ='Cars+'!A23 -> 2018-10-04 | B23: ='Cars+'!B23 -> 1045 | C23: ='Cars+'!C23 -> 810 | D23: 0 | E23: 0 | F23: 0 | G23: 0 | I23: 0 | J23: 0 | K23: 0 | L23: 0 | N23: 0 | O23: 0 | P23: 0 | Q23: 0 | S23: 0 | T23: 0 | U23: 0 | V23: 0
A24: ='Cars+'!A24 -> 2018-10-04 | B24: ='Cars+'!B24 -> 1100 | C24: ='Cars+'!C24 -> 810 | D24: 0 | E24: 5 | F24: 5 | G24: 0 | I24: 0 | J24: 9 | K24: 0 | L24: 0 | N24: 0 | O24: 0 | P24: 6 | Q24: 2 | S24: 0 | T24: 0 | U24: 0 | V24: 0
A25: ='Cars+'!A25 -> 2018-10-04 | B25: ='Cars+'!B25 -> 1115 | C25: ='Cars+'!C25 -> 810 | D25: 0 | E25: 6 | F25: 2 | G25: 0 | I25: 0 | J25: 5 | K25: 0 | L25: 0 | N25: 0 | O25: 0 | P25: 3 | Q25: 8 | S25: 0 | T25: 0 | U25: 0 | V25: 0
A26: ='Cars+'!A26 -> 2018-10-04 | B26: ='Cars+'!B26 -> 1130 | C26: ='Cars+'!C26 -> 810 | D26: 0 | E26: 3 | F26: 5 | G26: 0 | I26: 0 | J26: 7 | K26: 0 | L26: 0 | N26: 0 | O26: 0 | P26: 10 | Q26: 8 | S26: 0 | T26: 0 | U26: 0 | V26: 0
A27: ='Cars+'!A27 -> 2018-10-04 | B27: ='Cars+'!B27 -> 1145 | C27: ='Cars+'!C27 -> 810 | D27: 0 | E27: 5 | F27: 9 | G27: 0 | I27: 0 | J27: 11 | K27: 0 | L27: 0 | N27: 0 | O27: 0 | P27: 12 | Q27: 6 | S27: 0 | T27: 0 | U27: 0 | V27: 0
A28: ='Cars+'!A28 -> 2018-10-04 | B28: ='Cars+'!B28 -> 1200 | C28: ='Cars+'!C28 -> 810 | D28: 0 | E28: 8 | F28: 2 | G28: 0 | I28: 0 | J28: 7 | K28: 0 | L28: 0 | N28: 0 | O28: 0 | P28: 6 | Q28: 9 | S28: 0 | T28: 0 | U28: 0 | V28: 0
A29: ='Cars+'!A29 -> 2018-10-04 | B29: ='Cars+'!B29 -> 1215 | C29: ='Cars+'!C29 -> 810 | D29: 0 | E29: 3 | F29: 3 | G29: 0 | I29: 0 | J29: 12 | K29: 0 | L29: 0 | N29: 0 | O29: 0 | P29: 7 | Q29: 16 | S29: 0 | T29: 0 | U29: 0 | V29: 0
A30: ='Cars+'!A30 -> 2018-10-04 | B30: ='Cars+'!B30 -> 1230 | C30: ='Cars+'!C30 -> 810 | D30: 0 | E30: 4 | F30: 4 | G30: 0 | I30: 0 | J30: 11 | K30: 0 | L30: 0 | N30: 0 | O30: 0 | P30: 10 | Q30: 17 | S30: 0 | T30: 0 | U30: 0 | V30: 0
A31: ='Cars+'!A31 -> 2018-10-04 | B31: ='Cars+'!B31 -> 1245 | C31: ='Cars+'!C31 -> 810 | D31: 0 | E31: 5 | F31: 7 | G31: 0 | I31: 0 | J31: 6 | K31: 0 | L31: 0 | N31: 0 | O31: 0 | P31: 3 | Q31: 11 | S31: 0 | T31: 0 | U31: 0 | V31: 0
A32: ='Cars+'!A32 -> 2018-10-04 | B32: ='Cars+'!B32 -> 1300 | C32: ='Cars+'!C32 -> 810 | D32: 0 | E32: 0 | F32: 0 | G32: 0 | I32: 0 | J32: 0 | K32: 0 | L32: 0 | N32: 0 | O32: 0 | P32: 0 | Q32: 0 | S32: 0 | T32: 0 | U32: 0 | V32: 0
A33: ='Cars+'!A33 -> 2018-10-04 | B33: ='Cars+'!B33 -> 1315 | C33: ='Cars+'!C33 -> 810 | D33: 0 | E33: 0 | F33: 0 | G33: 0 | I33: 0 | J33: 0 | K33: 0 | L33: 0 | N33: 0 | O33: 0 | P33: 0 | Q33: 0 | S33: 0 | T33: 0 | U33: 0 | V33: 0
A34: ='Cars+'!A34 -> 2018-10-04 | B34: ='Cars+'!B34 -> 1330 | C34: ='Cars+'!C34 -> 810 | D34: 0 | E34: 0 | F34: 0 | G34: 0 | I34: 0 | J34: 0 | K34: 0 | L34: 0 | N34: 0 | O34: 0 | P34: 0 | Q34: 0 | S34: 0 | T34: 0 | U34: 0 | V34: 0
A35: ='Cars+'!A35 -> 2018-10-04 | B35: ='Cars+'!B35 -> 1345 | C35: ='Cars+'!C35 -> 810 | D35: 0 | E35: 0 | F35: 0 | G35: 0 | I35: 0 | J35: 0 | K35: 0 | L35: 0 | N35: 0 | O35: 0 | P35: 0 | Q35: 0 | S35: 0 | T35: 0 | U35: 0 | V35: 0
A36: ='Cars+'!A36 -> 2018-10-04 | B36: ='Cars+'!B36 -> 1400 | C36: ='Cars+'!C36 -> 810 | D36: 0 | E36: 0 | F36: 0 | G36: 0 | I36: 0 | J36: 0 | K36: 0 | L36: 0 | N36: 0 | O36: 0 | P36: 0 | Q36: 0 | S36: 0 | T36: 0 | U36: 0 | V36: 0
A37: ='Cars+'!A37 -> 2018-10-04 | B37: ='Cars+'!B37 -> 1415 | C37: ='Cars+'!C37 -> 810 | D37: 0 | E37: 0 | F37: 0 | G37: 0 | I37: 0 | J37: 0 | K37: 0 | L37: 0 | N37: 0 | O37: 0 | P37: 0 | Q37: 0 | S37: 0 | T37: 0 | U37: 0 | V37: 0
A38: ='Cars+'!A38 -> 2018-10-04 | B38: ='Cars+'!B38 -> 1430 | C38: ='Cars+'!C38 -> 810 | D38: 0 | E38: 0 | F38: 0 | G38: 0 | I38: 0 | J38: 0 | K38: 0 | L38: 0 | N38: 0 | O38: 0 | P38: 0 | Q38: 0 | S38: 0 | T38: 0 | U38: 0 | V38: 0
A39: ='Cars+'!A39 -> 2018-10-04 | B39: ='Cars+'!B39 -> 1445 | C39: ='Cars+'!C39 -> 810 | D39: 0 | E39: 0 | F39: 0 | G39: 0 | I39: 0 | J39: 0 | K39: 0 | L39: 0 | N39: 0 | O39: 0 | P39: 0 | Q39: 0 | S39: 0 | T39: 0 | U39: 0 | V39: 0
A40: ='Cars+'!A40 -> 2018-10-04 | B40: ='Cars+'!B40 -> 1500 | C40: ='Cars+'!C40 -> 810 | D40: 0 | E40: 1 | F40: 6 | G40: 0 | I40: 0 | J40: 10 | K40: 0 | L40: 0 | N40: 0 | O40: 0 | P40: 5 | Q40: 6 | S40: 0 | T40: 0 | U40: 0 | V40: 0
A41: ='Cars+'!A41 -> 2018-10-04 | B41: ='Cars+'!B41 -> 1515 | C41: ='Cars+'!C41 -> 810 | D41: 0 | E41: 4 | F41: 5 | G41: 0 | I41: 0 | J41: 7 | K41: 0 | L41: 0 | N41: 0 | O41: 0 | P41: 11 | Q41: 12 | S41: 0 | T41: 0 | U41: 0 | V41: 0
A42: ='Cars+'!A42 -> 2018-10-04 | B42: ='Cars+'!B42 -> 1530 | C42: ='Cars+'!C42 -> 810 | D42: 0 | E42: 1 | F42: 4 | G42: 0 | I42: 0 | J42: 6 | K42: 0 | L42: 0 | N42: 0 | O42: 0 | P42: 6 | Q42: 7 | S42: 0 | T42: 0 | U42: 0 | V42: 0
A43: ='Cars+'!A43 -> 2018-10-04 | B43: ='Cars+'!B43 -> 1545 | C43: ='Cars+'!C43 -> 810 | D43: 0 | E43: 1 | F43: 3 | G43: 0 | I43: 0 | J43: 6 | K43: 0 | L43: 0 | N43: 0 | O43: 0 | P43: 10 | Q43: 3 | S43: 0 | T43: 0 | U43: 0 | V43: 0
A44: ='Cars+'!A44 -> 2018-10-04 | B44: ='Cars+'!B44 -> 1600 | C44: ='Cars+'!C44 -> 810 | D44: 0 | E44: 4 | F44: 3 | G44: 0 | I44: 0 | J44: 6 | K44: 0 | L44: 0 | N44: 0 | O44: 0 | P44: 8 | Q44: 7 | S44: 0 | T44: 0 | U44: 0 | V44: 0
A45: ='Cars+'!A45 -> 2018-10-04 | B45: ='Cars+'!B45 -> 1615 | C45: ='Cars+'!C45 -> 810 | D45: 0 | E45: 2 | F45: 1 | G45: 0 | I45: 0 | J45: 2 | K45: 0 | L45: 0 | N45: 0 | O45: 0 | P45: 11 | Q45: 4 | S45: 0 | T45: 0 | U45: 0 | V45: 0
A46: ='Cars+'!A46 -> 2018-10-04 | B46: ='Cars+'!B46 -> 1630 | C46: ='Cars+'!C46 -> 810 | D46: 0 | E46: 2 | F46: 5 | G46: 0 | I46: 0 | J46: 3 | K46: 0 | L46: 0 | N46: 0 | O46: 0 | P46: 10 | Q46: 3 | S46: 0 | T46: 0 | U46: 0 | V46: 0
A47: ='Cars+'!A47 -> 2018-10-04 | B47: ='Cars+'!B47 -> 1645 | C47: ='Cars+'!C47 -> 810 | D47: 0 | E47: 1 | F47: 2 | G47: 0 | I47: 0 | J47: 3 | K47: 0 | L47: 0 | N47: 0 | O47: 0 | P47: 13 | Q47: 5 | S47: 0 | T47: 0 | U47: 0 | V47: 0
A48: ='Cars+'!A48 -> 2018-10-04 | B48: ='Cars+'!B48 -> 1700 | C48: ='Cars+'!C48 -> 810 | D48: 0 | E48: 4 | F48: 3 | G48: 0 | I48: 0 | J48: 6 | K48: 0 | L48: 0 | N48: 0 | O48: 0 | P48: 10 | Q48: 2 | S48: 0 | T48: 0 | U48: 0 | V48: 0
A49: ='Cars+'!A49 -> 2018-10-04 | B49: ='Cars+'!B49 -> 1715 | C49: ='Cars+'!C49 -> 810 | D49: 0 | E49: 2 | F49: 1 | G49: 0 | I49: 0 | J49: 3 | K49: 0 | L49: 0 | N49: 0 | O49: 0 | P49: 6 | Q49: 2 | S49: 0 | T49: 0 | U49: 0 | V49: 0
A50: ='Cars+'!A50 -> 2018-10-04 | B50: ='Cars+'!B50 -> 1730 | C50: ='Cars+'!C50 -> 810 | D50: 0 | E50: 2 | F50: 2 | G50: 0 | I50: 0 | J50: 7 | K50: 0 | L50: 0 | N50: 0 | O50: 0 | P50: 6 | Q50: 1 | S50: 0 | T50: 0 | U50: 0 | V50: 0
A51: ='Cars+'!A51 -> 2018-10-04 | B51: ='Cars+'!B51 -> 1745 | C51: ='Cars+'!C51 -> 810 | D51: 0 | E51: 1 | F51: 3 | G51: 0 | I51: 0 | J51: 2 | K51: 0 | L51: 0 | N51: 0 | O51: 0 | P51: 8 | Q51: 3 | S51: 0 | T51: 0 | U51: 0 | V51: 0
A52: ='Cars+'!A52 -> 00:00:00 | B52: ='Cars+'!B52 -> 0 | C52: ='Cars+'!C52 -> 0
A53: ='Cars+'!A53 -> 2018-10-04 | B53: ='Cars+'!B53 -> 600 | C53: ='Cars+'!C53 -> 820 | D53: 0 | E53: 0 | F53: 8 | G53: 0 | I53: 0 | J53: 5 | K53: 0 | L53: 0 | N53: 0 | O53: 0 | P53: 4 | Q53: 0 | S53: 0 | T53: 0 | U53: 0 | V53: 0
A54: ='Cars+'!A54 -> 2018-10-04 | B54: ='Cars+'!B54 -> 615 | C54: ='Cars+'!C54 -> 820 | D54: 0 | E54: 3 | F54: 10 | G54: 0 | I54: 0 | J54: 4 | K54: 0 | L54: 1 | N54: 0 | O54: 0 | P54: 12 | Q54: 0 | S54: 0 | T54: 0 | U54: 0 | V54: 0
A55: ='Cars+'!A55 -> 2018-10-04 | B55: ='Cars+'!B55 -> 630 | C55: ='Cars+'!C55 -> 820 | D55: 0 | E55: 0 | F55: 7 | G55: 0 | I55: 0 | J55: 4 | K55: 0 | L55: 2 | N55: 0 | O55: 0 | P55: 7 | Q55: 0 | S55: 0 | T55: 0 | U55: 0 | V55: 0
A56: ='Cars+'!A56 -> 2018-10-04 | B56: ='Cars+'!B56 -> 645 | C56: ='Cars+'!C56 -> 820 | D56: 0 | E56: 0 | F56: 4 | G56: 0 | I56: 0 | J56: 7 | K56: 0 | L56: 3 | N56: 0 | O56: 0 | P56: 8 | Q56: 0 | S56: 0 | T56: 0 | U56: 0 | V56: 0
A57: ='Cars+'!A57 -> 2018-10-04 | B57: ='Cars+'!B57 -> 700 | C57: ='Cars+'!C57 -> 820 | D57: 0 | E57: 1 | F57: 7 | G57: 0 | I57: 0 | J57: 3 | K57: 0 | L57: 1 | N57: 0 | O57: 0 | P57: 16 | Q57: 0 | S57: 0 | T57: 0 | U57: 0 | V57: 0
A58: ='Cars+'!A58 -> 2018-10-04 | B58: ='Cars+'!B58 -> 715 | C58: ='Cars+'!C58 -> 820 | D58: 0 | E58: 5 | F58: 9 | G58: 0 | I58: 0 | J58: 3 | K58: 0 | L58: 3 | N58: 0 | O58: 0 | P58: 9 | Q58: 0 | S58: 0 | T58: 0 | U58: 0 | V58: 0
A59: ='Cars+'!A59 -> 2018-10-04 | B59: ='Cars+'!B59 -> 730 | C59: ='Cars+'!C59 -> 820 | D59: 0 | E59: 4 | F59: 6 | G59: 0 | I59: 0 | J59: 6 | K59: 0 | L59: 2 | N59: 0 | O59: 0 | P59: 11 | Q59: 0 | S59: 0 | T59: 0 | U59: 0 | V59: 0
A60: ='Cars+'!A60 -> 2018-10-04 | B60: ='Cars+'!B60 -> 745 | C60: ='Cars+'!C60 -> 820 | D60: 0 | E60: 1 | F60: 8 | G60: 0 | I60: 0 | J60: 3 | K60: 0 | L60: 2 | N60: 0 | O60: 0 | P60: 11 | Q60: 0 | S60: 0 | T60: 0 | U60: 0 | V60: 0
A61: ='Cars+'!A61 -> 2018-10-04 | B61: ='Cars+'!B61 -> 800 | C61: ='Cars+'!C61 -> 820 | D61: 0 | E61: 3 | F61: 11 | G61: 0 | I61: 0 | J61: 11 | K61: 0 | L61: 3 | N61: 0 | O61: 0 | P61: 8 | Q61: 0 | S61: 0 | T61: 0 | U61: 0 | V61: 0
A62: ='Cars+'!A62 -> 2018-10-04 | B62: ='Cars+'!B62 -> 815 | C62: ='Cars+'!C62 -> 820 | D62: 0 | E62: 4 | F62: 8 | G62: 0 | I62: 0 | J62: 7 | K62: 0 | L62: 1 | N62: 0 | O62: 0 | P62: 13 | Q62: 0 | S62: 0 | T62: 0 | U62: 0 | V62: 0
A63: ='Cars+'!A63 -> 2018-10-04 | B63: ='Cars+'!B63 -> 830 | C63: ='Cars+'!C63 -> 820 | D63: 0 | E63: 0 | F63: 16 | G63: 0 | I63: 0 | J63: 6 | K63: 0 | L63: 3 | N63: 0 | O63: 0 | P63: 18 | Q63: 0 | S63: 0 | T63: 0 | U63: 0 | V63: 0
A64: ='Cars+'!A64 -> 2018-10-04 | B64: ='Cars+'!B64 -> 845 | C64: ='Cars+'!C64 -> 820 | D64: 0 | E64: 1 | F64: 6 | G64: 0 | I64: 0 | J64: 5 | K64: 0 | L64: 11 | N64: 0 | O64: 0 | P64: 11 | Q64: 0 | S64: 0 | T64: 0 | U64: 0 | V64: 0
A65: ='Cars+'!A65 -> 2018-10-04 | B65: ='Cars+'!B65 -> 900 | C65: ='Cars+'!C65 -> 820 | D65: 0 | E65: 0 | F65: 0 | G65: 0 | I65: 0 | J65: 0 | K65: 0 | L65: 0 | N65: 0 | O65: 0 | P65: 0 | Q65: 0 | S65: 0 | T65: 0 | U65: 0 | V65: 0
A66: ='Cars+'!A66 -> 2018-10-04 | B66: ='Cars+'!B66 -> 915 | C66: ='Cars+'!C66 -> 820 | D66: 0 | E66: 0 | F66: 0 | G66: 0 | I66: 0 | J66: 0 | K66: 0 | L66: 0 | N66: 0 | O66: 0 | P66: 0 | Q66: 0 | S66: 0 | T66: 0 | U66: 0 | V66: 0
A67: ='Cars+'!A67 -> 2018-10-04 | B67: ='Cars+'!B67 -> 930 | C67: ='Cars+'!C67 -> 820 | D67: 0 | E67: 0 | F67: 0 | G67: 0 | I67: 0 | J67: 0 | K67: 0 | L67: 0 | N67: 0 | O67: 0 | P67: 0 | Q67: 0 | S67: 0 | T67: 0 | U67: 0 | V67: 0
A68: ='Cars+'!A68 -> 2018-10-04 | B68: ='Cars+'!B68 -> 945 | C68: ='Cars+'!C68 -> 820 | D68: 0 | E68: 0 | F68: 0 | G68: 0 | I68: 0 | J68: 0 | K68: 0 | L68: 0 | N68: 0 | O68: 0 | P68: 0 | Q68: 0 | S68: 0 | T68: 0 | U68: 0 | V68: 0
A69: ='Cars+'!A69 -> 2018-10-04 | B69: ='Cars+'!B69 -> 1000 | C69: ='Cars+'!C69 -> 820 | D69: 0 | E69: 0 | F69: 0 | G69: 0 | I69: 0 | J69: 0 | K69: 0 | L69: 0 | N69: 0 | O69: 0 | P69: 0 | Q69: 0 | S69: 0 | T69: 0 | U69: 0 | V69: 0
A70: ='Cars+'!A70 -> 2018-10-04 | B70: ='Cars+'!B70 -> 1015 | C70: ='Cars+'!C70 -> 820 | D70: 0 | E70: 0 | F70: 0 | G70: 0 | I70: 0 | J70: 0 | K70: 0 | L70: 0 | N70: 0 | O70: 0 | P70: 0 | Q70: 0 | S70: 0 | T70: 0 | U70: 0 | V70: 0
A71: ='Cars+'!A71 -> 2018-10-04 | B71: ='Cars+'!B71 -> 1030 | C71: ='Cars+'!C71 -> 820 | D71: 0 | E71: 0 | F71: 0 | G71: 0 | I71: 0 | J71: 0 | K71: 0 | L71: 0 | N71: 0 | O71: 0 | P71: 0 | Q71: 0 | S71: 0 | T71: 0 | U71: 0 | V71: 0
A72: ='Cars+'!A72 -> 2018-10-04 | B72: ='Cars+'!B72 -> 1045 | C72: ='Cars+'!C72 -> 820 | D72: 0 | E72: 0 | F72: 0 | G72: 0 | I72: 0 | J72: 0 | K72: 0 | L72: 0 | N72: 0 | O72: 0 | P72: 0 | Q72: 0 | S72: 0 | T72: 0 | U72: 0 | V72: 0
A73: ='Cars+'!A73 -> 2018-10-04 | B73: ='Cars+'!B73 -> 1100 | C73: ='Cars+'!C73 -> 820 | D73: 0 | E73: 3 | F73: 11 | G73: 0 | I73: 0 | J73: 5 | K73: 0 | L73: 2 | N73: 0 | O73: 0 | P73: 6 | Q73: 0 | S73: 0 | T73: 0 | U73: 0 | V73: 0
A74: ='Cars+'!A74 -> 2018-10-04 | B74: ='Cars+'!B74 -> 1115 | C74: ='Cars+'!C74 -> 820 | D74: 0 | E74: 0 | F74: 6 | G74: 0 | I74: 0 | J74: 11 | K74: 0 | L74: 1 | N74: 0 | O74: 0 | P74: 11 | Q74: 0 | S74: 0 | T74: 0 | U74: 0 | V74: 0
A75: ='Cars+'!A75 -> 2018-10-04 | B75: ='Cars+'!B75 -> 1130 | C75: ='Cars+'!C75 -> 820 | D75: 0 | E75: 3 | F75: 11 | G75: 0 | I75: 0 | J75: 1 | K75: 0 | L75: 5 | N75: 0 | O75: 0 | P75: 13 | Q75: 0 | S75: 0 | T75: 0 | U75: 0 | V75: 0
A76: ='Cars+'!A76 -> 2018-10-04 | B76: ='Cars+'!B76 -> 1145 | C76: ='Cars+'!C76 -> 820 | D76: 0 | E76: 1 | F76: 16 | G76: 0 | I76: 0 | J76: 14 | K76: 0 | L76: 5 | N76: 0 | O76: 0 | P76: 12 | Q76: 0 | S76: 0 | T76: 0 | U76: 0 | V76: 0
A77: ='Cars+'!A77 -> 2018-10-04 | B77: ='Cars+'!B77 -> 1200 | C77: ='Cars+'!C77 -> 820 | D77: 0 | E77: 3 | F77: 7 | G77: 0 | I77: 0 | J77: 8 | K77: 0 | L77: 1 | N77: 0 | O77: 0 | P77: 14 | Q77: 0 | S77: 0 | T77: 0 | U77: 0 | V77: 0
A78: ='Cars+'!A78 -> 2018-10-04 | B78: ='Cars+'!B78 -> 1215 | C78: ='Cars+'!C78 -> 820 | D78: 0 | E78: 0 | F78: 16 | G78: 0 | I78: 0 | J78: 14 | K78: 0 | L78: 3 | N78: 0 | O78: 0 | P78: 20 | Q78: 0 | S78: 0 | T78: 0 | U78: 0 | V78: 0
A79: ='Cars+'!A79 -> 2018-10-04 | B79: ='Cars+'!B79 -> 1230 | C79: ='Cars+'!C79 -> 820 | D79: 0 | E79: 1 | F79: 14 | G79: 0 | I79: 0 | J79: 10 | K79: 0 | L79: 6 | N79: 0 | O79: 0 | P79: 20 | Q79: 0 | S79: 0 | T79: 0 | U79: 0 | V79: 0
A80: ='Cars+'!A80 -> 2018-10-04 | B80: ='Cars+'!B80 -> 1245 | C80: ='Cars+'!C80 -> 820 | D80: 0 | E80: 2 | F80: 11 | G80: 0 | I80: 0 | J80: 8 | K80: 0 | L80: 1 | N80: 0 | O80: 0 | P80: 15 | Q80: 0 | S80: 0 | T80: 0 | U80: 0 | V80: 0
A81: ='Cars+'!A81 -> 2018-10-04 | B81: ='Cars+'!B81 -> 1300 | C81: ='Cars+'!C81 -> 820 | D81: 0 | E81: 0 | F81: 0 | G81: 0 | I81: 0 | J81: 0 | K81: 0 | L81: 0 | N81: 0 | O81: 0 | P81: 0 | Q81: 0 | S81: 0 | T81: 0 | U81: 0 | V81: 0
A82: ='Cars+'!A82 -> 2018-10-04 | B82: ='Cars+'!B82 -> 1315 | C82: ='Cars+'!C82 -> 820 | D82: 0 | E82: 0 | F82: 0 | G82: 0 | I82: 0 | J82: 0 | K82: 0 | L82: 0 | N82: 0 | O82: 0 | P82: 0 | Q82: 0 | S82: 0 | T82: 0 | U82: 0 | V82: 0
A83: ='Cars+'!A83 -> 2018-10-04 | B83: ='Cars+'!B83 -> 1330 | C83: ='Cars+'!C83 -> 820 | D83: 0 | E83: 0 | F83: 0 | G83: 0 | I83: 0 | J83: 0 | K83: 0 | L83: 0 | N83: 0 | O83: 0 | P83: 0 | Q83: 0 | S83: 0 | T83: 0 | U83: 0 | V83: 0
A84: ='Cars+'!A84 -> 2018-10-04 | B84: ='Cars+'!B84 -> 1345 | C84: ='Cars+'!C84 -> 820 | D84: 0 | E84: 0 | F84: 0 | G84: 0 | I84: 0 | J84: 0 | K84: 0 | L84: 0 | N84: 0 | O84: 0 | P84: 0 | Q84: 0 | S84: 0 | T84: 0 | U84: 0 | V84: 0
A85: ='Cars+'!A85 -> 2018-10-04 | B85: ='Cars+'!B85 -> 1400 | C85: ='Cars+'!C85 -> 820 | D85: 0 | E85: 0 | F85: 0 | G85: 0 | I85: 0 | J85: 0 | K85: 0 | L85: 0 | N85: 0 | O85: 0 | P85: 0 | Q85: 0 | S85: 0 | T85: 0 | U85: 0 | V85: 0
A86: ='Cars+'!A86 -> 2018-10-04 | B86: ='Cars+'!B86 -> 1415 | C86: ='Cars+'!C86 -> 820 | D86: 0 | E86: 0 | F86: 0 | G86: 0 | I86: 0 | J86: 0 | K86: 0 | L86: 0 | N86: 0 | O86: 0 | P86: 0 | Q86: 0 | S86: 0 | T86: 0 | U86: 0 | V86: 0
A87: ='Cars+'!A87 -> 2018-10-04 | B87: ='Cars+'!B87 -> 1430 | C87: ='Cars+'!C87 -> 820 | D87: 0 | E87: 0 | F87: 0 | G87: 0 | I87: 0 | J87: 0 | K87: 0 | L87: 0 | N87: 0 | O87: 0 | P87: 0 | Q87: 0 | S87: 0 | T87: 0 | U87: 0 | V87: 0
A88: ='Cars+'!A88 -> 2018-10-04 | B88: ='Cars+'!B88 -> 1445 | C88: ='Cars+'!C88 -> 820 | D88: 0 | E88: 0 | F88: 0 | G88: 0 | I88: 0 | J88: 0 | K88: 0 | L88: 0 | N88: 0 | O88: 0 | P88: 0 | Q88: 0 | S88: 0 | T88: 0 | U88: 0 | V88: 0
A89: ='Cars+'!A89 -> 2018-10-04 | B89: ='Cars+'!B89 -> 1500 | C89: ='Cars+'!C89 -> 820 | D89: 0 | E89: 6 | F89: 10 | G89: 0 | I89: 0 | J89: 8 | K89: 0 | L89: 3 | N89: 0 | O89: 0 | P89: 8 | Q89: 0 | S89: 0 | T89: 0 | U89: 0 | V89: 0
A90: ='Cars+'!A90 -> 2018-10-04 | B90: ='Cars+'!B90 -> 1515 | C90: ='Cars+'!C90 -> 820 | D90: 0 | E90: 0 | F90: 11 | G90: 0 | I90: 0 | J90: 6 | K90: 0 | L90: 7 | N90: 0 | O90: 0 | P90: 15 | Q90: 0 | S90: 0 | T90: 0 | U90: 0 | V90: 0
A91: ='Cars+'!A91 -> 2018-10-04 | B91: ='Cars+'!B91 -> 1530 | C91: ='Cars+'!C91 -> 820 | D91: 0 | E91: 0 | F91: 11 | G91: 0 | I91: 0 | J91: 4 | K91: 0 | L91: 4 | N91: 0 | O91: 0 | P91: 11 | Q91: 0 | S91: 0 | T91: 0 | U91: 0 | V91: 0
A92: ='Cars+'!A92 -> 2018-10-04 | B92: ='Cars+'!B92 -> 1545 | C92: ='Cars+'!C92 -> 820 | D92: 0 | E92: 2 | F92: 6 | G92: 0 | I92: 0 | J92: 4 | K92: 0 | L92: 8 | N92: 0 | O92: 0 | P92: 2 | Q92: 0 | S92: 0 | T92: 0 | U92: 0 | V92: 0
A93: ='Cars+'!A93 -> 2018-10-04 | B93: ='Cars+'!B93 -> 1600 | C93: ='Cars+'!C93 -> 820 | D93: 0 | E93: 1 | F93: 9 | G93: 0 | I93: 0 | J93: 2 | K93: 0 | L93: 7 | N93: 0 | O93: 0 | P93: 11 | Q93: 0 | S93: 0 | T93: 0 | U93: 0 | V93: 0
A94: ='Cars+'!A94 -> 2018-10-04 | B94: ='Cars+'!B94 -> 1615 | C94: ='Cars+'!C94 -> 820 | D94: 0 | E94: 0 | F94: 3 | G94: 0 | I94: 0 | J94: 2 | K94: 0 | L94: 10 | N94: 0 | O94: 0 | P94: 5 | Q94: 0 | S94: 0 | T94: 0 | U94: 0 | V94: 0
A95: ='Cars+'!A95 -> 2018-10-04 | B95: ='Cars+'!B95 -> 1630 | C95: ='Cars+'!C95 -> 820 | D95: 0 | E95: 2 | F95: 6 | G95: 0 | I95: 0 | J95: 6 | K95: 0 | L95: 6 | N95: 0 | O95: 0 | P95: 6 | Q95: 0 | S95: 0 | T95: 0 | U95: 0 | V95: 0
A96: ='Cars+'!A96 -> 2018-10-04 | B96: ='Cars+'!B96 -> 1645 | C96: ='Cars+'!C96 -> 820 | D96: 0 | E96: 1 | F96: 4 | G96: 0 | I96: 0 | J96: 4 | K96: 0 | L96: 9 | N96: 0 | O96: 0 | P96: 10 | Q96: 0 | S96: 0 | T96: 0 | U96: 0 | V96: 0
A97: ='Cars+'!A97 -> 2018-10-04 | B97: ='Cars+'!B97 -> 1700 | C97: ='Cars+'!C97 -> 820 | D97: 0 | E97: 0 | F97: 9 | G97: 0 | I97: 0 | J97: 4 | K97: 0 | L97: 7 | N97: 0 | O97: 0 | P97: 4 | Q97: 0 | S97: 0 | T97: 0 | U97: 0 | V97: 0
A98: ='Cars+'!A98 -> 2018-10-04 | B98: ='Cars+'!B98 -> 1715 | C98: ='Cars+'!C98 -> 820 | D98: 0 | E98: 0 | F98: 4 | G98: 0 | I98: 0 | J98: 5 | K98: 0 | L98: 5 | N98: 0 | O98: 0 | P98: 3 | Q98: 0 | S98: 0 | T98: 0 | U98: 0 | V98: 0
A99: ='Cars+'!A99 -> 2018-10-04 | B99: ='Cars+'!B99 -> 1730 | C99: ='Cars+'!C99 -> 820 | D99: 0 | E99: 0 | F99: 10 | G99: 0 | I99: 0 | J99: 2 | K99: 0 | L99: 4 | N99: 0 | O99: 0 | P99: 4 | Q99: 0 | S99: 0 | T99: 0 | U99: 0 | V99: 0
A100: ='Cars+'!A100 -> 2018-10-04 | B100: ='Cars+'!B100 -> 1745 | C100: ='Cars+'!C100 -> 820 | D100: 0 | E100: 0 | F100: 5 | G100: 0 | I100: 0 | J100: 4 | K100: 0 | L100: 5 | N100: 0 | O100: 0 | P100: 5 | Q100: 0 | S100: 0 | T100: 0 | U100: 0 | V100: 0
A101: ='Cars+'!A101 -> 00:00:00 | B101: ='Cars+'!B101 -> 0 | C101: ='Cars+'!C101 -> 0
A102: ='Cars+'!A102 -> 00:00:00 | B102: ='Cars+'!B102 -> 0 | C102: ='Cars+'!C102 -> 0
A103: ='Cars+'!A103 -> 00:00:00 | B103: ='Cars+'!B103 -> 0 | C103: ='Cars+'!C103 -> 0
A104: ='Cars+'!A104 -> 00:00:00 | B104: ='Cars+'!B104 -> 0 | C104: ='Cars+'!C104 -> 0
A105: ='Cars+'!A105 -> 00:00:00 | B105: ='Cars+'!B105 -> 0 | C105: ='Cars+'!C105 -> 0
A106: ='Cars+'!A106 -> 00:00:00 | B106: ='Cars+'!B106 -> 0 | C106: ='Cars+'!C106 -> 0
A107: ='Cars+'!A107 -> 00:00:00 | B107: ='Cars+'!B107 -> 0 | C107: ='Cars+'!C107 -> 0
A108: ='Cars+'!A108 -> 00:00:00 | B108: ='Cars+'!B108 -> 0 | C108: ='Cars+'!C108 -> 0
A109: ='Cars+'!A109 -> 00:00:00 | B109: ='Cars+'!B109 -> 0 | C109: ='Cars+'!C109 -> 0
A110: ='Cars+'!A110 -> 00:00:00 | B110: ='Cars+'!B110 -> 0 | C110: ='Cars+'!C110 -> 0
A111: ='Cars+'!A111 -> 00:00:00 | B111: ='Cars+'!B111 -> 0 | C111: ='Cars+'!C111 -> 0
A112: ='Cars+'!A112 -> 00:00:00 | B112: ='Cars+'!B112 -> 0 | C112: ='Cars+'!C112 -> 0
A113: ='Cars+'!A113 -> 00:00:00 | B113: ='Cars+'!B113 -> 0 | C113: ='Cars+'!C113 -> 0
A114: ='Cars+'!A114 -> 00:00:00 | B114: ='Cars+'!B114 -> 0 | C114: ='Cars+'!C114 -> 0
A115: ='Cars+'!A115 -> 00:00:00 | B115: ='Cars+'!B115 -> 0 | C115: ='Cars+'!C115 -> 0
A116: ='Cars+'!A116 -> 00:00:00 | B116: ='Cars+'!B116 -> 0 | C116: ='Cars+'!C116 -> 0
A117: ='Cars+'!A117 -> 00:00:00 | B117: ='Cars+'!B117 -> 0 | C117: ='Cars+'!C117 -> 0
A118: ='Cars+'!A118 -> 00:00:00 | B118: ='Cars+'!B118 -> 0 | C118: ='Cars+'!C118 -> 0
A119: ='Cars+'!A119 -> 00:00:00 | B119: ='Cars+'!B119 -> 0 | C119: ='Cars+'!C119 -> 0
A120: ='Cars+'!A120 -> 00:00:00 | B120: ='Cars+'!B120 -> 0 | C120: ='Cars+'!C120 -> 0
A121: ='Cars+'!A121 -> 00:00:00 | B121: ='Cars+'!B121 -> 0 | C121: ='Cars+'!C121 -> 0
A122: ='Cars+'!A122 -> 00:00:00 | B122: ='Cars+'!B122 -> 0 | C122: ='Cars+'!C122 -> 0
A123: ='Cars+'!A123 -> 00:00:00 | B123: ='Cars+'!B123 -> 0 | C123: ='Cars+'!C123 -> 0
A124: ='Cars+'!A124 -> 00:00:00 | B124: ='Cars+'!B124 -> 0 | C124: ='Cars+'!C124 -> 0
A125: ='Cars+'!A125 -> 00:00:00 | B125: ='Cars+'!B125 -> 0 | C125: ='Cars+'!C125 -> 0
A126: ='Cars+'!A126 -> 00:00:00 | B126: ='Cars+'!B126 -> 0 | C126: ='Cars+'!C126 -> 0
A127: ='Cars+'!A127 -> 00:00:00 | B127: ='Cars+'!B127 -> 0 | C127: ='Cars+'!C127 -> 0
A128: ='Cars+'!A128 -> 00:00:00 | B128: ='Cars+'!B128 -> 0 | C128: ='Cars+'!C128 -> 0
A129: ='Cars+'!A129 -> 00:00:00 | B129: ='Cars+'!B129 -> 0 | C129: ='Cars+'!C129 -> 0
A130: ='Cars+'!A130 -> 00:00:00 | B130: ='Cars+'!B130 -> 0 | C130: ='Cars+'!C130 -> 0
A131: ='Cars+'!A131 -> 00:00:00 | B131: ='Cars+'!B131 -> 0 | C131: ='Cars+'!C131 -> 0
A132: ='Cars+'!A132 -> 00:00:00 | B132: ='Cars+'!B132 -> 0 | C132: ='Cars+'!C132 -> 0
A133: ='Cars+'!A133 -> 00:00:00 | B133: ='Cars+'!B133 -> 0 | C133: ='Cars+'!C133 -> 0
A134: ='Cars+'!A134 -> 00:00:00 | B134: ='Cars+'!B134 -> 0 | C134: ='Cars+'!C134 -> 0
A135: ='Cars+'!A135 -> 00:00:00 | B135: ='Cars+'!B135 -> 0 | C135: ='Cars+'!C135 -> 0
A136: ='Cars+'!A136 -> 00:00:00 | B136: ='Cars+'!B136 -> 0 | C136: ='Cars+'!C136 -> 0
A137: ='Cars+'!A137 -> 00:00:00 | B137: ='Cars+'!B137 -> 0 | C137: ='Cars+'!C137 -> 0
A138: ='Cars+'!A138 -> 00:00:00 | B138: ='Cars+'!B138 -> 0 | C138: ='Cars+'!C138 -> 0
A139: ='Cars+'!A139 -> 00:00:00 | B139: ='Cars+'!B139 -> 0 | C139: ='Cars+'!C139 -> 0
A140: ='Cars+'!A140 -> 00:00:00 | B140: ='Cars+'!B140 -> 0 | C140: ='Cars+'!C140 -> 0
A141: ='Cars+'!A141 -> 00:00:00 | B141: ='Cars+'!B141 -> 0 | C141: ='Cars+'!C141 -> 0
A142: ='Cars+'!A142 -> 00:00:00 | B142: ='Cars+'!B142 -> 0 | C142: ='Cars+'!C142 -> 0
A143: ='Cars+'!A143 -> 00:00:00 | B143: ='Cars+'!B143 -> 0 | C143: ='Cars+'!C143 -> 0
A144: ='Cars+'!A144 -> 00:00:00 | B144: ='Cars+'!B144 -> 0 | C144: ='Cars+'!C144 -> 0
A145: ='Cars+'!A145 -> 00:00:00 | B145: ='Cars+'!B145 -> 0 | C145: ='Cars+'!C145 -> 0
A146: ='Cars+'!A146 -> 00:00:00 | B146: ='Cars+'!B146 -> 0 | C146: ='Cars+'!C146 -> 0
A147: ='Cars+'!A147 -> 00:00:00 | B147: ='Cars+'!B147 -> 0 | C147: ='Cars+'!C147 -> 0
A148: ='Cars+'!A148 -> 00:00:00 | B148: ='Cars+'!B148 -> 0 | C148: ='Cars+'!C148 -> 0
A149: ='Cars+'!A149 -> 00:00:00 | B149: ='Cars+'!B149 -> 0 | C149: ='Cars+'!C149 -> 0
A150: ='Cars+'!A150 -> 00:00:00 | B150: ='Cars+'!B150 -> 0 | C150: ='Cars+'!C150 -> 0
A151: ='Cars+'!A151 -> 00:00:00 | B151: ='Cars+'!B151 -> 0 | C151: ='Cars+'!C151 -> 0
A152: ='Cars+'!A152 -> 00:00:00 | B152: ='Cars+'!B152 -> 0 | C152: ='Cars+'!C152 -> 0
A153: ='Cars+'!A153 -> 00:00:00 | B153: ='Cars+'!B153 -> 0 | C153: ='Cars+'!C153 -> 0
A154: ='Cars+'!A154 -> 00:00:00 | B154: ='Cars+'!B154 -> 0 | C154: ='Cars+'!C154 -> 0
A155: ='Cars+'!A155 -> 00:00:00 | B155: ='Cars+'!B155 -> 0 | C155: ='Cars+'!C155 -> 0
A156: ='Cars+'!A156 -> 00:00:00 | B156: ='Cars+'!B156 -> 0 | C156: ='Cars+'!C156 -> 0
A157: ='Cars+'!A157 -> 00:00:00 | B157: ='Cars+'!B157 -> 0 | C157: ='Cars+'!C157 -> 0
A158: ='Cars+'!A158 -> 00:00:00 | B158: ='Cars+'!B158 -> 0 | C158: ='Cars+'!C158 -> 0
A159: ='Cars+'!A159 -> 00:00:00 | B159: ='Cars+'!B159 -> 0 | C159: ='Cars+'!C159 -> 0
A160: ='Cars+'!A160 -> 00:00:00 | B160: ='Cars+'!B160 -> 0 | C160: ='Cars+'!C160 -> 0
A161: ='Cars+'!A161 -> 00:00:00 | B161: ='Cars+'!B161 -> 0 | C161: ='Cars+'!C161 -> 0
A162: ='Cars+'!A162 -> 00:00:00 | B162: ='Cars+'!B162 -> 0 | C162: ='Cars+'!C162 -> 0
A163: ='Cars+'!A163 -> 00:00:00 | B163: ='Cars+'!B163 -> 0 | C163: ='Cars+'!C163 -> 0
A164: ='Cars+'!A164 -> 00:00:00 | B164: ='Cars+'!B164 -> 0 | C164: ='Cars+'!C164 -> 0
A165: ='Cars+'!A165 -> 00:00:00 | B165: ='Cars+'!B165 -> 0 | C165: ='Cars+'!C165 -> 0
A166: ='Cars+'!A166 -> 00:00:00 | B166: ='Cars+'!B166 -> 0 | C166: ='Cars+'!C166 -> 0
A167: ='Cars+'!A167 -> 00:00:00 | B167: ='Cars+'!B167 -> 0 | C167: ='Cars+'!C167 -> 0
A168: ='Cars+'!A168 -> 00:00:00 | B168: ='Cars+'!B168 -> 0 | C168: ='Cars+'!C168 -> 0
A169: ='Cars+'!A169 -> 00:00:00 | B169: ='Cars+'!B169 -> 0 | C169: ='Cars+'!C169 -> 0
A170: ='Cars+'!A170 -> 00:00:00 | B170: ='Cars+'!B170 -> 0 | C170: ='Cars+'!C170 -> 0
A171: ='Cars+'!A171 -> 00:00:00 | B171: ='Cars+'!B171 -> 0 | C171: ='Cars+'!C171 -> 0
A172: ='Cars+'!A172 -> 00:00:00 | B172: ='Cars+'!B172 -> 0 | C172: ='Cars+'!C172 -> 0
A173: ='Cars+'!A173 -> 00:00:00 | B173: ='Cars+'!B173 -> 0 | C173: ='Cars+'!C173 -> 0
A174: ='Cars+'!A174 -> 00:00:00 | B174: ='Cars+'!B174 -> 0 | C174: ='Cars+'!C174 -> 0
A175: ='Cars+'!A175 -> 00:00:00 | B175: ='Cars+'!B175 -> 0 | C175: ='Cars+'!C175 -> 0
A176: ='Cars+'!A176 -> 00:00:00 | B176: ='Cars+'!B176 -> 0 | C176: ='Cars+'!C176 -> 0
A177: ='Cars+'!A177 -> 00:00:00 | B177: ='Cars+'!B177 -> 0 | C177: ='Cars+'!C177 -> 0
A178: ='Cars+'!A178 -> 00:00:00 | B178: ='Cars+'!B178 -> 0 | C178: ='Cars+'!C178 -> 0
A179: ='Cars+'!A179 -> 00:00:00 | B179: ='Cars+'!B179 -> 0 | C179: ='Cars+'!C179 -> 0
A180: ='Cars+'!A180 -> 00:00:00 | B180: ='Cars+'!B180 -> 0 | C180: ='Cars+'!C180 -> 0
A181: ='Cars+'!A181 -> 00:00:00 | B181: ='Cars+'!B181 -> 0 | C181: ='Cars+'!C181 -> 0
A182: ='Cars+'!A182 -> 00:00:00 | B182: ='Cars+'!B182 -> 0 | C182: ='Cars+'!C182 -> 0
A183: ='Cars+'!A183 -> 00:00:00 | B183: ='Cars+'!B183 -> 0 | C183: ='Cars+'!C183 -> 0
A184: ='Cars+'!A184 -> 00:00:00 | B184: ='Cars+'!B184 -> 0 | C184: ='Cars+'!C184 -> 0
A185: ='Cars+'!A185 -> 00:00:00 | B185: ='Cars+'!B185 -> 0 | C185: ='Cars+'!C185 -> 0
A186: ='Cars+'!A186 -> 00:00:00 | B186: ='Cars+'!B186 -> 0 | C186: ='Cars+'!C186 -> 0
A187: ='Cars+'!A187 -> 00:00:00 | B187: ='Cars+'!B187 -> 0 | C187: ='Cars+'!C187 -> 0
A188: ='Cars+'!A188 -> 00:00:00 | B188: ='Cars+'!B188 -> 0 | C188: ='Cars+'!C188 -> 0
A189: ='Cars+'!A189 -> 00:00:00 | B189: ='Cars+'!B189 -> 0 | C189: ='Cars+'!C189 -> 0
A190: ='Cars+'!A190 -> 00:00:00 | B190: ='Cars+'!B190 -> 0 | C190: ='Cars+'!C190 -> 0
A191: ='Cars+'!A191 -> 00:00:00 | B191: ='Cars+'!B191 -> 0 | C191: ='Cars+'!C191 -> 0
A192: ='Cars+'!A192 -> 00:00:00 | B192: ='Cars+'!B192 -> 0 | C192: ='Cars+'!C192 -> 0
A193: ='Cars+'!A193 -> 00:00:00 | B193: ='Cars+'!B193 -> 0 | C193: ='Cars+'!C193 -> 0
A194: ='Cars+'!A194 -> 00:00:00 | B194: ='Cars+'!B194 -> 0 | C194: ='Cars+'!C194 -> 0
A195: ='Cars+'!A195 -> 00:00:00 | B195: ='Cars+'!B195 -> 0 | C195: ='Cars+'!C195 -> 0
A196: ='Cars+'!A196 -> 00:00:00 | B196: ='Cars+'!B196 -> 0 | C196: ='Cars+'!C196 -> 0
A197: ='Cars+'!A197 -> 00:00:00 | B197: ='Cars+'!B197 -> 0 | C197: ='Cars+'!C197 -> 0
A198: ='Cars+'!A198 -> 00:00:00 | B198: ='Cars+'!B198 -> 0 | C198: ='Cars+'!C198 -> 0
A199: ='Cars+'!A199 -> 00:00:00 | B199: ='Cars+'!B199 -> 0 | C199: ='Cars+'!C199 -> 0
A200: ='Cars+'!A200 -> 00:00:00 | B200: ='Cars+'!B200 -> 0 | C200: ='Cars+'!C200 -> 0
... 1780 more rows

Sheet 15Min
A1: Turning Movement Count
A2: 15 Minute Counts | D2: =LEFT(D3,2) -> SB | E2: =LEFT(E3,2) -> SB | F2: SB | G2: SB | H2: NP | I2: WB | J2: WB | K2: WB | L2: WB | M2: EP | N2: NB | O2: NB | P2: NB | Q2: NB | R2: SP | S2: EB | T2: EB | U2: EB | V2: EB | W2: WP
A3: DATE | B3: TIME | C3: INTID | D3: ='Cars+'!D3 -> SBU | E3: ='Cars+'!E3 -> SBL | F3: ='Cars+'!F3 -> SBT | G3: ='Cars+'!G3 -> SBR | H3: ='Cars+'!H3 -> NPed | I3: ='Cars+'!I3 -> WBU | J3: ='Cars+'!J3 -> WBL | K3: ='Cars+'!K3 -> WBT | L3: ='Cars+'!L3 -> WBR | M3: ='Cars+'!M3 -> EPed | N3: ='Cars+'!N3 -> NBU | O3: ='Cars+'!O3 -> NBL | P3: ='Cars+'!P3 -> NBT | Q3: ='Cars+'!Q3 -> NBR | R3: ='Cars+'!R3 -> SPed | S3: ='Cars+'!S3 -> EBU | T3: ='Cars+'!T3 -> EBL | U3: ='Cars+'!U3 -> EBT | V3: ='Cars+'!V3 -> EBR | W3: ='Cars+'!W3 -> WPed | X3: EB | Y3: WB | Z3: NB | AA3: SB | AB3: EBWB | AC3: NBSB | AD3: Total | AE3: HrTotal
A4: ='Cars+'!A4 -> 2018-10-04 | B4: ='Cars+'!B4 -> 600 | C4: ='Cars+'!C4 -> 810 | D4: =SUM('Cars+:Trucks'!D4) -> 0 | E4: =SUM('Cars+:Trucks'!E4) -> 65 | F4: =SUM('Cars+:Trucks'!F4) -> 86 | G4: =SUM('Cars+:Trucks'!G4) -> 0 | H4: =SUM('Cars+:Trucks'!H4) -> 0 | I4: =SUM('Cars+:Trucks'!I4) -> 0 | J4: =SUM('Cars+:Trucks'!J4) -> 74 | K4: =SUM('Cars+:Trucks'!K4) -> 0 | L4: =SUM('Cars+:Trucks'!L4) -> 3 | M4: =SUM('Cars+:Trucks'!M4) -> 0 | N4: =SUM('Cars+:Trucks'!N4) -> 0 | O4: =SUM('Cars+:Trucks'!O4) -> 0 | P4: =SUM('Cars+:Trucks'!P4) -> 30 | Q4: =SUM('Cars+:Trucks'!Q4) -> 13 | R4: =SUM('Cars+:Trucks'!R4) -> 0 | S4: =SUM('Cars+:Trucks'!S4) -> 0 | T4: =SUM('Cars+:Trucks'!T4) -> 0 | U4: =SUM('Cars+:Trucks'!U4) -> 0 | V4: =SUM('Cars+:Trucks'!V4) -> 0 | W4: =SUM('Cars+:Trucks'!W4) -> 0 | X4: =SUMIF($D$2:$W$2,X$3,$D4:$W4) -> 0 | Y4: =SUMIF($D$2:$W$2,Y$3,$D4:$W4) -> 77 | Z4: 43 | AA4: 151 | AB4: =X4+Y4 -> 77 | AC4: =Z4+AA4 -> 194 | AD4: =SUM(D4:W4) -> 271 | AE4: =IF(AND(C4=C7,B7=VLOOKUP(B4,IntervalLookup,4)),SUM(AD4:AD7),0) -> 1589
A5: ='Cars+'!A5 -> 2018-10-04 | B5: ='Cars+'!B5 -> 615 | C5: ='Cars+'!C5 -> 810 | D5: =SUM('Cars+:Trucks'!D5) -> 0 | E5: =SUM('Cars+:Trucks'!E5) -> 84 | F5: =SUM('Cars+:Trucks'!F5) -> 155 | G5: =SUM('Cars+:Trucks'!G5) -> 0 | H5: =SUM('Cars+:Trucks'!H5) -> 0 | I5: =SUM('Cars+:Trucks'!I5) -> 0 | J5: =SUM('Cars+:Trucks'!J5) -> 65 | K5: =SUM('Cars+:Trucks'!K5) -> 0 | L5: =SUM('Cars+:Trucks'!L5) -> 10 | M5: =SUM('Cars+:Trucks'!M5) -> 0 | N5: =SUM('Cars+:Trucks'!N5) -> 0 | O5: =SUM('Cars+:Trucks'!O5) -> 0 | P5: =SUM('Cars+:Trucks'!P5) -> 42 | Q5: =SUM('Cars+:Trucks'!Q5) -> 26 | R5: =SUM('Cars+:Trucks'!R5) -> 0 | S5: =SUM('Cars+:Trucks'!S5) -> 0 | T5: =SUM('Cars+:Trucks'!T5) -> 0 | U5: =SUM('Cars+:Trucks'!U5) -> 0 | V5: =SUM('Cars+:Trucks'!V5) -> 0 | W5: =SUM('Cars+:Trucks'!W5) -> 0 | X5: =SUMIF($D$2:$W$2,X$3,$D5:$W5) -> 0 | Y5: 75 | Z5: 68 | AA5: 239 | AB5: =X5+Y5 -> 75 | AC5: =Z5+AA5 -> 307 | AD5: =SUM(D5:W5) -> 382 | AE5: 1868
A6: ='Cars+'!A6 -> 2018-10-04 | B6: ='Cars+'!B6 -> 630 | C6: ='Cars+'!C6 -> 810 | D6: =SUM('Cars+:Trucks'!D6) -> 0 | E6: =SUM('Cars+:Trucks'!E6) -> 135 | F6: =SUM('Cars+:Trucks'!F6) -> 164 | G6: =SUM('Cars+:Trucks'!G6) -> 0 | H6: =SUM('Cars+:Trucks'!H6) -> 0 | I6: =SUM('Cars+:Trucks'!I6) -> 0 | J6: =SUM('Cars+:Trucks'!J6) -> 70 | K6: =SUM('Cars+:Trucks'!K6) -> 0 | L6: =SUM('Cars+:Trucks'!L6) -> 16 | M6: =SUM('Cars+:Trucks'!M6) -> 0 | N6: =SUM('Cars+:Trucks'!N6) -> 0 | O6: =SUM('Cars+:Trucks'!O6) -> 0 | P6: =SUM('Cars+:Trucks'!P6) -> 59 | Q6: =SUM('Cars+:Trucks'!Q6) -> 28 | R6: =SUM('Cars+:Trucks'!R6) -> 0 | S6: =SUM('Cars+:Trucks'!S6) -> 0 | T6: =SUM('Cars+:Trucks'!T6) -> 0 | U6: =SUM('Cars+:Trucks'!U6) -> 0 | V6: =SUM('Cars+:Trucks'!V6) -> 0 | W6: =SUM('Cars+:Trucks'!W6) -> 0 | X6: 0 | Y6: 86 | Z6: 87 | AA6: 299 | AB6: 86 | AC6: 386 | AD6: 472 | AE6: 2052
A7: ='Cars+'!A7 -> 2018-10-04 | B7: ='Cars+'!B7 -> 645 | C7: ='Cars+'!C7 -> 810 | D7: =SUM('Cars+:Trucks'!D7) -> 0 | E7: =SUM('Cars+:Trucks'!E7) -> 126 | F7: =SUM('Cars+:Trucks'!F7) -> 160 | G7: =SUM('Cars+:Trucks'!G7) -> 0 | H7: =SUM('Cars+:Trucks'!H7) -> 0 | I7: =SUM('Cars+:Trucks'!I7) -> 0 | J7: =SUM('Cars+:Trucks'!J7) -> 65 | K7: =SUM('Cars+:Trucks'!K7) -> 0 | L7: =SUM('Cars+:Trucks'!L7) -> 12 | M7: =SUM('Cars+:Trucks'!M7) -> 0 | N7: =SUM('Cars+:Trucks'!N7) -> 0 | O7: =SUM('Cars+:Trucks'!O7) -> 0 | P7: =SUM('Cars+:Trucks'!P7) -> 65 | Q7: =SUM('Cars+:Trucks'!Q7) -> 36 | R7: =SUM('Cars+:Trucks'!R7) -> 0 | S7: =SUM('Cars+:Trucks'!S7) -> 0 | T7: =SUM('Cars+:Trucks'!T7) -> 0 | U7: =SUM('Cars+:Trucks'!U7) -> 0 | V7: =SUM('Cars+:Trucks'!V7) -> 0 | W7: =SUM('Cars+:Trucks'!W7) -> 0 | X7: 0 | Y7: 77 | Z7: 101 | AA7: 286 | AB7: 77 | AC7: 387 | AD7: 464 | AE7: 2201
A8: ='Cars+'!A8 -> 2018-10-04 | B8: ='Cars+'!B8 -> 700 | C8: ='Cars+'!C8 -> 810 | D8: =SUM('Cars+:Trucks'!D8) -> 0 | E8: =SUM('Cars+:Trucks'!E8) -> 178 | F8: =SUM('Cars+:Trucks'!F8) -> 206 | G8: =SUM('Cars+:Trucks'!G8) -> 0 | H8: =SUM('Cars+:Trucks'!H8) -> 0 | I8: =SUM('Cars+:Trucks'!I8) -> 0 | J8: =SUM('Cars+:Trucks'!J8) -> 46 | K8: =SUM('Cars+:Trucks'!K8) -> 0 | L8: =SUM('Cars+:Trucks'!L8) -> 11 | M8: =SUM('Cars+:Trucks'!M8) -> 0 | N8: =SUM('Cars+:Trucks'!N8) -> 0 | O8: =SUM('Cars+:Trucks'!O8) -> 0 | P8: =SUM('Cars+:Trucks'!P8) -> 61 | Q8: =SUM('Cars+:Trucks'!Q8) -> 48 | R8: =SUM('Cars+:Trucks'!R8) -> 0 | S8: =SUM('Cars+:Trucks'!S8) -> 0 | T8: =SUM('Cars+:Trucks'!T8) -> 0 | U8: =SUM('Cars+:Trucks'!U8) -> 0 | V8: =SUM('Cars+:Trucks'!V8) -> 0 | W8: =SUM('Cars+:Trucks'!W8) -> 0 | X8: 0 | Y8: 57 | Z8: 109 | AA8: 384 | AB8: 57 | AC8: 493 | AD8: 550 | AE8: 2385
A9: ='Cars+'!A9 -> 2018-10-04 | B9: ='Cars+'!B9 -> 715 | C9: ='Cars+'!C9 -> 810 | D9: =SUM('Cars+:Trucks'!D9) -> 0 | E9: =SUM('Cars+:Trucks'!E9) -> 201 | F9: =SUM('Cars+:Trucks'!F9) -> 218 | G9: =SUM('Cars+:Trucks'!G9) -> 0 | H9: =SUM('Cars+:Trucks'!H9) -> 0 | I9: =SUM('Cars+:Trucks'!I9) -> 0 | J9: =SUM('Cars+:Trucks'!J9) -> 41 | K9: =SUM('Cars+:Trucks'!K9) -> 0 | L9: =SUM('Cars+:Trucks'!L9) -> 5 | M9: =SUM('Cars+:Trucks'!M9) -> 0 | N9: =SUM('Cars+:Trucks'!N9) -> 0 | O9: =SUM('Cars+:Trucks'!O9) -> 0 | P9: =SUM('Cars+:Trucks'!P9) -> 63 | Q9: =SUM('Cars+:Trucks'!Q9) -> 38 | R9: =SUM('Cars+:Trucks'!R9) -> 0 | S9: =SUM('Cars+:Trucks'!S9) -> 0 | T9: =SUM('Cars+:Trucks'!T9) -> 0 | U9: =SUM('Cars+:Trucks'!U9) -> 0 | V9: =SUM('Cars+:Trucks'!V9) -> 0 | W9: =SUM('Cars+:Trucks'!W9) -> 0 | X9: 0 | Y9: 46 | Z9: 101 | AA9: 419 | AB9: 46 | AC9: 520 | AD9: 566 | AE9: 2311
A10: ='Cars+'!A10 -> 2018-10-04 | B10: ='Cars+'!B10 -> 730 | C10: ='Cars+'!C10 -> 810 | D10: =SUM('Cars+:Trucks'!D10) -> 0 | E10: =SUM('Cars+:Trucks'!E10) -> 228 | F10: =SUM('Cars+:Trucks'!F10) -> 235 | G10: =SUM('Cars+:Trucks'!G10) -> 0 | H10: =SUM('Cars+:Trucks'!H10) -> 0 | I10: =SUM('Cars+:Trucks'!I10) -> 0 | J10: =SUM('Cars+:Trucks'!J10) -> 35 | K10: =SUM('Cars+:Trucks'!K10) -> 0 | L10: =SUM('Cars+:Trucks'!L10) -> 3 | M10: =SUM('Cars+:Trucks'!M10) -> 0 | N10: =SUM('Cars+:Trucks'!N10) -> 0 | O10: =SUM('Cars+:Trucks'!O10) -> 0 | P10: =SUM('Cars+:Trucks'!P10) -> 72 | Q10: =SUM('Cars+:Trucks'!Q10) -> 48 | R10: =SUM('Cars+:Trucks'!R10) -> 0 | S10: =SUM('Cars+:Trucks'!S10) -> 0 | T10: =SUM('Cars+:Trucks'!T10) -> 0 | U10: =SUM('Cars+:Trucks'!U10) -> 0 | V10: =SUM('Cars+:Trucks'!V10) -> 0 | W10: =SUM('Cars+:Trucks'!W10) -> 0 | X10: 0 | Y10: 38 | Z10: 120 | AA10: 463 | AB10: 38 | AC10: 583 | AD10: 621 | AE10: 2195
A11: ='Cars+'!A11 -> 2018-10-04 | B11: ='Cars+'!B11 -> 745 | C11: ='Cars+'!C11 -> 810 | D11: =SUM('Cars+:Trucks'!D11) -> 1 | E11: =SUM('Cars+:Trucks'!E11) -> 222 | F11: =SUM('Cars+:Trucks'!F11) -> 218 | G11: =SUM('Cars+:Trucks'!G11) -> 0 | H11: =SUM('Cars+:Trucks'!H11) -> 0 | I11: =SUM('Cars+:Trucks'!I11) -> 0 | J11: =SUM('Cars+:Trucks'!J11) -> 46 | K11: =SUM('Cars+:Trucks'!K11) -> 0 | L11: =SUM('Cars+:Trucks'!L11) -> 15 | M11: =SUM('Cars+:Trucks'!M11) -> 0 | N11: =SUM('Cars+:Trucks'!N11) -> 0 | O11: =SUM('Cars+:Trucks'!O11) -> 0 | P11: =SUM('Cars+:Trucks'!P11) -> 89 | Q11: =SUM('Cars+:Trucks'!Q11) -> 57 | R11: =SUM('Cars+:Trucks'!R11) -> 0 | S11: =SUM('Cars+:Trucks'!S11) -> 0 | T11: =SUM('Cars+:Trucks'!T11) -> 0 | U11: =SUM('Cars+:Trucks'!U11) -> 0 | V11: =SUM('Cars+:Trucks'!V11) -> 0 | W11: =SUM('Cars+:Trucks'!W11) -> 0 | X11: 0 | Y11: 61 | Z11: 146 | AA11: 441 | AB11: 61 | AC11: 587 | AD11: 648 | AE11: 1962
A12: ='Cars+'!A12 -> 2018-10-04 | B12: ='Cars+'!B12 -> 800 | C12: ='Cars+'!C12 -> 810 | D12: =SUM('Cars+:Trucks'!D12) -> 0 | E12: =SUM('Cars+:Trucks'!E12) -> 140 | F12: =SUM('Cars+:Trucks'!F12) -> 167 | G12: =SUM('Cars+:Trucks'!G12) -> 0 | H12: =SUM('Cars+:Trucks'!H12) -> 0 | I12: =SUM('Cars+:Trucks'!I12) -> 0 | J12: =SUM('Cars+:Trucks'!J12) -> 44 | K12: =SUM('Cars+:Trucks'!K12) -> 0 | L12: =SUM('Cars+:Trucks'!L12) -> 9 | M12: =SUM('Cars+:Trucks'!M12) -> 0 | N12: =SUM('Cars+:Trucks'!N12) -> 0 | O12: =SUM('Cars+:Trucks'!O12) -> 0 | P12: =SUM('Cars+:Trucks'!P12) -> 62 | Q12: =SUM('Cars+:Trucks'!Q12) -> 54 | R12: =SUM('Cars+:Trucks'!R12) -> 0 | S12: =SUM('Cars+:Trucks'!S12) -> 0 | T12: =SUM('Cars+:Trucks'!T12) -> 0 | U12: =SUM('Cars+:Trucks'!U12) -> 0 | V12: =SUM('Cars+:Trucks'!V12) -> 0 | W12: =SUM('Cars+:Trucks'!W12) -> 0 | X12: 0 | Y12: 53 | Z12: 116 | AA12: 307 | AB12: 53 | AC12: 423 | AD12: 476 | AE12: 1688
A13: ='Cars+'!A13 -> 2018-10-04 | B13: ='Cars+'!B13 -> 815 | C13: ='Cars+'!C13 -> 810 | D13: =SUM('Cars+:Trucks'!D13) -> 0 | E13: =SUM('Cars+:Trucks'!E13) -> 138 | F13: =SUM('Cars+:Trucks'!F13) -> 145 | G13: =SUM('Cars+:Trucks'!G13) -> 0 | H13: =SUM('Cars+:Trucks'!H13) -> 0 | I13: =SUM('Cars+:Trucks'!I13) -> 0 | J13: =SUM('Cars+:Trucks'!J13) -> 44 | K13: =SUM('Cars+:Trucks'!K13) -> 0 | L13: =SUM('Cars+:Trucks'!L13) -> 9 | M13: =SUM('Cars+:Trucks'!M13) -> 0 | N13: =SUM('Cars+:Trucks'!N13) -> 0 | O13: =SUM('Cars+:Trucks'!O13) -> 0 | P13: =SUM('Cars+:Trucks'!P13) -> 62 | Q13: =SUM('Cars+:Trucks'!Q13) -> 52 | R13: =SUM('Cars+:Trucks'!R13) -> 0 | S13: =SUM('Cars+:Trucks'!S13) -> 0 | T13: =SUM('Cars+:Trucks'!T13) -> 0 | U13: =SUM('Cars+:Trucks'!U13) -> 0 | V13: =SUM('Cars+:Trucks'!V13) -> 0 | W13: =SUM('Cars+:Trucks'!W13) -> 0 | X13: 0 | Y13: 53 | Z13: 114 | AA13: 283 | AB13: 53 | AC13: 397 | AD13: 450 | AE13: 1212
A14: ='Cars+'!A14 -> 2018-10-04 | B14: ='Cars+'!B14 -> 830 | C14: ='Cars+'!C14 -> 810 | D14: =SUM('Cars+:Trucks'!D14) -> 0 | E14: =SUM('Cars+:Trucks'!E14) -> 113 | F14: =SUM('Cars+:Trucks'!F14) -> 109 | G14: =SUM('Cars+:Trucks'!G14) -> 0 | H14: =SUM('Cars+:Trucks'!H14) -> 0 | I14: =SUM('Cars+:Trucks'!I14) -> 0 | J14: =SUM('Cars+:Trucks'!J14) -> 37 | K14: =SUM('Cars+:Trucks'!K14) -> 0 | L14: =SUM('Cars+:Trucks'!L14) -> 18 | M14: =SUM('Cars+:Trucks'!M14) -> 0 | N14: =SUM('Cars+:Trucks'!N14) -> 0 | O14: =SUM('Cars+:Trucks'!O14) -> 0 | P14: =SUM('Cars+:Trucks'!P14) -> 55 | Q14: =SUM('Cars+:Trucks'!Q14) -> 56 | R14: =SUM('Cars+:Trucks'!R14) -> 0 | S14: =SUM('Cars+:Trucks'!S14) -> 0 | T14: =SUM('Cars+:Trucks'!T14) -> 0 | U14: =SUM('Cars+:Trucks'!U14) -> 0 | V14: =SUM('Cars+:Trucks'!V14) -> 0 | W14: =SUM('Cars+:Trucks'!W14) -> 0 | X14: 0 | Y14: 55 | Z14: 111 | AA14: 222 | AB14: 55 | AC14: 333 | AD14: 388 | AE14: 762
A15: ='Cars+'!A15 -> 2018-10-04 | B15: ='Cars+'!B15 -> 845 | C15: ='Cars+'!C15 -> 810 | D15: =SUM('Cars+:Trucks'!D15) -> 0 | E15: =SUM('Cars+:Trucks'!E15) -> 83 | F15: =SUM('Cars+:Trucks'!F15) -> 88 | G15: =SUM('Cars+:Trucks'!G15) -> 0 | H15: =SUM('Cars+:Trucks'!H15) -> 0 | I15: =SUM('Cars+:Trucks'!I15) -> 0 | J15: =SUM('Cars+:Trucks'!J15) -> 34 | K15: =SUM('Cars+:Trucks'!K15) -> 0 | L15: =SUM('Cars+:Trucks'!L15) -> 29 | M15: =SUM('Cars+:Trucks'!M15) -> 1 | N15: =SUM('Cars+:Trucks'!N15) -> 0 | O15: =SUM('Cars+:Trucks'!O15) -> 0 | P15: =SUM('Cars+:Trucks'!P15) -> 101 | Q15: =SUM('Cars+:Trucks'!Q15) -> 38 | R15: =SUM('Cars+:Trucks'!R15) -> 0 | S15: =SUM('Cars+:Trucks'!S15) -> 0 | T15: =SUM('Cars+:Trucks'!T15) -> 0 | U15: =SUM('Cars+:Trucks'!U15) -> 0 | V15: =SUM('Cars+:Trucks'!V15) -> 0 | W15: =SUM('Cars+:Trucks'!W15) -> 0 | X15: 0 | Y15: 63 | Z15: 139 | AA15: 171 | AB15: 63 | AC15: 310 | AD15: 374 | AE15: 374
A16: ='Cars+'!A16 -> 2018-10-04 | B16: ='Cars+'!B16 -> 900 | C16: ='Cars+'!C16 -> 810 | D16: =SUM('Cars+:Trucks'!D16) -> 0 | E16: =SUM('Cars+:Trucks'!E16) -> 0 | F16: =SUM('Cars+:Trucks'!F16) -> 0 | G16: =SUM('Cars+:Trucks'!G16) -> 0 | H16: =SUM('Cars+:Trucks'!H16) -> 0 | I16: =SUM('Cars+:Trucks'!I16) -> 0 | J16: =SUM('Cars+:Trucks'!J16) -> 0 | K16: =SUM('Cars+:Trucks'!K16) -> 0 | L16: =SUM('Cars+:Trucks'!L16) -> 0 | M16: =SUM('Cars+:Trucks'!M16) -> 0 | N16: =SUM('Cars+:Trucks'!N16) -> 0 | O16: =SUM('Cars+:Trucks'!O16) -> 0 | P16: =SUM('Cars+:Trucks'!P16) -> 0 | Q16: =SUM('Cars+:Trucks'!Q16) -> 0 | R16: =SUM('Cars+:Trucks'!R16) -> 0 | S16: =SUM('Cars+:Trucks'!S16) -> 0 | T16: =SUM('Cars+:Trucks'!T16) -> 0 | U16: =SUM('Cars+:Trucks'!U16) -> 0 | V16: =SUM('Cars+:Trucks'!V16) -> 0 | W16: =SUM('Cars+:Trucks'!W16) -> 0 | X16: 0 | Y16: 0 | Z16: 0 | AA16: 0 | AB16: 0 | AC16: 0 | AD16: 0 | AE16: 0
A17: ='Cars+'!A17 -> 2018-10-04 | B17: ='Cars+'!B17 -> 915 | C17: ='Cars+'!C17 -> 810 | D17: =SUM('Cars+:Trucks'!D17) -> 0 | E17: =SUM('Cars+:Trucks'!E17) -> 0 | F17: =SUM('Cars+:Trucks'!F17) -> 0 | G17: =SUM('Cars+:Trucks'!G17) -> 0 | H17: =SUM('Cars+:Trucks'!H17) -> 0 | I17: =SUM('Cars+:Trucks'!I17) -> 0 | J17: =SUM('Cars+:Trucks'!J17) -> 0 | K17: =SUM('Cars+:Trucks'!K17) -> 0 | L17: =SUM('Cars+:Trucks'!L17) -> 0 | M17: =SUM('Cars+:Trucks'!M17) -> 0 | N17: =SUM('Cars+:Trucks'!N17) -> 0 | O17: =SUM('Cars+:Trucks'!O17) -> 0 | P17: =SUM('Cars+:Trucks'!P17) -> 0 | Q17: =SUM('Cars+:Trucks'!Q17) -> 0 | R17: =SUM('Cars+:Trucks'!R17) -> 0 | S17: =SUM('Cars+:Trucks'!S17) -> 0 | T17: =SUM('Cars+:Trucks'!T17) -> 0 | U17: =SUM('Cars+:Trucks'!U17) -> 0 | V17: =SUM('Cars+:Trucks'!V17) -> 0 | W17: =SUM('Cars+:Trucks'!W17) -> 0 | X17: 0 | Y17: 0 | Z17: 0 | AA17: 0 | AB17: 0 | AC17: 0 | AD17: 0 | AE17: 0
A18: ='Cars+'!A18 -> 2018-10-04 | B18: ='Cars+'!B18 -> 930 | C18: ='Cars+'!C18 -> 810 | D18: =SUM('Cars+:Trucks'!D18) -> 0 | E18: =SUM('Cars+:Trucks'!E18) -> 0 | F18: =SUM('Cars+:Trucks'!F18) -> 0 | G18: =SUM('Cars+:Trucks'!G18) -> 0 | H18: =SUM('Cars+:Trucks'!H18) -> 0 | I18: =SUM('Cars+:Trucks'!I18) -> 0 | J18: =SUM('Cars+:Trucks'!J18) -> 0 | K18: =SUM('Cars+:Trucks'!K18) -> 0 | L18: =SUM('Cars+:Trucks'!L18) -> 0 | M18: =SUM('Cars+:Trucks'!M18) -> 0 | N18: =SUM('Cars+:Trucks'!N18) -> 0 | O18: =SUM('Cars+:Trucks'!O18) -> 0 | P18: =SUM('Cars+:Trucks'!P18) -> 0 | Q18: =SUM('Cars+:Trucks'!Q18) -> 0 | R18: =SUM('Cars+:Trucks'!R18) -> 0 | S18: =SUM('Cars+:Trucks'!S18) -> 0 | T18: =SUM('Cars+:Trucks'!T18) -> 0 | U18: =SUM('Cars+:Trucks'!U18) -> 0 | V18: =SUM('Cars+:Trucks'!V18) -> 0 | W18: =SUM('Cars+:Trucks'!W18) -> 0 | X18: 0 | Y18: 0 | Z18: 0 | AA18: 0 | AB18: 0 | AC18: 0 | AD18: 0 | AE18: 0
A19: ='Cars+'!A19 -> 2018-10-04 | B19: ='Cars+'!B19 -> 945 | C19: ='Cars+'!C19 -> 810 | D19: =SUM('Cars+:Trucks'!D19) -> 0 | E19: =SUM('Cars+:Trucks'!E19) -> 0 | F19: =SUM('Cars+:Trucks'!F19) -> 0 | G19: =SUM('Cars+:Trucks'!G19) -> 0 | H19: =SUM('Cars+:Trucks'!H19) -> 0 | I19: =SUM('Cars+:Trucks'!I19) -> 0 | J19: =SUM('Cars+:Trucks'!J19) -> 0 | K19: =SUM('Cars+:Trucks'!K19) -> 0 | L19: =SUM('Cars+:Trucks'!L19) -> 0 | M19: =SUM('Cars+:Trucks'!M19) -> 0 | N19: =SUM('Cars+:Trucks'!N19) -> 0 | O19: =SUM('Cars+:Trucks'!O19) -> 0 | P19: =SUM('Cars+:Trucks'!P19) -> 0 | Q19: =SUM('Cars+:Trucks'!Q19) -> 0 | R19: =SUM('Cars+:Trucks'!R19) -> 0 | S19: =SUM('Cars+:Trucks'!S19) -> 0 | T19: =SUM('Cars+:Trucks'!T19) -> 0 | U19: =SUM('Cars+:Trucks'!U19) -> 0 | V19: =SUM('Cars+:Trucks'!V19) -> 0 | W19: =SUM('Cars+:Trucks'!W19) -> 0 | X19: 0 | Y19: 0 | Z19: 0 | AA19: 0 | AB19: 0 | AC19: 0 | AD19: 0 | AE19: 0
A20: ='Cars+'!A20 -> 2018-10-04 | B20: ='Cars+'!B20 -> 1000 | C20: ='Cars+'!C20 -> 810 | D20: =SUM('Cars+:Trucks'!D20) -> 0 | E20: =SUM('Cars+:Trucks'!E20) -> 0 | F20: =SUM('Cars+:Trucks'!F20) -> 0 | G20: =SUM('Cars+:Trucks'!G20) -> 0 | H20: =SUM('Cars+:Trucks'!H20) -> 0 | I20: =SUM('Cars+:Trucks'!I20) -> 0 | J20: =SUM('Cars+:Trucks'!J20) -> 0 | K20: =SUM('Cars+:Trucks'!K20) -> 0 | L20: =SUM('Cars+:Trucks'!L20) -> 0 | M20: =SUM('Cars+:Trucks'!M20) -> 0 | N20: =SUM('Cars+:Trucks'!N20) -> 0 | O20: =SUM('Cars+:Trucks'!O20) -> 0 | P20: =SUM('Cars+:Trucks'!P20) -> 0 | Q20: =SUM('Cars+:Trucks'!Q20) -> 0 | R20: =SUM('Cars+:Trucks'!R20) -> 0 | S20: =SUM('Cars+:Trucks'!S20) -> 0 | T20: =SUM('Cars+:Trucks'!T20) -> 0 | U20: =SUM('Cars+:Trucks'!U20) -> 0 | V20: =SUM('Cars+:Trucks'!V20) -> 0 | W20: =SUM('Cars+:Trucks'!W20) -> 0 | X20: 0 | Y20: 0 | Z20: 0 | AA20: 0 | AB20: 0 | AC20: 0 | AD20: 0 | AE20: 0
A21: ='Cars+'!A21 -> 2018-10-04 | B21: ='Cars+'!B21 -> 1015 | C21: ='Cars+'!C21 -> 810 | D21: =SUM('Cars+:Trucks'!D21) -> 0 | E21: =SUM('Cars+:Trucks'!E21) -> 0 | F21: =SUM('Cars+:Trucks'!F21) -> 0 | G21: =SUM('Cars+:Trucks'!G21) -> 0 | H21: =SUM('Cars+:Trucks'!H21) -> 0 | I21: =SUM('Cars+:Trucks'!I21) -> 0 | J21: =SUM('Cars+:Trucks'!J21) -> 0 | K21: =SUM('Cars+:Trucks'!K21) -> 0 | L21: =SUM('Cars+:Trucks'!L21) -> 0 | M21: =SUM('Cars+:Trucks'!M21) -> 0 | N21: =SUM('Cars+:Trucks'!N21) -> 0 | O21: =SUM('Cars+:Trucks'!O21) -> 0 | P21: =SUM('Cars+:Trucks'!P21) -> 0 | Q21: =SUM('Cars+:Trucks'!Q21) -> 0 | R21: =SUM('Cars+:Trucks'!R21) -> 0 | S21: =SUM('Cars+:Trucks'!S21) -> 0 | T21: =SUM('Cars+:Trucks'!T21) -> 0 | U21: =SUM('Cars+:Trucks'!U21) -> 0 | V21: =SUM('Cars+:Trucks'!V21) -> 0 | W21: =SUM('Cars+:Trucks'!W21) -> 0 | X21: 0 | Y21: 0 | Z21: 0 | AA21: 0 | AB21: 0 | AC21: 0 | AD21: 0 | AE21: 249
A22: ='Cars+'!A22 -> 2018-10-04 | B22: ='Cars+'!B22 -> 1030 | C22: ='Cars+'!C22 -> 810 | D22: =SUM('Cars+:Trucks'!D22) -> 0 | E22: =SUM('Cars+:Trucks'!E22) -> 0 | F22: =SUM('Cars+:Trucks'!F22) -> 0 | G22: =SUM('Cars+:Trucks'!G22) -> 0 | H22: =SUM('Cars+:Trucks'!H22) -> 0 | I22: =SUM('Cars+:Trucks'!I22) -> 0 | J22: =SUM('Cars+:Trucks'!J22) -> 0 | K22: =SUM('Cars+:Trucks'!K22) -> 0 | L22: =SUM('Cars+:Trucks'!L22) -> 0 | M22: =SUM('Cars+:Trucks'!M22) -> 0 | N22: =SUM('Cars+:Trucks'!N22) -> 0 | O22: =SUM('Cars+:Trucks'!O22) -> 0 | P22: =SUM('Cars+:Trucks'!P22) -> 0 | Q22: =SUM('Cars+:Trucks'!Q22) -> 0 | R22: =SUM('Cars+:Trucks'!R22) -> 0 | S22: =SUM('Cars+:Trucks'!S22) -> 0 | T22: =SUM('Cars+:Trucks'!T22) -> 0 | U22: =SUM('Cars+:Trucks'!U22) -> 0 | V22: =SUM('Cars+:Trucks'!V22) -> 0 | W22: =SUM('Cars+:Trucks'!W22) -> 0 | X22: 0 | Y22: 0 | Z22: 0 | AA22: 0 | AB22: 0 | AC22: 0 | AD22: 0 | AE22: 484
A23: ='Cars+'!A23 -> 2018-10-04 | B23: ='Cars+'!B23 -> 1045 | C23: ='Cars+'!C23 -> 810 | D23: =SUM('Cars+:Trucks'!D23) -> 0 | E23: =SUM('Cars+:Trucks'!E23) -> 0 | F23: =SUM('Cars+:Trucks'!F23) -> 0 | G23: =SUM('Cars+:Trucks'!G23) -> 0 | H23: =SUM('Cars+:Trucks'!H23) -> 0 | I23: =SUM('Cars+:Trucks'!I23) -> 0 | J23: =SUM('Cars+:Trucks'!J23) -> 0 | K23: =SUM('Cars+:Trucks'!K23) -> 0 | L23: =SUM('Cars+:Trucks'!L23) -> 0 | M23: =SUM('Cars+:Trucks'!M23) -> 0 | N23: =SUM('Cars+:Trucks'!N23) -> 0 | O23: =SUM('Cars+:Trucks'!O23) -> 0 | P23: =SUM('Cars+:Trucks'!P23) -> 0 | Q23: =SUM('Cars+:Trucks'!Q23) -> 0 | R23: =SUM('Cars+:Trucks'!R23) -> 0 | S23: =SUM('Cars+:Trucks'!S23) -> 0 | T23: =SUM('Cars+:Trucks'!T23) -> 0 | U23: =SUM('Cars+:Trucks'!U23) -> 0 | V23: =SUM('Cars+:Trucks'!V23) -> 0 | W23: =SUM('Cars+:Trucks'!W23) -> 0 | X23: 0 | Y23: 0 | Z23: 0 | AA23: 0 | AB23: 0 | AC23: 0 | AD23: 0 | AE23: 753
A24: ='Cars+'!A24 -> 2018-10-04 | B24: ='Cars+'!B24 -> 1100 | C24: ='Cars+'!C24 -> 810 | D24: =SUM('Cars+:Trucks'!D24) -> 1 | E24: =SUM('Cars+:Trucks'!E24) -> 45 | F24: =SUM('Cars+:Trucks'!F24) -> 52 | G24: =SUM('Cars+:Trucks'!G24) -> 0 | H24: =SUM('Cars+:Trucks'!H24) -> 0 | I24: =SUM('Cars+:Trucks'!I24) -> 0 | J24: =SUM('Cars+:Trucks'!J24) -> 30 | K24: =SUM('Cars+:Trucks'!K24) -> 0 | L24: =SUM('Cars+:Trucks'!L24) -> 18 | M24: =SUM('Cars+:Trucks'!M24) -> 0 | N24: =SUM('Cars+:Trucks'!N24) -> 0 | O24: =SUM('Cars+:Trucks'!O24) -> 0 | P24: =SUM('Cars+:Trucks'!P24) -> 72 | Q24: =SUM('Cars+:Trucks'!Q24) -> 31 | R24: =SUM('Cars+:Trucks'!R24) -> 0 | S24: =SUM('Cars+:Trucks'!S24) -> 0 | T24: =SUM('Cars+:Trucks'!T24) -> 0 | U24: =SUM('Cars+:Trucks'!U24) -> 0 | V24: =SUM('Cars+:Trucks'!V24) -> 0 | W24: =SUM('Cars+:Trucks'!W24) -> 0 | X24: 0 | Y24: 48 | Z24: 103 | AA24: 98 | AB24: 48 | AC24: 201 | AD24: 249 | AE24: 1055
A25: ='Cars+'!A25 -> 2018-10-04 | B25: ='Cars+'!B25 -> 1115 | C25: ='Cars+'!C25 -> 810 | D25: =SUM('Cars+:Trucks'!D25) -> 0 | E25: =SUM('Cars+:Trucks'!E25) -> 43 | F25: =SUM('Cars+:Trucks'!F25) -> 52 | G25: =SUM('Cars+:Trucks'!G25) -> 0 | H25: =SUM('Cars+:Trucks'!H25) -> 0 | I25: =SUM('Cars+:Trucks'!I25) -> 0 | J25: =SUM('Cars+:Trucks'!J25) -> 34 | K25: =SUM('Cars+:Trucks'!K25) -> 0 | L25: =SUM('Cars+:Trucks'!L25) -> 18 | M25: =SUM('Cars+:Trucks'!M25) -> 0 | N25: =SUM('Cars+:Trucks'!N25) -> 2 | O25: =SUM('Cars+:Trucks'!O25) -> 0 | P25: =SUM('Cars+:Trucks'!P25) -> 42 | Q25: =SUM('Cars+:Trucks'!Q25) -> 44 | R25: =SUM('Cars+:Trucks'!R25) -> 0 | S25: =SUM('Cars+:Trucks'!S25) -> 0 | T25: =SUM('Cars+:Trucks'!T25) -> 0 | U25: =SUM('Cars+:Trucks'!U25) -> 0 | V25: =SUM('Cars+:Trucks'!V25) -> 0 | W25: =SUM('Cars+:Trucks'!W25) -> 0 | X25: 0 | Y25: 52 | Z25: 88 | AA25: 95 | AB25: 52 | AC25: 183 | AD25: 235 | AE25: 1080
A26: ='Cars+'!A26 -> 2018-10-04 | B26: ='Cars+'!B26 -> 1130 | C26: ='Cars+'!C26 -> 810 | D26: =SUM('Cars+:Trucks'!D26) -> 0 | E26: =SUM('Cars+:Trucks'!E26) -> 44 | F26: =SUM('Cars+:Trucks'!F26) -> 51 | G26: =SUM('Cars+:Trucks'!G26) -> 0 | H26: =SUM('Cars+:Trucks'!H26) -> 0 | I26: =SUM('Cars+:Trucks'!I26) -> 0 | J26: =SUM('Cars+:Trucks'!J26) -> 39 | K26: =SUM('Cars+:Trucks'!K26) -> 0 | L26: =SUM('Cars+:Trucks'!L26) -> 17 | M26: =SUM('Cars+:Trucks'!M26) -> 0 | N26: =SUM('Cars+:Trucks'!N26) -> 1 | O26: =SUM('Cars+:Trucks'!O26) -> 0 | P26: =SUM('Cars+:Trucks'!P26) -> 74 | Q26: =SUM('Cars+:Trucks'!Q26) -> 43 | R26: =SUM('Cars+:Trucks'!R26) -> 0 | S26: =SUM('Cars+:Trucks'!S26) -> 0 | T26: =SUM('Cars+:Trucks'!T26) -> 0 | U26: =SUM('Cars+:Trucks'!U26) -> 0 | V26: =SUM('Cars+:Trucks'!V26) -> 0 | W26: =SUM('Cars+:Trucks'!W26) -> 0 | X26: 0 | Y26: 56 | Z26: 118 | AA26: 95 | AB26: 56 | AC26: 213 | AD26: 269 | AE26: 1158
A27: ='Cars+'!A27 -> 2018-10-04 | B27: ='Cars+'!B27 -> 1145 | C27: ='Cars+'!C27 -> 810 | D27: =SUM('Cars+:Trucks'!D27) -> 0 | E27: =SUM('Cars+:Trucks'!E27) -> 32 | F27: =SUM('Cars+:Trucks'!F27) -> 55 | G27: =SUM('Cars+:Trucks'!G27) -> 0 | H27: =SUM('Cars+:Trucks'!H27) -> 0 | I27: =SUM('Cars+:Trucks'!I27) -> 0 | J27: =SUM('Cars+:Trucks'!J27) -> 51 | K27: =SUM('Cars+:Trucks'!K27) -> 0 | L27: =SUM('Cars+:Trucks'!L27) -> 24 | M27: =SUM('Cars+:Trucks'!M27) -> 0 | N27: =SUM('Cars+:Trucks'!N27) -> 0 | O27: =SUM('Cars+:Trucks'!O27) -> 0 | P27: =SUM('Cars+:Trucks'!P27) -> 89 | Q27: =SUM('Cars+:Trucks'!Q27) -> 51 | R27: =SUM('Cars+:Trucks'!R27) -> 0 | S27: =SUM('Cars+:Trucks'!S27) -> 0 | T27: =SUM('Cars+:Trucks'!T27) -> 0 | U27: =SUM('Cars+:Trucks'!U27) -> 0 | V27: =SUM('Cars+:Trucks'!V27) -> 0 | W27: =SUM('Cars+:Trucks'!W27) -> 0 | X27: 0 | Y27: 75 | Z27: 140 | AA27: 87 | AB27: 75 | AC27: 227 | AD27: 302 | AE27: 1203
A28: ='Cars+'!A28 -> 2018-10-04 | B28: ='Cars+'!B28 -> 1200 | C28: ='Cars+'!C28 -> 810 | D28: =SUM('Cars+:Trucks'!D28) -> 0 | E28: =SUM('Cars+:Trucks'!E28) -> 33 | F28: =SUM('Cars+:Trucks'!F28) -> 40 | G28: =SUM('Cars+:Trucks'!G28) -> 0 | H28: =SUM('Cars+:Trucks'!H28) -> 0 | I28: =SUM('Cars+:Trucks'!I28) -> 0 | J28: =SUM('Cars+:Trucks'!J28) -> 47 | K28: =SUM('Cars+:Trucks'!K28) -> 0 | L28: =SUM('Cars+:Trucks'!L28) -> 22 | M28: =SUM('Cars+:Trucks'!M28) -> 0 | N28: =SUM('Cars+:Trucks'!N28) -> 0 | O28: =SUM('Cars+:Trucks'!O28) -> 0 | P28: =SUM('Cars+:Trucks'!P28) -> 85 | Q28: =SUM('Cars+:Trucks'!Q28) -> 47 | R28: =SUM('Cars+:Trucks'!R28) -> 0 | S28: =SUM('Cars+:Trucks'!S28) -> 0 | T28: =SUM('Cars+:Trucks'!T28) -> 0 | U28: =SUM('Cars+:Trucks'!U28) -> 0 | V28: =SUM('Cars+:Trucks'!V28) -> 0 | W28: =SUM('Cars+:Trucks'!W28) -> 0 | X28: 0 | Y28: 69 | Z28: 132 | AA28: 73 | AB28: 69 | AC28: 205 | AD28: 274 | AE28: 1206
A29: ='Cars+'!A29 -> 2018-10-04 | B29: ='Cars+'!B29 -> 1215 | C29: ='Cars+'!C29 -> 810 | D29: =SUM('Cars+:Trucks'!D29) -> 0 | E29: =SUM('Cars+:Trucks'!E29) -> 41 | F29: =SUM('Cars+:Trucks'!F29) -> 43 | G29: =SUM('Cars+:Trucks'!G29) -> 0 | H29: =SUM('Cars+:Trucks'!H29) -> 0 | I29: =SUM('Cars+:Trucks'!I29) -> 0 | J29: =SUM('Cars+:Trucks'!J29) -> 66 | K29: =SUM('Cars+:Trucks'!K29) -> 0 | L29: =SUM('Cars+:Trucks'!L29) -> 32 | M29: =SUM('Cars+:Trucks'!M29) -> 0 | N29: =SUM('Cars+:Trucks'!N29) -> 0 | O29: =SUM('Cars+:Trucks'!O29) -> 0 | P29: =SUM('Cars+:Trucks'!P29) -> 82 | Q29: =SUM('Cars+:Trucks'!Q29) -> 49 | R29: =SUM('Cars+:Trucks'!R29) -> 0 | S29: =SUM('Cars+:Trucks'!S29) -> 0 | T29: =SUM('Cars+:Trucks'!T29) -> 0 | U29: =SUM('Cars+:Trucks'!U29) -> 0 | V29: =SUM('Cars+:Trucks'!V29) -> 0 | W29: =SUM('Cars+:Trucks'!W29) -> 0 | X29: 0 | Y29: 98 | Z29: 131 | AA29: 84 | AB29: 98 | AC29: 215 | AD29: 313 | AE29: 932
A30: ='Cars+'!A30 -> 2018-10-04 | B30: ='Cars+'!B30 -> 1230 | C30: ='Cars+'!C30 -> 810 | D30: =SUM('Cars+:Trucks'!D30) -> 0 | E30: =SUM('Cars+:Trucks'!E30) -> 45 | F30: =SUM('Cars+:Trucks'!F30) -> 49 | G30: =SUM('Cars+:Trucks'!G30) -> 0 | H30: =SUM('Cars+:Trucks'!H30) -> 0 | I30: =SUM('Cars+:Trucks'!I30) -> 0 | J30: =SUM('Cars+:Trucks'!J30) -> 65 | K30: =SUM('Cars+:Trucks'!K30) -> 0 | L30: =SUM('Cars+:Trucks'!L30) -> 26 | M30: =SUM('Cars+:Trucks'!M30) -> 0 | N30: =SUM('Cars+:Trucks'!N30) -> 0 | O30: =SUM('Cars+:Trucks'!O30) -> 0 | P30: =SUM('Cars+:Trucks'!P30) -> 71 | Q30: =SUM('Cars+:Trucks'!Q30) -> 58 | R30: =SUM('Cars+:Trucks'!R30) -> 0 | S30: =SUM('Cars+:Trucks'!S30) -> 0 | T30: =SUM('Cars+:Trucks'!T30) -> 0 | U30: =SUM('Cars+:Trucks'!U30) -> 0 | V30: =SUM('Cars+:Trucks'!V30) -> 0 | W30: =SUM('Cars+:Trucks'!W30) -> 0 | X30: 0 | Y30: 91 | Z30: 129 | AA30: 94 | AB30: 91 | AC30: 223 | AD30: 314 | AE30: 619
A31: ='Cars+'!A31 -> 2018-10-04 | B31: ='Cars+'!B31 -> 1245 | C31: ='Cars+'!C31 -> 810 | D31: =SUM('Cars+:Trucks'!D31) -> 0 | E31: =SUM('Cars+:Trucks'!E31) -> 51 | F31: =SUM('Cars+:Trucks'!F31) -> 46 | G31: =SUM('Cars+:Trucks'!G31) -> 0 | H31: =SUM('Cars+:Trucks'!H31) -> 0 | I31: =SUM('Cars+:Trucks'!I31) -> 0 | J31: =SUM('Cars+:Trucks'!J31) -> 60 | K31: =SUM('Cars+:Trucks'!K31) -> 0 | L31: =SUM('Cars+:Trucks'!L31) -> 26 | M31: =SUM('Cars+:Trucks'!M31) -> 1 | N31: =SUM('Cars+:Trucks'!N31) -> 0 | O31: =SUM('Cars+:Trucks'!O31) -> 0 | P31: =SUM('Cars+:Trucks'!P31) -> 75 | Q31: =SUM('Cars+:Trucks'!Q31) -> 46 | R31: =SUM('Cars+:Trucks'!R31) -> 0 | S31: =SUM('Cars+:Trucks'!S31) -> 0 | T31: =SUM('Cars+:Trucks'!T31) -> 0 | U31: =SUM('Cars+:Trucks'!U31) -> 0 | V31: =SUM('Cars+:Trucks'!V31) -> 0 | W31: =SUM('Cars+:Trucks'!W31) -> 0 | X31: 0 | Y31: 86 | Z31: 121 | AA31: 97 | AB31: 86 | AC31: 218 | AD31: 305 | AE31: 305
A32: ='Cars+'!A32 -> 2018-10-04 | B32: ='Cars+'!B32 -> 1300 | C32: ='Cars+'!C32 -> 810 | D32: =SUM('Cars+:Trucks'!D32) -> 0 | E32: =SUM('Cars+:Trucks'!E32) -> 0 | F32: =SUM('Cars+:Trucks'!F32) -> 0 | G32: =SUM('Cars+:Trucks'!G32) -> 0 | H32: =SUM('Cars+:Trucks'!H32) -> 0 | I32: =SUM('Cars+:Trucks'!I32) -> 0 | J32: =SUM('Cars+:Trucks'!J32) -> 0 | K32: =SUM('Cars+:Trucks'!K32) -> 0 | L32: =SUM('Cars+:Trucks'!L32) -> 0 | M32: =SUM('Cars+:Trucks'!M32) -> 0 | N32: =SUM('Cars+:Trucks'!N32) -> 0 | O32: =SUM('Cars+:Trucks'!O32) -> 0 | P32: =SUM('Cars+:Trucks'!P32) -> 0 | Q32: =SUM('Cars+:Trucks'!Q32) -> 0 | R32: =SUM('Cars+:Trucks'!R32) -> 0 | S32: =SUM('Cars+:Trucks'!S32) -> 0 | T32: =SUM('Cars+:Trucks'!T32) -> 0 | U32: =SUM('Cars+:Trucks'!U32) -> 0 | V32: =SUM('Cars+:Trucks'!V32) -> 0 | W32: =SUM('Cars+:Trucks'!W32) -> 0 | X32: 0 | Y32: 0 | Z32: 0 | AA32: 0 | AB32: 0 | AC32: 0 | AD32: 0 | AE32: 0
A33: ='Cars+'!A33 -> 2018-10-04 | B33: ='Cars+'!B33 -> 1315 | C33: ='Cars+'!C33 -> 810 | D33: =SUM('Cars+:Trucks'!D33) -> 0 | E33: =SUM('Cars+:Trucks'!E33) -> 0 | F33: =SUM('Cars+:Trucks'!F33) -> 0 | G33: =SUM('Cars+:Trucks'!G33) -> 0 | H33: =SUM('Cars+:Trucks'!H33) -> 0 | I33: =SUM('Cars+:Trucks'!I33) -> 0 | J33: =SUM('Cars+:Trucks'!J33) -> 0 | K33: =SUM('Cars+:Trucks'!K33) -> 0 | L33: =SUM('Cars+:Trucks'!L33) -> 0 | M33: =SUM('Cars+:Trucks'!M33) -> 0 | N33: =SUM('Cars+:Trucks'!N33) -> 0 | O33: =SUM('Cars+:Trucks'!O33) -> 0 | P33: =SUM('Cars+:Trucks'!P33) -> 0 | Q33: =SUM('Cars+:Trucks'!Q33) -> 0 | R33: =SUM('Cars+:Trucks'!R33) -> 0 | S33: =SUM('Cars+:Trucks'!S33) -> 0 | T33: =SUM('Cars+:Trucks'!T33) -> 0 | U33: =SUM('Cars+:Trucks'!U33) -> 0 | V33: =SUM('Cars+:Trucks'!V33) -> 0 | W33: =SUM('Cars+:Trucks'!W33) -> 0 | X33: 0 | Y33: 0 | Z33: 0 | AA33: 0 | AB33: 0 | AC33: 0 | AD33: 0 | AE33: 0
A34: ='Cars+'!A34 -> 2018-10-04 | B34: ='Cars+'!B34 -> 1330 | C34: ='Cars+'!C34 -> 810 | D34: =SUM('Cars+:Trucks'!D34) -> 0 | E34: =SUM('Cars+:Trucks'!E34) -> 0 | F34: =SUM('Cars+:Trucks'!F34) -> 0 | G34: =SUM('Cars+:Trucks'!G34) -> 0 | H34: =SUM('Cars+:Trucks'!H34) -> 0 | I34: =SUM('Cars+:Trucks'!I34) -> 0 | J34: =SUM('Cars+:Trucks'!J34) -> 0 | K34: =SUM('Cars+:Trucks'!K34) -> 0 | L34: =SUM('Cars+:Trucks'!L34) -> 0 | M34: =SUM('Cars+:Trucks'!M34) -> 0 | N34: =SUM('Cars+:Trucks'!N34) -> 0 | O34: =SUM('Cars+:Trucks'!O34) -> 0 | P34: =SUM('Cars+:Trucks'!P34) -> 0 | Q34: =SUM('Cars+:Trucks'!Q34) -> 0 | R34: =SUM('Cars+:Trucks'!R34) -> 0 | S34: =SUM('Cars+:Trucks'!S34) -> 0 | T34: =SUM('Cars+:Trucks'!T34) -> 0 | U34: =SUM('Cars+:Trucks'!U34) -> 0 | V34: =SUM('Cars+:Trucks'!V34) -> 0 | W34: =SUM('Cars+:Trucks'!W34) -> 0 | X34: 0 | Y34: 0 | Z34: 0 | AA34: 0 | AB34: 0 | AC34: 0 | AD34: 0 | AE34: 0
A35: ='Cars+'!A35 -> 2018-10-04 | B35: ='Cars+'!B35 -> 1345 | C35: ='Cars+'!C35 -> 810 | D35: =SUM('Cars+:Trucks'!D35) -> 0 | E35: =SUM('Cars+:Trucks'!E35) -> 0 | F35: =SUM('Cars+:Trucks'!F35) -> 0 | G35: =SUM('Cars+:Trucks'!G35) -> 0 | H35: =SUM('Cars+:Trucks'!H35) -> 0 | I35: =SUM('Cars+:Trucks'!I35) -> 0 | J35: =SUM('Cars+:Trucks'!J35) -> 0 | K35: =SUM('Cars+:Trucks'!K35) -> 0 | L35: =SUM('Cars+:Trucks'!L35) -> 0 | M35: =SUM('Cars+:Trucks'!M35) -> 0 | N35: =SUM('Cars+:Trucks'!N35) -> 0 | O35: =SUM('Cars+:Trucks'!O35) -> 0 | P35: =SUM('Cars+:Trucks'!P35) -> 0 | Q35: =SUM('Cars+:Trucks'!Q35) -> 0 | R35: =SUM('Cars+:Trucks'!R35) -> 0 | S35: =SUM('Cars+:Trucks'!S35) -> 0 | T35: =SUM('Cars+:Trucks'!T35) -> 0 | U35: =SUM('Cars+:Trucks'!U35) -> 0 | V35: =SUM('Cars+:Trucks'!V35) -> 0 | W35: =SUM('Cars+:Trucks'!W35) -> 0 | X35: 0 | Y35: 0 | Z35: 0 | AA35: 0 | AB35: 0 | AC35: 0 | AD35: 0 | AE35: 0
A36: ='Cars+'!A36 -> 2018-10-04 | B36: ='Cars+'!B36 -> 1400 | C36: ='Cars+'!C36 -> 810 | D36: =SUM('Cars+:Trucks'!D36) -> 0 | E36: =SUM('Cars+:Trucks'!E36) -> 0 | F36: =SUM('Cars+:Trucks'!F36) -> 0 | G36: =SUM('Cars+:Trucks'!G36) -> 0 | H36: =SUM('Cars+:Trucks'!H36) -> 0 | I36: =SUM('Cars+:Trucks'!I36) -> 0 | J36: =SUM('Cars+:Trucks'!J36) -> 0 | K36: =SUM('Cars+:Trucks'!K36) -> 0 | L36: =SUM('Cars+:Trucks'!L36) -> 0 | M36: =SUM('Cars+:Trucks'!M36) -> 0 | N36: =SUM('Cars+:Trucks'!N36) -> 0 | O36: =SUM('Cars+:Trucks'!O36) -> 0 | P36: =SUM('Cars+:Trucks'!P36) -> 0 | Q36: =SUM('Cars+:Trucks'!Q36) -> 0 | R36: =SUM('Cars+:Trucks'!R36) -> 0 | S36: =SUM('Cars+:Trucks'!S36) -> 0 | T36: =SUM('Cars+:Trucks'!T36) -> 0 | U36: =SUM('Cars+:Trucks'!U36) -> 0 | V36: =SUM('Cars+:Trucks'!V36) -> 0 | W36: =SUM('Cars+:Trucks'!W36) -> 0 | X36: 0 | Y36: 0 | Z36: 0 | AA36: 0 | AB36: 0 | AC36: 0 | AD36: 0 | AE36: =IF(AND(C36=C39,B39=VLOOKUP(B36,IntervalLookup,4)),SUM(AD36:AD39),0) -> 0
A37: ='Cars+'!A37 -> 2018-10-04 | B37: ='Cars+'!B37 -> 1415 | C37: ='Cars+'!C37 -> 810 | D37: =SUM('Cars+:Trucks'!D37) -> 0 | E37: =SUM('Cars+:Trucks'!E37) -> 0 | F37: =SUM('Cars+:Trucks'!F37) -> 0 | G37: =SUM('Cars+:Trucks'!G37) -> 0 | H37: =SUM('Cars+:Trucks'!H37) -> 0 | I37: =SUM('Cars+:Trucks'!I37) -> 0 | J37: =SUM('Cars+:Trucks'!J37) -> 0 | K37: =SUM('Cars+:Trucks'!K37) -> 0 | L37: =SUM('Cars+:Trucks'!L37) -> 0 | M37: =SUM('Cars+:Trucks'!M37) -> 0 | N37: =SUM('Cars+:Trucks'!N37) -> 0 | O37: =SUM('Cars+:Trucks'!O37) -> 0 | P37: =SUM('Cars+:Trucks'!P37) -> 0 | Q37: =SUM('Cars+:Trucks'!Q37) -> 0 | R37: =SUM('Cars+:Trucks'!R37) -> 0 | S37: =SUM('Cars+:Trucks'!S37) -> 0 | T37: =SUM('Cars+:Trucks'!T37) -> 0 | U37: =SUM('Cars+:Trucks'!U37) -> 0 | V37: =SUM('Cars+:Trucks'!V37) -> 0 | W37: =SUM('Cars+:Trucks'!W37) -> 0 | X37: 0 | Y37: 0 | Z37: 0 | AA37: 0 | AB37: 0 | AC37: 0 | AD37: 0 | AE37: 412
A38: ='Cars+'!A38 -> 2018-10-04 | B38: ='Cars+'!B38 -> 1430 | C38: ='Cars+'!C38 -> 810 | D38: =SUM('Cars+:Trucks'!D38) -> 0 | E38: =SUM('Cars+:Trucks'!E38) -> 0 | F38: =SUM('Cars+:Trucks'!F38) -> 0 | G38: =SUM('Cars+:Trucks'!G38) -> 0 | H38: =SUM('Cars+:Trucks'!H38) -> 0 | I38: =SUM('Cars+:Trucks'!I38) -> 0 | J38: =SUM('Cars+:Trucks'!J38) -> 0 | K38: =SUM('Cars+:Trucks'!K38) -> 0 | L38: =SUM('Cars+:Trucks'!L38) -> 0 | M38: =SUM('Cars+:Trucks'!M38) -> 0 | N38: =SUM('Cars+:Trucks'!N38) -> 0 | O38: =SUM('Cars+:Trucks'!O38) -> 0 | P38: =SUM('Cars+:Trucks'!P38) -> 0 | Q38: =SUM('Cars+:Trucks'!Q38) -> 0 | R38: =SUM('Cars+:Trucks'!R38) -> 0 | S38: =SUM('Cars+:Trucks'!S38) -> 0 | T38: =SUM('Cars+:Trucks'!T38) -> 0 | U38: =SUM('Cars+:Trucks'!U38) -> 0 | V38: =SUM('Cars+:Trucks'!V38) -> 0 | W38: =SUM('Cars+:Trucks'!W38) -> 0 | X38: 0 | Y38: 0 | Z38: 0 | AA38: 0 | AB38: 0 | AC38: 0 | AD38: 0 | AE38: 874
A39: ='Cars+'!A39 -> 2018-10-04 | B39: ='Cars+'!B39 -> 1445 | C39: ='Cars+'!C39 -> 810 | D39: =SUM('Cars+:Trucks'!D39) -> 0 | E39: =SUM('Cars+:Trucks'!E39) -> 0 | F39: =SUM('Cars+:Trucks'!F39) -> 0 | G39: =SUM('Cars+:Trucks'!G39) -> 0 | H39: =SUM('Cars+:Trucks'!H39) -> 0 | I39: =SUM('Cars+:Trucks'!I39) -> 0 | J39: =SUM('Cars+:Trucks'!J39) -> 0 | K39: =SUM('Cars+:Trucks'!K39) -> 0 | L39: =SUM('Cars+:Trucks'!L39) -> 0 | M39: =SUM('Cars+:Trucks'!M39) -> 0 | N39: =SUM('Cars+:Trucks'!N39) -> 0 | O39: =SUM('Cars+:Trucks'!O39) -> 0 | P39: =SUM('Cars+:Trucks'!P39) -> 0 | Q39: =SUM('Cars+:Trucks'!Q39) -> 0 | R39: =SUM('Cars+:Trucks'!R39) -> 0 | S39: =SUM('Cars+:Trucks'!S39) -> 0 | T39: =SUM('Cars+:Trucks'!T39) -> 0 | U39: =SUM('Cars+:Trucks'!U39) -> 0 | V39: =SUM('Cars+:Trucks'!V39) -> 0 | W39: =SUM('Cars+:Trucks'!W39) -> 0 | X39: 0 | Y39: 0 | Z39: 0 | AA39: 0 | AB39: 0 | AC39: 0 | AD39: 0 | AE39: 1366
A40: ='Cars+'!A40 -> 2018-10-04 | B40: ='Cars+'!B40 -> 1500 | C40: ='Cars+'!C40 -> 810 | D40: =SUM('Cars+:Trucks'!D40) -> 0 | E40: =SUM('Cars+:Trucks'!E40) -> 54 | F40: =SUM('Cars+:Trucks'!F40) -> 63 | G40: =SUM('Cars+:Trucks'!G40) -> 0 | H40: =SUM('Cars+:Trucks'!H40) -> 0 | I40: =SUM('Cars+:Trucks'!I40) -> 0 | J40: =SUM('Cars+:Trucks'!J40) -> 27 | K40: =SUM('Cars+:Trucks'!K40) -> 0 | L40: =SUM('Cars+:Trucks'!L40) -> 31 | M40: =SUM('Cars+:Trucks'!M40) -> 0 | N40: =SUM('Cars+:Trucks'!N40) -> 0 | O40: =SUM('Cars+:Trucks'!O40) -> 0 | P40: =SUM('Cars+:Trucks'!P40) -> 161 | Q40: =SUM('Cars+:Trucks'!Q40) -> 76 | R40: =SUM('Cars+:Trucks'!R40) -> 0 | S40: =SUM('Cars+:Trucks'!S40) -> 0 | T40: =SUM('Cars+:Trucks'!T40) -> 0 | U40: =SUM('Cars+:Trucks'!U40) -> 0 | V40: =SUM('Cars+:Trucks'!V40) -> 0 | W40: =SUM('Cars+:Trucks'!W40) -> 0 | X40: 0 | Y40: 58 | Z40: 237 | AA40: 117 | AB40: 58 | AC40: 354 | AD40: 412 | AE40: 1935
A41: ='Cars+'!A41 -> 2018-10-04 | B41: ='Cars+'!B41 -> 1515 | C41: ='Cars+'!C41 -> 810 | D41: =SUM('Cars+:Trucks'!D41) -> 0 | E41: =SUM('Cars+:Trucks'!E41) -> 52 | F41: =SUM('Cars+:Trucks'!F41) -> 46 | G41: =SUM('Cars+:Trucks'!G41) -> 0 | H41: =SUM('Cars+:Trucks'!H41) -> 0 | I41: =SUM('Cars+:Trucks'!I41) -> 1 | J41: =SUM('Cars+:Trucks'!J41) -> 25 | K41: =SUM('Cars+:Trucks'!K41) -> 0 | L41: =SUM('Cars+:Trucks'!L41) -> 38 | M41: =SUM('Cars+:Trucks'!M41) -> 0 | N41: =SUM('Cars+:Trucks'!N41) -> 0 | O41: =SUM('Cars+:Trucks'!O41) -> 0 | P41: =SUM('Cars+:Trucks'!P41) -> 208 | Q41: =SUM('Cars+:Trucks'!Q41) -> 92 | R41: =SUM('Cars+:Trucks'!R41) -> 0 | S41: =SUM('Cars+:Trucks'!S41) -> 0 | T41: =SUM('Cars+:Trucks'!T41) -> 0 | U41: =SUM('Cars+:Trucks'!U41) -> 0 | V41: =SUM('Cars+:Trucks'!V41) -> 0 | W41: =SUM('Cars+:Trucks'!W41) -> 0 | X41: 0 | Y41: 64 | Z41: 300 | AA41: 98 | AB41: 64 | AC41: 398 | AD41: 462 | AE41: 2140
A42: ='Cars+'!A42 -> 2018-10-04 | B42: ='Cars+'!B42 -> 1530 | C42: ='Cars+'!C42 -> 810 | D42: =SUM('Cars+:Trucks'!D42) -> 0 | E42: =SUM('Cars+:Trucks'!E42) -> 70 | F42: =SUM('Cars+:Trucks'!F42) -> 47 | G42: =SUM('Cars+:Trucks'!G42) -> 0 | H42: =SUM('Cars+:Trucks'!H42) -> 0 | I42: =SUM('Cars+:Trucks'!I42) -> 0 | J42: =SUM('Cars+:Trucks'!J42) -> 23 | K42: =SUM('Cars+:Trucks'!K42) -> 0 | L42: =SUM('Cars+:Trucks'!L42) -> 32 | M42: =SUM('Cars+:Trucks'!M42) -> 0 | N42: =SUM('Cars+:Trucks'!N42) -> 0 | O42: =SUM('Cars+:Trucks'!O42) -> 0 | P42: =SUM('Cars+:Trucks'!P42) -> 221 | Q42: =SUM('Cars+:Trucks'!Q42) -> 99 | R42: =SUM('Cars+:Trucks'!R42) -> 0 | S42: =SUM('Cars+:Trucks'!S42) -> 0 | T42: =SUM('Cars+:Trucks'!T42) -> 0 | U42: =SUM('Cars+:Trucks'!U42) -> 0 | V42: =SUM('Cars+:Trucks'!V42) -> 0 | W42: =SUM('Cars+:Trucks'!W42) -> 0 | X42: 0 | Y42: 55 | Z42: 320 | AA42: 117 | AB42: 55 | AC42: 437 | AD42: 492 | AE42: 2276
A43: ='Cars+'!A43 -> 2018-10-04 | B43: ='Cars+'!B43 -> 1545 | C43: ='Cars+'!C43 -> 810 | D43: =SUM('Cars+:Trucks'!D43) -> 0 | E43: =SUM('Cars+:Trucks'!E43) -> 68 | F43: =SUM('Cars+:Trucks'!F43) -> 82 | G43: =SUM('Cars+:Trucks'!G43) -> 0 | H43: =SUM('Cars+:Trucks'!H43) -> 0 | I43: =SUM('Cars+:Trucks'!I43) -> 0 | J43: =SUM('Cars+:Trucks'!J43) -> 21 | K43: =SUM('Cars+:Trucks'!K43) -> 0 | L43: =SUM('Cars+:Trucks'!L43) -> 30 | M43: =SUM('Cars+:Trucks'!M43) -> 0 | N43: =SUM('Cars+:Trucks'!N43) -> 0 | O43: =SUM('Cars+:Trucks'!O43) -> 0 | P43: =SUM('Cars+:Trucks'!P43) -> 284 | Q43: =SUM('Cars+:Trucks'!Q43) -> 84 | R43: =SUM('Cars+:Trucks'!R43) -> 0 | S43: =SUM('Cars+:Trucks'!S43) -> 0 | T43: =SUM('Cars+:Trucks'!T43) -> 0 | U43: =SUM('Cars+:Trucks'!U43) -> 0 | V43: =SUM('Cars+:Trucks'!V43) -> 0 | W43: =SUM('Cars+:Trucks'!W43) -> 0 | X43: 0 | Y43: 51 | Z43: 368 | AA43: 150 | AB43: 51 | AC43: 518 | AD43: 569 | AE43: 2401
A44: ='Cars+'!A44 -> 2018-10-04 | B44: ='Cars+'!B44 -> 1600 | C44: ='Cars+'!C44 -> 810 | D44: =SUM('Cars+:Trucks'!D44) -> 0 | E44: =SUM('Cars+:Trucks'!E44) -> 88 | F44: =SUM('Cars+:Trucks'!F44) -> 71 | G44: =SUM('Cars+:Trucks'!G44) -> 0 | H44: =SUM('Cars+:Trucks'!H44) -> 0 | I44: =SUM('Cars+:Trucks'!I44) -> 1 | J44: =SUM('Cars+:Trucks'!J44) -> 19 | K44: =SUM('Cars+:Trucks'!K44) -> 0 | L44: =SUM('Cars+:Trucks'!L44) -> 31 | M44: =SUM('Cars+:Trucks'!M44) -> 0 | N44: =SUM('Cars+:Trucks'!N44) -> 0 | O44: =SUM('Cars+:Trucks'!O44) -> 0 | P44: =SUM('Cars+:Trucks'!P44) -> 280 | Q44: =SUM('Cars+:Trucks'!Q44) -> 127 | R44: =SUM('Cars+:Trucks'!R44) -> 0 | S44: =SUM('Cars+:Trucks'!S44) -> 0 | T44: =SUM('Cars+:Trucks'!T44) -> 0 | U44: =SUM('Cars+:Trucks'!U44) -> 0 | V44: =SUM('Cars+:Trucks'!V44) -> 0 | W44: =SUM('Cars+:Trucks'!W44) -> 0 | X44: 0 | Y44: 51 | Z44: 407 | AA44: 159 | AB44: 51 | AC44: 566 | AD44: 617 | AE44: 2421
A45: ='Cars+'!A45 -> 2018-10-04 | B45: ='Cars+'!B45 -> 1615 | C45: ='Cars+'!C45 -> 810 | D45: =SUM('Cars+:Trucks'!D45) -> 0 | E45: =SUM('Cars+:Trucks'!E45) -> 65 | F45: =SUM('Cars+:Trucks'!F45) -> 67 | G45: =SUM('Cars+:Trucks'!G45) -> 0 | H45: =SUM('Cars+:Trucks'!H45) -> 0 | I45: =SUM('Cars+:Trucks'!I45) -> 0 | J45: =SUM('Cars+:Trucks'!J45) -> 10 | K45: =SUM('Cars+:Trucks'!K45) -> 0 | L45: =SUM('Cars+:Trucks'!L45) -> 32 | M45: =SUM('Cars+:Trucks'!M45) -> 0 | N45: =SUM('Cars+:Trucks'!N45) -> 0 | O45: =SUM('Cars+:Trucks'!O45) -> 0 | P45: =SUM('Cars+:Trucks'!P45) -> 307 | Q45: =SUM('Cars+:Trucks'!Q45) -> 117 | R45: =SUM('Cars+:Trucks'!R45) -> 0 | S45: =SUM('Cars+:Trucks'!S45) -> 0 | T45: =SUM('Cars+:Trucks'!T45) -> 0 | U45: =SUM('Cars+:Trucks'!U45) -> 0 | V45: =SUM('Cars+:Trucks'!V45) -> 0 | W45: =SUM('Cars+:Trucks'!W45) -> 0 | X45: 0 | Y45: 42 | Z45: 424 | AA45: 132 | AB45: 42 | AC45: 556 | AD45: 598 | AE45: 2474
A46: ='Cars+'!A46 -> 2018-10-04 | B46: ='Cars+'!B46 -> 1630 | C46: ='Cars+'!C46 -> 810 | D46: =SUM('Cars+:Trucks'!D46) -> 0 | E46: =SUM('Cars+:Trucks'!E46) -> 71 | F46: =SUM('Cars+:Trucks'!F46) -> 70 | G46: =SUM('Cars+:Trucks'!G46) -> 0 | H46: =SUM('Cars+:Trucks'!H46) -> 0 | I46: =SUM('Cars+:Trucks'!I46) -> 0 | J46: =SUM('Cars+:Trucks'!J46) -> 13 | K46: =SUM('Cars+:Trucks'!K46) -> 0 | L46: =SUM('Cars+:Trucks'!L46) -> 25 | M46: =SUM('Cars+:Trucks'!M46) -> 0 | N46: =SUM('Cars+:Trucks'!N46) -> 0 | O46: =SUM('Cars+:Trucks'!O46) -> 0 | P46: =SUM('Cars+:Trucks'!P46) -> 301 | Q46: =SUM('Cars+:Trucks'!Q46) -> 137 | R46: =SUM('Cars+:Trucks'!R46) -> 0 | S46: =SUM('Cars+:Trucks'!S46) -> 0 | T46: =SUM('Cars+:Trucks'!T46) -> 0 | U46: =SUM('Cars+:Trucks'!U46) -> 0 | V46: =SUM('Cars+:Trucks'!V46) -> 0 | W46: =SUM('Cars+:Trucks'!W46) -> 0 | X46: 0 | Y46: 38 | Z46: 438 | AA46: 141 | AB46: 38 | AC46: 579 | AD46: 617 | AE46: 2465
A47: ='Cars+'!A47 -> 2018-10-04 | B47: ='Cars+'!B47 -> 1645 | C47: ='Cars+'!C47 -> 810 | D47: =SUM('Cars+:Trucks'!D47) -> 0 | E47: =SUM('Cars+:Trucks'!E47) -> 73 | F47: =SUM('Cars+:Trucks'!F47) -> 73 | G47: =SUM('Cars+:Trucks'!G47) -> 0 | H47: =SUM('Cars+:Trucks'!H47) -> 0 | I47: =SUM('Cars+:Trucks'!I47) -> 0 | J47: =SUM('Cars+:Trucks'!J47) -> 23 | K47: =SUM('Cars+:Trucks'!K47) -> 0 | L47: =SUM('Cars+:Trucks'!L47) -> 27 | M47: =SUM('Cars+:Trucks'!M47) -> 0 | N47: =SUM('Cars+:Trucks'!N47) -> 0 | O47: =SUM('Cars+:Trucks'!O47) -> 0 | P47: =SUM('Cars+:Trucks'!P47) -> 282 | Q47: =SUM('Cars+:Trucks'!Q47) -> 111 | R47: =SUM('Cars+:Trucks'!R47) -> 0 | S47: =SUM('Cars+:Trucks'!S47) -> 0 | T47: =SUM('Cars+:Trucks'!T47) -> 0 | U47: =SUM('Cars+:Trucks'!U47) -> 0 | V47: =SUM('Cars+:Trucks'!V47) -> 0 | W47: =SUM('Cars+:Trucks'!W47) -> 0 | X47: 0 | Y47: 50 | Z47: 393 | AA47: 146 | AB47: 50 | AC47: 539 | AD47: 589 | AE47: 2321
A48: ='Cars+'!A48 -> 2018-10-04 | B48: ='Cars+'!B48 -> 1700 | C48: ='Cars+'!C48 -> 810 | D48: =SUM('Cars+:Trucks'!D48) -> 0 | E48: =SUM('Cars+:Trucks'!E48) -> 62 | F48: =SUM('Cars+:Trucks'!F48) -> 52 | G48: =SUM('Cars+:Trucks'!G48) -> 0 | H48: =SUM('Cars+:Trucks'!H48) -> 0 | I48: =SUM('Cars+:Trucks'!I48) -> 0 | J48: =SUM('Cars+:Trucks'!J48) -> 23 | K48: =SUM('Cars+:Trucks'!K48) -> 0 | L48: =SUM('Cars+:Trucks'!L48) -> 26 | M48: =SUM('Cars+:Trucks'!M48) -> 0 | N48: =SUM('Cars+:Trucks'!N48) -> 0 | O48: =SUM('Cars+:Trucks'!O48) -> 0 | P48: =SUM('Cars+:Trucks'!P48) -> 349 | Q48: =SUM('Cars+:Trucks'!Q48) -> 158 | R48: =SUM('Cars+:Trucks'!R48) -> 0 | S48: =SUM('Cars+:Trucks'!S48) -> 0 | T48: =SUM('Cars+:Trucks'!T48) -> 0 | U48: =SUM('Cars+:Trucks'!U48) -> 0 | V48: =SUM('Cars+:Trucks'!V48) -> 0 | W48: =SUM('Cars+:Trucks'!W48) -> 0 | X48: 0 | Y48: 49 | Z48: 507 | AA48: 114 | AB48: 49 | AC48: 621 | AD48: 670 | AE48: 2146
A49: ='Cars+'!A49 -> 2018-10-04 | B49: ='Cars+'!B49 -> 1715 | C49: ='Cars+'!C49 -> 810 | D49: =SUM('Cars+:Trucks'!D49) -> 0 | E49: =SUM('Cars+:Trucks'!E49) -> 84 | F49: =SUM('Cars+:Trucks'!F49) -> 67 | G49: =SUM('Cars+:Trucks'!G49) -> 0 | H49: =SUM('Cars+:Trucks'!H49) -> 0 | I49: =SUM('Cars+:Trucks'!I49) -> 0 | J49: =SUM('Cars+:Trucks'!J49) -> 16 | K49: =SUM('Cars+:Trucks'!K49) -> 0 | L49: =SUM('Cars+:Trucks'!L49) -> 18 | M49: =SUM('Cars+:Trucks'!M49) -> 0 | N49: =SUM('Cars+:Trucks'!N49) -> 0 | O49: =SUM('Cars+:Trucks'!O49) -> 0 | P49: =SUM('Cars+:Trucks'!P49) -> 264 | Q49: =SUM('Cars+:Trucks'!Q49) -> 140 | R49: =SUM('Cars+:Trucks'!R49) -> 0 | S49: =SUM('Cars+:Trucks'!S49) -> 0 | T49: =SUM('Cars+:Trucks'!T49) -> 0 | U49: =SUM('Cars+:Trucks'!U49) -> 0 | V49: =SUM('Cars+:Trucks'!V49) -> 0 | W49: =SUM('Cars+:Trucks'!W49) -> 0 | X49: 0 | Y49: 34 | Z49: 404 | AA49: 151 | AB49: 34 | AC49: 555 | AD49: 589 | AE49: 0
A50: ='Cars+'!A50 -> 2018-10-04 | B50: ='Cars+'!B50 -> 1730 | C50: ='Cars+'!C50 -> 810 | D50: =SUM('Cars+:Trucks'!D50) -> 1 | E50: =SUM('Cars+:Trucks'!E50) -> 68 | F50: =SUM('Cars+:Trucks'!F50) -> 60 | G50: =SUM('Cars+:Trucks'!G50) -> 0 | H50: =SUM('Cars+:Trucks'!H50) -> 0 | I50: =SUM('Cars+:Trucks'!I50) -> 0 | J50: =SUM('Cars+:Trucks'!J50) -> 16 | K50: =SUM('Cars+:Trucks'!K50) -> 0 | L50: =SUM('Cars+:Trucks'!L50) -> 23 | M50: =SUM('Cars+:Trucks'!M50) -> 0 | N50: =SUM('Cars+:Trucks'!N50) -> 0 | O50: =SUM('Cars+:Trucks'!O50) -> 0 | P50: =SUM('Cars+:Trucks'!P50) -> 221 | Q50: =SUM('Cars+:Trucks'!Q50) -> 84 | R50: =SUM('Cars+:Trucks'!R50) -> 0 | S50: =SUM('Cars+:Trucks'!S50) -> 0 | T50: =SUM('Cars+:Trucks'!T50) -> 0 | U50: =SUM('Cars+:Trucks'!U50) -> 0 | V50: =SUM('Cars+:Trucks'!V50) -> 0 | W50: =SUM('Cars+:Trucks'!W50) -> 0 | X50: 0 | Y50: 39 | Z50: 305 | AA50: 129 | AB50: 39 | AC50: 434 | AD50: 473 | AE50: 0
A51: ='Cars+'!A51 -> 2018-10-04 | B51: ='Cars+'!B51 -> 1745 | C51: ='Cars+'!C51 -> 810 | D51: =SUM('Cars+:Trucks'!D51) -> 0 | E51: =SUM('Cars+:Trucks'!E51) -> 55 | F51: =SUM('Cars+:Trucks'!F51) -> 56 | G51: =SUM('Cars+:Trucks'!G51) -> 0 | H51: =SUM('Cars+:Trucks'!H51) -> 0 | I51: =SUM('Cars+:Trucks'!I51) -> 0 | J51: =SUM('Cars+:Trucks'!J51) -> 14 | K51: =SUM('Cars+:Trucks'!K51) -> 0 | L51: =SUM('Cars+:Trucks'!L51) -> 33 | M51: =SUM('Cars+:Trucks'!M51) -> 0 | N51: =SUM('Cars+:Trucks'!N51) -> 0 | O51: =SUM('Cars+:Trucks'!O51) -> 0 | P51: =SUM('Cars+:Trucks'!P51) -> 183 | Q51: =SUM('Cars+:Trucks'!Q51) -> 73 | R51: =SUM('Cars+:Trucks'!R51) -> 0 | S51: =SUM('Cars+:Trucks'!S51) -> 0 | T51: =SUM('Cars+:Trucks'!T51) -> 0 | U51: =SUM('Cars+:Trucks'!U51) -> 0 | V51: =SUM('Cars+:Trucks'!V51) -> 0 | W51: =SUM('Cars+:Trucks'!W51) -> 0 | X51: 0 | Y51: 47 | Z51: 256 | AA51: 111 | AB51: 47 | AC51: 367 | AD51: 414 | AE51: 0
A52: ='Cars+'!A52 -> 00:00:00 | B52: ='Cars+'!B52 -> 0 | C52: ='Cars+'!C52 -> 0 | D52: =SUM('Cars+:Trucks'!D52) -> 0 | E52: =SUM('Cars+:Trucks'!E52) -> 0 | F52: =SUM('Cars+:Trucks'!F52) -> 0 | G52: =SUM('Cars+:Trucks'!G52) -> 0 | H52: =SUM('Cars+:Trucks'!H52) -> 0 | I52: =SUM('Cars+:Trucks'!I52) -> 0 | J52: =SUM('Cars+:Trucks'!J52) -> 0 | K52: =SUM('Cars+:Trucks'!K52) -> 0 | L52: =SUM('Cars+:Trucks'!L52) -> 0 | M52: =SUM('Cars+:Trucks'!M52) -> 0 | N52: =SUM('Cars+:Trucks'!N52) -> 0 | O52: =SUM('Cars+:Trucks'!O52) -> 0 | P52: =SUM('Cars+:Trucks'!P52) -> 0 | Q52: =SUM('Cars+:Trucks'!Q52) -> 0 | R52: =SUM('Cars+:Trucks'!R52) -> 0 | S52: =SUM('Cars+:Trucks'!S52) -> 0 | T52: =SUM('Cars+:Trucks'!T52) -> 0 | U52: =SUM('Cars+:Trucks'!U52) -> 0 | V52: =SUM('Cars+:Trucks'!V52) -> 0 | W52: =SUM('Cars+:Trucks'!W52) -> 0 | X52: 0 | Y52: 0 | Z52: 0 | AA52: 0 | AB52: 0 | AC52: 0 | AD52: 0 | AE52: 0
A53: ='Cars+'!A53 -> 2018-10-04 | B53: ='Cars+'!B53 -> 600 | C53: ='Cars+'!C53 -> 820 | D53: =SUM('Cars+:Trucks'!D53) -> 0 | E53: =SUM('Cars+:Trucks'!E53) -> 29 | F53: =SUM('Cars+:Trucks'!F53) -> 129 | G53: =SUM('Cars+:Trucks'!G53) -> 0 | H53: =SUM('Cars+:Trucks'!H53) -> 0 | I53: =SUM('Cars+:Trucks'!I53) -> 0 | J53: =SUM('Cars+:Trucks'!J53) -> 64 | K53: =SUM('Cars+:Trucks'!K53) -> 0 | L53: =SUM('Cars+:Trucks'!L53) -> 25 | M53: =SUM('Cars+:Trucks'!M53) -> 0 | N53: =SUM('Cars+:Trucks'!N53) -> 0 | O53: =SUM('Cars+:Trucks'!O53) -> 0 | P53: =SUM('Cars+:Trucks'!P53) -> 16 | Q53: =SUM('Cars+:Trucks'!Q53) -> 43 | R53: =SUM('Cars+:Trucks'!R53) -> 0 | S53: =SUM('Cars+:Trucks'!S53) -> 0 | T53: =SUM('Cars+:Trucks'!T53) -> 0 | U53: =SUM('Cars+:Trucks'!U53) -> 0 | V53: =SUM('Cars+:Trucks'!V53) -> 0 | W53: =SUM('Cars+:Trucks'!W53) -> 0 | X53: 0 | Y53: 89 | Z53: 59 | AA53: 158 | AB53: 89 | AC53: 217 | AD53: 306 | AE53: 1669
A54: ='Cars+'!A54 -> 2018-10-04 | B54: ='Cars+'!B54 -> 615 | C54: ='Cars+'!C54 -> 820 | D54: =SUM('Cars+:Trucks'!D54) -> 0 | E54: =SUM('Cars+:Trucks'!E54) -> 50 | F54: =SUM('Cars+:Trucks'!F54) -> 180 | G54: =SUM('Cars+:Trucks'!G54) -> 0 | H54: =SUM('Cars+:Trucks'!H54) -> 0 | I54: =SUM('Cars+:Trucks'!I54) -> 0 | J54: =SUM('Cars+:Trucks'!J54) -> 65 | K54: =SUM('Cars+:Trucks'!K54) -> 0 | L54: =SUM('Cars+:Trucks'!L54) -> 34 | M54: =SUM('Cars+:Trucks'!M54) -> 0 | N54: =SUM('Cars+:Trucks'!N54) -> 0 | O54: =SUM('Cars+:Trucks'!O54) -> 0 | P54: =SUM('Cars+:Trucks'!P54) -> 34 | Q54: =SUM('Cars+:Trucks'!Q54) -> 67 | R54: =SUM('Cars+:Trucks'!R54) -> 0 | S54: =SUM('Cars+:Trucks'!S54) -> 0 | T54: =SUM('Cars+:Trucks'!T54) -> 0 | U54: =SUM('Cars+:Trucks'!U54) -> 0 | V54: =SUM('Cars+:Trucks'!V54) -> 0 | W54: =SUM('Cars+:Trucks'!W54) -> 0 | X54: 0 | Y54: 99 | Z54: 101 | AA54: 230 | AB54: 99 | AC54: 331 | AD54: 430 | AE54: 1896
A55: ='Cars+'!A55 -> 2018-10-04 | B55: ='Cars+'!B55 -> 630 | C55: ='Cars+'!C55 -> 820 | D55: =SUM('Cars+:Trucks'!D55) -> 0 | E55: =SUM('Cars+:Trucks'!E55) -> 40 | F55: =SUM('Cars+:Trucks'!F55) -> 175 | G55: =SUM('Cars+:Trucks'!G55) -> 0 | H55: =SUM('Cars+:Trucks'!H55) -> 0 | I55: =SUM('Cars+:Trucks'!I55) -> 0 | J55: =SUM('Cars+:Trucks'!J55) -> 68 | K55: =SUM('Cars+:Trucks'!K55) -> 0 | L55: =SUM('Cars+:Trucks'!L55) -> 49 | M55: =SUM('Cars+:Trucks'!M55) -> 0 | N55: =SUM('Cars+:Trucks'!N55) -> 0 | O55: =SUM('Cars+:Trucks'!O55) -> 0 | P55: =SUM('Cars+:Trucks'!P55) -> 40 | Q55: =SUM('Cars+:Trucks'!Q55) -> 58 | R55: =SUM('Cars+:Trucks'!R55) -> 0 | S55: =SUM('Cars+:Trucks'!S55) -> 0 | T55: =SUM('Cars+:Trucks'!T55) -> 0 | U55: =SUM('Cars+:Trucks'!U55) -> 0 | V55: =SUM('Cars+:Trucks'!V55) -> 0 | W55: =SUM('Cars+:Trucks'!W55) -> 0 | X55: 0 | Y55: 117 | Z55: 98 | AA55: 215 | AB55: 117 | AC55: 313 | AD55: 430 | AE55: 1986
A56: ='Cars+'!A56 -> 2018-10-04 | B56: ='Cars+'!B56 -> 645 | C56: ='Cars+'!C56 -> 820 | D56: =SUM('Cars+:Trucks'!D56) -> 1 | E56: =SUM('Cars+:Trucks'!E56) -> 42 | F56: =SUM('Cars+:Trucks'!F56) -> 197 | G56: =SUM('Cars+:Trucks'!G56) -> 0 | H56: =SUM('Cars+:Trucks'!H56) -> 0 | I56: =SUM('Cars+:Trucks'!I56) -> 0 | J56: =SUM('Cars+:Trucks'!J56) -> 107 | K56: =SUM('Cars+:Trucks'!K56) -> 0 | L56: =SUM('Cars+:Trucks'!L56) -> 62 | M56: =SUM('Cars+:Trucks'!M56) -> 0 | N56: =SUM('Cars+:Trucks'!N56) -> 0 | O56: =SUM('Cars+:Trucks'!O56) -> 0 | P56: =SUM('Cars+:Trucks'!P56) -> 40 | Q56: =SUM('Cars+:Trucks'!Q56) -> 54 | R56: =SUM('Cars+:Trucks'!R56) -> 0 | S56: =SUM('Cars+:Trucks'!S56) -> 0 | T56: =SUM('Cars+:Trucks'!T56) -> 0 | U56: =SUM('Cars+:Trucks'!U56) -> 0 | V56: =SUM('Cars+:Trucks'!V56) -> 0 | W56: =SUM('Cars+:Trucks'!W56) -> 0 | X56: 0 | Y56: 169 | Z56: 94 | AA56: 240 | AB56: 169 | AC56: 334 | AD56: 503 | AE56: 2120
A57: ='Cars+'!A57 -> 2018-10-04 | B57: ='Cars+'!B57 -> 700 | C57: ='Cars+'!C57 -> 820 | D57: =SUM('Cars+:Trucks'!D57) -> 0 | E57: =SUM('Cars+:Trucks'!E57) -> 66 | F57: =SUM('Cars+:Trucks'!F57) -> 189 | G57: =SUM('Cars+:Trucks'!G57) -> 0 | H57: =SUM('Cars+:Trucks'!H57) -> 0 | I57: =SUM('Cars+:Trucks'!I57) -> 0 | J57: =SUM('Cars+:Trucks'!J57) -> 79 | K57: =SUM('Cars+:Trucks'!K57) -> 0 | L57: =SUM('Cars+:Trucks'!L57) -> 38 | M57: =SUM('Cars+:Trucks'!M57) -> 0 | N57: =SUM('Cars+:Trucks'!N57) -> 0 | O57: =SUM('Cars+:Trucks'!O57) -> 0 | P57: =SUM('Cars+:Trucks'!P57) -> 70 | Q57: =SUM('Cars+:Trucks'!Q57) -> 91 | R57: =SUM('Cars+:Trucks'!R57) -> 0 | S57: =SUM('Cars+:Trucks'!S57) -> 0 | T57: =SUM('Cars+:Trucks'!T57) -> 0 | U57: =SUM('Cars+:Trucks'!U57) -> 0 | V57: =SUM('Cars+:Trucks'!V57) -> 0 | W57: =SUM('Cars+:Trucks'!W57) -> 0 | X57: 0 | Y57: 117 | Z57: 161 | AA57: 255 | AB57: 117 | AC57: 416 | AD57: 533 | AE57: 2205
A58: ='Cars+'!A58 -> 2018-10-04 | B58: ='Cars+'!B58 -> 715 | C58: ='Cars+'!C58 -> 820 | D58: =SUM('Cars+:Trucks'!D58) -> 1 | E58: =SUM('Cars+:Trucks'!E58) -> 63 | F58: =SUM('Cars+:Trucks'!F58) -> 202 | G58: =SUM('Cars+:Trucks'!G58) -> 0 | H58: =SUM('Cars+:Trucks'!H58) -> 0 | I58: =SUM('Cars+:Trucks'!I58) -> 0 | J58: =SUM('Cars+:Trucks'!J58) -> 76 | K58: =SUM('Cars+:Trucks'!K58) -> 0 | L58: =SUM('Cars+:Trucks'!L58) -> 49 | M58: =SUM('Cars+:Trucks'!M58) -> 0 | N58: =SUM('Cars+:Trucks'!N58) -> 0 | O58: =SUM('Cars+:Trucks'!O58) -> 0 | P58: =SUM('Cars+:Trucks'!P58) -> 55 | Q58: =SUM('Cars+:Trucks'!Q58) -> 74 | R58: =SUM('Cars+:Trucks'!R58) -> 0 | S58: =SUM('Cars+:Trucks'!S58) -> 0 | T58: =SUM('Cars+:Trucks'!T58) -> 0 | U58: =SUM('Cars+:Trucks'!U58) -> 0 | V58: =SUM('Cars+:Trucks'!V58) -> 0 | W58: =SUM('Cars+:Trucks'!W58) -> 0 | X58: 0 | Y58: 125 | Z58: 129 | AA58: 266 | AB58: 125 | AC58: 395 | AD58: 520 | AE58: 2142
A59: ='Cars+'!A59 -> 2018-10-04 | B59: ='Cars+'!B59 -> 730 | C59: ='Cars+'!C59 -> 820 | D59: =SUM('Cars+:Trucks'!D59) -> 1 | E59: =SUM('Cars+:Trucks'!E59) -> 54 | F59: =SUM('Cars+:Trucks'!F59) -> 221 | G59: =SUM('Cars+:Trucks'!G59) -> 0 | H59: =SUM('Cars+:Trucks'!H59) -> 0 | I59: =SUM('Cars+:Trucks'!I59) -> 0 | J59: =SUM('Cars+:Trucks'!J59) -> 87 | K59: =SUM('Cars+:Trucks'!K59) -> 0 | L59: =SUM('Cars+:Trucks'!L59) -> 44 | M59: =SUM('Cars+:Trucks'!M59) -> 0 | N59: =SUM('Cars+:Trucks'!N59) -> 0 | O59: =SUM('Cars+:Trucks'!O59) -> 0 | P59: =SUM('Cars+:Trucks'!P59) -> 73 | Q59: =SUM('Cars+:Trucks'!Q59) -> 84 | R59: =SUM('Cars+:Trucks'!R59) -> 0 | S59: =SUM('Cars+:Trucks'!S59) -> 0 | T59: =SUM('Cars+:Trucks'!T59) -> 0 | U59: =SUM('Cars+:Trucks'!U59) -> 0 | V59: =SUM('Cars+:Trucks'!V59) -> 0 | W59: =SUM('Cars+:Trucks'!W59) -> 0 | X59: 0 | Y59: 131 | Z59: 157 | AA59: 276 | AB59: 131 | AC59: 433 | AD59: 564 | AE59: 2065
A60: ='Cars+'!A60 -> 2018-10-04 | B60: ='Cars+'!B60 -> 745 | C60: ='Cars+'!C60 -> 820 | D60: =SUM('Cars+:Trucks'!D60) -> 1 | E60: =SUM('Cars+:Trucks'!E60) -> 42 | F60: =SUM('Cars+:Trucks'!F60) -> 206 | G60: =SUM('Cars+:Trucks'!G60) -> 0 | H60: =SUM('Cars+:Trucks'!H60) -> 0 | I60: =SUM('Cars+:Trucks'!I60) -> 0 | J60: =SUM('Cars+:Trucks'!J60) -> 119 | K60: =SUM('Cars+:Trucks'!K60) -> 0 | L60: =SUM('Cars+:Trucks'!L60) -> 73 | M60: =SUM('Cars+:Trucks'!M60) -> 0 | N60: =SUM('Cars+:Trucks'!N60) -> 0 | O60: =SUM('Cars+:Trucks'!O60) -> 0 | P60: =SUM('Cars+:Trucks'!P60) -> 75 | Q60: =SUM('Cars+:Trucks'!Q60) -> 72 | R60: =SUM('Cars+:Trucks'!R60) -> 0 | S60: =SUM('Cars+:Trucks'!S60) -> 0 | T60: =SUM('Cars+:Trucks'!T60) -> 0 | U60: =SUM('Cars+:Trucks'!U60) -> 0 | V60: =SUM('Cars+:Trucks'!V60) -> 0 | W60: =SUM('Cars+:Trucks'!W60) -> 0 | X60: 0 | Y60: 192 | Z60: 147 | AA60: 249 | AB60: 192 | AC60: 396 | AD60: 588 | AE60: 1904
A61: ='Cars+'!A61 -> 2018-10-04 | B61: ='Cars+'!B61 -> 800 | C61: ='Cars+'!C61 -> 820 | D61: =SUM('Cars+:Trucks'!D61) -> 0 | E61: =SUM('Cars+:Trucks'!E61) -> 32 | F61: =SUM('Cars+:Trucks'!F61) -> 190 | G61: =SUM('Cars+:Trucks'!G61) -> 0 | H61: =SUM('Cars+:Trucks'!H61) -> 0 | I61: =SUM('Cars+:Trucks'!I61) -> 0 | J61: =SUM('Cars+:Trucks'!J61) -> 77 | K61: =SUM('Cars+:Trucks'!K61) -> 0 | L61: =SUM('Cars+:Trucks'!L61) -> 42 | M61: =SUM('Cars+:Trucks'!M61) -> 0 | N61: =SUM('Cars+:Trucks'!N61) -> 0 | O61: =SUM('Cars+:Trucks'!O61) -> 0 | P61: =SUM('Cars+:Trucks'!P61) -> 68 | Q61: =SUM('Cars+:Trucks'!Q61) -> 61 | R61: =SUM('Cars+:Trucks'!R61) -> 0 | S61: =SUM('Cars+:Trucks'!S61) -> 0 | T61: =SUM('Cars+:Trucks'!T61) -> 0 | U61: =SUM('Cars+:Trucks'!U61) -> 0 | V61: =SUM('Cars+:Trucks'!V61) -> 0 | W61: =SUM('Cars+:Trucks'!W61) -> 0 | X61: 0 | Y61: 119 | Z61: 129 | AA61: 222 | AB61: 119 | AC61: 351 | AD61: 470 | AE61: 1681
A62: ='Cars+'!A62 -> 2018-10-04 | B62: ='Cars+'!B62 -> 815 | C62: ='Cars+'!C62 -> 820 | D62: =SUM('Cars+:Trucks'!D62) -> 0 | E62: =SUM('Cars+:Trucks'!E62) -> 43 | F62: =SUM('Cars+:Trucks'!F62) -> 149 | G62: =SUM('Cars+:Trucks'!G62) -> 0 | H62: =SUM('Cars+:Trucks'!H62) -> 0 | I62: =SUM('Cars+:Trucks'!I62) -> 0 | J62: =SUM('Cars+:Trucks'!J62) -> 62 | K62: =SUM('Cars+:Trucks'!K62) -> 0 | L62: =SUM('Cars+:Trucks'!L62) -> 45 | M62: =SUM('Cars+:Trucks'!M62) -> 0 | N62: =SUM('Cars+:Trucks'!N62) -> 0 | O62: =SUM('Cars+:Trucks'!O62) -> 0 | P62: =SUM('Cars+:Trucks'!P62) -> 63 | Q62: =SUM('Cars+:Trucks'!Q62) -> 81 | R62: =SUM('Cars+:Trucks'!R62) -> 0 | S62: =SUM('Cars+:Trucks'!S62) -> 0 | T62: =SUM('Cars+:Trucks'!T62) -> 0 | U62: =SUM('Cars+:Trucks'!U62) -> 0 | V62: =SUM('Cars+:Trucks'!V62) -> 0 | W62: =SUM('Cars+:Trucks'!W62) -> 0 | X62: 0 | Y62: 107 | Z62: 144 | AA62: 192 | AB62: 107 | AC62: 336 | AD62: 443 | AE62: 1211
A63: ='Cars+'!A63 -> 2018-10-04 | B63: ='Cars+'!B63 -> 830 | C63: ='Cars+'!C63 -> 820 | D63: =SUM('Cars+:Trucks'!D63) -> 0 | E63: =SUM('Cars+:Trucks'!E63) -> 40 | F63: =SUM('Cars+:Trucks'!F63) -> 108 | G63: =SUM('Cars+:Trucks'!G63) -> 0 | H63: =SUM('Cars+:Trucks'!H63) -> 0 | I63: =SUM('Cars+:Trucks'!I63) -> 0 | J63: =SUM('Cars+:Trucks'!J63) -> 58 | K63: =SUM('Cars+:Trucks'!K63) -> 0 | L63: =SUM('Cars+:Trucks'!L63) -> 39 | M63: =SUM('Cars+:Trucks'!M63) -> 0 | N63: =SUM('Cars+:Trucks'!N63) -> 0 | O63: =SUM('Cars+:Trucks'!O63) -> 0 | P63: =SUM('Cars+:Trucks'!P63) -> 83 | Q63: =SUM('Cars+:Trucks'!Q63) -> 75 | R63: =SUM('Cars+:Trucks'!R63) -> 0 | S63: =SUM('Cars+:Trucks'!S63) -> 0 | T63: =SUM('Cars+:Trucks'!T63) -> 0 | U63: =SUM('Cars+:Trucks'!U63) -> 0 | V63: =SUM('Cars+:Trucks'!V63) -> 0 | W63: =SUM('Cars+:Trucks'!W63) -> 0 | X63: 0 | Y63: 97 | Z63: 158 | AA63: 148 | AB63: 97 | AC63: 306 | AD63: 403 | AE63: 768
A64: ='Cars+'!A64 -> 2018-10-04 | B64: ='Cars+'!B64 -> 845 | C64: ='Cars+'!C64 -> 820 | D64: =SUM('Cars+:Trucks'!D64) -> 0 | E64: =SUM('Cars+:Trucks'!E64) -> 27 | F64: =SUM('Cars+:Trucks'!F64) -> 97 | G64: =SUM('Cars+:Trucks'!G64) -> 0 | H64: =SUM('Cars+:Trucks'!H64) -> 0 | I64: =SUM('Cars+:Trucks'!I64) -> 0 | J64: =SUM('Cars+:Trucks'!J64) -> 61 | K64: =SUM('Cars+:Trucks'!K64) -> 0 | L64: =SUM('Cars+:Trucks'!L64) -> 64 | M64: =SUM('Cars+:Trucks'!M64) -> 1 | N64: =SUM('Cars+:Trucks'!N64) -> 0 | O64: =SUM('Cars+:Trucks'!O64) -> 0 | P64: =SUM('Cars+:Trucks'!P64) -> 63 | Q64: =SUM('Cars+:Trucks'!Q64) -> 52 | R64: =SUM('Cars+:Trucks'!R64) -> 0 | S64: =SUM('Cars+:Trucks'!S64) -> 0 | T64: =SUM('Cars+:Trucks'!T64) -> 0 | U64: =SUM('Cars+:Trucks'!U64) -> 0 | V64: =SUM('Cars+:Trucks'!V64) -> 0 | W64: =SUM('Cars+:Trucks'!W64) -> 0 | X64: 0 | Y64: 125 | Z64: 115 | AA64: 124 | AB64: 125 | AC64: 239 | AD64: 365 | AE64: 365
A65: ='Cars+'!A65 -> 2018-10-04 | B65: ='Cars+'!B65 -> 900 | C65: ='Cars+'!C65 -> 820 | D65: =SUM('Cars+:Trucks'!D65) -> 0 | E65: =SUM('Cars+:Trucks'!E65) -> 0 | F65: =SUM('Cars+:Trucks'!F65) -> 0 | G65: =SUM('Cars+:Trucks'!G65) -> 0 | H65: =SUM('Cars+:Trucks'!H65) -> 0 | I65: =SUM('Cars+:Trucks'!I65) -> 0 | J65: =SUM('Cars+:Trucks'!J65) -> 0 | K65: =SUM('Cars+:Trucks'!K65) -> 0 | L65: =SUM('Cars+:Trucks'!L65) -> 0 | M65: =SUM('Cars+:Trucks'!M65) -> 0 | N65: =SUM('Cars+:Trucks'!N65) -> 0 | O65: =SUM('Cars+:Trucks'!O65) -> 0 | P65: =SUM('Cars+:Trucks'!P65) -> 0 | Q65: =SUM('Cars+:Trucks'!Q65) -> 0 | R65: =SUM('Cars+:Trucks'!R65) -> 0 | S65: =SUM('Cars+:Trucks'!S65) -> 0 | T65: =SUM('Cars+:Trucks'!T65) -> 0 | U65: =SUM('Cars+:Trucks'!U65) -> 0 | V65: =SUM('Cars+:Trucks'!V65) -> 0 | W65: =SUM('Cars+:Trucks'!W65) -> 0 | X65: 0 | Y65: 0 | Z65: 0 | AA65: 0 | AB65: 0 | AC65: 0 | AD65: 0 | AE65: 0
A66: ='Cars+'!A66 -> 2018-10-04 | B66: ='Cars+'!B66 -> 915 | C66: ='Cars+'!C66 -> 820 | D66: =SUM('Cars+:Trucks'!D66) -> 0 | E66: =SUM('Cars+:Trucks'!E66) -> 0 | F66: =SUM('Cars+:Trucks'!F66) -> 0 | G66: =SUM('Cars+:Trucks'!G66) -> 0 | H66: =SUM('Cars+:Trucks'!H66) -> 0 | I66: =SUM('Cars+:Trucks'!I66) -> 0 | J66: =SUM('Cars+:Trucks'!J66) -> 0 | K66: =SUM('Cars+:Trucks'!K66) -> 0 | L66: =SUM('Cars+:Trucks'!L66) -> 0 | M66: =SUM('Cars+:Trucks'!M66) -> 0 | N66: =SUM('Cars+:Trucks'!N66) -> 0 | O66: =SUM('Cars+:Trucks'!O66) -> 0 | P66: =SUM('Cars+:Trucks'!P66) -> 0 | Q66: =SUM('Cars+:Trucks'!Q66) -> 0 | R66: =SUM('Cars+:Trucks'!R66) -> 0 | S66: =SUM('Cars+:Trucks'!S66) -> 0 | T66: =SUM('Cars+:Trucks'!T66) -> 0 | U66: =SUM('Cars+:Trucks'!U66) -> 0 | V66: =SUM('Cars+:Trucks'!V66) -> 0 | W66: =SUM('Cars+:Trucks'!W66) -> 0 | X66: 0 | Y66: 0 | Z66: 0 | AA66: 0 | AB66: 0 | AC66: 0 | AD66: 0 | AE66: 0
A67: ='Cars+'!A67 -> 2018-10-04 | B67: ='Cars+'!B67 -> 930 | C67: ='Cars+'!C67 -> 820 | D67: =SUM('Cars+:Trucks'!D67) -> 0 | E67: =SUM('Cars+:Trucks'!E67) -> 0 | F67: =SUM('Cars+:Trucks'!F67) -> 0 | G67: =SUM('Cars+:Trucks'!G67) -> 0 | H67: =SUM('Cars+:Trucks'!H67) -> 0 | I67: =SUM('Cars+:Trucks'!I67) -> 0 | J67: =SUM('Cars+:Trucks'!J67) -> 0 | K67: =SUM('Cars+:Trucks'!K67) -> 0 | L67: =SUM('Cars+:Trucks'!L67) -> 0 | M67: =SUM('Cars+:Trucks'!M67) -> 0 | N67: =SUM('Cars+:Trucks'!N67) -> 0 | O67: =SUM('Cars+:Trucks'!O67) -> 0 | P67: =SUM('Cars+:Trucks'!P67) -> 0 | Q67: =SUM('Cars+:Trucks'!Q67) -> 0 | R67: =SUM('Cars+:Trucks'!R67) -> 0 | S67: =SUM('Cars+:Trucks'!S67) -> 0 | T67: =SUM('Cars+:Trucks'!T67) -> 0 | U67: =SUM('Cars+:Trucks'!U67) -> 0 | V67: =SUM('Cars+:Trucks'!V67) -> 0 | W67: =SUM('Cars+:Trucks'!W67) -> 0 | X67: 0 | Y67: 0 | Z67: 0 | AA67: 0 | AB67: 0 | AC67: 0 | AD67: 0 | AE67: 0
A68: ='Cars+'!A68 -> 2018-10-04 | B68: ='Cars+'!B68 -> 945 | C68: ='Cars+'!C68 -> 820 | D68: =SUM('Cars+:Trucks'!D68) -> 0 | E68: =SUM('Cars+:Trucks'!E68) -> 0 | F68: =SUM('Cars+:Trucks'!F68) -> 0 | G68: =SUM('Cars+:Trucks'!G68) -> 0 | H68: =SUM('Cars+:Trucks'!H68) -> 0 | I68: =SUM('Cars+:Trucks'!I68) -> 0 | J68: =SUM('Cars+:Trucks'!J68) -> 0 | K68: =SUM('Cars+:Trucks'!K68) -> 0 | L68: =SUM('Cars+:Trucks'!L68) -> 0 | M68: =SUM('Cars+:Trucks'!M68) -> 0 | N68: =SUM('Cars+:Trucks'!N68) -> 0 | O68: =SUM('Cars+:Trucks'!O68) -> 0 | P68: =SUM('Cars+:Trucks'!P68) -> 0 | Q68: =SUM('Cars+:Trucks'!Q68) -> 0 | R68: =SUM('Cars+:Trucks'!R68) -> 0 | S68: =SUM('Cars+:Trucks'!S68) -> 0 | T68: =SUM('Cars+:Trucks'!T68) -> 0 | U68: =SUM('Cars+:Trucks'!U68) -> 0 | V68: =SUM('Cars+:Trucks'!V68) -> 0 | W68: =SUM('Cars+:Trucks'!W68) -> 0 | X68: 0 | Y68: 0 | Z68: 0 | AA68: 0 | AB68: 0 | AC68: 0 | AD68: 0 | AE68: =IF(AND(C68=C71,B71=VLOOKUP(B68,IntervalLookup,4)),SUM(AD68:AD71),0) -> 0
A69: ='Cars+'!A69 -> 2018-10-04 | B69: ='Cars+'!B69 -> 1000 | C69: ='Cars+'!C69 -> 820 | D69: =SUM('Cars+:Trucks'!D69) -> 0 | E69: =SUM('Cars+:Trucks'!E69) -> 0 | F69: =SUM('Cars+:Trucks'!F69) -> 0 | G69: =SUM('Cars+:Trucks'!G69) -> 0 | H69: =SUM('Cars+:Trucks'!H69) -> 0 | I69: =SUM('Cars+:Trucks'!I69) -> 0 | J69: =SUM('Cars+:Trucks'!J69) -> 0 | K69: =SUM('Cars+:Trucks'!K69) -> 0 | L69: =SUM('Cars+:Trucks'!L69) -> 0 | M69: =SUM('Cars+:Trucks'!M69) -> 0 | N69: =SUM('Cars+:Trucks'!N69) -> 0 | O69: =SUM('Cars+:Trucks'!O69) -> 0 | P69: =SUM('Cars+:Trucks'!P69) -> 0 | Q69: =SUM('Cars+:Trucks'!Q69) -> 0 | R69: =SUM('Cars+:Trucks'!R69) -> 0 | S69: =SUM('Cars+:Trucks'!S69) -> 0 | T69: =SUM('Cars+:Trucks'!T69) -> 0 | U69: =SUM('Cars+:Trucks'!U69) -> 0 | V69: =SUM('Cars+:Trucks'!V69) -> 0 | W69: =SUM('Cars+:Trucks'!W69) -> 0 | X69: =SUMIF($D$2:$W$2,X$3,$D69:$W69) -> 0 | Y69: 0 | Z69: 0 | AA69: 0 | AB69: =X69+Y69 -> 0 | AC69: =Z69+AA69 -> 0 | AD69: =SUM(D69:W69) -> 0 | AE69: 0
A70: ='Cars+'!A70 -> 2018-10-04 | B70: ='Cars+'!B70 -> 1015 | C70: ='Cars+'!C70 -> 820 | D70: =SUM('Cars+:Trucks'!D70) -> 0 | E70: =SUM('Cars+:Trucks'!E70) -> 0 | F70: =SUM('Cars+:Trucks'!F70) -> 0 | G70: =SUM('Cars+:Trucks'!G70) -> 0 | H70: =SUM('Cars+:Trucks'!H70) -> 0 | I70: =SUM('Cars+:Trucks'!I70) -> 0 | J70: =SUM('Cars+:Trucks'!J70) -> 0 | K70: =SUM('Cars+:Trucks'!K70) -> 0 | L70: =SUM('Cars+:Trucks'!L70) -> 0 | M70: =SUM('Cars+:Trucks'!M70) -> 0 | N70: =SUM('Cars+:Trucks'!N70) -> 0 | O70: =SUM('Cars+:Trucks'!O70) -> 0 | P70: =SUM('Cars+:Trucks'!P70) -> 0 | Q70: =SUM('Cars+:Trucks'!Q70) -> 0 | R70: =SUM('Cars+:Trucks'!R70) -> 0 | S70: =SUM('Cars+:Trucks'!S70) -> 0 | T70: =SUM('Cars+:Trucks'!T70) -> 0 | U70: =SUM('Cars+:Trucks'!U70) -> 0 | V70: =SUM('Cars+:Trucks'!V70) -> 0 | W70: =SUM('Cars+:Trucks'!W70) -> 0 | X70: 0 | Y70: 0 | Z70: 0 | AA70: 0 | AB70: 0 | AC70: 0 | AD70: 0 | AE70: 312
A71: ='Cars+'!A71 -> 2018-10-04 | B71: ='Cars+'!B71 -> 1030 | C71: ='Cars+'!C71 -> 820 | D71: =SUM('Cars+:Trucks'!D71) -> 0 | E71: =SUM('Cars+:Trucks'!E71) -> 0 | F71: =SUM('Cars+:Trucks'!F71) -> 0 | G71: =SUM('Cars+:Trucks'!G71) -> 0 | H71: =SUM('Cars+:Trucks'!H71) -> 0 | I71: =SUM('Cars+:Trucks'!I71) -> 0 | J71: =SUM('Cars+:Trucks'!J71) -> 0 | K71: =SUM('Cars+:Trucks'!K71) -> 0 | L71: =SUM('Cars+:Trucks'!L71) -> 0 | M71: =SUM('Cars+:Trucks'!M71) -> 0 | N71: =SUM('Cars+:Trucks'!N71) -> 0 | O71: =SUM('Cars+:Trucks'!O71) -> 0 | P71: =SUM('Cars+:Trucks'!P71) -> 0 | Q71: =SUM('Cars+:Trucks'!Q71) -> 0 | R71: =SUM('Cars+:Trucks'!R71) -> 0 | S71: =SUM('Cars+:Trucks'!S71) -> 0 | T71: =SUM('Cars+:Trucks'!T71) -> 0 | U71: =SUM('Cars+:Trucks'!U71) -> 0 | V71: =SUM('Cars+:Trucks'!V71) -> 0 | W71: =SUM('Cars+:Trucks'!W71) -> 0 | X71: 0 | Y71: 0 | Z71: 0 | AA71: 0 | AB71: 0 | AC71: 0 | AD71: 0 | AE71: 595
A72: ='Cars+'!A72 -> 2018-10-04 | B72: ='Cars+'!B72 -> 1045 | C72: ='Cars+'!C72 -> 820 | D72: =SUM('Cars+:Trucks'!D72) -> 0 | E72: =SUM('Cars+:Trucks'!E72) -> 0 | F72: =SUM('Cars+:Trucks'!F72) -> 0 | G72: =SUM('Cars+:Trucks'!G72) -> 0 | H72: =SUM('Cars+:Trucks'!H72) -> 0 | I72: =SUM('Cars+:Trucks'!I72) -> 0 | J72: =SUM('Cars+:Trucks'!J72) -> 0 | K72: =SUM('Cars+:Trucks'!K72) -> 0 | L72: =SUM('Cars+:Trucks'!L72) -> 0 | M72: =SUM('Cars+:Trucks'!M72) -> 0 | N72: =SUM('Cars+:Trucks'!N72) -> 0 | O72: =SUM('Cars+:Trucks'!O72) -> 0 | P72: =SUM('Cars+:Trucks'!P72) -> 0 | Q72: =SUM('Cars+:Trucks'!Q72) -> 0 | R72: =SUM('Cars+:Trucks'!R72) -> 0 | S72: =SUM('Cars+:Trucks'!S72) -> 0 | T72: =SUM('Cars+:Trucks'!T72) -> 0 | U72: =SUM('Cars+:Trucks'!U72) -> 0 | V72: =SUM('Cars+:Trucks'!V72) -> 0 | W72: =SUM('Cars+:Trucks'!W72) -> 0 | X72: 0 | Y72: 0 | Z72: 0 | AA72: 0 | AB72: 0 | AC72: 0 | AD72: 0 | AE72: 921
A73: ='Cars+'!A73 -> 2018-10-04 | B73: ='Cars+'!B73 -> 1100 | C73: ='Cars+'!C73 -> 820 | D73: =SUM('Cars+:Trucks'!D73) -> 0 | E73: =SUM('Cars+:Trucks'!E73) -> 30 | F73: =SUM('Cars+:Trucks'!F73) -> 52 | G73: =SUM('Cars+:Trucks'!G73) -> 0 | H73: =SUM('Cars+:Trucks'!H73) -> 0 | I73: =SUM('Cars+:Trucks'!I73) -> 0 | J73: =SUM('Cars+:Trucks'!J73) -> 34 | K73: =SUM('Cars+:Trucks'!K73) -> 0 | L73: =SUM('Cars+:Trucks'!L73) -> 50 | M73: =SUM('Cars+:Trucks'!M73) -> 1 | N73: =SUM('Cars+:Trucks'!N73) -> 0 | O73: =SUM('Cars+:Trucks'!O73) -> 0 | P73: =SUM('Cars+:Trucks'!P73) -> 56 | Q73: =SUM('Cars+:Trucks'!Q73) -> 89 | R73: =SUM('Cars+:Trucks'!R73) -> 0 | S73: =SUM('Cars+:Trucks'!S73) -> 0 | T73: =SUM('Cars+:Trucks'!T73) -> 0 | U73: =SUM('Cars+:Trucks'!U73) -> 0 | V73: =SUM('Cars+:Trucks'!V73) -> 0 | W73: =SUM('Cars+:Trucks'!W73) -> 0 | X73: 0 | Y73: 84 | Z73: 145 | AA73: 82 | AB73: 84 | AC73: 227 | AD73: 312 | AE73: 1294
A74: ='Cars+'!A74 -> 2018-10-04 | B74: ='Cars+'!B74 -> 1115 | C74: ='Cars+'!C74 -> 820 | D74: =SUM('Cars+:Trucks'!D74) -> 0 | E74: =SUM('Cars+:Trucks'!E74) -> 21 | F74: =SUM('Cars+:Trucks'!F74) -> 62 | G74: =SUM('Cars+:Trucks'!G74) -> 0 | H74: =SUM('Cars+:Trucks'!H74) -> 0 | I74: =SUM('Cars+:Trucks'!I74) -> 0 | J74: =SUM('Cars+:Trucks'!J74) -> 44 | K74: =SUM('Cars+:Trucks'!K74) -> 0 | L74: =SUM('Cars+:Trucks'!L74) -> 29 | M74: =SUM('Cars+:Trucks'!M74) -> 0 | N74: =SUM('Cars+:Trucks'!N74) -> 0 | O74: =SUM('Cars+:Trucks'!O74) -> 0 | P74: =SUM('Cars+:Trucks'!P74) -> 63 | Q74: =SUM('Cars+:Trucks'!Q74) -> 64 | R74: =SUM('Cars+:Trucks'!R74) -> 0 | S74: =SUM('Cars+:Trucks'!S74) -> 0 | T74: =SUM('Cars+:Trucks'!T74) -> 0 | U74: =SUM('Cars+:Trucks'!U74) -> 0 | V74: =SUM('Cars+:Trucks'!V74) -> 0 | W74: =SUM('Cars+:Trucks'!W74) -> 0 | X74: 0 | Y74: 73 | Z74: 127 | AA74: 83 | AB74: 73 | AC74: 210 | AD74: 283 | AE74: 1354
A75: ='Cars+'!A75 -> 2018-10-04 | B75: ='Cars+'!B75 -> 1130 | C75: ='Cars+'!C75 -> 820 | D75: =SUM('Cars+:Trucks'!D75) -> 0 | E75: =SUM('Cars+:Trucks'!E75) -> 31 | F75: =SUM('Cars+:Trucks'!F75) -> 66 | G75: =SUM('Cars+:Trucks'!G75) -> 0 | H75: =SUM('Cars+:Trucks'!H75) -> 0 | I75: =SUM('Cars+:Trucks'!I75) -> 0 | J75: =SUM('Cars+:Trucks'!J75) -> 29 | K75: =SUM('Cars+:Trucks'!K75) -> 0 | L75: =SUM('Cars+:Trucks'!L75) -> 51 | M75: =SUM('Cars+:Trucks'!M75) -> 0 | N75: =SUM('Cars+:Trucks'!N75) -> 0 | O75: =SUM('Cars+:Trucks'!O75) -> 0 | P75: =SUM('Cars+:Trucks'!P75) -> 66 | Q75: =SUM('Cars+:Trucks'!Q75) -> 83 | R75: =SUM('Cars+:Trucks'!R75) -> 0 | S75: =SUM('Cars+:Trucks'!S75) -> 0 | T75: =SUM('Cars+:Trucks'!T75) -> 0 | U75: =SUM('Cars+:Trucks'!U75) -> 0 | V75: =SUM('Cars+:Trucks'!V75) -> 0 | W75: =SUM('Cars+:Trucks'!W75) -> 0 | X75: 0 | Y75: 80 | Z75: 149 | AA75: 97 | AB75: 80 | AC75: 246 | AD75: 326 | AE75: 1439
A76: ='Cars+'!A76 -> 2018-10-04 | B76: ='Cars+'!B76 -> 1145 | C76: ='Cars+'!C76 -> 820 | D76: =SUM('Cars+:Trucks'!D76) -> 0 | E76: =SUM('Cars+:Trucks'!E76) -> 20 | F76: =SUM('Cars+:Trucks'!F76) -> 86 | G76: =SUM('Cars+:Trucks'!G76) -> 0 | H76: =SUM('Cars+:Trucks'!H76) -> 0 | I76: =SUM('Cars+:Trucks'!I76) -> 0 | J76: =SUM('Cars+:Trucks'!J76) -> 52 | K76: =SUM('Cars+:Trucks'!K76) -> 0 | L76: =SUM('Cars+:Trucks'!L76) -> 44 | M76: =SUM('Cars+:Trucks'!M76) -> 0 | N76: =SUM('Cars+:Trucks'!N76) -> 0 | O76: =SUM('Cars+:Trucks'!O76) -> 0 | P76: =SUM('Cars+:Trucks'!P76) -> 93 | Q76: =SUM('Cars+:Trucks'!Q76) -> 78 | R76: =SUM('Cars+:Trucks'!R76) -> 0 | S76: =SUM('Cars+:Trucks'!S76) -> 0 | T76: =SUM('Cars+:Trucks'!T76) -> 0 | U76: =SUM('Cars+:Trucks'!U76) -> 0 | V76: =SUM('Cars+:Trucks'!V76) -> 0 | W76: =SUM('Cars+:Trucks'!W76) -> 0 | X76: 0 | Y76: 96 | Z76: 171 | AA76: 106 | AB76: 96 | AC76: 277 | AD76: 373 | AE76: 1458
A77: ='Cars+'!A77 -> 2018-10-04 | B77: ='Cars+'!B77 -> 1200 | C77: ='Cars+'!C77 -> 820 | D77: =SUM('Cars+:Trucks'!D77) -> 0 | E77: =SUM('Cars+:Trucks'!E77) -> 25 | F77: =SUM('Cars+:Trucks'!F77) -> 66 | G77: =SUM('Cars+:Trucks'!G77) -> 0 | H77: =SUM('Cars+:Trucks'!H77) -> 0 | I77: =SUM('Cars+:Trucks'!I77) -> 0 | J77: =SUM('Cars+:Trucks'!J77) -> 59 | K77: =SUM('Cars+:Trucks'!K77) -> 0 | L77: =SUM('Cars+:Trucks'!L77) -> 47 | M77: =SUM('Cars+:Trucks'!M77) -> 0 | N77: =SUM('Cars+:Trucks'!N77) -> 0 | O77: =SUM('Cars+:Trucks'!O77) -> 0 | P77: =SUM('Cars+:Trucks'!P77) -> 85 | Q77: =SUM('Cars+:Trucks'!Q77) -> 90 | R77: =SUM('Cars+:Trucks'!R77) -> 0 | S77: =SUM('Cars+:Trucks'!S77) -> 0 | T77: =SUM('Cars+:Trucks'!T77) -> 0 | U77: =SUM('Cars+:Trucks'!U77) -> 0 | V77: =SUM('Cars+:Trucks'!V77) -> 0 | W77: =SUM('Cars+:Trucks'!W77) -> 0 | X77: 0 | Y77: 106 | Z77: 175 | AA77: 91 | AB77: 106 | AC77: 266 | AD77: 372 | AE77: 1407
A78: ='Cars+'!A78 -> 2018-10-04 | B78: ='Cars+'!B78 -> 1215 | C78: ='Cars+'!C78 -> 820 | D78: =SUM('Cars+:Trucks'!D78) -> 2 | E78: =SUM('Cars+:Trucks'!E78) -> 25 | F78: =SUM('Cars+:Trucks'!F78) -> 83 | G78: =SUM('Cars+:Trucks'!G78) -> 0 | H78: =SUM('Cars+:Trucks'!H78) -> 0 | I78: =SUM('Cars+:Trucks'!I78) -> 0 | J78: =SUM('Cars+:Trucks'!J78) -> 44 | K78: =SUM('Cars+:Trucks'!K78) -> 0 | L78: =SUM('Cars+:Trucks'!L78) -> 46 | M78: =SUM('Cars+:Trucks'!M78) -> 0 | N78: =SUM('Cars+:Trucks'!N78) -> 0 | O78: =SUM('Cars+:Trucks'!O78) -> 0 | P78: =SUM('Cars+:Trucks'!P78) -> 83 | Q78: =SUM('Cars+:Trucks'!Q78) -> 85 | R78: =SUM('Cars+:Trucks'!R78) -> 0 | S78: =SUM('Cars+:Trucks'!S78) -> 0 | T78: =SUM('Cars+:Trucks'!T78) -> 0 | U78: =SUM('Cars+:Trucks'!U78) -> 0 | V78: =SUM('Cars+:Trucks'!V78) -> 0 | W78: =SUM('Cars+:Trucks'!W78) -> 0 | X78: 0 | Y78: 90 | Z78: 168 | AA78: 110 | AB78: 90 | AC78: 278 | AD78: 368 | AE78: 1035
A79: ='Cars+'!A79 -> 2018-10-04 | B79: ='Cars+'!B79 -> 1230 | C79: ='Cars+'!C79 -> 820 | D79: =SUM('Cars+:Trucks'!D79) -> 1 | E79: =SUM('Cars+:Trucks'!E79) -> 15 | F79: =SUM('Cars+:Trucks'!F79) -> 97 | G79: =SUM('Cars+:Trucks'!G79) -> 0 | H79: =SUM('Cars+:Trucks'!H79) -> 0 | I79: =SUM('Cars+:Trucks'!I79) -> 0 | J79: =SUM('Cars+:Trucks'!J79) -> 45 | K79: =SUM('Cars+:Trucks'!K79) -> 0 | L79: =SUM('Cars+:Trucks'!L79) -> 46 | M79: =SUM('Cars+:Trucks'!M79) -> 0 | N79: =SUM('Cars+:Trucks'!N79) -> 0 | O79: =SUM('Cars+:Trucks'!O79) -> 0 | P79: =SUM('Cars+:Trucks'!P79) -> 76 | Q79: =SUM('Cars+:Trucks'!Q79) -> 65 | R79: =SUM('Cars+:Trucks'!R79) -> 0 | S79: =SUM('Cars+:Trucks'!S79) -> 0 | T79: =SUM('Cars+:Trucks'!T79) -> 0 | U79: =SUM('Cars+:Trucks'!U79) -> 0 | V79: =SUM('Cars+:Trucks'!V79) -> 0 | W79: =SUM('Cars+:Trucks'!W79) -> 0 | X79: 0 | Y79: 91 | Z79: 141 | AA79: 113 | AB79: 91 | AC79: 254 | AD79: 345 | AE79: 667
A80: ='Cars+'!A80 -> 2018-10-04 | B80: ='Cars+'!B80 -> 1245 | C80: ='Cars+'!C80 -> 820 | D80: =SUM('Cars+:Trucks'!D80) -> 2 | E80: =SUM('Cars+:Trucks'!E80) -> 16 | F80: =SUM('Cars+:Trucks'!F80) -> 82 | G80: =SUM('Cars+:Trucks'!G80) -> 0 | H80: =SUM('Cars+:Trucks'!H80) -> 0 | I80: =SUM('Cars+:Trucks'!I80) -> 0 | J80: =SUM('Cars+:Trucks'!J80) -> 42 | K80: =SUM('Cars+:Trucks'!K80) -> 0 | L80: =SUM('Cars+:Trucks'!L80) -> 46 | M80: =SUM('Cars+:Trucks'!M80) -> 1 | N80: =SUM('Cars+:Trucks'!N80) -> 0 | O80: =SUM('Cars+:Trucks'!O80) -> 0 | P80: =SUM('Cars+:Trucks'!P80) -> 69 | Q80: =SUM('Cars+:Trucks'!Q80) -> 64 | R80: =SUM('Cars+:Trucks'!R80) -> 0 | S80: =SUM('Cars+:Trucks'!S80) -> 0 | T80: =SUM('Cars+:Trucks'!T80) -> 0 | U80: =SUM('Cars+:Trucks'!U80) -> 0 | V80: =SUM('Cars+:Trucks'!V80) -> 0 | W80: =SUM('Cars+:Trucks'!W80) -> 0 | X80: 0 | Y80: 88 | Z80: 133 | AA80: 100 | AB80: 88 | AC80: 233 | AD80: 322 | AE80: 322
A81: ='Cars+'!A81 -> 2018-10-04 | B81: ='Cars+'!B81 -> 1300 | C81: ='Cars+'!C81 -> 820 | D81: =SUM('Cars+:Trucks'!D81) -> 0 | E81: =SUM('Cars+:Trucks'!E81) -> 0 | F81: =SUM('Cars+:Trucks'!F81) -> 0 | G81: =SUM('Cars+:Trucks'!G81) -> 0 | H81: =SUM('Cars+:Trucks'!H81) -> 0 | I81: =SUM('Cars+:Trucks'!I81) -> 0 | J81: =SUM('Cars+:Trucks'!J81) -> 0 | K81: =SUM('Cars+:Trucks'!K81) -> 0 | L81: =SUM('Cars+:Trucks'!L81) -> 0 | M81: =SUM('Cars+:Trucks'!M81) -> 0 | N81: =SUM('Cars+:Trucks'!N81) -> 0 | O81: =SUM('Cars+:Trucks'!O81) -> 0 | P81: =SUM('Cars+:Trucks'!P81) -> 0 | Q81: =SUM('Cars+:Trucks'!Q81) -> 0 | R81: =SUM('Cars+:Trucks'!R81) -> 0 | S81: =SUM('Cars+:Trucks'!S81) -> 0 | T81: =SUM('Cars+:Trucks'!T81) -> 0 | U81: =SUM('Cars+:Trucks'!U81) -> 0 | V81: =SUM('Cars+:Trucks'!V81) -> 0 | W81: =SUM('Cars+:Trucks'!W81) -> 0 | X81: 0 | Y81: 0 | Z81: 0 | AA81: 0 | AB81: 0 | AC81: 0 | AD81: 0 | AE81: 0
A82: ='Cars+'!A82 -> 2018-10-04 | B82: ='Cars+'!B82 -> 1315 | C82: ='Cars+'!C82 -> 820 | D82: =SUM('Cars+:Trucks'!D82) -> 0 | E82: =SUM('Cars+:Trucks'!E82) -> 0 | F82: =SUM('Cars+:Trucks'!F82) -> 0 | G82: =SUM('Cars+:Trucks'!G82) -> 0 | H82: =SUM('Cars+:Trucks'!H82) -> 0 | I82: =SUM('Cars+:Trucks'!I82) -> 0 | J82: =SUM('Cars+:Trucks'!J82) -> 0 | K82: =SUM('Cars+:Trucks'!K82) -> 0 | L82: =SUM('Cars+:Trucks'!L82) -> 0 | M82: =SUM('Cars+:Trucks'!M82) -> 0 | N82: =SUM('Cars+:Trucks'!N82) -> 0 | O82: =SUM('Cars+:Trucks'!O82) -> 0 | P82: =SUM('Cars+:Trucks'!P82) -> 0 | Q82: =SUM('Cars+:Trucks'!Q82) -> 0 | R82: =SUM('Cars+:Trucks'!R82) -> 0 | S82: =SUM('Cars+:Trucks'!S82) -> 0 | T82: =SUM('Cars+:Trucks'!T82) -> 0 | U82: =SUM('Cars+:Trucks'!U82) -> 0 | V82: =SUM('Cars+:Trucks'!V82) -> 0 | W82: =SUM('Cars+:Trucks'!W82) -> 0 | X82: 0 | Y82: 0 | Z82: 0 | AA82: 0 | AB82: 0 | AC82: 0 | AD82: 0 | AE82: 0
A83: ='Cars+'!A83 -> 2018-10-04 | B83: ='Cars+'!B83 -> 1330 | C83: ='Cars+'!C83 -> 820 | D83: =SUM('Cars+:Trucks'!D83) -> 0 | E83: =SUM('Cars+:Trucks'!E83) -> 0 | F83: =SUM('Cars+:Trucks'!F83) -> 0 | G83: =SUM('Cars+:Trucks'!G83) -> 0 | H83: =SUM('Cars+:Trucks'!H83) -> 0 | I83: =SUM('Cars+:Trucks'!I83) -> 0 | J83: =SUM('Cars+:Trucks'!J83) -> 0 | K83: =SUM('Cars+:Trucks'!K83) -> 0 | L83: =SUM('Cars+:Trucks'!L83) -> 0 | M83: =SUM('Cars+:Trucks'!M83) -> 0 | N83: =SUM('Cars+:Trucks'!N83) -> 0 | O83: =SUM('Cars+:Trucks'!O83) -> 0 | P83: =SUM('Cars+:Trucks'!P83) -> 0 | Q83: =SUM('Cars+:Trucks'!Q83) -> 0 | R83: =SUM('Cars+:Trucks'!R83) -> 0 | S83: =SUM('Cars+:Trucks'!S83) -> 0 | T83: =SUM('Cars+:Trucks'!T83) -> 0 | U83: =SUM('Cars+:Trucks'!U83) -> 0 | V83: =SUM('Cars+:Trucks'!V83) -> 0 | W83: =SUM('Cars+:Trucks'!W83) -> 0 | X83: 0 | Y83: 0 | Z83: 0 | AA83: 0 | AB83: 0 | AC83: 0 | AD83: 0 | AE83: 0
A84: ='Cars+'!A84 -> 2018-10-04 | B84: ='Cars+'!B84 -> 1345 | C84: ='Cars+'!C84 -> 820 | D84: =SUM('Cars+:Trucks'!D84) -> 0 | E84: =SUM('Cars+:Trucks'!E84) -> 0 | F84: =SUM('Cars+:Trucks'!F84) -> 0 | G84: =SUM('Cars+:Trucks'!G84) -> 0 | H84: =SUM('Cars+:Trucks'!H84) -> 0 | I84: =SUM('Cars+:Trucks'!I84) -> 0 | J84: =SUM('Cars+:Trucks'!J84) -> 0 | K84: =SUM('Cars+:Trucks'!K84) -> 0 | L84: =SUM('Cars+:Trucks'!L84) -> 0 | M84: =SUM('Cars+:Trucks'!M84) -> 0 | N84: =SUM('Cars+:Trucks'!N84) -> 0 | O84: =SUM('Cars+:Trucks'!O84) -> 0 | P84: =SUM('Cars+:Trucks'!P84) -> 0 | Q84: =SUM('Cars+:Trucks'!Q84) -> 0 | R84: =SUM('Cars+:Trucks'!R84) -> 0 | S84: =SUM('Cars+:Trucks'!S84) -> 0 | T84: =SUM('Cars+:Trucks'!T84) -> 0 | U84: =SUM('Cars+:Trucks'!U84) -> 0 | V84: =SUM('Cars+:Trucks'!V84) -> 0 | W84: =SUM('Cars+:Trucks'!W84) -> 0 | X84: 0 | Y84: 0 | Z84: 0 | AA84: 0 | AB84: 0 | AC84: 0 | AD84: 0 | AE84: 0
A85: ='Cars+'!A85 -> 2018-10-04 | B85: ='Cars+'!B85 -> 1400 | C85: ='Cars+'!C85 -> 820 | D85: =SUM('Cars+:Trucks'!D85) -> 0 | E85: =SUM('Cars+:Trucks'!E85) -> 0 | F85: =SUM('Cars+:Trucks'!F85) -> 0 | G85: =SUM('Cars+:Trucks'!G85) -> 0 | H85: =SUM('Cars+:Trucks'!H85) -> 0 | I85: =SUM('Cars+:Trucks'!I85) -> 0 | J85: =SUM('Cars+:Trucks'!J85) -> 0 | K85: =SUM('Cars+:Trucks'!K85) -> 0 | L85: =SUM('Cars+:Trucks'!L85) -> 0 | M85: =SUM('Cars+:Trucks'!M85) -> 0 | N85: =SUM('Cars+:Trucks'!N85) -> 0 | O85: =SUM('Cars+:Trucks'!O85) -> 0 | P85: =SUM('Cars+:Trucks'!P85) -> 0 | Q85: =SUM('Cars+:Trucks'!Q85) -> 0 | R85: =SUM('Cars+:Trucks'!R85) -> 0 | S85: =SUM('Cars+:Trucks'!S85) -> 0 | T85: =SUM('Cars+:Trucks'!T85) -> 0 | U85: =SUM('Cars+:Trucks'!U85) -> 0 | V85: =SUM('Cars+:Trucks'!V85) -> 0 | W85: =SUM('Cars+:Trucks'!W85) -> 0 | X85: 0 | Y85: 0 | Z85: 0 | AA85: 0 | AB85: 0 | AC85: 0 | AD85: 0 | AE85: 0
A86: ='Cars+'!A86 -> 2018-10-04 | B86: ='Cars+'!B86 -> 1415 | C86: ='Cars+'!C86 -> 820 | D86: =SUM('Cars+:Trucks'!D86) -> 0 | E86: =SUM('Cars+:Trucks'!E86) -> 0 | F86: =SUM('Cars+:Trucks'!F86) -> 0 | G86: =SUM('Cars+:Trucks'!G86) -> 0 | H86: =SUM('Cars+:Trucks'!H86) -> 0 | I86: =SUM('Cars+:Trucks'!I86) -> 0 | J86: =SUM('Cars+:Trucks'!J86) -> 0 | K86: =SUM('Cars+:Trucks'!K86) -> 0 | L86: =SUM('Cars+:Trucks'!L86) -> 0 | M86: =SUM('Cars+:Trucks'!M86) -> 0 | N86: =SUM('Cars+:Trucks'!N86) -> 0 | O86: =SUM('Cars+:Trucks'!O86) -> 0 | P86: =SUM('Cars+:Trucks'!P86) -> 0 | Q86: =SUM('Cars+:Trucks'!Q86) -> 0 | R86: =SUM('Cars+:Trucks'!R86) -> 0 | S86: =SUM('Cars+:Trucks'!S86) -> 0 | T86: =SUM('Cars+:Trucks'!T86) -> 0 | U86: =SUM('Cars+:Trucks'!U86) -> 0 | V86: =SUM('Cars+:Trucks'!V86) -> 0 | W86: =SUM('Cars+:Trucks'!W86) -> 0 | X86: 0 | Y86: 0 | Z86: 0 | AA86: 0 | AB86: 0 | AC86: 0 | AD86: 0 | AE86: 444
A87: ='Cars+'!A87 -> 2018-10-04 | B87: ='Cars+'!B87 -> 1430 | C87: ='Cars+'!C87 -> 820 | D87: =SUM('Cars+:Trucks'!D87) -> 0 | E87: =SUM('Cars+:Trucks'!E87) -> 0 | F87: =SUM('Cars+:Trucks'!F87) -> 0 | G87: =SUM('Cars+:Trucks'!G87) -> 0 | H87: =SUM('Cars+:Trucks'!H87) -> 0 | I87: =SUM('Cars+:Trucks'!I87) -> 0 | J87: =SUM('Cars+:Trucks'!J87) -> 0 | K87: =SUM('Cars+:Trucks'!K87) -> 0 | L87: =SUM('Cars+:Trucks'!L87) -> 0 | M87: =SUM('Cars+:Trucks'!M87) -> 0 | N87: =SUM('Cars+:Trucks'!N87) -> 0 | O87: =SUM('Cars+:Trucks'!O87) -> 0 | P87: =SUM('Cars+:Trucks'!P87) -> 0 | Q87: =SUM('Cars+:Trucks'!Q87) -> 0 | R87: =SUM('Cars+:Trucks'!R87) -> 0 | S87: =SUM('Cars+:Trucks'!S87) -> 0 | T87: =SUM('Cars+:Trucks'!T87) -> 0 | U87: =SUM('Cars+:Trucks'!U87) -> 0 | V87: =SUM('Cars+:Trucks'!V87) -> 0 | W87: =SUM('Cars+:Trucks'!W87) -> 0 | X87: 0 | Y87: 0 | Z87: 0 | AA87: 0 | AB87: 0 | AC87: 0 | AD87: 0 | AE87: 930
A88: ='Cars+'!A88 -> 2018-10-04 | B88: ='Cars+'!B88 -> 1445 | C88: ='Cars+'!C88 -> 820 | D88: =SUM('Cars+:Trucks'!D88) -> 0 | E88: =SUM('Cars+:Trucks'!E88) -> 0 | F88: =SUM('Cars+:Trucks'!F88) -> 0 | G88: =SUM('Cars+:Trucks'!G88) -> 0 | H88: =SUM('Cars+:Trucks'!H88) -> 0 | I88: =SUM('Cars+:Trucks'!I88) -> 0 | J88: =SUM('Cars+:Trucks'!J88) -> 0 | K88: =SUM('Cars+:Trucks'!K88) -> 0 | L88: =SUM('Cars+:Trucks'!L88) -> 0 | M88: =SUM('Cars+:Trucks'!M88) -> 0 | N88: =SUM('Cars+:Trucks'!N88) -> 0 | O88: =SUM('Cars+:Trucks'!O88) -> 0 | P88: =SUM('Cars+:Trucks'!P88) -> 0 | Q88: =SUM('Cars+:Trucks'!Q88) -> 0 | R88: =SUM('Cars+:Trucks'!R88) -> 0 | S88: =SUM('Cars+:Trucks'!S88) -> 0 | T88: =SUM('Cars+:Trucks'!T88) -> 0 | U88: =SUM('Cars+:Trucks'!U88) -> 0 | V88: =SUM('Cars+:Trucks'!V88) -> 0 | W88: =SUM('Cars+:Trucks'!W88) -> 0 | X88: 0 | Y88: 0 | Z88: 0 | AA88: 0 | AB88: 0 | AC88: 0 | AD88: 0 | AE88: 1478
A89: ='Cars+'!A89 -> 2018-10-04 | B89: ='Cars+'!B89 -> 1500 | C89: ='Cars+'!C89 -> 820 | D89: =SUM('Cars+:Trucks'!D89) -> 0 | E89: =SUM('Cars+:Trucks'!E89) -> 31 | F89: =SUM('Cars+:Trucks'!F89) -> 56 | G89: =SUM('Cars+:Trucks'!G89) -> 0 | H89: =SUM('Cars+:Trucks'!H89) -> 0 | I89: =SUM('Cars+:Trucks'!I89) -> 0 | J89: =SUM('Cars+:Trucks'!J89) -> 30 | K89: =SUM('Cars+:Trucks'!K89) -> 0 | L89: =SUM('Cars+:Trucks'!L89) -> 84 | M89: =SUM('Cars+:Trucks'!M89) -> 0 | N89: =SUM('Cars+:Trucks'!N89) -> 0 | O89: =SUM('Cars+:Trucks'!O89) -> 0 | P89: =SUM('Cars+:Trucks'!P89) -> 159 | Q89: =SUM('Cars+:Trucks'!Q89) -> 84 | R89: =SUM('Cars+:Trucks'!R89) -> 0 | S89: =SUM('Cars+:Trucks'!S89) -> 0 | T89: =SUM('Cars+:Trucks'!T89) -> 0 | U89: =SUM('Cars+:Trucks'!U89) -> 0 | V89: =SUM('Cars+:Trucks'!V89) -> 0 | W89: =SUM('Cars+:Trucks'!W89) -> 0 | X89: 0 | Y89: 114 | Z89: 243 | AA89: 87 | AB89: 114 | AC89: 330 | AD89: 444 | AE89: 2060
A90: ='Cars+'!A90 -> 2018-10-04 | B90: ='Cars+'!B90 -> 1515 | C90: ='Cars+'!C90 -> 820 | D90: =SUM('Cars+:Trucks'!D90) -> 2 | E90: =SUM('Cars+:Trucks'!E90) -> 18 | F90: =SUM('Cars+:Trucks'!F90) -> 49 | G90: =SUM('Cars+:Trucks'!G90) -> 0 | H90: =SUM('Cars+:Trucks'!H90) -> 0 | I90: =SUM('Cars+:Trucks'!I90) -> 0 | J90: =SUM('Cars+:Trucks'!J90) -> 30 | K90: =SUM('Cars+:Trucks'!K90) -> 0 | L90: =SUM('Cars+:Trucks'!L90) -> 126 | M90: =SUM('Cars+:Trucks'!M90) -> 0 | N90: =SUM('Cars+:Trucks'!N90) -> 0 | O90: =SUM('Cars+:Trucks'!O90) -> 0 | P90: =SUM('Cars+:Trucks'!P90) -> 178 | Q90: =SUM('Cars+:Trucks'!Q90) -> 83 | R90: =SUM('Cars+:Trucks'!R90) -> 0 | S90: =SUM('Cars+:Trucks'!S90) -> 0 | T90: =SUM('Cars+:Trucks'!T90) -> 0 | U90: =SUM('Cars+:Trucks'!U90) -> 0 | V90: =SUM('Cars+:Trucks'!V90) -> 0 | W90: =SUM('Cars+:Trucks'!W90) -> 0 | X90: 0 | Y90: 156 | Z90: 261 | AA90: 69 | AB90: 156 | AC90: 330 | AD90: 486 | AE90: 2281
A91: ='Cars+'!A91 -> 2018-10-04 | B91: ='Cars+'!B91 -> 1530 | C91: ='Cars+'!C91 -> 820 | D91: =SUM('Cars+:Trucks'!D91) -> 0 | E91: =SUM('Cars+:Trucks'!E91) -> 18 | F91: =SUM('Cars+:Trucks'!F91) -> 54 | G91: =SUM('Cars+:Trucks'!G91) -> 0 | H91: =SUM('Cars+:Trucks'!H91) -> 0 | I91: =SUM('Cars+:Trucks'!I91) -> 0 | J91: =SUM('Cars+:Trucks'!J91) -> 35 | K91: =SUM('Cars+:Trucks'!K91) -> 0 | L91: =SUM('Cars+:Trucks'!L91) -> 129 | M91: =SUM('Cars+:Trucks'!M91) -> 0 | N91: =SUM('Cars+:Trucks'!N91) -> 0 | O91: =SUM('Cars+:Trucks'!O91) -> 0 | P91: =SUM('Cars+:Trucks'!P91) -> 201 | Q91: =SUM('Cars+:Trucks'!Q91) -> 111 | R91: =SUM('Cars+:Trucks'!R91) -> 0 | S91: =SUM('Cars+:Trucks'!S91) -> 0 | T91: =SUM('Cars+:Trucks'!T91) -> 0 | U91: =SUM('Cars+:Trucks'!U91) -> 0 | V91: =SUM('Cars+:Trucks'!V91) -> 0 | W91: =SUM('Cars+:Trucks'!W91) -> 0 | X91: 0 | Y91: 164 | Z91: 312 | AA91: 72 | AB91: 164 | AC91: 384 | AD91: 548 | AE91: 2407
A92: ='Cars+'!A92 -> 2018-10-04 | B92: ='Cars+'!B92 -> 1545 | C92: ='Cars+'!C92 -> 820 | D92: =SUM('Cars+:Trucks'!D92) -> 1 | E92: =SUM('Cars+:Trucks'!E92) -> 37 | F92: =SUM('Cars+:Trucks'!F92) -> 59 | G92: =SUM('Cars+:Trucks'!G92) -> 0 | H92: =SUM('Cars+:Trucks'!H92) -> 0 | I92: =SUM('Cars+:Trucks'!I92) -> 0 | J92: =SUM('Cars+:Trucks'!J92) -> 33 | K92: =SUM('Cars+:Trucks'!K92) -> 0 | L92: =SUM('Cars+:Trucks'!L92) -> 153 | M92: =SUM('Cars+:Trucks'!M92) -> 0 | N92: =SUM('Cars+:Trucks'!N92) -> 0 | O92: =SUM('Cars+:Trucks'!O92) -> 0 | P92: =SUM('Cars+:Trucks'!P92) -> 199 | Q92: =SUM('Cars+:Trucks'!Q92) -> 100 | R92: =SUM('Cars+:Trucks'!R92) -> 0 | S92: =SUM('Cars+:Trucks'!S92) -> 0 | T92: =SUM('Cars+:Trucks'!T92) -> 0 | U92: =SUM('Cars+:Trucks'!U92) -> 0 | V92: =SUM('Cars+:Trucks'!V92) -> 0 | W92: =SUM('Cars+:Trucks'!W92) -> 0 | X92: 0 | Y92: 186 | Z92: 299 | AA92: 97 | AB92: 186 | AC92: 396 | AD92: 582 | AE92: 2527
A93: ='Cars+'!A93 -> 2018-10-04 | B93: ='Cars+'!B93 -> 1600 | C93: ='Cars+'!C93 -> 820 | D93: =SUM('Cars+:Trucks'!D93) -> 1 | E93: =SUM('Cars+:Trucks'!E93) -> 29 | F93: =SUM('Cars+:Trucks'!F93) -> 62 | G93: =SUM('Cars+:Trucks'!G93) -> 0 | H93: =SUM('Cars+:Trucks'!H93) -> 0 | I93: =SUM('Cars+:Trucks'!I93) -> 0 | J93: =SUM('Cars+:Trucks'!J93) -> 21 | K93: =SUM('Cars+:Trucks'!K93) -> 0 | L93: =SUM('Cars+:Trucks'!L93) -> 153 | M93: =SUM('Cars+:Trucks'!M93) -> 0 | N93: =SUM('Cars+:Trucks'!N93) -> 0 | O93: =SUM('Cars+:Trucks'!O93) -> 0 | P93: =SUM('Cars+:Trucks'!P93) -> 265 | Q93: =SUM('Cars+:Trucks'!Q93) -> 134 | R93: =SUM('Cars+:Trucks'!R93) -> 0 | S93: =SUM('Cars+:Trucks'!S93) -> 0 | T93: =SUM('Cars+:Trucks'!T93) -> 0 | U93: =SUM('Cars+:Trucks'!U93) -> 0 | V93: =SUM('Cars+:Trucks'!V93) -> 0 | W93: =SUM('Cars+:Trucks'!W93) -> 0 | X93: 0 | Y93: 174 | Z93: 399 | AA93: 92 | AB93: 174 | AC93: 491 | AD93: 665 | AE93: 2586
A94: ='Cars+'!A94 -> 2018-10-04 | B94: ='Cars+'!B94 -> 1615 | C94: ='Cars+'!C94 -> 820 | D94: =SUM('Cars+:Trucks'!D94) -> 0 | E94: =SUM('Cars+:Trucks'!E94) -> 23 | F94: =SUM('Cars+:Trucks'!F94) -> 54 | G94: =SUM('Cars+:Trucks'!G94) -> 0 | H94: =SUM('Cars+:Trucks'!H94) -> 0 | I94: =SUM('Cars+:Trucks'!I94) -> 0 | J94: =SUM('Cars+:Trucks'!J94) -> 27 | K94: =SUM('Cars+:Trucks'!K94) -> 0 | L94: =SUM('Cars+:Trucks'!L94) -> 162 | M94: =SUM('Cars+:Trucks'!M94) -> 0 | N94: =SUM('Cars+:Trucks'!N94) -> 0 | O94: =SUM('Cars+:Trucks'!O94) -> 0 | P94: =SUM('Cars+:Trucks'!P94) -> 257 | Q94: =SUM('Cars+:Trucks'!Q94) -> 89 | R94: =SUM('Cars+:Trucks'!R94) -> 0 | S94: =SUM('Cars+:Trucks'!S94) -> 0 | T94: =SUM('Cars+:Trucks'!T94) -> 0 | U94: =SUM('Cars+:Trucks'!U94) -> 0 | V94: =SUM('Cars+:Trucks'!V94) -> 0 | W94: =SUM('Cars+:Trucks'!W94) -> 0 | X94: 0 | Y94: 189 | Z94: 346 | AA94: 77 | AB94: 189 | AC94: 423 | AD94: 612 | AE94: 2656
A95: ='Cars+'!A95 -> 2018-10-04 | B95: ='Cars+'!B95 -> 1630 | C95: ='Cars+'!C95 -> 820 | D95: =SUM('Cars+:Trucks'!D95) -> 2 | E95: =SUM('Cars+:Trucks'!E95) -> 20 | F95: =SUM('Cars+:Trucks'!F95) -> 58 | G95: =SUM('Cars+:Trucks'!G95) -> 0 | H95: =SUM('Cars+:Trucks'!H95) -> 0 | I95: =SUM('Cars+:Trucks'!I95) -> 0 | J95: =SUM('Cars+:Trucks'!J95) -> 34 | K95: =SUM('Cars+:Trucks'!K95) -> 0 | L95: =SUM('Cars+:Trucks'!L95) -> 151 | M95: =SUM('Cars+:Trucks'!M95) -> 0 | N95: =SUM('Cars+:Trucks'!N95) -> 0 | O95: =SUM('Cars+:Trucks'!O95) -> 0 | P95: =SUM('Cars+:Trucks'!P95) -> 297 | Q95: =SUM('Cars+:Trucks'!Q95) -> 106 | R95: =SUM('Cars+:Trucks'!R95) -> 0 | S95: =SUM('Cars+:Trucks'!S95) -> 0 | T95: =SUM('Cars+:Trucks'!T95) -> 0 | U95: =SUM('Cars+:Trucks'!U95) -> 0 | V95: =SUM('Cars+:Trucks'!V95) -> 0 | W95: =SUM('Cars+:Trucks'!W95) -> 0 | X95: 0 | Y95: 185 | Z95: 403 | AA95: 80 | AB95: 185 | AC95: 483 | AD95: 668 | AE95: 2622
A96: ='Cars+'!A96 -> 2018-10-04 | B96: ='Cars+'!B96 -> 1645 | C96: ='Cars+'!C96 -> 820 | D96: =SUM('Cars+:Trucks'!D96) -> 3 | E96: =SUM('Cars+:Trucks'!E96) -> 22 | F96: =SUM('Cars+:Trucks'!F96) -> 72 | G96: =SUM('Cars+:Trucks'!G96) -> 0 | H96: =SUM('Cars+:Trucks'!H96) -> 0 | I96: =SUM('Cars+:Trucks'!I96) -> 0 | J96: =SUM('Cars+:Trucks'!J96) -> 28 | K96: =SUM('Cars+:Trucks'!K96) -> 0 | L96: =SUM('Cars+:Trucks'!L96) -> 154 | M96: =SUM('Cars+:Trucks'!M96) -> 0 | N96: =SUM('Cars+:Trucks'!N96) -> 0 | O96: =SUM('Cars+:Trucks'!O96) -> 0 | P96: =SUM('Cars+:Trucks'!P96) -> 256 | Q96: =SUM('Cars+:Trucks'!Q96) -> 106 | R96: =SUM('Cars+:Trucks'!R96) -> 0 | S96: =SUM('Cars+:Trucks'!S96) -> 0 | T96: =SUM('Cars+:Trucks'!T96) -> 0 | U96: =SUM('Cars+:Trucks'!U96) -> 0 | V96: =SUM('Cars+:Trucks'!V96) -> 0 | W96: =SUM('Cars+:Trucks'!W96) -> 0 | X96: 0 | Y96: 182 | Z96: 362 | AA96: 97 | AB96: 182 | AC96: 459 | AD96: 641 | AE96: 2473
A97: ='Cars+'!A97 -> 2018-10-04 | B97: ='Cars+'!B97 -> 1700 | C97: ='Cars+'!C97 -> 820 | D97: =SUM('Cars+:Trucks'!D97) -> 0 | E97: =SUM('Cars+:Trucks'!E97) -> 20 | F97: =SUM('Cars+:Trucks'!F97) -> 55 | G97: =SUM('Cars+:Trucks'!G97) -> 0 | H97: =SUM('Cars+:Trucks'!H97) -> 0 | I97: =SUM('Cars+:Trucks'!I97) -> 0 | J97: =SUM('Cars+:Trucks'!J97) -> 28 | K97: =SUM('Cars+:Trucks'!K97) -> 0 | L97: =SUM('Cars+:Trucks'!L97) -> 146 | M97: =SUM('Cars+:Trucks'!M97) -> 0 | N97: =SUM('Cars+:Trucks'!N97) -> 0 | O97: =SUM('Cars+:Trucks'!O97) -> 0 | P97: =SUM('Cars+:Trucks'!P97) -> 353 | Q97: =SUM('Cars+:Trucks'!Q97) -> 133 | R97: =SUM('Cars+:Trucks'!R97) -> 0 | S97: =SUM('Cars+:Trucks'!S97) -> 0 | T97: =SUM('Cars+:Trucks'!T97) -> 0 | U97: =SUM('Cars+:Trucks'!U97) -> 0 | V97: =SUM('Cars+:Trucks'!V97) -> 0 | W97: =SUM('Cars+:Trucks'!W97) -> 0 | X97: 0 | Y97: 174 | Z97: 486 | AA97: 75 | AB97: 174 | AC97: 561 | AD97: 735 | AE97: 2255
A98: ='Cars+'!A98 -> 2018-10-04 | B98: ='Cars+'!B98 -> 1715 | C98: ='Cars+'!C98 -> 820 | D98: =SUM('Cars+:Trucks'!D98) -> 1 | E98: =SUM('Cars+:Trucks'!E98) -> 22 | F98: =SUM('Cars+:Trucks'!F98) -> 58 | G98: =SUM('Cars+:Trucks'!G98) -> 0 | H98: =SUM('Cars+:Trucks'!H98) -> 0 | I98: =SUM('Cars+:Trucks'!I98) -> 0 | J98: =SUM('Cars+:Trucks'!J98) -> 24 | K98: =SUM('Cars+:Trucks'!K98) -> 0 | L98: =SUM('Cars+:Trucks'!L98) -> 148 | M98: =SUM('Cars+:Trucks'!M98) -> 0 | N98: =SUM('Cars+:Trucks'!N98) -> 0 | O98: =SUM('Cars+:Trucks'!O98) -> 0 | P98: =SUM('Cars+:Trucks'!P98) -> 237 | Q98: =SUM('Cars+:Trucks'!Q98) -> 88 | R98: =SUM('Cars+:Trucks'!R98) -> 0 | S98: =SUM('Cars+:Trucks'!S98) -> 0 | T98: =SUM('Cars+:Trucks'!T98) -> 0 | U98: =SUM('Cars+:Trucks'!U98) -> 0 | V98: =SUM('Cars+:Trucks'!V98) -> 0 | W98: =SUM('Cars+:Trucks'!W98) -> 0 | X98: 0 | Y98: 172 | Z98: 325 | AA98: 81 | AB98: 172 | AC98: 406 | AD98: 578 | AE98: 0
A99: ='Cars+'!A99 -> 2018-10-04 | B99: ='Cars+'!B99 -> 1730 | C99: ='Cars+'!C99 -> 820 | D99: =SUM('Cars+:Trucks'!D99) -> 0 | E99: =SUM('Cars+:Trucks'!E99) -> 26 | F99: =SUM('Cars+:Trucks'!F99) -> 50 | G99: =SUM('Cars+:Trucks'!G99) -> 0 | H99: =SUM('Cars+:Trucks'!H99) -> 0 | I99: =SUM('Cars+:Trucks'!I99) -> 0 | J99: =SUM('Cars+:Trucks'!J99) -> 28 | K99: =SUM('Cars+:Trucks'!K99) -> 0 | L99: =SUM('Cars+:Trucks'!L99) -> 149 | M99: =SUM('Cars+:Trucks'!M99) -> 0 | N99: =SUM('Cars+:Trucks'!N99) -> 0 | O99: =SUM('Cars+:Trucks'!O99) -> 0 | P99: =SUM('Cars+:Trucks'!P99) -> 171 | Q99: =SUM('Cars+:Trucks'!Q99) -> 95 | R99: =SUM('Cars+:Trucks'!R99) -> 0 | S99: =SUM('Cars+:Trucks'!S99) -> 0 | T99: =SUM('Cars+:Trucks'!T99) -> 0 | U99: =SUM('Cars+:Trucks'!U99) -> 0 | V99: =SUM('Cars+:Trucks'!V99) -> 0 | W99: =SUM('Cars+:Trucks'!W99) -> 0 | X99: 0 | Y99: 177 | Z99: 266 | AA99: 76 | AB99: 177 | AC99: 342 | AD99: 519 | AE99: 0
A100: ='Cars+'!A100 -> 2018-10-04 | B100: ='Cars+'!B100 -> 1745 | C100: ='Cars+'!C100 -> 820 | D100: =SUM('Cars+:Trucks'!D100) -> 0 | E100: =SUM('Cars+:Trucks'!E100) -> 32 | F100: =SUM('Cars+:Trucks'!F100) -> 36 | G100: =SUM('Cars+:Trucks'!G100) -> 0 | H100: =SUM('Cars+:Trucks'!H100) -> 0 | I100: =SUM('Cars+:Trucks'!I100) -> 0 | J100: =SUM('Cars+:Trucks'!J100) -> 23 | K100: =SUM('Cars+:Trucks'!K100) -> 0 | L100: =SUM('Cars+:Trucks'!L100) -> 108 | M100: =SUM('Cars+:Trucks'!M100) -> 0 | N100: =SUM('Cars+:Trucks'!N100) -> 0 | O100: =SUM('Cars+:Trucks'!O100) -> 0 | P100: =SUM('Cars+:Trucks'!P100) -> 147 | Q100: =SUM('Cars+:Trucks'!Q100) -> 77 | R100: =SUM('Cars+:Trucks'!R100) -> 0 | S100: =SUM('Cars+:Trucks'!S100) -> 0 | T100: =SUM('Cars+:Trucks'!T100) -> 0 | U100: =SUM('Cars+:Trucks'!U100) -> 0 | V100: =SUM('Cars+:Trucks'!V100) -> 0 | W100: =SUM('Cars+:Trucks'!W100) -> 0 | X100: 0 | Y100: 131 | Z100: 224 | AA100: 68 | AB100: 131 | AC100: 292 | AD100: 423 | AE100: =IF(AND(C100=C103,B103=VLOOKUP(B100,IntervalLookup,4)),SUM(AD100:AD103),0) -> 0
A101: ='Cars+'!A101 -> 00:00:00 | B101: ='Cars+'!B101 -> 0 | C101: ='Cars+'!C101 -> 0 | D101: =SUM('Cars+:Trucks'!D101) -> 0 | E101: =SUM('Cars+:Trucks'!E101) -> 0 | F101: =SUM('Cars+:Trucks'!F101) -> 0 | G101: =SUM('Cars+:Trucks'!G101) -> 0 | H101: =SUM('Cars+:Trucks'!H101) -> 0 | I101: =SUM('Cars+:Trucks'!I101) -> 0 | J101: =SUM('Cars+:Trucks'!J101) -> 0 | K101: =SUM('Cars+:Trucks'!K101) -> 0 | L101: =SUM('Cars+:Trucks'!L101) -> 0 | M101: =SUM('Cars+:Trucks'!M101) -> 0 | N101: =SUM('Cars+:Trucks'!N101) -> 0 | O101: =SUM('Cars+:Trucks'!O101) -> 0 | P101: =SUM('Cars+:Trucks'!P101) -> 0 | Q101: =SUM('Cars+:Trucks'!Q101) -> 0 | R101: =SUM('Cars+:Trucks'!R101) -> 0 | S101: =SUM('Cars+:Trucks'!S101) -> 0 | T101: =SUM('Cars+:Trucks'!T101) -> 0 | U101: =SUM('Cars+:Trucks'!U101) -> 0 | V101: =SUM('Cars+:Trucks'!V101) -> 0 | W101: =SUM('Cars+:Trucks'!W101) -> 0 | X101: 0 | Y101: 0 | Z101: 0 | AA101: 0 | AB101: 0 | AC101: 0 | AD101: 0 | AE101: 0
A102: ='Cars+'!A102 -> 00:00:00 | B102: ='Cars+'!B102 -> 0 | C102: ='Cars+'!C102 -> 0 | D102: =SUM('Cars+:Trucks'!D102) -> 0 | E102: =SUM('Cars+:Trucks'!E102) -> 0 | F102: =SUM('Cars+:Trucks'!F102) -> 0 | G102: =SUM('Cars+:Trucks'!G102) -> 0 | H102: =SUM('Cars+:Trucks'!H102) -> 0 | I102: =SUM('Cars+:Trucks'!I102) -> 0 | J102: =SUM('Cars+:Trucks'!J102) -> 0 | K102: =SUM('Cars+:Trucks'!K102) -> 0 | L102: =SUM('Cars+:Trucks'!L102) -> 0 | M102: =SUM('Cars+:Trucks'!M102) -> 0 | N102: =SUM('Cars+:Trucks'!N102) -> 0 | O102: =SUM('Cars+:Trucks'!O102) -> 0 | P102: =SUM('Cars+:Trucks'!P102) -> 0 | Q102: =SUM('Cars+:Trucks'!Q102) -> 0 | R102: =SUM('Cars+:Trucks'!R102) -> 0 | S102: =SUM('Cars+:Trucks'!S102) -> 0 | T102: =SUM('Cars+:Trucks'!T102) -> 0 | U102: =SUM('Cars+:Trucks'!U102) -> 0 | V102: =SUM('Cars+:Trucks'!V102) -> 0 | W102: =SUM('Cars+:Trucks'!W102) -> 0 | X102: 0 | Y102: 0 | Z102: 0 | AA102: 0 | AB102: 0 | AC102: 0 | AD102: 0 | AE102: 0
A103: ='Cars+'!A103 -> 00:00:00 | B103: ='Cars+'!B103 -> 0 | C103: ='Cars+'!C103 -> 0 | D103: =SUM('Cars+:Trucks'!D103) -> 0 | E103: =SUM('Cars+:Trucks'!E103) -> 0 | F103: =SUM('Cars+:Trucks'!F103) -> 0 | G103: =SUM('Cars+:Trucks'!G103) -> 0 | H103: =SUM('Cars+:Trucks'!H103) -> 0 | I103: =SUM('Cars+:Trucks'!I103) -> 0 | J103: =SUM('Cars+:Trucks'!J103) -> 0 | K103: =SUM('Cars+:Trucks'!K103) -> 0 | L103: =SUM('Cars+:Trucks'!L103) -> 0 | M103: =SUM('Cars+:Trucks'!M103) -> 0 | N103: =SUM('Cars+:Trucks'!N103) -> 0 | O103: =SUM('Cars+:Trucks'!O103) -> 0 | P103: =SUM('Cars+:Trucks'!P103) -> 0 | Q103: =SUM('Cars+:Trucks'!Q103) -> 0 | R103: =SUM('Cars+:Trucks'!R103) -> 0 | S103: =SUM('Cars+:Trucks'!S103) -> 0 | T103: =SUM('Cars+:Trucks'!T103) -> 0 | U103: =SUM('Cars+:Trucks'!U103) -> 0 | V103: =SUM('Cars+:Trucks'!V103) -> 0 | W103: =SUM('Cars+:Trucks'!W103) -> 0 | X103: 0 | Y103: 0 | Z103: 0 | AA103: 0 | AB103: 0 | AC103: 0 | AD103: 0 | AE103: 0
A104: ='Cars+'!A104 -> 00:00:00 | B104: ='Cars+'!B104 -> 0 | C104: ='Cars+'!C104 -> 0 | D104: =SUM('Cars+:Trucks'!D104) -> 0 | E104: =SUM('Cars+:Trucks'!E104) -> 0 | F104: =SUM('Cars+:Trucks'!F104) -> 0 | G104: =SUM('Cars+:Trucks'!G104) -> 0 | H104: =SUM('Cars+:Trucks'!H104) -> 0 | I104: =SUM('Cars+:Trucks'!I104) -> 0 | J104: =SUM('Cars+:Trucks'!J104) -> 0 | K104: =SUM('Cars+:Trucks'!K104) -> 0 | L104: =SUM('Cars+:Trucks'!L104) -> 0 | M104: =SUM('Cars+:Trucks'!M104) -> 0 | N104: =SUM('Cars+:Trucks'!N104) -> 0 | O104: =SUM('Cars+:Trucks'!O104) -> 0 | P104: =SUM('Cars+:Trucks'!P104) -> 0 | Q104: =SUM('Cars+:Trucks'!Q104) -> 0 | R104: =SUM('Cars+:Trucks'!R104) -> 0 | S104: =SUM('Cars+:Trucks'!S104) -> 0 | T104: =SUM('Cars+:Trucks'!T104) -> 0 | U104: =SUM('Cars+:Trucks'!U104) -> 0 | V104: =SUM('Cars+:Trucks'!V104) -> 0 | W104: =SUM('Cars+:Trucks'!W104) -> 0 | X104: 0 | Y104: 0 | Z104: 0 | AA104: 0 | AB104: 0 | AC104: 0 | AD104: 0 | AE104: 0
A105: ='Cars+'!A105 -> 00:00:00 | B105: ='Cars+'!B105 -> 0 | C105: ='Cars+'!C105 -> 0 | D105: =SUM('Cars+:Trucks'!D105) -> 0 | E105: =SUM('Cars+:Trucks'!E105) -> 0 | F105: =SUM('Cars+:Trucks'!F105) -> 0 | G105: =SUM('Cars+:Trucks'!G105) -> 0 | H105: =SUM('Cars+:Trucks'!H105) -> 0 | I105: =SUM('Cars+:Trucks'!I105) -> 0 | J105: =SUM('Cars+:Trucks'!J105) -> 0 | K105: =SUM('Cars+:Trucks'!K105) -> 0 | L105: =SUM('Cars+:Trucks'!L105) -> 0 | M105: =SUM('Cars+:Trucks'!M105) -> 0 | N105: =SUM('Cars+:Trucks'!N105) -> 0 | O105: =SUM('Cars+:Trucks'!O105) -> 0 | P105: =SUM('Cars+:Trucks'!P105) -> 0 | Q105: =SUM('Cars+:Trucks'!Q105) -> 0 | R105: =SUM('Cars+:Trucks'!R105) -> 0 | S105: =SUM('Cars+:Trucks'!S105) -> 0 | T105: =SUM('Cars+:Trucks'!T105) -> 0 | U105: =SUM('Cars+:Trucks'!U105) -> 0 | V105: =SUM('Cars+:Trucks'!V105) -> 0 | W105: =SUM('Cars+:Trucks'!W105) -> 0 | X105: 0 | Y105: 0 | Z105: 0 | AA105: 0 | AB105: 0 | AC105: 0 | AD105: 0 | AE105: 0
A106: ='Cars+'!A106 -> 00:00:00 | B106: ='Cars+'!B106 -> 0 | C106: ='Cars+'!C106 -> 0 | D106: =SUM('Cars+:Trucks'!D106) -> 0 | E106: =SUM('Cars+:Trucks'!E106) -> 0 | F106: =SUM('Cars+:Trucks'!F106) -> 0 | G106: =SUM('Cars+:Trucks'!G106) -> 0 | H106: =SUM('Cars+:Trucks'!H106) -> 0 | I106: =SUM('Cars+:Trucks'!I106) -> 0 | J106: =SUM('Cars+:Trucks'!J106) -> 0 | K106: =SUM('Cars+:Trucks'!K106) -> 0 | L106: =SUM('Cars+:Trucks'!L106) -> 0 | M106: =SUM('Cars+:Trucks'!M106) -> 0 | N106: =SUM('Cars+:Trucks'!N106) -> 0 | O106: =SUM('Cars+:Trucks'!O106) -> 0 | P106: =SUM('Cars+:Trucks'!P106) -> 0 | Q106: =SUM('Cars+:Trucks'!Q106) -> 0 | R106: =SUM('Cars+:Trucks'!R106) -> 0 | S106: =SUM('Cars+:Trucks'!S106) -> 0 | T106: =SUM('Cars+:Trucks'!T106) -> 0 | U106: =SUM('Cars+:Trucks'!U106) -> 0 | V106: =SUM('Cars+:Trucks'!V106) -> 0 | W106: =SUM('Cars+:Trucks'!W106) -> 0 | X106: 0 | Y106: 0 | Z106: 0 | AA106: 0 | AB106: 0 | AC106: 0 | AD106: 0 | AE106: 0
A107: ='Cars+'!A107 -> 00:00:00 | B107: ='Cars+'!B107 -> 0 | C107: ='Cars+'!C107 -> 0 | D107: =SUM('Cars+:Trucks'!D107) -> 0 | E107: =SUM('Cars+:Trucks'!E107) -> 0 | F107: =SUM('Cars+:Trucks'!F107) -> 0 | G107: =SUM('Cars+:Trucks'!G107) -> 0 | H107: =SUM('Cars+:Trucks'!H107) -> 0 | I107: =SUM('Cars+:Trucks'!I107) -> 0 | J107: =SUM('Cars+:Trucks'!J107) -> 0 | K107: =SUM('Cars+:Trucks'!K107) -> 0 | L107: =SUM('Cars+:Trucks'!L107) -> 0 | M107: =SUM('Cars+:Trucks'!M107) -> 0 | N107: =SUM('Cars+:Trucks'!N107) -> 0 | O107: =SUM('Cars+:Trucks'!O107) -> 0 | P107: =SUM('Cars+:Trucks'!P107) -> 0 | Q107: =SUM('Cars+:Trucks'!Q107) -> 0 | R107: =SUM('Cars+:Trucks'!R107) -> 0 | S107: =SUM('Cars+:Trucks'!S107) -> 0 | T107: =SUM('Cars+:Trucks'!T107) -> 0 | U107: =SUM('Cars+:Trucks'!U107) -> 0 | V107: =SUM('Cars+:Trucks'!V107) -> 0 | W107: =SUM('Cars+:Trucks'!W107) -> 0 | X107: 0 | Y107: 0 | Z107: 0 | AA107: 0 | AB107: 0 | AC107: 0 | AD107: 0 | AE107: 0
A108: ='Cars+'!A108 -> 00:00:00 | B108: ='Cars+'!B108 -> 0 | C108: ='Cars+'!C108 -> 0 | D108: =SUM('Cars+:Trucks'!D108) -> 0 | E108: =SUM('Cars+:Trucks'!E108) -> 0 | F108: =SUM('Cars+:Trucks'!F108) -> 0 | G108: =SUM('Cars+:Trucks'!G108) -> 0 | H108: =SUM('Cars+:Trucks'!H108) -> 0 | I108: =SUM('Cars+:Trucks'!I108) -> 0 | J108: =SUM('Cars+:Trucks'!J108) -> 0 | K108: =SUM('Cars+:Trucks'!K108) -> 0 | L108: =SUM('Cars+:Trucks'!L108) -> 0 | M108: =SUM('Cars+:Trucks'!M108) -> 0 | N108: =SUM('Cars+:Trucks'!N108) -> 0 | O108: =SUM('Cars+:Trucks'!O108) -> 0 | P108: =SUM('Cars+:Trucks'!P108) -> 0 | Q108: =SUM('Cars+:Trucks'!Q108) -> 0 | R108: =SUM('Cars+:Trucks'!R108) -> 0 | S108: =SUM('Cars+:Trucks'!S108) -> 0 | T108: =SUM('Cars+:Trucks'!T108) -> 0 | U108: =SUM('Cars+:Trucks'!U108) -> 0 | V108: =SUM('Cars+:Trucks'!V108) -> 0 | W108: =SUM('Cars+:Trucks'!W108) -> 0 | X108: 0 | Y108: 0 | Z108: 0 | AA108: 0 | AB108: 0 | AC108: 0 | AD108: 0 | AE108: 0
A109: ='Cars+'!A109 -> 00:00:00 | B109: ='Cars+'!B109 -> 0 | C109: ='Cars+'!C109 -> 0 | D109: =SUM('Cars+:Trucks'!D109) -> 0 | E109: =SUM('Cars+:Trucks'!E109) -> 0 | F109: =SUM('Cars+:Trucks'!F109) -> 0 | G109: =SUM('Cars+:Trucks'!G109) -> 0 | H109: =SUM('Cars+:Trucks'!H109) -> 0 | I109: =SUM('Cars+:Trucks'!I109) -> 0 | J109: =SUM('Cars+:Trucks'!J109) -> 0 | K109: =SUM('Cars+:Trucks'!K109) -> 0 | L109: =SUM('Cars+:Trucks'!L109) -> 0 | M109: =SUM('Cars+:Trucks'!M109) -> 0 | N109: =SUM('Cars+:Trucks'!N109) -> 0 | O109: =SUM('Cars+:Trucks'!O109) -> 0 | P109: =SUM('Cars+:Trucks'!P109) -> 0 | Q109: =SUM('Cars+:Trucks'!Q109) -> 0 | R109: =SUM('Cars+:Trucks'!R109) -> 0 | S109: =SUM('Cars+:Trucks'!S109) -> 0 | T109: =SUM('Cars+:Trucks'!T109) -> 0 | U109: =SUM('Cars+:Trucks'!U109) -> 0 | V109: =SUM('Cars+:Trucks'!V109) -> 0 | W109: =SUM('Cars+:Trucks'!W109) -> 0 | X109: 0 | Y109: 0 | Z109: 0 | AA109: 0 | AB109: 0 | AC109: 0 | AD109: 0 | AE109: 0
A110: ='Cars+'!A110 -> 00:00:00 | B110: ='Cars+'!B110 -> 0 | C110: ='Cars+'!C110 -> 0 | D110: =SUM('Cars+:Trucks'!D110) -> 0 | E110: =SUM('Cars+:Trucks'!E110) -> 0 | F110: =SUM('Cars+:Trucks'!F110) -> 0 | G110: =SUM('Cars+:Trucks'!G110) -> 0 | H110: =SUM('Cars+:Trucks'!H110) -> 0 | I110: =SUM('Cars+:Trucks'!I110) -> 0 | J110: =SUM('Cars+:Trucks'!J110) -> 0 | K110: =SUM('Cars+:Trucks'!K110) -> 0 | L110: =SUM('Cars+:Trucks'!L110) -> 0 | M110: =SUM('Cars+:Trucks'!M110) -> 0 | N110: =SUM('Cars+:Trucks'!N110) -> 0 | O110: =SUM('Cars+:Trucks'!O110) -> 0 | P110: =SUM('Cars+:Trucks'!P110) -> 0 | Q110: =SUM('Cars+:Trucks'!Q110) -> 0 | R110: =SUM('Cars+:Trucks'!R110) -> 0 | S110: =SUM('Cars+:Trucks'!S110) -> 0 | T110: =SUM('Cars+:Trucks'!T110) -> 0 | U110: =SUM('Cars+:Trucks'!U110) -> 0 | V110: =SUM('Cars+:Trucks'!V110) -> 0 | W110: =SUM('Cars+:Trucks'!W110) -> 0 | X110: 0 | Y110: 0 | Z110: 0 | AA110: 0 | AB110: 0 | AC110: 0 | AD110: 0 | AE110: 0
A111: ='Cars+'!A111 -> 00:00:00 | B111: ='Cars+'!B111 -> 0 | C111: ='Cars+'!C111 -> 0 | D111: =SUM('Cars+:Trucks'!D111) -> 0 | E111: =SUM('Cars+:Trucks'!E111) -> 0 | F111: =SUM('Cars+:Trucks'!F111) -> 0 | G111: =SUM('Cars+:Trucks'!G111) -> 0 | H111: =SUM('Cars+:Trucks'!H111) -> 0 | I111: =SUM('Cars+:Trucks'!I111) -> 0 | J111: =SUM('Cars+:Trucks'!J111) -> 0 | K111: =SUM('Cars+:Trucks'!K111) -> 0 | L111: =SUM('Cars+:Trucks'!L111) -> 0 | M111: =SUM('Cars+:Trucks'!M111) -> 0 | N111: =SUM('Cars+:Trucks'!N111) -> 0 | O111: =SUM('Cars+:Trucks'!O111) -> 0 | P111: =SUM('Cars+:Trucks'!P111) -> 0 | Q111: =SUM('Cars+:Trucks'!Q111) -> 0 | R111: =SUM('Cars+:Trucks'!R111) -> 0 | S111: =SUM('Cars+:Trucks'!S111) -> 0 | T111: =SUM('Cars+:Trucks'!T111) -> 0 | U111: =SUM('Cars+:Trucks'!U111) -> 0 | V111: =SUM('Cars+:Trucks'!V111) -> 0 | W111: =SUM('Cars+:Trucks'!W111) -> 0 | X111: 0 | Y111: 0 | Z111: 0 | AA111: 0 | AB111: 0 | AC111: 0 | AD111: 0 | AE111: 0
A112: ='Cars+'!A112 -> 00:00:00 | B112: ='Cars+'!B112 -> 0 | C112: ='Cars+'!C112 -> 0 | D112: =SUM('Cars+:Trucks'!D112) -> 0 | E112: =SUM('Cars+:Trucks'!E112) -> 0 | F112: =SUM('Cars+:Trucks'!F112) -> 0 | G112: =SUM('Cars+:Trucks'!G112) -> 0 | H112: =SUM('Cars+:Trucks'!H112) -> 0 | I112: =SUM('Cars+:Trucks'!I112) -> 0 | J112: =SUM('Cars+:Trucks'!J112) -> 0 | K112: =SUM('Cars+:Trucks'!K112) -> 0 | L112: =SUM('Cars+:Trucks'!L112) -> 0 | M112: =SUM('Cars+:Trucks'!M112) -> 0 | N112: =SUM('Cars+:Trucks'!N112) -> 0 | O112: =SUM('Cars+:Trucks'!O112) -> 0 | P112: =SUM('Cars+:Trucks'!P112) -> 0 | Q112: =SUM('Cars+:Trucks'!Q112) -> 0 | R112: =SUM('Cars+:Trucks'!R112) -> 0 | S112: =SUM('Cars+:Trucks'!S112) -> 0 | T112: =SUM('Cars+:Trucks'!T112) -> 0 | U112: =SUM('Cars+:Trucks'!U112) -> 0 | V112: =SUM('Cars+:Trucks'!V112) -> 0 | W112: =SUM('Cars+:Trucks'!W112) -> 0 | X112: 0 | Y112: 0 | Z112: 0 | AA112: 0 | AB112: 0 | AC112: 0 | AD112: 0 | AE112: 0
A113: ='Cars+'!A113 -> 00:00:00 | B113: ='Cars+'!B113 -> 0 | C113: ='Cars+'!C113 -> 0 | D113: =SUM('Cars+:Trucks'!D113) -> 0 | E113: =SUM('Cars+:Trucks'!E113) -> 0 | F113: =SUM('Cars+:Trucks'!F113) -> 0 | G113: =SUM('Cars+:Trucks'!G113) -> 0 | H113: =SUM('Cars+:Trucks'!H113) -> 0 | I113: =SUM('Cars+:Trucks'!I113) -> 0 | J113: =SUM('Cars+:Trucks'!J113) -> 0 | K113: =SUM('Cars+:Trucks'!K113) -> 0 | L113: =SUM('Cars+:Trucks'!L113) -> 0 | M113: =SUM('Cars+:Trucks'!M113) -> 0 | N113: =SUM('Cars+:Trucks'!N113) -> 0 | O113: =SUM('Cars+:Trucks'!O113) -> 0 | P113: =SUM('Cars+:Trucks'!P113) -> 0 | Q113: =SUM('Cars+:Trucks'!Q113) -> 0 | R113: =SUM('Cars+:Trucks'!R113) -> 0 | S113: =SUM('Cars+:Trucks'!S113) -> 0 | T113: =SUM('Cars+:Trucks'!T113) -> 0 | U113: =SUM('Cars+:Trucks'!U113) -> 0 | V113: =SUM('Cars+:Trucks'!V113) -> 0 | W113: =SUM('Cars+:Trucks'!W113) -> 0 | X113: 0 | Y113: 0 | Z113: 0 | AA113: 0 | AB113: 0 | AC113: 0 | AD113: 0 | AE113: 0
A114: ='Cars+'!A114 -> 00:00:00 | B114: ='Cars+'!B114 -> 0 | C114: ='Cars+'!C114 -> 0 | D114: =SUM('Cars+:Trucks'!D114) -> 0 | E114: =SUM('Cars+:Trucks'!E114) -> 0 | F114: =SUM('Cars+:Trucks'!F114) -> 0 | G114: =SUM('Cars+:Trucks'!G114) -> 0 | H114: =SUM('Cars+:Trucks'!H114) -> 0 | I114: =SUM('Cars+:Trucks'!I114) -> 0 | J114: =SUM('Cars+:Trucks'!J114) -> 0 | K114: =SUM('Cars+:Trucks'!K114) -> 0 | L114: =SUM('Cars+:Trucks'!L114) -> 0 | M114: =SUM('Cars+:Trucks'!M114) -> 0 | N114: =SUM('Cars+:Trucks'!N114) -> 0 | O114: =SUM('Cars+:Trucks'!O114) -> 0 | P114: =SUM('Cars+:Trucks'!P114) -> 0 | Q114: =SUM('Cars+:Trucks'!Q114) -> 0 | R114: =SUM('Cars+:Trucks'!R114) -> 0 | S114: =SUM('Cars+:Trucks'!S114) -> 0 | T114: =SUM('Cars+:Trucks'!T114) -> 0 | U114: =SUM('Cars+:Trucks'!U114) -> 0 | V114: =SUM('Cars+:Trucks'!V114) -> 0 | W114: =SUM('Cars+:Trucks'!W114) -> 0 | X114: 0 | Y114: 0 | Z114: 0 | AA114: 0 | AB114: 0 | AC114: 0 | AD114: 0 | AE114: 0
A115: ='Cars+'!A115 -> 00:00:00 | B115: ='Cars+'!B115 -> 0 | C115: ='Cars+'!C115 -> 0 | D115: =SUM('Cars+:Trucks'!D115) -> 0 | E115: =SUM('Cars+:Trucks'!E115) -> 0 | F115: =SUM('Cars+:Trucks'!F115) -> 0 | G115: =SUM('Cars+:Trucks'!G115) -> 0 | H115: =SUM('Cars+:Trucks'!H115) -> 0 | I115: =SUM('Cars+:Trucks'!I115) -> 0 | J115: =SUM('Cars+:Trucks'!J115) -> 0 | K115: =SUM('Cars+:Trucks'!K115) -> 0 | L115: =SUM('Cars+:Trucks'!L115) -> 0 | M115: =SUM('Cars+:Trucks'!M115) -> 0 | N115: =SUM('Cars+:Trucks'!N115) -> 0 | O115: =SUM('Cars+:Trucks'!O115) -> 0 | P115: =SUM('Cars+:Trucks'!P115) -> 0 | Q115: =SUM('Cars+:Trucks'!Q115) -> 0 | R115: =SUM('Cars+:Trucks'!R115) -> 0 | S115: =SUM('Cars+:Trucks'!S115) -> 0 | T115: =SUM('Cars+:Trucks'!T115) -> 0 | U115: =SUM('Cars+:Trucks'!U115) -> 0 | V115: =SUM('Cars+:Trucks'!V115) -> 0 | W115: =SUM('Cars+:Trucks'!W115) -> 0 | X115: 0 | Y115: 0 | Z115: 0 | AA115: 0 | AB115: 0 | AC115: 0 | AD115: 0 | AE115: 0
A116: ='Cars+'!A116 -> 00:00:00 | B116: ='Cars+'!B116 -> 0 | C116: ='Cars+'!C116 -> 0 | D116: =SUM('Cars+:Trucks'!D116) -> 0 | E116: =SUM('Cars+:Trucks'!E116) -> 0 | F116: =SUM('Cars+:Trucks'!F116) -> 0 | G116: =SUM('Cars+:Trucks'!G116) -> 0 | H116: =SUM('Cars+:Trucks'!H116) -> 0 | I116: =SUM('Cars+:Trucks'!I116) -> 0 | J116: =SUM('Cars+:Trucks'!J116) -> 0 | K116: =SUM('Cars+:Trucks'!K116) -> 0 | L116: =SUM('Cars+:Trucks'!L116) -> 0 | M116: =SUM('Cars+:Trucks'!M116) -> 0 | N116: =SUM('Cars+:Trucks'!N116) -> 0 | O116: =SUM('Cars+:Trucks'!O116) -> 0 | P116: =SUM('Cars+:Trucks'!P116) -> 0 | Q116: =SUM('Cars+:Trucks'!Q116) -> 0 | R116: =SUM('Cars+:Trucks'!R116) -> 0 | S116: =SUM('Cars+:Trucks'!S116) -> 0 | T116: =SUM('Cars+:Trucks'!T116) -> 0 | U116: =SUM('Cars+:Trucks'!U116) -> 0 | V116: =SUM('Cars+:Trucks'!V116) -> 0 | W116: =SUM('Cars+:Trucks'!W116) -> 0 | X116: 0 | Y116: 0 | Z116: 0 | AA116: 0 | AB116: 0 | AC116: 0 | AD116: 0 | AE116: 0
A117: ='Cars+'!A117 -> 00:00:00 | B117: ='Cars+'!B117 -> 0 | C117: ='Cars+'!C117 -> 0 | D117: =SUM('Cars+:Trucks'!D117) -> 0 | E117: =SUM('Cars+:Trucks'!E117) -> 0 | F117: =SUM('Cars+:Trucks'!F117) -> 0 | G117: =SUM('Cars+:Trucks'!G117) -> 0 | H117: =SUM('Cars+:Trucks'!H117) -> 0 | I117: =SUM('Cars+:Trucks'!I117) -> 0 | J117: =SUM('Cars+:Trucks'!J117) -> 0 | K117: =SUM('Cars+:Trucks'!K117) -> 0 | L117: =SUM('Cars+:Trucks'!L117) -> 0 | M117: =SUM('Cars+:Trucks'!M117) -> 0 | N117: =SUM('Cars+:Trucks'!N117) -> 0 | O117: =SUM('Cars+:Trucks'!O117) -> 0 | P117: =SUM('Cars+:Trucks'!P117) -> 0 | Q117: =SUM('Cars+:Trucks'!Q117) -> 0 | R117: =SUM('Cars+:Trucks'!R117) -> 0 | S117: =SUM('Cars+:Trucks'!S117) -> 0 | T117: =SUM('Cars+:Trucks'!T117) -> 0 | U117: =SUM('Cars+:Trucks'!U117) -> 0 | V117: =SUM('Cars+:Trucks'!V117) -> 0 | W117: =SUM('Cars+:Trucks'!W117) -> 0 | X117: 0 | Y117: 0 | Z117: 0 | AA117: 0 | AB117: 0 | AC117: 0 | AD117: 0 | AE117: 0
A118: ='Cars+'!A118 -> 00:00:00 | B118: ='Cars+'!B118 -> 0 | C118: ='Cars+'!C118 -> 0 | D118: =SUM('Cars+:Trucks'!D118) -> 0 | E118: =SUM('Cars+:Trucks'!E118) -> 0 | F118: =SUM('Cars+:Trucks'!F118) -> 0 | G118: =SUM('Cars+:Trucks'!G118) -> 0 | H118: =SUM('Cars+:Trucks'!H118) -> 0 | I118: =SUM('Cars+:Trucks'!I118) -> 0 | J118: =SUM('Cars+:Trucks'!J118) -> 0 | K118: =SUM('Cars+:Trucks'!K118) -> 0 | L118: =SUM('Cars+:Trucks'!L118) -> 0 | M118: =SUM('Cars+:Trucks'!M118) -> 0 | N118: =SUM('Cars+:Trucks'!N118) -> 0 | O118: =SUM('Cars+:Trucks'!O118) -> 0 | P118: =SUM('Cars+:Trucks'!P118) -> 0 | Q118: =SUM('Cars+:Trucks'!Q118) -> 0 | R118: =SUM('Cars+:Trucks'!R118) -> 0 | S118: =SUM('Cars+:Trucks'!S118) -> 0 | T118: =SUM('Cars+:Trucks'!T118) -> 0 | U118: =SUM('Cars+:Trucks'!U118) -> 0 | V118: =SUM('Cars+:Trucks'!V118) -> 0 | W118: =SUM('Cars+:Trucks'!W118) -> 0 | X118: 0 | Y118: 0 | Z118: 0 | AA118: 0 | AB118: 0 | AC118: 0 | AD118: 0 | AE118: 0
A119: ='Cars+'!A119 -> 00:00:00 | B119: ='Cars+'!B119 -> 0 | C119: ='Cars+'!C119 -> 0 | D119: =SUM('Cars+:Trucks'!D119) -> 0 | E119: =SUM('Cars+:Trucks'!E119) -> 0 | F119: =SUM('Cars+:Trucks'!F119) -> 0 | G119: =SUM('Cars+:Trucks'!G119) -> 0 | H119: =SUM('Cars+:Trucks'!H119) -> 0 | I119: =SUM('Cars+:Trucks'!I119) -> 0 | J119: =SUM('Cars+:Trucks'!J119) -> 0 | K119: =SUM('Cars+:Trucks'!K119) -> 0 | L119: =SUM('Cars+:Trucks'!L119) -> 0 | M119: =SUM('Cars+:Trucks'!M119) -> 0 | N119: =SUM('Cars+:Trucks'!N119) -> 0 | O119: =SUM('Cars+:Trucks'!O119) -> 0 | P119: =SUM('Cars+:Trucks'!P119) -> 0 | Q119: =SUM('Cars+:Trucks'!Q119) -> 0 | R119: =SUM('Cars+:Trucks'!R119) -> 0 | S119: =SUM('Cars+:Trucks'!S119) -> 0 | T119: =SUM('Cars+:Trucks'!T119) -> 0 | U119: =SUM('Cars+:Trucks'!U119) -> 0 | V119: =SUM('Cars+:Trucks'!V119) -> 0 | W119: =SUM('Cars+:Trucks'!W119) -> 0 | X119: 0 | Y119: 0 | Z119: 0 | AA119: 0 | AB119: 0 | AC119: 0 | AD119: 0 | AE119: 0
A120: ='Cars+'!A120 -> 00:00:00 | B120: ='Cars+'!B120 -> 0 | C120: ='Cars+'!C120 -> 0 | D120: =SUM('Cars+:Trucks'!D120) -> 0 | E120: =SUM('Cars+:Trucks'!E120) -> 0 | F120: =SUM('Cars+:Trucks'!F120) -> 0 | G120: =SUM('Cars+:Trucks'!G120) -> 0 | H120: =SUM('Cars+:Trucks'!H120) -> 0 | I120: =SUM('Cars+:Trucks'!I120) -> 0 | J120: =SUM('Cars+:Trucks'!J120) -> 0 | K120: =SUM('Cars+:Trucks'!K120) -> 0 | L120: =SUM('Cars+:Trucks'!L120) -> 0 | M120: =SUM('Cars+:Trucks'!M120) -> 0 | N120: =SUM('Cars+:Trucks'!N120) -> 0 | O120: =SUM('Cars+:Trucks'!O120) -> 0 | P120: =SUM('Cars+:Trucks'!P120) -> 0 | Q120: =SUM('Cars+:Trucks'!Q120) -> 0 | R120: =SUM('Cars+:Trucks'!R120) -> 0 | S120: =SUM('Cars+:Trucks'!S120) -> 0 | T120: =SUM('Cars+:Trucks'!T120) -> 0 | U120: =SUM('Cars+:Trucks'!U120) -> 0 | V120: =SUM('Cars+:Trucks'!V120) -> 0 | W120: =SUM('Cars+:Trucks'!W120) -> 0 | X120: 0 | Y120: 0 | Z120: 0 | AA120: 0 | AB120: 0 | AC120: 0 | AD120: 0 | AE120: 0
A121: ='Cars+'!A121 -> 00:00:00 | B121: ='Cars+'!B121 -> 0 | C121: ='Cars+'!C121 -> 0 | D121: =SUM('Cars+:Trucks'!D121) -> 0 | E121: =SUM('Cars+:Trucks'!E121) -> 0 | F121: =SUM('Cars+:Trucks'!F121) -> 0 | G121: =SUM('Cars+:Trucks'!G121) -> 0 | H121: =SUM('Cars+:Trucks'!H121) -> 0 | I121: =SUM('Cars+:Trucks'!I121) -> 0 | J121: =SUM('Cars+:Trucks'!J121) -> 0 | K121: =SUM('Cars+:Trucks'!K121) -> 0 | L121: =SUM('Cars+:Trucks'!L121) -> 0 | M121: =SUM('Cars+:Trucks'!M121) -> 0 | N121: =SUM('Cars+:Trucks'!N121) -> 0 | O121: =SUM('Cars+:Trucks'!O121) -> 0 | P121: =SUM('Cars+:Trucks'!P121) -> 0 | Q121: =SUM('Cars+:Trucks'!Q121) -> 0 | R121: =SUM('Cars+:Trucks'!R121) -> 0 | S121: =SUM('Cars+:Trucks'!S121) -> 0 | T121: =SUM('Cars+:Trucks'!T121) -> 0 | U121: =SUM('Cars+:Trucks'!U121) -> 0 | V121: =SUM('Cars+:Trucks'!V121) -> 0 | W121: =SUM('Cars+:Trucks'!W121) -> 0 | X121: 0 | Y121: 0 | Z121: 0 | AA121: 0 | AB121: 0 | AC121: 0 | AD121: 0 | AE121: 0
A122: ='Cars+'!A122 -> 00:00:00 | B122: ='Cars+'!B122 -> 0 | C122: ='Cars+'!C122 -> 0 | D122: =SUM('Cars+:Trucks'!D122) -> 0 | E122: =SUM('Cars+:Trucks'!E122) -> 0 | F122: =SUM('Cars+:Trucks'!F122) -> 0 | G122: =SUM('Cars+:Trucks'!G122) -> 0 | H122: =SUM('Cars+:Trucks'!H122) -> 0 | I122: =SUM('Cars+:Trucks'!I122) -> 0 | J122: =SUM('Cars+:Trucks'!J122) -> 0 | K122: =SUM('Cars+:Trucks'!K122) -> 0 | L122: =SUM('Cars+:Trucks'!L122) -> 0 | M122: =SUM('Cars+:Trucks'!M122) -> 0 | N122: =SUM('Cars+:Trucks'!N122) -> 0 | O122: =SUM('Cars+:Trucks'!O122) -> 0 | P122: =SUM('Cars+:Trucks'!P122) -> 0 | Q122: =SUM('Cars+:Trucks'!Q122) -> 0 | R122: =SUM('Cars+:Trucks'!R122) -> 0 | S122: =SUM('Cars+:Trucks'!S122) -> 0 | T122: =SUM('Cars+:Trucks'!T122) -> 0 | U122: =SUM('Cars+:Trucks'!U122) -> 0 | V122: =SUM('Cars+:Trucks'!V122) -> 0 | W122: =SUM('Cars+:Trucks'!W122) -> 0 | X122: 0 | Y122: 0 | Z122: 0 | AA122: 0 | AB122: 0 | AC122: 0 | AD122: 0 | AE122: 0
A123: ='Cars+'!A123 -> 00:00:00 | B123: ='Cars+'!B123 -> 0 | C123: ='Cars+'!C123 -> 0 | D123: =SUM('Cars+:Trucks'!D123) -> 0 | E123: =SUM('Cars+:Trucks'!E123) -> 0 | F123: =SUM('Cars+:Trucks'!F123) -> 0 | G123: =SUM('Cars+:Trucks'!G123) -> 0 | H123: =SUM('Cars+:Trucks'!H123) -> 0 | I123: =SUM('Cars+:Trucks'!I123) -> 0 | J123: =SUM('Cars+:Trucks'!J123) -> 0 | K123: =SUM('Cars+:Trucks'!K123) -> 0 | L123: =SUM('Cars+:Trucks'!L123) -> 0 | M123: =SUM('Cars+:Trucks'!M123) -> 0 | N123: =SUM('Cars+:Trucks'!N123) -> 0 | O123: =SUM('Cars+:Trucks'!O123) -> 0 | P123: =SUM('Cars+:Trucks'!P123) -> 0 | Q123: =SUM('Cars+:Trucks'!Q123) -> 0 | R123: =SUM('Cars+:Trucks'!R123) -> 0 | S123: =SUM('Cars+:Trucks'!S123) -> 0 | T123: =SUM('Cars+:Trucks'!T123) -> 0 | U123: =SUM('Cars+:Trucks'!U123) -> 0 | V123: =SUM('Cars+:Trucks'!V123) -> 0 | W123: =SUM('Cars+:Trucks'!W123) -> 0 | X123: 0 | Y123: 0 | Z123: 0 | AA123: 0 | AB123: 0 | AC123: 0 | AD123: 0 | AE123: 0
A124: ='Cars+'!A124 -> 00:00:00 | B124: ='Cars+'!B124 -> 0 | C124: ='Cars+'!C124 -> 0 | D124: =SUM('Cars+:Trucks'!D124) -> 0 | E124: =SUM('Cars+:Trucks'!E124) -> 0 | F124: =SUM('Cars+:Trucks'!F124) -> 0 | G124: =SUM('Cars+:Trucks'!G124) -> 0 | H124: =SUM('Cars+:Trucks'!H124) -> 0 | I124: =SUM('Cars+:Trucks'!I124) -> 0 | J124: =SUM('Cars+:Trucks'!J124) -> 0 | K124: =SUM('Cars+:Trucks'!K124) -> 0 | L124: =SUM('Cars+:Trucks'!L124) -> 0 | M124: =SUM('Cars+:Trucks'!M124) -> 0 | N124: =SUM('Cars+:Trucks'!N124) -> 0 | O124: =SUM('Cars+:Trucks'!O124) -> 0 | P124: =SUM('Cars+:Trucks'!P124) -> 0 | Q124: =SUM('Cars+:Trucks'!Q124) -> 0 | R124: =SUM('Cars+:Trucks'!R124) -> 0 | S124: =SUM('Cars+:Trucks'!S124) -> 0 | T124: =SUM('Cars+:Trucks'!T124) -> 0 | U124: =SUM('Cars+:Trucks'!U124) -> 0 | V124: =SUM('Cars+:Trucks'!V124) -> 0 | W124: =SUM('Cars+:Trucks'!W124) -> 0 | X124: 0 | Y124: 0 | Z124: 0 | AA124: 0 | AB124: 0 | AC124: 0 | AD124: 0 | AE124: 0
A125: ='Cars+'!A125 -> 00:00:00 | B125: ='Cars+'!B125 -> 0 | C125: ='Cars+'!C125 -> 0 | D125: =SUM('Cars+:Trucks'!D125) -> 0 | E125: =SUM('Cars+:Trucks'!E125) -> 0 | F125: =SUM('Cars+:Trucks'!F125) -> 0 | G125: =SUM('Cars+:Trucks'!G125) -> 0 | H125: =SUM('Cars+:Trucks'!H125) -> 0 | I125: =SUM('Cars+:Trucks'!I125) -> 0 | J125: =SUM('Cars+:Trucks'!J125) -> 0 | K125: =SUM('Cars+:Trucks'!K125) -> 0 | L125: =SUM('Cars+:Trucks'!L125) -> 0 | M125: =SUM('Cars+:Trucks'!M125) -> 0 | N125: =SUM('Cars+:Trucks'!N125) -> 0 | O125: =SUM('Cars+:Trucks'!O125) -> 0 | P125: =SUM('Cars+:Trucks'!P125) -> 0 | Q125: =SUM('Cars+:Trucks'!Q125) -> 0 | R125: =SUM('Cars+:Trucks'!R125) -> 0 | S125: =SUM('Cars+:Trucks'!S125) -> 0 | T125: =SUM('Cars+:Trucks'!T125) -> 0 | U125: =SUM('Cars+:Trucks'!U125) -> 0 | V125: =SUM('Cars+:Trucks'!V125) -> 0 | W125: =SUM('Cars+:Trucks'!W125) -> 0 | X125: 0 | Y125: 0 | Z125: 0 | AA125: 0 | AB125: 0 | AC125: 0 | AD125: 0 | AE125: 0
A126: ='Cars+'!A126 -> 00:00:00 | B126: ='Cars+'!B126 -> 0 | C126: ='Cars+'!C126 -> 0 | D126: =SUM('Cars+:Trucks'!D126) -> 0 | E126: =SUM('Cars+:Trucks'!E126) -> 0 | F126: =SUM('Cars+:Trucks'!F126) -> 0 | G126: =SUM('Cars+:Trucks'!G126) -> 0 | H126: =SUM('Cars+:Trucks'!H126) -> 0 | I126: =SUM('Cars+:Trucks'!I126) -> 0 | J126: =SUM('Cars+:Trucks'!J126) -> 0 | K126: =SUM('Cars+:Trucks'!K126) -> 0 | L126: =SUM('Cars+:Trucks'!L126) -> 0 | M126: =SUM('Cars+:Trucks'!M126) -> 0 | N126: =SUM('Cars+:Trucks'!N126) -> 0 | O126: =SUM('Cars+:Trucks'!O126) -> 0 | P126: =SUM('Cars+:Trucks'!P126) -> 0 | Q126: =SUM('Cars+:Trucks'!Q126) -> 0 | R126: =SUM('Cars+:Trucks'!R126) -> 0 | S126: =SUM('Cars+:Trucks'!S126) -> 0 | T126: =SUM('Cars+:Trucks'!T126) -> 0 | U126: =SUM('Cars+:Trucks'!U126) -> 0 | V126: =SUM('Cars+:Trucks'!V126) -> 0 | W126: =SUM('Cars+:Trucks'!W126) -> 0 | X126: 0 | Y126: 0 | Z126: 0 | AA126: 0 | AB126: 0 | AC126: 0 | AD126: 0 | AE126: 0
A127: ='Cars+'!A127 -> 00:00:00 | B127: ='Cars+'!B127 -> 0 | C127: ='Cars+'!C127 -> 0 | D127: =SUM('Cars+:Trucks'!D127) -> 0 | E127: =SUM('Cars+:Trucks'!E127) -> 0 | F127: =SUM('Cars+:Trucks'!F127) -> 0 | G127: =SUM('Cars+:Trucks'!G127) -> 0 | H127: =SUM('Cars+:Trucks'!H127) -> 0 | I127: =SUM('Cars+:Trucks'!I127) -> 0 | J127: =SUM('Cars+:Trucks'!J127) -> 0 | K127: =SUM('Cars+:Trucks'!K127) -> 0 | L127: =SUM('Cars+:Trucks'!L127) -> 0 | M127: =SUM('Cars+:Trucks'!M127) -> 0 | N127: =SUM('Cars+:Trucks'!N127) -> 0 | O127: =SUM('Cars+:Trucks'!O127) -> 0 | P127: =SUM('Cars+:Trucks'!P127) -> 0 | Q127: =SUM('Cars+:Trucks'!Q127) -> 0 | R127: =SUM('Cars+:Trucks'!R127) -> 0 | S127: =SUM('Cars+:Trucks'!S127) -> 0 | T127: =SUM('Cars+:Trucks'!T127) -> 0 | U127: =SUM('Cars+:Trucks'!U127) -> 0 | V127: =SUM('Cars+:Trucks'!V127) -> 0 | W127: =SUM('Cars+:Trucks'!W127) -> 0 | X127: 0 | Y127: 0 | Z127: 0 | AA127: 0 | AB127: 0 | AC127: 0 | AD127: 0 | AE127: 0
A128: ='Cars+'!A128 -> 00:00:00 | B128: ='Cars+'!B128 -> 0 | C128: ='Cars+'!C128 -> 0 | D128: =SUM('Cars+:Trucks'!D128) -> 0 | E128: =SUM('Cars+:Trucks'!E128) -> 0 | F128: =SUM('Cars+:Trucks'!F128) -> 0 | G128: =SUM('Cars+:Trucks'!G128) -> 0 | H128: =SUM('Cars+:Trucks'!H128) -> 0 | I128: =SUM('Cars+:Trucks'!I128) -> 0 | J128: =SUM('Cars+:Trucks'!J128) -> 0 | K128: =SUM('Cars+:Trucks'!K128) -> 0 | L128: =SUM('Cars+:Trucks'!L128) -> 0 | M128: =SUM('Cars+:Trucks'!M128) -> 0 | N128: =SUM('Cars+:Trucks'!N128) -> 0 | O128: =SUM('Cars+:Trucks'!O128) -> 0 | P128: =SUM('Cars+:Trucks'!P128) -> 0 | Q128: =SUM('Cars+:Trucks'!Q128) -> 0 | R128: =SUM('Cars+:Trucks'!R128) -> 0 | S128: =SUM('Cars+:Trucks'!S128) -> 0 | T128: =SUM('Cars+:Trucks'!T128) -> 0 | U128: =SUM('Cars+:Trucks'!U128) -> 0 | V128: =SUM('Cars+:Trucks'!V128) -> 0 | W128: =SUM('Cars+:Trucks'!W128) -> 0 | X128: 0 | Y128: 0 | Z128: 0 | AA128: 0 | AB128: 0 | AC128: 0 | AD128: 0 | AE128: 0
A129: ='Cars+'!A129 -> 00:00:00 | B129: ='Cars+'!B129 -> 0 | C129: ='Cars+'!C129 -> 0 | D129: =SUM('Cars+:Trucks'!D129) -> 0 | E129: =SUM('Cars+:Trucks'!E129) -> 0 | F129: =SUM('Cars+:Trucks'!F129) -> 0 | G129: =SUM('Cars+:Trucks'!G129) -> 0 | H129: =SUM('Cars+:Trucks'!H129) -> 0 | I129: =SUM('Cars+:Trucks'!I129) -> 0 | J129: =SUM('Cars+:Trucks'!J129) -> 0 | K129: =SUM('Cars+:Trucks'!K129) -> 0 | L129: =SUM('Cars+:Trucks'!L129) -> 0 | M129: =SUM('Cars+:Trucks'!M129) -> 0 | N129: =SUM('Cars+:Trucks'!N129) -> 0 | O129: =SUM('Cars+:Trucks'!O129) -> 0 | P129: =SUM('Cars+:Trucks'!P129) -> 0 | Q129: =SUM('Cars+:Trucks'!Q129) -> 0 | R129: =SUM('Cars+:Trucks'!R129) -> 0 | S129: =SUM('Cars+:Trucks'!S129) -> 0 | T129: =SUM('Cars+:Trucks'!T129) -> 0 | U129: =SUM('Cars+:Trucks'!U129) -> 0 | V129: =SUM('Cars+:Trucks'!V129) -> 0 | W129: =SUM('Cars+:Trucks'!W129) -> 0 | X129: 0 | Y129: 0 | Z129: 0 | AA129: 0 | AB129: 0 | AC129: 0 | AD129: 0 | AE129: 0
A130: ='Cars+'!A130 -> 00:00:00 | B130: ='Cars+'!B130 -> 0 | C130: ='Cars+'!C130 -> 0 | D130: =SUM('Cars+:Trucks'!D130) -> 0 | E130: =SUM('Cars+:Trucks'!E130) -> 0 | F130: =SUM('Cars+:Trucks'!F130) -> 0 | G130: =SUM('Cars+:Trucks'!G130) -> 0 | H130: =SUM('Cars+:Trucks'!H130) -> 0 | I130: =SUM('Cars+:Trucks'!I130) -> 0 | J130: =SUM('Cars+:Trucks'!J130) -> 0 | K130: =SUM('Cars+:Trucks'!K130) -> 0 | L130: =SUM('Cars+:Trucks'!L130) -> 0 | M130: =SUM('Cars+:Trucks'!M130) -> 0 | N130: =SUM('Cars+:Trucks'!N130) -> 0 | O130: =SUM('Cars+:Trucks'!O130) -> 0 | P130: =SUM('Cars+:Trucks'!P130) -> 0 | Q130: =SUM('Cars+:Trucks'!Q130) -> 0 | R130: =SUM('Cars+:Trucks'!R130) -> 0 | S130: =SUM('Cars+:Trucks'!S130) -> 0 | T130: =SUM('Cars+:Trucks'!T130) -> 0 | U130: =SUM('Cars+:Trucks'!U130) -> 0 | V130: =SUM('Cars+:Trucks'!V130) -> 0 | W130: =SUM('Cars+:Trucks'!W130) -> 0 | X130: 0 | Y130: 0 | Z130: 0 | AA130: 0 | AB130: 0 | AC130: 0 | AD130: 0 | AE130: 0
A131: ='Cars+'!A131 -> 00:00:00 | B131: ='Cars+'!B131 -> 0 | C131: ='Cars+'!C131 -> 0 | D131: =SUM('Cars+:Trucks'!D131) -> 0 | E131: =SUM('Cars+:Trucks'!E131) -> 0 | F131: =SUM('Cars+:Trucks'!F131) -> 0 | G131: =SUM('Cars+:Trucks'!G131) -> 0 | H131: =SUM('Cars+:Trucks'!H131) -> 0 | I131: =SUM('Cars+:Trucks'!I131) -> 0 | J131: =SUM('Cars+:Trucks'!J131) -> 0 | K131: =SUM('Cars+:Trucks'!K131) -> 0 | L131: =SUM('Cars+:Trucks'!L131) -> 0 | M131: =SUM('Cars+:Trucks'!M131) -> 0 | N131: =SUM('Cars+:Trucks'!N131) -> 0 | O131: =SUM('Cars+:Trucks'!O131) -> 0 | P131: =SUM('Cars+:Trucks'!P131) -> 0 | Q131: =SUM('Cars+:Trucks'!Q131) -> 0 | R131: =SUM('Cars+:Trucks'!R131) -> 0 | S131: =SUM('Cars+:Trucks'!S131) -> 0 | T131: =SUM('Cars+:Trucks'!T131) -> 0 | U131: =SUM('Cars+:Trucks'!U131) -> 0 | V131: =SUM('Cars+:Trucks'!V131) -> 0 | W131: =SUM('Cars+:Trucks'!W131) -> 0 | X131: 0 | Y131: 0 | Z131: 0 | AA131: 0 | AB131: 0 | AC131: 0 | AD131: 0 | AE131: 0
A132: ='Cars+'!A132 -> 00:00:00 | B132: ='Cars+'!B132 -> 0 | C132: ='Cars+'!C132 -> 0 | D132: =SUM('Cars+:Trucks'!D132) -> 0 | E132: =SUM('Cars+:Trucks'!E132) -> 0 | F132: =SUM('Cars+:Trucks'!F132) -> 0 | G132: =SUM('Cars+:Trucks'!G132) -> 0 | H132: =SUM('Cars+:Trucks'!H132) -> 0 | I132: =SUM('Cars+:Trucks'!I132) -> 0 | J132: =SUM('Cars+:Trucks'!J132) -> 0 | K132: =SUM('Cars+:Trucks'!K132) -> 0 | L132: =SUM('Cars+:Trucks'!L132) -> 0 | M132: =SUM('Cars+:Trucks'!M132) -> 0 | N132: =SUM('Cars+:Trucks'!N132) -> 0 | O132: =SUM('Cars+:Trucks'!O132) -> 0 | P132: =SUM('Cars+:Trucks'!P132) -> 0 | Q132: =SUM('Cars+:Trucks'!Q132) -> 0 | R132: =SUM('Cars+:Trucks'!R132) -> 0 | S132: =SUM('Cars+:Trucks'!S132) -> 0 | T132: =SUM('Cars+:Trucks'!T132) -> 0 | U132: =SUM('Cars+:Trucks'!U132) -> 0 | V132: =SUM('Cars+:Trucks'!V132) -> 0 | W132: =SUM('Cars+:Trucks'!W132) -> 0 | X132: 0 | Y132: 0 | Z132: 0 | AA132: =SUMIF($D$2:$W$2,AA$3,$D132:$W132) -> 0 | AB132: 0 | AC132: 0 | AD132: 0 | AE132: =IF(AND(C132=C135,B135=VLOOKUP(B132,IntervalLookup,4)),SUM(AD132:AD135),0) -> 0
A133: ='Cars+'!A133 -> 00:00:00 | B133: ='Cars+'!B133 -> 0 | C133: ='Cars+'!C133 -> 0 | D133: =SUM('Cars+:Trucks'!D133) -> 0 | E133: =SUM('Cars+:Trucks'!E133) -> 0 | F133: =SUM('Cars+:Trucks'!F133) -> 0 | G133: =SUM('Cars+:Trucks'!G133) -> 0 | H133: =SUM('Cars+:Trucks'!H133) -> 0 | I133: =SUM('Cars+:Trucks'!I133) -> 0 | J133: =SUM('Cars+:Trucks'!J133) -> 0 | K133: =SUM('Cars+:Trucks'!K133) -> 0 | L133: =SUM('Cars+:Trucks'!L133) -> 0 | M133: =SUM('Cars+:Trucks'!M133) -> 0 | N133: =SUM('Cars+:Trucks'!N133) -> 0 | O133: =SUM('Cars+:Trucks'!O133) -> 0 | P133: =SUM('Cars+:Trucks'!P133) -> 0 | Q133: =SUM('Cars+:Trucks'!Q133) -> 0 | R133: =SUM('Cars+:Trucks'!R133) -> 0 | S133: =SUM('Cars+:Trucks'!S133) -> 0 | T133: =SUM('Cars+:Trucks'!T133) -> 0 | U133: =SUM('Cars+:Trucks'!U133) -> 0 | V133: =SUM('Cars+:Trucks'!V133) -> 0 | W133: =SUM('Cars+:Trucks'!W133) -> 0 | X133: =SUMIF($D$2:$W$2,X$3,$D133:$W133) -> 0 | Y133: 0 | Z133: 0 | AA133: 0 | AB133: =X133+Y133 -> 0 | AC133: =Z133+AA133 -> 0 | AD133: =SUM(D133:W133) -> 0 | AE133: 0
A134: ='Cars+'!A134 -> 00:00:00 | B134: ='Cars+'!B134 -> 0 | C134: ='Cars+'!C134 -> 0 | D134: =SUM('Cars+:Trucks'!D134) -> 0 | E134: =SUM('Cars+:Trucks'!E134) -> 0 | F134: =SUM('Cars+:Trucks'!F134) -> 0 | G134: =SUM('Cars+:Trucks'!G134) -> 0 | H134: =SUM('Cars+:Trucks'!H134) -> 0 | I134: =SUM('Cars+:Trucks'!I134) -> 0 | J134: =SUM('Cars+:Trucks'!J134) -> 0 | K134: =SUM('Cars+:Trucks'!K134) -> 0 | L134: =SUM('Cars+:Trucks'!L134) -> 0 | M134: =SUM('Cars+:Trucks'!M134) -> 0 | N134: =SUM('Cars+:Trucks'!N134) -> 0 | O134: =SUM('Cars+:Trucks'!O134) -> 0 | P134: =SUM('Cars+:Trucks'!P134) -> 0 | Q134: =SUM('Cars+:Trucks'!Q134) -> 0 | R134: =SUM('Cars+:Trucks'!R134) -> 0 | S134: =SUM('Cars+:Trucks'!S134) -> 0 | T134: =SUM('Cars+:Trucks'!T134) -> 0 | U134: =SUM('Cars+:Trucks'!U134) -> 0 | V134: =SUM('Cars+:Trucks'!V134) -> 0 | W134: =SUM('Cars+:Trucks'!W134) -> 0 | X134: 0 | Y134: 0 | Z134: 0 | AA134: 0 | AB134: 0 | AC134: 0 | AD134: 0 | AE134: 0
A135: ='Cars+'!A135 -> 00:00:00 | B135: ='Cars+'!B135 -> 0 | C135: ='Cars+'!C135 -> 0 | D135: =SUM('Cars+:Trucks'!D135) -> 0 | E135: =SUM('Cars+:Trucks'!E135) -> 0 | F135: =SUM('Cars+:Trucks'!F135) -> 0 | G135: =SUM('Cars+:Trucks'!G135) -> 0 | H135: =SUM('Cars+:Trucks'!H135) -> 0 | I135: =SUM('Cars+:Trucks'!I135) -> 0 | J135: =SUM('Cars+:Trucks'!J135) -> 0 | K135: =SUM('Cars+:Trucks'!K135) -> 0 | L135: =SUM('Cars+:Trucks'!L135) -> 0 | M135: =SUM('Cars+:Trucks'!M135) -> 0 | N135: =SUM('Cars+:Trucks'!N135) -> 0 | O135: =SUM('Cars+:Trucks'!O135) -> 0 | P135: =SUM('Cars+:Trucks'!P135) -> 0 | Q135: =SUM('Cars+:Trucks'!Q135) -> 0 | R135: =SUM('Cars+:Trucks'!R135) -> 0 | S135: =SUM('Cars+:Trucks'!S135) -> 0 | T135: =SUM('Cars+:Trucks'!T135) -> 0 | U135: =SUM('Cars+:Trucks'!U135) -> 0 | V135: =SUM('Cars+:Trucks'!V135) -> 0 | W135: =SUM('Cars+:Trucks'!W135) -> 0 | X135: 0 | Y135: 0 | Z135: 0 | AA135: 0 | AB135: 0 | AC135: 0 | AD135: 0 | AE135: 0
A136: ='Cars+'!A136 -> 00:00:00 | B136: ='Cars+'!B136 -> 0 | C136: ='Cars+'!C136 -> 0 | D136: =SUM('Cars+:Trucks'!D136) -> 0 | E136: =SUM('Cars+:Trucks'!E136) -> 0 | F136: =SUM('Cars+:Trucks'!F136) -> 0 | G136: =SUM('Cars+:Trucks'!G136) -> 0 | H136: =SUM('Cars+:Trucks'!H136) -> 0 | I136: =SUM('Cars+:Trucks'!I136) -> 0 | J136: =SUM('Cars+:Trucks'!J136) -> 0 | K136: =SUM('Cars+:Trucks'!K136) -> 0 | L136: =SUM('Cars+:Trucks'!L136) -> 0 | M136: =SUM('Cars+:Trucks'!M136) -> 0 | N136: =SUM('Cars+:Trucks'!N136) -> 0 | O136: =SUM('Cars+:Trucks'!O136) -> 0 | P136: =SUM('Cars+:Trucks'!P136) -> 0 | Q136: =SUM('Cars+:Trucks'!Q136) -> 0 | R136: =SUM('Cars+:Trucks'!R136) -> 0 | S136: =SUM('Cars+:Trucks'!S136) -> 0 | T136: =SUM('Cars+:Trucks'!T136) -> 0 | U136: =SUM('Cars+:Trucks'!U136) -> 0 | V136: =SUM('Cars+:Trucks'!V136) -> 0 | W136: =SUM('Cars+:Trucks'!W136) -> 0 | X136: 0 | Y136: 0 | Z136: 0 | AA136: 0 | AB136: 0 | AC136: 0 | AD136: 0 | AE136: 0
A137: ='Cars+'!A137 -> 00:00:00 | B137: ='Cars+'!B137 -> 0 | C137: ='Cars+'!C137 -> 0 | D137: =SUM('Cars+:Trucks'!D137) -> 0 | E137: =SUM('Cars+:Trucks'!E137) -> 0 | F137: =SUM('Cars+:Trucks'!F137) -> 0 | G137: =SUM('Cars+:Trucks'!G137) -> 0 | H137: =SUM('Cars+:Trucks'!H137) -> 0 | I137: =SUM('Cars+:Trucks'!I137) -> 0 | J137: =SUM('Cars+:Trucks'!J137) -> 0 | K137: =SUM('Cars+:Trucks'!K137) -> 0 | L137: =SUM('Cars+:Trucks'!L137) -> 0 | M137: =SUM('Cars+:Trucks'!M137) -> 0 | N137: =SUM('Cars+:Trucks'!N137) -> 0 | O137: =SUM('Cars+:Trucks'!O137) -> 0 | P137: =SUM('Cars+:Trucks'!P137) -> 0 | Q137: =SUM('Cars+:Trucks'!Q137) -> 0 | R137: =SUM('Cars+:Trucks'!R137) -> 0 | S137: =SUM('Cars+:Trucks'!S137) -> 0 | T137: =SUM('Cars+:Trucks'!T137) -> 0 | U137: =SUM('Cars+:Trucks'!U137) -> 0 | V137: =SUM('Cars+:Trucks'!V137) -> 0 | W137: =SUM('Cars+:Trucks'!W137) -> 0 | X137: 0 | Y137: 0 | Z137: 0 | AA137: 0 | AB137: 0 | AC137: 0 | AD137: 0 | AE137: 0
A138: ='Cars+'!A138 -> 00:00:00 | B138: ='Cars+'!B138 -> 0 | C138: ='Cars+'!C138 -> 0 | D138: =SUM('Cars+:Trucks'!D138) -> 0 | E138: =SUM('Cars+:Trucks'!E138) -> 0 | F138: =SUM('Cars+:Trucks'!F138) -> 0 | G138: =SUM('Cars+:Trucks'!G138) -> 0 | H138: =SUM('Cars+:Trucks'!H138) -> 0 | I138: =SUM('Cars+:Trucks'!I138) -> 0 | J138: =SUM('Cars+:Trucks'!J138) -> 0 | K138: =SUM('Cars+:Trucks'!K138) -> 0 | L138: =SUM('Cars+:Trucks'!L138) -> 0 | M138: =SUM('Cars+:Trucks'!M138) -> 0 | N138: =SUM('Cars+:Trucks'!N138) -> 0 | O138: =SUM('Cars+:Trucks'!O138) -> 0 | P138: =SUM('Cars+:Trucks'!P138) -> 0 | Q138: =SUM('Cars+:Trucks'!Q138) -> 0 | R138: =SUM('Cars+:Trucks'!R138) -> 0 | S138: =SUM('Cars+:Trucks'!S138) -> 0 | T138: =SUM('Cars+:Trucks'!T138) -> 0 | U138: =SUM('Cars+:Trucks'!U138) -> 0 | V138: =SUM('Cars+:Trucks'!V138) -> 0 | W138: =SUM('Cars+:Trucks'!W138) -> 0 | X138: 0 | Y138: 0 | Z138: 0 | AA138: 0 | AB138: 0 | AC138: 0 | AD138: 0 | AE138: 0
A139: ='Cars+'!A139 -> 00:00:00 | B139: ='Cars+'!B139 -> 0 | C139: ='Cars+'!C139 -> 0 | D139: =SUM('Cars+:Trucks'!D139) -> 0 | E139: =SUM('Cars+:Trucks'!E139) -> 0 | F139: =SUM('Cars+:Trucks'!F139) -> 0 | G139: =SUM('Cars+:Trucks'!G139) -> 0 | H139: =SUM('Cars+:Trucks'!H139) -> 0 | I139: =SUM('Cars+:Trucks'!I139) -> 0 | J139: =SUM('Cars+:Trucks'!J139) -> 0 | K139: =SUM('Cars+:Trucks'!K139) -> 0 | L139: =SUM('Cars+:Trucks'!L139) -> 0 | M139: =SUM('Cars+:Trucks'!M139) -> 0 | N139: =SUM('Cars+:Trucks'!N139) -> 0 | O139: =SUM('Cars+:Trucks'!O139) -> 0 | P139: =SUM('Cars+:Trucks'!P139) -> 0 | Q139: =SUM('Cars+:Trucks'!Q139) -> 0 | R139: =SUM('Cars+:Trucks'!R139) -> 0 | S139: =SUM('Cars+:Trucks'!S139) -> 0 | T139: =SUM('Cars+:Trucks'!T139) -> 0 | U139: =SUM('Cars+:Trucks'!U139) -> 0 | V139: =SUM('Cars+:Trucks'!V139) -> 0 | W139: =SUM('Cars+:Trucks'!W139) -> 0 | X139: 0 | Y139: 0 | Z139: 0 | AA139: 0 | AB139: 0 | AC139: 0 | AD139: 0 | AE139: 0
A140: ='Cars+'!A140 -> 00:00:00 | B140: ='Cars+'!B140 -> 0 | C140: ='Cars+'!C140 -> 0 | D140: =SUM('Cars+:Trucks'!D140) -> 0 | E140: =SUM('Cars+:Trucks'!E140) -> 0 | F140: =SUM('Cars+:Trucks'!F140) -> 0 | G140: =SUM('Cars+:Trucks'!G140) -> 0 | H140: =SUM('Cars+:Trucks'!H140) -> 0 | I140: =SUM('Cars+:Trucks'!I140) -> 0 | J140: =SUM('Cars+:Trucks'!J140) -> 0 | K140: =SUM('Cars+:Trucks'!K140) -> 0 | L140: =SUM('Cars+:Trucks'!L140) -> 0 | M140: =SUM('Cars+:Trucks'!M140) -> 0 | N140: =SUM('Cars+:Trucks'!N140) -> 0 | O140: =SUM('Cars+:Trucks'!O140) -> 0 | P140: =SUM('Cars+:Trucks'!P140) -> 0 | Q140: =SUM('Cars+:Trucks'!Q140) -> 0 | R140: =SUM('Cars+:Trucks'!R140) -> 0 | S140: =SUM('Cars+:Trucks'!S140) -> 0 | T140: =SUM('Cars+:Trucks'!T140) -> 0 | U140: =SUM('Cars+:Trucks'!U140) -> 0 | V140: =SUM('Cars+:Trucks'!V140) -> 0 | W140: =SUM('Cars+:Trucks'!W140) -> 0 | X140: 0 | Y140: 0 | Z140: 0 | AA140: 0 | AB140: 0 | AC140: 0 | AD140: 0 | AE140: 0
A141: ='Cars+'!A141 -> 00:00:00 | B141: ='Cars+'!B141 -> 0 | C141: ='Cars+'!C141 -> 0 | D141: =SUM('Cars+:Trucks'!D141) -> 0 | E141: =SUM('Cars+:Trucks'!E141) -> 0 | F141: =SUM('Cars+:Trucks'!F141) -> 0 | G141: =SUM('Cars+:Trucks'!G141) -> 0 | H141: =SUM('Cars+:Trucks'!H141) -> 0 | I141: =SUM('Cars+:Trucks'!I141) -> 0 | J141: =SUM('Cars+:Trucks'!J141) -> 0 | K141: =SUM('Cars+:Trucks'!K141) -> 0 | L141: =SUM('Cars+:Trucks'!L141) -> 0 | M141: =SUM('Cars+:Trucks'!M141) -> 0 | N141: =SUM('Cars+:Trucks'!N141) -> 0 | O141: =SUM('Cars+:Trucks'!O141) -> 0 | P141: =SUM('Cars+:Trucks'!P141) -> 0 | Q141: =SUM('Cars+:Trucks'!Q141) -> 0 | R141: =SUM('Cars+:Trucks'!R141) -> 0 | S141: =SUM('Cars+:Trucks'!S141) -> 0 | T141: =SUM('Cars+:Trucks'!T141) -> 0 | U141: =SUM('Cars+:Trucks'!U141) -> 0 | V141: =SUM('Cars+:Trucks'!V141) -> 0 | W141: =SUM('Cars+:Trucks'!W141) -> 0 | X141: 0 | Y141: 0 | Z141: 0 | AA141: 0 | AB141: 0 | AC141: 0 | AD141: 0 | AE141: 0
A142: ='Cars+'!A142 -> 00:00:00 | B142: ='Cars+'!B142 -> 0 | C142: ='Cars+'!C142 -> 0 | D142: =SUM('Cars+:Trucks'!D142) -> 0 | E142: =SUM('Cars+:Trucks'!E142) -> 0 | F142: =SUM('Cars+:Trucks'!F142) -> 0 | G142: =SUM('Cars+:Trucks'!G142) -> 0 | H142: =SUM('Cars+:Trucks'!H142) -> 0 | I142: =SUM('Cars+:Trucks'!I142) -> 0 | J142: =SUM('Cars+:Trucks'!J142) -> 0 | K142: =SUM('Cars+:Trucks'!K142) -> 0 | L142: =SUM('Cars+:Trucks'!L142) -> 0 | M142: =SUM('Cars+:Trucks'!M142) -> 0 | N142: =SUM('Cars+:Trucks'!N142) -> 0 | O142: =SUM('Cars+:Trucks'!O142) -> 0 | P142: =SUM('Cars+:Trucks'!P142) -> 0 | Q142: =SUM('Cars+:Trucks'!Q142) -> 0 | R142: =SUM('Cars+:Trucks'!R142) -> 0 | S142: =SUM('Cars+:Trucks'!S142) -> 0 | T142: =SUM('Cars+:Trucks'!T142) -> 0 | U142: =SUM('Cars+:Trucks'!U142) -> 0 | V142: =SUM('Cars+:Trucks'!V142) -> 0 | W142: =SUM('Cars+:Trucks'!W142) -> 0 | X142: 0 | Y142: 0 | Z142: 0 | AA142: 0 | AB142: 0 | AC142: 0 | AD142: 0 | AE142: 0
A143: ='Cars+'!A143 -> 00:00:00 | B143: ='Cars+'!B143 -> 0 | C143: ='Cars+'!C143 -> 0 | D143: =SUM('Cars+:Trucks'!D143) -> 0 | E143: =SUM('Cars+:Trucks'!E143) -> 0 | F143: =SUM('Cars+:Trucks'!F143) -> 0 | G143: =SUM('Cars+:Trucks'!G143) -> 0 | H143: =SUM('Cars+:Trucks'!H143) -> 0 | I143: =SUM('Cars+:Trucks'!I143) -> 0 | J143: =SUM('Cars+:Trucks'!J143) -> 0 | K143: =SUM('Cars+:Trucks'!K143) -> 0 | L143: =SUM('Cars+:Trucks'!L143) -> 0 | M143: =SUM('Cars+:Trucks'!M143) -> 0 | N143: =SUM('Cars+:Trucks'!N143) -> 0 | O143: =SUM('Cars+:Trucks'!O143) -> 0 | P143: =SUM('Cars+:Trucks'!P143) -> 0 | Q143: =SUM('Cars+:Trucks'!Q143) -> 0 | R143: =SUM('Cars+:Trucks'!R143) -> 0 | S143: =SUM('Cars+:Trucks'!S143) -> 0 | T143: =SUM('Cars+:Trucks'!T143) -> 0 | U143: =SUM('Cars+:Trucks'!U143) -> 0 | V143: =SUM('Cars+:Trucks'!V143) -> 0 | W143: =SUM('Cars+:Trucks'!W143) -> 0 | X143: 0 | Y143: 0 | Z143: 0 | AA143: 0 | AB143: 0 | AC143: 0 | AD143: 0 | AE143: 0
A144: ='Cars+'!A144 -> 00:00:00 | B144: ='Cars+'!B144 -> 0 | C144: ='Cars+'!C144 -> 0 | D144: =SUM('Cars+:Trucks'!D144) -> 0 | E144: =SUM('Cars+:Trucks'!E144) -> 0 | F144: =SUM('Cars+:Trucks'!F144) -> 0 | G144: =SUM('Cars+:Trucks'!G144) -> 0 | H144: =SUM('Cars+:Trucks'!H144) -> 0 | I144: =SUM('Cars+:Trucks'!I144) -> 0 | J144: =SUM('Cars+:Trucks'!J144) -> 0 | K144: =SUM('Cars+:Trucks'!K144) -> 0 | L144: =SUM('Cars+:Trucks'!L144) -> 0 | M144: =SUM('Cars+:Trucks'!M144) -> 0 | N144: =SUM('Cars+:Trucks'!N144) -> 0 | O144: =SUM('Cars+:Trucks'!O144) -> 0 | P144: =SUM('Cars+:Trucks'!P144) -> 0 | Q144: =SUM('Cars+:Trucks'!Q144) -> 0 | R144: =SUM('Cars+:Trucks'!R144) -> 0 | S144: =SUM('Cars+:Trucks'!S144) -> 0 | T144: =SUM('Cars+:Trucks'!T144) -> 0 | U144: =SUM('Cars+:Trucks'!U144) -> 0 | V144: =SUM('Cars+:Trucks'!V144) -> 0 | W144: =SUM('Cars+:Trucks'!W144) -> 0 | X144: 0 | Y144: 0 | Z144: 0 | AA144: 0 | AB144: 0 | AC144: 0 | AD144: 0 | AE144: 0
A145: ='Cars+'!A145 -> 00:00:00 | B145: ='Cars+'!B145 -> 0 | C145: ='Cars+'!C145 -> 0 | D145: =SUM('Cars+:Trucks'!D145) -> 0 | E145: =SUM('Cars+:Trucks'!E145) -> 0 | F145: =SUM('Cars+:Trucks'!F145) -> 0 | G145: =SUM('Cars+:Trucks'!G145) -> 0 | H145: =SUM('Cars+:Trucks'!H145) -> 0 | I145: =SUM('Cars+:Trucks'!I145) -> 0 | J145: =SUM('Cars+:Trucks'!J145) -> 0 | K145: =SUM('Cars+:Trucks'!K145) -> 0 | L145: =SUM('Cars+:Trucks'!L145) -> 0 | M145: =SUM('Cars+:Trucks'!M145) -> 0 | N145: =SUM('Cars+:Trucks'!N145) -> 0 | O145: =SUM('Cars+:Trucks'!O145) -> 0 | P145: =SUM('Cars+:Trucks'!P145) -> 0 | Q145: =SUM('Cars+:Trucks'!Q145) -> 0 | R145: =SUM('Cars+:Trucks'!R145) -> 0 | S145: =SUM('Cars+:Trucks'!S145) -> 0 | T145: =SUM('Cars+:Trucks'!T145) -> 0 | U145: =SUM('Cars+:Trucks'!U145) -> 0 | V145: =SUM('Cars+:Trucks'!V145) -> 0 | W145: =SUM('Cars+:Trucks'!W145) -> 0 | X145: 0 | Y145: 0 | Z145: 0 | AA145: 0 | AB145: 0 | AC145: 0 | AD145: 0 | AE145: 0
A146: ='Cars+'!A146 -> 00:00:00 | B146: ='Cars+'!B146 -> 0 | C146: ='Cars+'!C146 -> 0 | D146: =SUM('Cars+:Trucks'!D146) -> 0 | E146: =SUM('Cars+:Trucks'!E146) -> 0 | F146: =SUM('Cars+:Trucks'!F146) -> 0 | G146: =SUM('Cars+:Trucks'!G146) -> 0 | H146: =SUM('Cars+:Trucks'!H146) -> 0 | I146: =SUM('Cars+:Trucks'!I146) -> 0 | J146: =SUM('Cars+:Trucks'!J146) -> 0 | K146: =SUM('Cars+:Trucks'!K146) -> 0 | L146: =SUM('Cars+:Trucks'!L146) -> 0 | M146: =SUM('Cars+:Trucks'!M146) -> 0 | N146: =SUM('Cars+:Trucks'!N146) -> 0 | O146: =SUM('Cars+:Trucks'!O146) -> 0 | P146: =SUM('Cars+:Trucks'!P146) -> 0 | Q146: =SUM('Cars+:Trucks'!Q146) -> 0 | R146: =SUM('Cars+:Trucks'!R146) -> 0 | S146: =SUM('Cars+:Trucks'!S146) -> 0 | T146: =SUM('Cars+:Trucks'!T146) -> 0 | U146: =SUM('Cars+:Trucks'!U146) -> 0 | V146: =SUM('Cars+:Trucks'!V146) -> 0 | W146: =SUM('Cars+:Trucks'!W146) -> 0 | X146: 0 | Y146: 0 | Z146: 0 | AA146: 0 | AB146: 0 | AC146: 0 | AD146: 0 | AE146: 0
A147: ='Cars+'!A147 -> 00:00:00 | B147: ='Cars+'!B147 -> 0 | C147: ='Cars+'!C147 -> 0 | D147: =SUM('Cars+:Trucks'!D147) -> 0 | E147: =SUM('Cars+:Trucks'!E147) -> 0 | F147: =SUM('Cars+:Trucks'!F147) -> 0 | G147: =SUM('Cars+:Trucks'!G147) -> 0 | H147: =SUM('Cars+:Trucks'!H147) -> 0 | I147: =SUM('Cars+:Trucks'!I147) -> 0 | J147: =SUM('Cars+:Trucks'!J147) -> 0 | K147: =SUM('Cars+:Trucks'!K147) -> 0 | L147: =SUM('Cars+:Trucks'!L147) -> 0 | M147: =SUM('Cars+:Trucks'!M147) -> 0 | N147: =SUM('Cars+:Trucks'!N147) -> 0 | O147: =SUM('Cars+:Trucks'!O147) -> 0 | P147: =SUM('Cars+:Trucks'!P147) -> 0 | Q147: =SUM('Cars+:Trucks'!Q147) -> 0 | R147: =SUM('Cars+:Trucks'!R147) -> 0 | S147: =SUM('Cars+:Trucks'!S147) -> 0 | T147: =SUM('Cars+:Trucks'!T147) -> 0 | U147: =SUM('Cars+:Trucks'!U147) -> 0 | V147: =SUM('Cars+:Trucks'!V147) -> 0 | W147: =SUM('Cars+:Trucks'!W147) -> 0 | X147: 0 | Y147: 0 | Z147: 0 | AA147: 0 | AB147: 0 | AC147: 0 | AD147: 0 | AE147: 0
A148: ='Cars+'!A148 -> 00:00:00 | B148: ='Cars+'!B148 -> 0 | C148: ='Cars+'!C148 -> 0 | D148: =SUM('Cars+:Trucks'!D148) -> 0 | E148: =SUM('Cars+:Trucks'!E148) -> 0 | F148: =SUM('Cars+:Trucks'!F148) -> 0 | G148: =SUM('Cars+:Trucks'!G148) -> 0 | H148: =SUM('Cars+:Trucks'!H148) -> 0 | I148: =SUM('Cars+:Trucks'!I148) -> 0 | J148: =SUM('Cars+:Trucks'!J148) -> 0 | K148: =SUM('Cars+:Trucks'!K148) -> 0 | L148: =SUM('Cars+:Trucks'!L148) -> 0 | M148: =SUM('Cars+:Trucks'!M148) -> 0 | N148: =SUM('Cars+:Trucks'!N148) -> 0 | O148: =SUM('Cars+:Trucks'!O148) -> 0 | P148: =SUM('Cars+:Trucks'!P148) -> 0 | Q148: =SUM('Cars+:Trucks'!Q148) -> 0 | R148: =SUM('Cars+:Trucks'!R148) -> 0 | S148: =SUM('Cars+:Trucks'!S148) -> 0 | T148: =SUM('Cars+:Trucks'!T148) -> 0 | U148: =SUM('Cars+:Trucks'!U148) -> 0 | V148: =SUM('Cars+:Trucks'!V148) -> 0 | W148: =SUM('Cars+:Trucks'!W148) -> 0 | X148: 0 | Y148: 0 | Z148: 0 | AA148: 0 | AB148: 0 | AC148: 0 | AD148: 0 | AE148: 0
A149: ='Cars+'!A149 -> 00:00:00 | B149: ='Cars+'!B149 -> 0 | C149: ='Cars+'!C149 -> 0 | D149: =SUM('Cars+:Trucks'!D149) -> 0 | E149: =SUM('Cars+:Trucks'!E149) -> 0 | F149: =SUM('Cars+:Trucks'!F149) -> 0 | G149: =SUM('Cars+:Trucks'!G149) -> 0 | H149: =SUM('Cars+:Trucks'!H149) -> 0 | I149: =SUM('Cars+:Trucks'!I149) -> 0 | J149: =SUM('Cars+:Trucks'!J149) -> 0 | K149: =SUM('Cars+:Trucks'!K149) -> 0 | L149: =SUM('Cars+:Trucks'!L149) -> 0 | M149: =SUM('Cars+:Trucks'!M149) -> 0 | N149: =SUM('Cars+:Trucks'!N149) -> 0 | O149: =SUM('Cars+:Trucks'!O149) -> 0 | P149: =SUM('Cars+:Trucks'!P149) -> 0 | Q149: =SUM('Cars+:Trucks'!Q149) -> 0 | R149: =SUM('Cars+:Trucks'!R149) -> 0 | S149: =SUM('Cars+:Trucks'!S149) -> 0 | T149: =SUM('Cars+:Trucks'!T149) -> 0 | U149: =SUM('Cars+:Trucks'!U149) -> 0 | V149: =SUM('Cars+:Trucks'!V149) -> 0 | W149: =SUM('Cars+:Trucks'!W149) -> 0 | X149: 0 | Y149: 0 | Z149: 0 | AA149: 0 | AB149: 0 | AC149: 0 | AD149: 0 | AE149: 0
A150: ='Cars+'!A150 -> 00:00:00 | B150: ='Cars+'!B150 -> 0 | C150: ='Cars+'!C150 -> 0 | D150: =SUM('Cars+:Trucks'!D150) -> 0 | E150: =SUM('Cars+:Trucks'!E150) -> 0 | F150: =SUM('Cars+:Trucks'!F150) -> 0 | G150: =SUM('Cars+:Trucks'!G150) -> 0 | H150: =SUM('Cars+:Trucks'!H150) -> 0 | I150: =SUM('Cars+:Trucks'!I150) -> 0 | J150: =SUM('Cars+:Trucks'!J150) -> 0 | K150: =SUM('Cars+:Trucks'!K150) -> 0 | L150: =SUM('Cars+:Trucks'!L150) -> 0 | M150: =SUM('Cars+:Trucks'!M150) -> 0 | N150: =SUM('Cars+:Trucks'!N150) -> 0 | O150: =SUM('Cars+:Trucks'!O150) -> 0 | P150: =SUM('Cars+:Trucks'!P150) -> 0 | Q150: =SUM('Cars+:Trucks'!Q150) -> 0 | R150: =SUM('Cars+:Trucks'!R150) -> 0 | S150: =SUM('Cars+:Trucks'!S150) -> 0 | T150: =SUM('Cars+:Trucks'!T150) -> 0 | U150: =SUM('Cars+:Trucks'!U150) -> 0 | V150: =SUM('Cars+:Trucks'!V150) -> 0 | W150: =SUM('Cars+:Trucks'!W150) -> 0 | X150: 0 | Y150: 0 | Z150: 0 | AA150: 0 | AB150: 0 | AC150: 0 | AD150: 0 | AE150: 0
A151: ='Cars+'!A151 -> 00:00:00 | B151: ='Cars+'!B151 -> 0 | C151: ='Cars+'!C151 -> 0 | D151: =SUM('Cars+:Trucks'!D151) -> 0 | E151: =SUM('Cars+:Trucks'!E151) -> 0 | F151: =SUM('Cars+:Trucks'!F151) -> 0 | G151: =SUM('Cars+:Trucks'!G151) -> 0 | H151: =SUM('Cars+:Trucks'!H151) -> 0 | I151: =SUM('Cars+:Trucks'!I151) -> 0 | J151: =SUM('Cars+:Trucks'!J151) -> 0 | K151: =SUM('Cars+:Trucks'!K151) -> 0 | L151: =SUM('Cars+:Trucks'!L151) -> 0 | M151: =SUM('Cars+:Trucks'!M151) -> 0 | N151: =SUM('Cars+:Trucks'!N151) -> 0 | O151: =SUM('Cars+:Trucks'!O151) -> 0 | P151: =SUM('Cars+:Trucks'!P151) -> 0 | Q151: =SUM('Cars+:Trucks'!Q151) -> 0 | R151: =SUM('Cars+:Trucks'!R151) -> 0 | S151: =SUM('Cars+:Trucks'!S151) -> 0 | T151: =SUM('Cars+:Trucks'!T151) -> 0 | U151: =SUM('Cars+:Trucks'!U151) -> 0 | V151: =SUM('Cars+:Trucks'!V151) -> 0 | W151: =SUM('Cars+:Trucks'!W151) -> 0 | X151: 0 | Y151: 0 | Z151: 0 | AA151: 0 | AB151: 0 | AC151: 0 | AD151: 0 | AE151: 0
A152: ='Cars+'!A152 -> 00:00:00 | B152: ='Cars+'!B152 -> 0 | C152: ='Cars+'!C152 -> 0 | D152: =SUM('Cars+:Trucks'!D152) -> 0 | E152: =SUM('Cars+:Trucks'!E152) -> 0 | F152: =SUM('Cars+:Trucks'!F152) -> 0 | G152: =SUM('Cars+:Trucks'!G152) -> 0 | H152: =SUM('Cars+:Trucks'!H152) -> 0 | I152: =SUM('Cars+:Trucks'!I152) -> 0 | J152: =SUM('Cars+:Trucks'!J152) -> 0 | K152: =SUM('Cars+:Trucks'!K152) -> 0 | L152: =SUM('Cars+:Trucks'!L152) -> 0 | M152: =SUM('Cars+:Trucks'!M152) -> 0 | N152: =SUM('Cars+:Trucks'!N152) -> 0 | O152: =SUM('Cars+:Trucks'!O152) -> 0 | P152: =SUM('Cars+:Trucks'!P152) -> 0 | Q152: =SUM('Cars+:Trucks'!Q152) -> 0 | R152: =SUM('Cars+:Trucks'!R152) -> 0 | S152: =SUM('Cars+:Trucks'!S152) -> 0 | T152: =SUM('Cars+:Trucks'!T152) -> 0 | U152: =SUM('Cars+:Trucks'!U152) -> 0 | V152: =SUM('Cars+:Trucks'!V152) -> 0 | W152: =SUM('Cars+:Trucks'!W152) -> 0 | X152: 0 | Y152: 0 | Z152: 0 | AA152: 0 | AB152: 0 | AC152: 0 | AD152: 0 | AE152: 0
A153: ='Cars+'!A153 -> 00:00:00 | B153: ='Cars+'!B153 -> 0 | C153: ='Cars+'!C153 -> 0 | D153: =SUM('Cars+:Trucks'!D153) -> 0 | E153: =SUM('Cars+:Trucks'!E153) -> 0 | F153: =SUM('Cars+:Trucks'!F153) -> 0 | G153: =SUM('Cars+:Trucks'!G153) -> 0 | H153: =SUM('Cars+:Trucks'!H153) -> 0 | I153: =SUM('Cars+:Trucks'!I153) -> 0 | J153: =SUM('Cars+:Trucks'!J153) -> 0 | K153: =SUM('Cars+:Trucks'!K153) -> 0 | L153: =SUM('Cars+:Trucks'!L153) -> 0 | M153: =SUM('Cars+:Trucks'!M153) -> 0 | N153: =SUM('Cars+:Trucks'!N153) -> 0 | O153: =SUM('Cars+:Trucks'!O153) -> 0 | P153: =SUM('Cars+:Trucks'!P153) -> 0 | Q153: =SUM('Cars+:Trucks'!Q153) -> 0 | R153: =SUM('Cars+:Trucks'!R153) -> 0 | S153: =SUM('Cars+:Trucks'!S153) -> 0 | T153: =SUM('Cars+:Trucks'!T153) -> 0 | U153: =SUM('Cars+:Trucks'!U153) -> 0 | V153: =SUM('Cars+:Trucks'!V153) -> 0 | W153: =SUM('Cars+:Trucks'!W153) -> 0 | X153: 0 | Y153: 0 | Z153: 0 | AA153: 0 | AB153: 0 | AC153: 0 | AD153: 0 | AE153: 0
A154: ='Cars+'!A154 -> 00:00:00 | B154: ='Cars+'!B154 -> 0 | C154: ='Cars+'!C154 -> 0 | D154: =SUM('Cars+:Trucks'!D154) -> 0 | E154: =SUM('Cars+:Trucks'!E154) -> 0 | F154: =SUM('Cars+:Trucks'!F154) -> 0 | G154: =SUM('Cars+:Trucks'!G154) -> 0 | H154: =SUM('Cars+:Trucks'!H154) -> 0 | I154: =SUM('Cars+:Trucks'!I154) -> 0 | J154: =SUM('Cars+:Trucks'!J154) -> 0 | K154: =SUM('Cars+:Trucks'!K154) -> 0 | L154: =SUM('Cars+:Trucks'!L154) -> 0 | M154: =SUM('Cars+:Trucks'!M154) -> 0 | N154: =SUM('Cars+:Trucks'!N154) -> 0 | O154: =SUM('Cars+:Trucks'!O154) -> 0 | P154: =SUM('Cars+:Trucks'!P154) -> 0 | Q154: =SUM('Cars+:Trucks'!Q154) -> 0 | R154: =SUM('Cars+:Trucks'!R154) -> 0 | S154: =SUM('Cars+:Trucks'!S154) -> 0 | T154: =SUM('Cars+:Trucks'!T154) -> 0 | U154: =SUM('Cars+:Trucks'!U154) -> 0 | V154: =SUM('Cars+:Trucks'!V154) -> 0 | W154: =SUM('Cars+:Trucks'!W154) -> 0 | X154: 0 | Y154: 0 | Z154: 0 | AA154: 0 | AB154: 0 | AC154: 0 | AD154: 0 | AE154: 0
A155: ='Cars+'!A155 -> 00:00:00 | B155: ='Cars+'!B155 -> 0 | C155: ='Cars+'!C155 -> 0 | D155: =SUM('Cars+:Trucks'!D155) -> 0 | E155: =SUM('Cars+:Trucks'!E155) -> 0 | F155: =SUM('Cars+:Trucks'!F155) -> 0 | G155: =SUM('Cars+:Trucks'!G155) -> 0 | H155: =SUM('Cars+:Trucks'!H155) -> 0 | I155: =SUM('Cars+:Trucks'!I155) -> 0 | J155: =SUM('Cars+:Trucks'!J155) -> 0 | K155: =SUM('Cars+:Trucks'!K155) -> 0 | L155: =SUM('Cars+:Trucks'!L155) -> 0 | M155: =SUM('Cars+:Trucks'!M155) -> 0 | N155: =SUM('Cars+:Trucks'!N155) -> 0 | O155: =SUM('Cars+:Trucks'!O155) -> 0 | P155: =SUM('Cars+:Trucks'!P155) -> 0 | Q155: =SUM('Cars+:Trucks'!Q155) -> 0 | R155: =SUM('Cars+:Trucks'!R155) -> 0 | S155: =SUM('Cars+:Trucks'!S155) -> 0 | T155: =SUM('Cars+:Trucks'!T155) -> 0 | U155: =SUM('Cars+:Trucks'!U155) -> 0 | V155: =SUM('Cars+:Trucks'!V155) -> 0 | W155: =SUM('Cars+:Trucks'!W155) -> 0 | X155: 0 | Y155: 0 | Z155: 0 | AA155: 0 | AB155: 0 | AC155: 0 | AD155: 0 | AE155: 0
A156: ='Cars+'!A156 -> 00:00:00 | B156: ='Cars+'!B156 -> 0 | C156: ='Cars+'!C156 -> 0 | D156: =SUM('Cars+:Trucks'!D156) -> 0 | E156: =SUM('Cars+:Trucks'!E156) -> 0 | F156: =SUM('Cars+:Trucks'!F156) -> 0 | G156: =SUM('Cars+:Trucks'!G156) -> 0 | H156: =SUM('Cars+:Trucks'!H156) -> 0 | I156: =SUM('Cars+:Trucks'!I156) -> 0 | J156: =SUM('Cars+:Trucks'!J156) -> 0 | K156: =SUM('Cars+:Trucks'!K156) -> 0 | L156: =SUM('Cars+:Trucks'!L156) -> 0 | M156: =SUM('Cars+:Trucks'!M156) -> 0 | N156: =SUM('Cars+:Trucks'!N156) -> 0 | O156: =SUM('Cars+:Trucks'!O156) -> 0 | P156: =SUM('Cars+:Trucks'!P156) -> 0 | Q156: =SUM('Cars+:Trucks'!Q156) -> 0 | R156: =SUM('Cars+:Trucks'!R156) -> 0 | S156: =SUM('Cars+:Trucks'!S156) -> 0 | T156: =SUM('Cars+:Trucks'!T156) -> 0 | U156: =SUM('Cars+:Trucks'!U156) -> 0 | V156: =SUM('Cars+:Trucks'!V156) -> 0 | W156: =SUM('Cars+:Trucks'!W156) -> 0 | X156: 0 | Y156: 0 | Z156: 0 | AA156: 0 | AB156: 0 | AC156: 0 | AD156: 0 | AE156: 0
A157: ='Cars+'!A157 -> 00:00:00 | B157: ='Cars+'!B157 -> 0 | C157: ='Cars+'!C157 -> 0 | D157: =SUM('Cars+:Trucks'!D157) -> 0 | E157: =SUM('Cars+:Trucks'!E157) -> 0 | F157: =SUM('Cars+:Trucks'!F157) -> 0 | G157: =SUM('Cars+:Trucks'!G157) -> 0 | H157: =SUM('Cars+:Trucks'!H157) -> 0 | I157: =SUM('Cars+:Trucks'!I157) -> 0 | J157: =SUM('Cars+:Trucks'!J157) -> 0 | K157: =SUM('Cars+:Trucks'!K157) -> 0 | L157: =SUM('Cars+:Trucks'!L157) -> 0 | M157: =SUM('Cars+:Trucks'!M157) -> 0 | N157: =SUM('Cars+:Trucks'!N157) -> 0 | O157: =SUM('Cars+:Trucks'!O157) -> 0 | P157: =SUM('Cars+:Trucks'!P157) -> 0 | Q157: =SUM('Cars+:Trucks'!Q157) -> 0 | R157: =SUM('Cars+:Trucks'!R157) -> 0 | S157: =SUM('Cars+:Trucks'!S157) -> 0 | T157: =SUM('Cars+:Trucks'!T157) -> 0 | U157: =SUM('Cars+:Trucks'!U157) -> 0 | V157: =SUM('Cars+:Trucks'!V157) -> 0 | W157: =SUM('Cars+:Trucks'!W157) -> 0 | X157: 0 | Y157: 0 | Z157: 0 | AA157: 0 | AB157: 0 | AC157: 0 | AD157: 0 | AE157: 0
A158: ='Cars+'!A158 -> 00:00:00 | B158: ='Cars+'!B158 -> 0 | C158: ='Cars+'!C158 -> 0 | D158: =SUM('Cars+:Trucks'!D158) -> 0 | E158: =SUM('Cars+:Trucks'!E158) -> 0 | F158: =SUM('Cars+:Trucks'!F158) -> 0 | G158: =SUM('Cars+:Trucks'!G158) -> 0 | H158: =SUM('Cars+:Trucks'!H158) -> 0 | I158: =SUM('Cars+:Trucks'!I158) -> 0 | J158: =SUM('Cars+:Trucks'!J158) -> 0 | K158: =SUM('Cars+:Trucks'!K158) -> 0 | L158: =SUM('Cars+:Trucks'!L158) -> 0 | M158: =SUM('Cars+:Trucks'!M158) -> 0 | N158: =SUM('Cars+:Trucks'!N158) -> 0 | O158: =SUM('Cars+:Trucks'!O158) -> 0 | P158: =SUM('Cars+:Trucks'!P158) -> 0 | Q158: =SUM('Cars+:Trucks'!Q158) -> 0 | R158: =SUM('Cars+:Trucks'!R158) -> 0 | S158: =SUM('Cars+:Trucks'!S158) -> 0 | T158: =SUM('Cars+:Trucks'!T158) -> 0 | U158: =SUM('Cars+:Trucks'!U158) -> 0 | V158: =SUM('Cars+:Trucks'!V158) -> 0 | W158: =SUM('Cars+:Trucks'!W158) -> 0 | X158: 0 | Y158: 0 | Z158: 0 | AA158: 0 | AB158: 0 | AC158: 0 | AD158: 0 | AE158: 0
A159: ='Cars+'!A159 -> 00:00:00 | B159: ='Cars+'!B159 -> 0 | C159: ='Cars+'!C159 -> 0 | D159: =SUM('Cars+:Trucks'!D159) -> 0 | E159: =SUM('Cars+:Trucks'!E159) -> 0 | F159: =SUM('Cars+:Trucks'!F159) -> 0 | G159: =SUM('Cars+:Trucks'!G159) -> 0 | H159: =SUM('Cars+:Trucks'!H159) -> 0 | I159: =SUM('Cars+:Trucks'!I159) -> 0 | J159: =SUM('Cars+:Trucks'!J159) -> 0 | K159: =SUM('Cars+:Trucks'!K159) -> 0 | L159: =SUM('Cars+:Trucks'!L159) -> 0 | M159: =SUM('Cars+:Trucks'!M159) -> 0 | N159: =SUM('Cars+:Trucks'!N159) -> 0 | O159: =SUM('Cars+:Trucks'!O159) -> 0 | P159: =SUM('Cars+:Trucks'!P159) -> 0 | Q159: =SUM('Cars+:Trucks'!Q159) -> 0 | R159: =SUM('Cars+:Trucks'!R159) -> 0 | S159: =SUM('Cars+:Trucks'!S159) -> 0 | T159: =SUM('Cars+:Trucks'!T159) -> 0 | U159: =SUM('Cars+:Trucks'!U159) -> 0 | V159: =SUM('Cars+:Trucks'!V159) -> 0 | W159: =SUM('Cars+:Trucks'!W159) -> 0 | X159: 0 | Y159: 0 | Z159: 0 | AA159: 0 | AB159: 0 | AC159: 0 | AD159: 0 | AE159: 0
A160: ='Cars+'!A160 -> 00:00:00 | B160: ='Cars+'!B160 -> 0 | C160: ='Cars+'!C160 -> 0 | D160: =SUM('Cars+:Trucks'!D160) -> 0 | E160: =SUM('Cars+:Trucks'!E160) -> 0 | F160: =SUM('Cars+:Trucks'!F160) -> 0 | G160: =SUM('Cars+:Trucks'!G160) -> 0 | H160: =SUM('Cars+:Trucks'!H160) -> 0 | I160: =SUM('Cars+:Trucks'!I160) -> 0 | J160: =SUM('Cars+:Trucks'!J160) -> 0 | K160: =SUM('Cars+:Trucks'!K160) -> 0 | L160: =SUM('Cars+:Trucks'!L160) -> 0 | M160: =SUM('Cars+:Trucks'!M160) -> 0 | N160: =SUM('Cars+:Trucks'!N160) -> 0 | O160: =SUM('Cars+:Trucks'!O160) -> 0 | P160: =SUM('Cars+:Trucks'!P160) -> 0 | Q160: =SUM('Cars+:Trucks'!Q160) -> 0 | R160: =SUM('Cars+:Trucks'!R160) -> 0 | S160: =SUM('Cars+:Trucks'!S160) -> 0 | T160: =SUM('Cars+:Trucks'!T160) -> 0 | U160: =SUM('Cars+:Trucks'!U160) -> 0 | V160: =SUM('Cars+:Trucks'!V160) -> 0 | W160: =SUM('Cars+:Trucks'!W160) -> 0 | X160: 0 | Y160: 0 | Z160: 0 | AA160: 0 | AB160: 0 | AC160: 0 | AD160: 0 | AE160: 0
A161: ='Cars+'!A161 -> 00:00:00 | B161: ='Cars+'!B161 -> 0 | C161: ='Cars+'!C161 -> 0 | D161: =SUM('Cars+:Trucks'!D161) -> 0 | E161: =SUM('Cars+:Trucks'!E161) -> 0 | F161: =SUM('Cars+:Trucks'!F161) -> 0 | G161: =SUM('Cars+:Trucks'!G161) -> 0 | H161: =SUM('Cars+:Trucks'!H161) -> 0 | I161: =SUM('Cars+:Trucks'!I161) -> 0 | J161: =SUM('Cars+:Trucks'!J161) -> 0 | K161: =SUM('Cars+:Trucks'!K161) -> 0 | L161: =SUM('Cars+:Trucks'!L161) -> 0 | M161: =SUM('Cars+:Trucks'!M161) -> 0 | N161: =SUM('Cars+:Trucks'!N161) -> 0 | O161: =SUM('Cars+:Trucks'!O161) -> 0 | P161: =SUM('Cars+:Trucks'!P161) -> 0 | Q161: =SUM('Cars+:Trucks'!Q161) -> 0 | R161: =SUM('Cars+:Trucks'!R161) -> 0 | S161: =SUM('Cars+:Trucks'!S161) -> 0 | T161: =SUM('Cars+:Trucks'!T161) -> 0 | U161: =SUM('Cars+:Trucks'!U161) -> 0 | V161: =SUM('Cars+:Trucks'!V161) -> 0 | W161: =SUM('Cars+:Trucks'!W161) -> 0 | X161: 0 | Y161: 0 | Z161: 0 | AA161: 0 | AB161: 0 | AC161: 0 | AD161: 0 | AE161: 0
A162: ='Cars+'!A162 -> 00:00:00 | B162: ='Cars+'!B162 -> 0 | C162: ='Cars+'!C162 -> 0 | D162: =SUM('Cars+:Trucks'!D162) -> 0 | E162: =SUM('Cars+:Trucks'!E162) -> 0 | F162: =SUM('Cars+:Trucks'!F162) -> 0 | G162: =SUM('Cars+:Trucks'!G162) -> 0 | H162: =SUM('Cars+:Trucks'!H162) -> 0 | I162: =SUM('Cars+:Trucks'!I162) -> 0 | J162: =SUM('Cars+:Trucks'!J162) -> 0 | K162: =SUM('Cars+:Trucks'!K162) -> 0 | L162: =SUM('Cars+:Trucks'!L162) -> 0 | M162: =SUM('Cars+:Trucks'!M162) -> 0 | N162: =SUM('Cars+:Trucks'!N162) -> 0 | O162: =SUM('Cars+:Trucks'!O162) -> 0 | P162: =SUM('Cars+:Trucks'!P162) -> 0 | Q162: =SUM('Cars+:Trucks'!Q162) -> 0 | R162: =SUM('Cars+:Trucks'!R162) -> 0 | S162: =SUM('Cars+:Trucks'!S162) -> 0 | T162: =SUM('Cars+:Trucks'!T162) -> 0 | U162: =SUM('Cars+:Trucks'!U162) -> 0 | V162: =SUM('Cars+:Trucks'!V162) -> 0 | W162: =SUM('Cars+:Trucks'!W162) -> 0 | X162: 0 | Y162: 0 | Z162: 0 | AA162: 0 | AB162: 0 | AC162: 0 | AD162: 0 | AE162: 0
A163: ='Cars+'!A163 -> 00:00:00 | B163: ='Cars+'!B163 -> 0 | C163: ='Cars+'!C163 -> 0 | D163: =SUM('Cars+:Trucks'!D163) -> 0 | E163: =SUM('Cars+:Trucks'!E163) -> 0 | F163: =SUM('Cars+:Trucks'!F163) -> 0 | G163: =SUM('Cars+:Trucks'!G163) -> 0 | H163: =SUM('Cars+:Trucks'!H163) -> 0 | I163: =SUM('Cars+:Trucks'!I163) -> 0 | J163: =SUM('Cars+:Trucks'!J163) -> 0 | K163: =SUM('Cars+:Trucks'!K163) -> 0 | L163: =SUM('Cars+:Trucks'!L163) -> 0 | M163: =SUM('Cars+:Trucks'!M163) -> 0 | N163: =SUM('Cars+:Trucks'!N163) -> 0 | O163: =SUM('Cars+:Trucks'!O163) -> 0 | P163: =SUM('Cars+:Trucks'!P163) -> 0 | Q163: =SUM('Cars+:Trucks'!Q163) -> 0 | R163: =SUM('Cars+:Trucks'!R163) -> 0 | S163: =SUM('Cars+:Trucks'!S163) -> 0 | T163: =SUM('Cars+:Trucks'!T163) -> 0 | U163: =SUM('Cars+:Trucks'!U163) -> 0 | V163: =SUM('Cars+:Trucks'!V163) -> 0 | W163: =SUM('Cars+:Trucks'!W163) -> 0 | X163: 0 | Y163: 0 | Z163: 0 | AA163: 0 | AB163: 0 | AC163: 0 | AD163: 0 | AE163: 0
A164: ='Cars+'!A164 -> 00:00:00 | B164: ='Cars+'!B164 -> 0 | C164: ='Cars+'!C164 -> 0 | D164: =SUM('Cars+:Trucks'!D164) -> 0 | E164: =SUM('Cars+:Trucks'!E164) -> 0 | F164: =SUM('Cars+:Trucks'!F164) -> 0 | G164: =SUM('Cars+:Trucks'!G164) -> 0 | H164: =SUM('Cars+:Trucks'!H164) -> 0 | I164: =SUM('Cars+:Trucks'!I164) -> 0 | J164: =SUM('Cars+:Trucks'!J164) -> 0 | K164: =SUM('Cars+:Trucks'!K164) -> 0 | L164: =SUM('Cars+:Trucks'!L164) -> 0 | M164: =SUM('Cars+:Trucks'!M164) -> 0 | N164: =SUM('Cars+:Trucks'!N164) -> 0 | O164: =SUM('Cars+:Trucks'!O164) -> 0 | P164: =SUM('Cars+:Trucks'!P164) -> 0 | Q164: =SUM('Cars+:Trucks'!Q164) -> 0 | R164: =SUM('Cars+:Trucks'!R164) -> 0 | S164: =SUM('Cars+:Trucks'!S164) -> 0 | T164: =SUM('Cars+:Trucks'!T164) -> 0 | U164: =SUM('Cars+:Trucks'!U164) -> 0 | V164: =SUM('Cars+:Trucks'!V164) -> 0 | W164: =SUM('Cars+:Trucks'!W164) -> 0 | X164: 0 | Y164: 0 | Z164: 0 | AA164: 0 | AB164: 0 | AC164: 0 | AD164: 0 | AE164: =IF(AND(C164=C167,B167=VLOOKUP(B164,IntervalLookup,4)),SUM(AD164:AD167),0) -> 0
A165: ='Cars+'!A165 -> 00:00:00 | B165: ='Cars+'!B165 -> 0 | C165: ='Cars+'!C165 -> 0 | D165: =SUM('Cars+:Trucks'!D165) -> 0 | E165: =SUM('Cars+:Trucks'!E165) -> 0 | F165: =SUM('Cars+:Trucks'!F165) -> 0 | G165: =SUM('Cars+:Trucks'!G165) -> 0 | H165: =SUM('Cars+:Trucks'!H165) -> 0 | I165: =SUM('Cars+:Trucks'!I165) -> 0 | J165: =SUM('Cars+:Trucks'!J165) -> 0 | K165: =SUM('Cars+:Trucks'!K165) -> 0 | L165: =SUM('Cars+:Trucks'!L165) -> 0 | M165: =SUM('Cars+:Trucks'!M165) -> 0 | N165: =SUM('Cars+:Trucks'!N165) -> 0 | O165: =SUM('Cars+:Trucks'!O165) -> 0 | P165: =SUM('Cars+:Trucks'!P165) -> 0 | Q165: =SUM('Cars+:Trucks'!Q165) -> 0 | R165: =SUM('Cars+:Trucks'!R165) -> 0 | S165: =SUM('Cars+:Trucks'!S165) -> 0 | T165: =SUM('Cars+:Trucks'!T165) -> 0 | U165: =SUM('Cars+:Trucks'!U165) -> 0 | V165: =SUM('Cars+:Trucks'!V165) -> 0 | W165: =SUM('Cars+:Trucks'!W165) -> 0 | X165: 0 | Y165: 0 | Z165: 0 | AA165: 0 | AB165: 0 | AC165: 0 | AD165: 0 | AE165: 0
A166: ='Cars+'!A166 -> 00:00:00 | B166: ='Cars+'!B166 -> 0 | C166: ='Cars+'!C166 -> 0 | D166: =SUM('Cars+:Trucks'!D166) -> 0 | E166: =SUM('Cars+:Trucks'!E166) -> 0 | F166: =SUM('Cars+:Trucks'!F166) -> 0 | G166: =SUM('Cars+:Trucks'!G166) -> 0 | H166: =SUM('Cars+:Trucks'!H166) -> 0 | I166: =SUM('Cars+:Trucks'!I166) -> 0 | J166: =SUM('Cars+:Trucks'!J166) -> 0 | K166: =SUM('Cars+:Trucks'!K166) -> 0 | L166: =SUM('Cars+:Trucks'!L166) -> 0 | M166: =SUM('Cars+:Trucks'!M166) -> 0 | N166: =SUM('Cars+:Trucks'!N166) -> 0 | O166: =SUM('Cars+:Trucks'!O166) -> 0 | P166: =SUM('Cars+:Trucks'!P166) -> 0 | Q166: =SUM('Cars+:Trucks'!Q166) -> 0 | R166: =SUM('Cars+:Trucks'!R166) -> 0 | S166: =SUM('Cars+:Trucks'!S166) -> 0 | T166: =SUM('Cars+:Trucks'!T166) -> 0 | U166: =SUM('Cars+:Trucks'!U166) -> 0 | V166: =SUM('Cars+:Trucks'!V166) -> 0 | W166: =SUM('Cars+:Trucks'!W166) -> 0 | X166: 0 | Y166: 0 | Z166: 0 | AA166: 0 | AB166: 0 | AC166: 0 | AD166: 0 | AE166: 0
A167: ='Cars+'!A167 -> 00:00:00 | B167: ='Cars+'!B167 -> 0 | C167: ='Cars+'!C167 -> 0 | D167: =SUM('Cars+:Trucks'!D167) -> 0 | E167: =SUM('Cars+:Trucks'!E167) -> 0 | F167: =SUM('Cars+:Trucks'!F167) -> 0 | G167: =SUM('Cars+:Trucks'!G167) -> 0 | H167: =SUM('Cars+:Trucks'!H167) -> 0 | I167: =SUM('Cars+:Trucks'!I167) -> 0 | J167: =SUM('Cars+:Trucks'!J167) -> 0 | K167: =SUM('Cars+:Trucks'!K167) -> 0 | L167: =SUM('Cars+:Trucks'!L167) -> 0 | M167: =SUM('Cars+:Trucks'!M167) -> 0 | N167: =SUM('Cars+:Trucks'!N167) -> 0 | O167: =SUM('Cars+:Trucks'!O167) -> 0 | P167: =SUM('Cars+:Trucks'!P167) -> 0 | Q167: =SUM('Cars+:Trucks'!Q167) -> 0 | R167: =SUM('Cars+:Trucks'!R167) -> 0 | S167: =SUM('Cars+:Trucks'!S167) -> 0 | T167: =SUM('Cars+:Trucks'!T167) -> 0 | U167: =SUM('Cars+:Trucks'!U167) -> 0 | V167: =SUM('Cars+:Trucks'!V167) -> 0 | W167: =SUM('Cars+:Trucks'!W167) -> 0 | X167: 0 | Y167: 0 | Z167: 0 | AA167: 0 | AB167: 0 | AC167: 0 | AD167: 0 | AE167: 0
A168: ='Cars+'!A168 -> 00:00:00 | B168: ='Cars+'!B168 -> 0 | C168: ='Cars+'!C168 -> 0 | D168: =SUM('Cars+:Trucks'!D168) -> 0 | E168: =SUM('Cars+:Trucks'!E168) -> 0 | F168: =SUM('Cars+:Trucks'!F168) -> 0 | G168: =SUM('Cars+:Trucks'!G168) -> 0 | H168: =SUM('Cars+:Trucks'!H168) -> 0 | I168: =SUM('Cars+:Trucks'!I168) -> 0 | J168: =SUM('Cars+:Trucks'!J168) -> 0 | K168: =SUM('Cars+:Trucks'!K168) -> 0 | L168: =SUM('Cars+:Trucks'!L168) -> 0 | M168: =SUM('Cars+:Trucks'!M168) -> 0 | N168: =SUM('Cars+:Trucks'!N168) -> 0 | O168: =SUM('Cars+:Trucks'!O168) -> 0 | P168: =SUM('Cars+:Trucks'!P168) -> 0 | Q168: =SUM('Cars+:Trucks'!Q168) -> 0 | R168: =SUM('Cars+:Trucks'!R168) -> 0 | S168: =SUM('Cars+:Trucks'!S168) -> 0 | T168: =SUM('Cars+:Trucks'!T168) -> 0 | U168: =SUM('Cars+:Trucks'!U168) -> 0 | V168: =SUM('Cars+:Trucks'!V168) -> 0 | W168: =SUM('Cars+:Trucks'!W168) -> 0 | X168: 0 | Y168: 0 | Z168: 0 | AA168: 0 | AB168: 0 | AC168: 0 | AD168: 0 | AE168: 0
A169: ='Cars+'!A169 -> 00:00:00 | B169: ='Cars+'!B169 -> 0 | C169: ='Cars+'!C169 -> 0 | D169: =SUM('Cars+:Trucks'!D169) -> 0 | E169: =SUM('Cars+:Trucks'!E169) -> 0 | F169: =SUM('Cars+:Trucks'!F169) -> 0 | G169: =SUM('Cars+:Trucks'!G169) -> 0 | H169: =SUM('Cars+:Trucks'!H169) -> 0 | I169: =SUM('Cars+:Trucks'!I169) -> 0 | J169: =SUM('Cars+:Trucks'!J169) -> 0 | K169: =SUM('Cars+:Trucks'!K169) -> 0 | L169: =SUM('Cars+:Trucks'!L169) -> 0 | M169: =SUM('Cars+:Trucks'!M169) -> 0 | N169: =SUM('Cars+:Trucks'!N169) -> 0 | O169: =SUM('Cars+:Trucks'!O169) -> 0 | P169: =SUM('Cars+:Trucks'!P169) -> 0 | Q169: =SUM('Cars+:Trucks'!Q169) -> 0 | R169: =SUM('Cars+:Trucks'!R169) -> 0 | S169: =SUM('Cars+:Trucks'!S169) -> 0 | T169: =SUM('Cars+:Trucks'!T169) -> 0 | U169: =SUM('Cars+:Trucks'!U169) -> 0 | V169: =SUM('Cars+:Trucks'!V169) -> 0 | W169: =SUM('Cars+:Trucks'!W169) -> 0 | X169: 0 | Y169: 0 | Z169: 0 | AA169: 0 | AB169: 0 | AC169: 0 | AD169: 0 | AE169: 0
A170: ='Cars+'!A170 -> 00:00:00 | B170: ='Cars+'!B170 -> 0 | C170: ='Cars+'!C170 -> 0 | D170: =SUM('Cars+:Trucks'!D170) -> 0 | E170: =SUM('Cars+:Trucks'!E170) -> 0 | F170: =SUM('Cars+:Trucks'!F170) -> 0 | G170: =SUM('Cars+:Trucks'!G170) -> 0 | H170: =SUM('Cars+:Trucks'!H170) -> 0 | I170: =SUM('Cars+:Trucks'!I170) -> 0 | J170: =SUM('Cars+:Trucks'!J170) -> 0 | K170: =SUM('Cars+:Trucks'!K170) -> 0 | L170: =SUM('Cars+:Trucks'!L170) -> 0 | M170: =SUM('Cars+:Trucks'!M170) -> 0 | N170: =SUM('Cars+:Trucks'!N170) -> 0 | O170: =SUM('Cars+:Trucks'!O170) -> 0 | P170: =SUM('Cars+:Trucks'!P170) -> 0 | Q170: =SUM('Cars+:Trucks'!Q170) -> 0 | R170: =SUM('Cars+:Trucks'!R170) -> 0 | S170: =SUM('Cars+:Trucks'!S170) -> 0 | T170: =SUM('Cars+:Trucks'!T170) -> 0 | U170: =SUM('Cars+:Trucks'!U170) -> 0 | V170: =SUM('Cars+:Trucks'!V170) -> 0 | W170: =SUM('Cars+:Trucks'!W170) -> 0 | X170: 0 | Y170: 0 | Z170: 0 | AA170: 0 | AB170: 0 | AC170: 0 | AD170: 0 | AE170: 0
A171: ='Cars+'!A171 -> 00:00:00 | B171: ='Cars+'!B171 -> 0 | C171: ='Cars+'!C171 -> 0 | D171: =SUM('Cars+:Trucks'!D171) -> 0 | E171: =SUM('Cars+:Trucks'!E171) -> 0 | F171: =SUM('Cars+:Trucks'!F171) -> 0 | G171: =SUM('Cars+:Trucks'!G171) -> 0 | H171: =SUM('Cars+:Trucks'!H171) -> 0 | I171: =SUM('Cars+:Trucks'!I171) -> 0 | J171: =SUM('Cars+:Trucks'!J171) -> 0 | K171: =SUM('Cars+:Trucks'!K171) -> 0 | L171: =SUM('Cars+:Trucks'!L171) -> 0 | M171: =SUM('Cars+:Trucks'!M171) -> 0 | N171: =SUM('Cars+:Trucks'!N171) -> 0 | O171: =SUM('Cars+:Trucks'!O171) -> 0 | P171: =SUM('Cars+:Trucks'!P171) -> 0 | Q171: =SUM('Cars+:Trucks'!Q171) -> 0 | R171: =SUM('Cars+:Trucks'!R171) -> 0 | S171: =SUM('Cars+:Trucks'!S171) -> 0 | T171: =SUM('Cars+:Trucks'!T171) -> 0 | U171: =SUM('Cars+:Trucks'!U171) -> 0 | V171: =SUM('Cars+:Trucks'!V171) -> 0 | W171: =SUM('Cars+:Trucks'!W171) -> 0 | X171: 0 | Y171: 0 | Z171: 0 | AA171: 0 | AB171: 0 | AC171: 0 | AD171: 0 | AE171: 0
A172: ='Cars+'!A172 -> 00:00:00 | B172: ='Cars+'!B172 -> 0 | C172: ='Cars+'!C172 -> 0 | D172: =SUM('Cars+:Trucks'!D172) -> 0 | E172: =SUM('Cars+:Trucks'!E172) -> 0 | F172: =SUM('Cars+:Trucks'!F172) -> 0 | G172: =SUM('Cars+:Trucks'!G172) -> 0 | H172: =SUM('Cars+:Trucks'!H172) -> 0 | I172: =SUM('Cars+:Trucks'!I172) -> 0 | J172: =SUM('Cars+:Trucks'!J172) -> 0 | K172: =SUM('Cars+:Trucks'!K172) -> 0 | L172: =SUM('Cars+:Trucks'!L172) -> 0 | M172: =SUM('Cars+:Trucks'!M172) -> 0 | N172: =SUM('Cars+:Trucks'!N172) -> 0 | O172: =SUM('Cars+:Trucks'!O172) -> 0 | P172: =SUM('Cars+:Trucks'!P172) -> 0 | Q172: =SUM('Cars+:Trucks'!Q172) -> 0 | R172: =SUM('Cars+:Trucks'!R172) -> 0 | S172: =SUM('Cars+:Trucks'!S172) -> 0 | T172: =SUM('Cars+:Trucks'!T172) -> 0 | U172: =SUM('Cars+:Trucks'!U172) -> 0 | V172: =SUM('Cars+:Trucks'!V172) -> 0 | W172: =SUM('Cars+:Trucks'!W172) -> 0 | X172: 0 | Y172: 0 | Z172: 0 | AA172: 0 | AB172: 0 | AC172: 0 | AD172: 0 | AE172: 0
A173: ='Cars+'!A173 -> 00:00:00 | B173: ='Cars+'!B173 -> 0 | C173: ='Cars+'!C173 -> 0 | D173: =SUM('Cars+:Trucks'!D173) -> 0 | E173: =SUM('Cars+:Trucks'!E173) -> 0 | F173: =SUM('Cars+:Trucks'!F173) -> 0 | G173: =SUM('Cars+:Trucks'!G173) -> 0 | H173: =SUM('Cars+:Trucks'!H173) -> 0 | I173: =SUM('Cars+:Trucks'!I173) -> 0 | J173: =SUM('Cars+:Trucks'!J173) -> 0 | K173: =SUM('Cars+:Trucks'!K173) -> 0 | L173: =SUM('Cars+:Trucks'!L173) -> 0 | M173: =SUM('Cars+:Trucks'!M173) -> 0 | N173: =SUM('Cars+:Trucks'!N173) -> 0 | O173: =SUM('Cars+:Trucks'!O173) -> 0 | P173: =SUM('Cars+:Trucks'!P173) -> 0 | Q173: =SUM('Cars+:Trucks'!Q173) -> 0 | R173: =SUM('Cars+:Trucks'!R173) -> 0 | S173: =SUM('Cars+:Trucks'!S173) -> 0 | T173: =SUM('Cars+:Trucks'!T173) -> 0 | U173: =SUM('Cars+:Trucks'!U173) -> 0 | V173: =SUM('Cars+:Trucks'!V173) -> 0 | W173: =SUM('Cars+:Trucks'!W173) -> 0 | X173: 0 | Y173: 0 | Z173: 0 | AA173: 0 | AB173: 0 | AC173: 0 | AD173: 0 | AE173: 0
A174: ='Cars+'!A174 -> 00:00:00 | B174: ='Cars+'!B174 -> 0 | C174: ='Cars+'!C174 -> 0 | D174: =SUM('Cars+:Trucks'!D174) -> 0 | E174: =SUM('Cars+:Trucks'!E174) -> 0 | F174: =SUM('Cars+:Trucks'!F174) -> 0 | G174: =SUM('Cars+:Trucks'!G174) -> 0 | H174: =SUM('Cars+:Trucks'!H174) -> 0 | I174: =SUM('Cars+:Trucks'!I174) -> 0 | J174: =SUM('Cars+:Trucks'!J174) -> 0 | K174: =SUM('Cars+:Trucks'!K174) -> 0 | L174: =SUM('Cars+:Trucks'!L174) -> 0 | M174: =SUM('Cars+:Trucks'!M174) -> 0 | N174: =SUM('Cars+:Trucks'!N174) -> 0 | O174: =SUM('Cars+:Trucks'!O174) -> 0 | P174: =SUM('Cars+:Trucks'!P174) -> 0 | Q174: =SUM('Cars+:Trucks'!Q174) -> 0 | R174: =SUM('Cars+:Trucks'!R174) -> 0 | S174: =SUM('Cars+:Trucks'!S174) -> 0 | T174: =SUM('Cars+:Trucks'!T174) -> 0 | U174: =SUM('Cars+:Trucks'!U174) -> 0 | V174: =SUM('Cars+:Trucks'!V174) -> 0 | W174: =SUM('Cars+:Trucks'!W174) -> 0 | X174: 0 | Y174: 0 | Z174: 0 | AA174: 0 | AB174: 0 | AC174: 0 | AD174: 0 | AE174: 0
A175: ='Cars+'!A175 -> 00:00:00 | B175: ='Cars+'!B175 -> 0 | C175: ='Cars+'!C175 -> 0 | D175: =SUM('Cars+:Trucks'!D175) -> 0 | E175: =SUM('Cars+:Trucks'!E175) -> 0 | F175: =SUM('Cars+:Trucks'!F175) -> 0 | G175: =SUM('Cars+:Trucks'!G175) -> 0 | H175: =SUM('Cars+:Trucks'!H175) -> 0 | I175: =SUM('Cars+:Trucks'!I175) -> 0 | J175: =SUM('Cars+:Trucks'!J175) -> 0 | K175: =SUM('Cars+:Trucks'!K175) -> 0 | L175: =SUM('Cars+:Trucks'!L175) -> 0 | M175: =SUM('Cars+:Trucks'!M175) -> 0 | N175: =SUM('Cars+:Trucks'!N175) -> 0 | O175: =SUM('Cars+:Trucks'!O175) -> 0 | P175: =SUM('Cars+:Trucks'!P175) -> 0 | Q175: =SUM('Cars+:Trucks'!Q175) -> 0 | R175: =SUM('Cars+:Trucks'!R175) -> 0 | S175: =SUM('Cars+:Trucks'!S175) -> 0 | T175: =SUM('Cars+:Trucks'!T175) -> 0 | U175: =SUM('Cars+:Trucks'!U175) -> 0 | V175: =SUM('Cars+:Trucks'!V175) -> 0 | W175: =SUM('Cars+:Trucks'!W175) -> 0 | X175: 0 | Y175: 0 | Z175: 0 | AA175: 0 | AB175: 0 | AC175: 0 | AD175: 0 | AE175: 0
A176: ='Cars+'!A176 -> 00:00:00 | B176: ='Cars+'!B176 -> 0 | C176: ='Cars+'!C176 -> 0 | D176: =SUM('Cars+:Trucks'!D176) -> 0 | E176: =SUM('Cars+:Trucks'!E176) -> 0 | F176: =SUM('Cars+:Trucks'!F176) -> 0 | G176: =SUM('Cars+:Trucks'!G176) -> 0 | H176: =SUM('Cars+:Trucks'!H176) -> 0 | I176: =SUM('Cars+:Trucks'!I176) -> 0 | J176: =SUM('Cars+:Trucks'!J176) -> 0 | K176: =SUM('Cars+:Trucks'!K176) -> 0 | L176: =SUM('Cars+:Trucks'!L176) -> 0 | M176: =SUM('Cars+:Trucks'!M176) -> 0 | N176: =SUM('Cars+:Trucks'!N176) -> 0 | O176: =SUM('Cars+:Trucks'!O176) -> 0 | P176: =SUM('Cars+:Trucks'!P176) -> 0 | Q176: =SUM('Cars+:Trucks'!Q176) -> 0 | R176: =SUM('Cars+:Trucks'!R176) -> 0 | S176: =SUM('Cars+:Trucks'!S176) -> 0 | T176: =SUM('Cars+:Trucks'!T176) -> 0 | U176: =SUM('Cars+:Trucks'!U176) -> 0 | V176: =SUM('Cars+:Trucks'!V176) -> 0 | W176: =SUM('Cars+:Trucks'!W176) -> 0 | X176: 0 | Y176: 0 | Z176: 0 | AA176: 0 | AB176: 0 | AC176: 0 | AD176: 0 | AE176: 0
A177: ='Cars+'!A177 -> 00:00:00 | B177: ='Cars+'!B177 -> 0 | C177: ='Cars+'!C177 -> 0 | D177: =SUM('Cars+:Trucks'!D177) -> 0 | E177: =SUM('Cars+:Trucks'!E177) -> 0 | F177: =SUM('Cars+:Trucks'!F177) -> 0 | G177: =SUM('Cars+:Trucks'!G177) -> 0 | H177: =SUM('Cars+:Trucks'!H177) -> 0 | I177: =SUM('Cars+:Trucks'!I177) -> 0 | J177: =SUM('Cars+:Trucks'!J177) -> 0 | K177: =SUM('Cars+:Trucks'!K177) -> 0 | L177: =SUM('Cars+:Trucks'!L177) -> 0 | M177: =SUM('Cars+:Trucks'!M177) -> 0 | N177: =SUM('Cars+:Trucks'!N177) -> 0 | O177: =SUM('Cars+:Trucks'!O177) -> 0 | P177: =SUM('Cars+:Trucks'!P177) -> 0 | Q177: =SUM('Cars+:Trucks'!Q177) -> 0 | R177: =SUM('Cars+:Trucks'!R177) -> 0 | S177: =SUM('Cars+:Trucks'!S177) -> 0 | T177: =SUM('Cars+:Trucks'!T177) -> 0 | U177: =SUM('Cars+:Trucks'!U177) -> 0 | V177: =SUM('Cars+:Trucks'!V177) -> 0 | W177: =SUM('Cars+:Trucks'!W177) -> 0 | X177: 0 | Y177: 0 | Z177: 0 | AA177: 0 | AB177: 0 | AC177: 0 | AD177: 0 | AE177: 0
A178: ='Cars+'!A178 -> 00:00:00 | B178: ='Cars+'!B178 -> 0 | C178: ='Cars+'!C178 -> 0 | D178: =SUM('Cars+:Trucks'!D178) -> 0 | E178: =SUM('Cars+:Trucks'!E178) -> 0 | F178: =SUM('Cars+:Trucks'!F178) -> 0 | G178: =SUM('Cars+:Trucks'!G178) -> 0 | H178: =SUM('Cars+:Trucks'!H178) -> 0 | I178: =SUM('Cars+:Trucks'!I178) -> 0 | J178: =SUM('Cars+:Trucks'!J178) -> 0 | K178: =SUM('Cars+:Trucks'!K178) -> 0 | L178: =SUM('Cars+:Trucks'!L178) -> 0 | M178: =SUM('Cars+:Trucks'!M178) -> 0 | N178: =SUM('Cars+:Trucks'!N178) -> 0 | O178: =SUM('Cars+:Trucks'!O178) -> 0 | P178: =SUM('Cars+:Trucks'!P178) -> 0 | Q178: =SUM('Cars+:Trucks'!Q178) -> 0 | R178: =SUM('Cars+:Trucks'!R178) -> 0 | S178: =SUM('Cars+:Trucks'!S178) -> 0 | T178: =SUM('Cars+:Trucks'!T178) -> 0 | U178: =SUM('Cars+:Trucks'!U178) -> 0 | V178: =SUM('Cars+:Trucks'!V178) -> 0 | W178: =SUM('Cars+:Trucks'!W178) -> 0 | X178: 0 | Y178: 0 | Z178: 0 | AA178: 0 | AB178: 0 | AC178: 0 | AD178: 0 | AE178: 0
A179: ='Cars+'!A179 -> 00:00:00 | B179: ='Cars+'!B179 -> 0 | C179: ='Cars+'!C179 -> 0 | D179: =SUM('Cars+:Trucks'!D179) -> 0 | E179: =SUM('Cars+:Trucks'!E179) -> 0 | F179: =SUM('Cars+:Trucks'!F179) -> 0 | G179: =SUM('Cars+:Trucks'!G179) -> 0 | H179: =SUM('Cars+:Trucks'!H179) -> 0 | I179: =SUM('Cars+:Trucks'!I179) -> 0 | J179: =SUM('Cars+:Trucks'!J179) -> 0 | K179: =SUM('Cars+:Trucks'!K179) -> 0 | L179: =SUM('Cars+:Trucks'!L179) -> 0 | M179: =SUM('Cars+:Trucks'!M179) -> 0 | N179: =SUM('Cars+:Trucks'!N179) -> 0 | O179: =SUM('Cars+:Trucks'!O179) -> 0 | P179: =SUM('Cars+:Trucks'!P179) -> 0 | Q179: =SUM('Cars+:Trucks'!Q179) -> 0 | R179: =SUM('Cars+:Trucks'!R179) -> 0 | S179: =SUM('Cars+:Trucks'!S179) -> 0 | T179: =SUM('Cars+:Trucks'!T179) -> 0 | U179: =SUM('Cars+:Trucks'!U179) -> 0 | V179: =SUM('Cars+:Trucks'!V179) -> 0 | W179: =SUM('Cars+:Trucks'!W179) -> 0 | X179: 0 | Y179: 0 | Z179: 0 | AA179: 0 | AB179: 0 | AC179: 0 | AD179: 0 | AE179: =IF(AND(C179=C184,B184=VLOOKUP(B179,IntervalLookup,4)),SUM(AD179:AD184),0) -> 0
A180: ='Cars+'!A180 -> 00:00:00 | B180: ='Cars+'!B180 -> 0 | C180: ='Cars+'!C180 -> 0 | D180: =SUM('Cars+:Trucks'!D180) -> 0 | E180: =SUM('Cars+:Trucks'!E180) -> 0 | F180: =SUM('Cars+:Trucks'!F180) -> 0 | G180: =SUM('Cars+:Trucks'!G180) -> 0 | H180: =SUM('Cars+:Trucks'!H180) -> 0 | I180: =SUM('Cars+:Trucks'!I180) -> 0 | J180: =SUM('Cars+:Trucks'!J180) -> 0 | K180: =SUM('Cars+:Trucks'!K180) -> 0 | L180: =SUM('Cars+:Trucks'!L180) -> 0 | M180: =SUM('Cars+:Trucks'!M180) -> 0 | N180: =SUM('Cars+:Trucks'!N180) -> 0 | O180: =SUM('Cars+:Trucks'!O180) -> 0 | P180: =SUM('Cars+:Trucks'!P180) -> 0 | Q180: =SUM('Cars+:Trucks'!Q180) -> 0 | R180: =SUM('Cars+:Trucks'!R180) -> 0 | S180: =SUM('Cars+:Trucks'!S180) -> 0 | T180: =SUM('Cars+:Trucks'!T180) -> 0 | U180: =SUM('Cars+:Trucks'!U180) -> 0 | V180: =SUM('Cars+:Trucks'!V180) -> 0 | W180: =SUM('Cars+:Trucks'!W180) -> 0 | X180: 0 | Y180: 0 | Z180: 0 | AA180: 0 | AB180: 0 | AC180: 0 | AD180: 0 | AE180: =IF(AND(C180=C185,B185=VLOOKUP(B180,IntervalLookup,4)),SUM(AD180:AD185),0) -> 0
A181: ='Cars+'!A181 -> 00:00:00 | B181: ='Cars+'!B181 -> 0 | C181: ='Cars+'!C181 -> 0 | D181: =SUM('Cars+:Trucks'!D181) -> 0 | E181: =SUM('Cars+:Trucks'!E181) -> 0 | F181: =SUM('Cars+:Trucks'!F181) -> 0 | G181: =SUM('Cars+:Trucks'!G181) -> 0 | H181: =SUM('Cars+:Trucks'!H181) -> 0 | I181: =SUM('Cars+:Trucks'!I181) -> 0 | J181: =SUM('Cars+:Trucks'!J181) -> 0 | K181: =SUM('Cars+:Trucks'!K181) -> 0 | L181: =SUM('Cars+:Trucks'!L181) -> 0 | M181: =SUM('Cars+:Trucks'!M181) -> 0 | N181: =SUM('Cars+:Trucks'!N181) -> 0 | O181: =SUM('Cars+:Trucks'!O181) -> 0 | P181: =SUM('Cars+:Trucks'!P181) -> 0 | Q181: =SUM('Cars+:Trucks'!Q181) -> 0 | R181: =SUM('Cars+:Trucks'!R181) -> 0 | S181: =SUM('Cars+:Trucks'!S181) -> 0 | T181: =SUM('Cars+:Trucks'!T181) -> 0 | U181: =SUM('Cars+:Trucks'!U181) -> 0 | V181: =SUM('Cars+:Trucks'!V181) -> 0 | W181: =SUM('Cars+:Trucks'!W181) -> 0 | X181: 0 | Y181: 0 | Z181: 0 | AA181: 0 | AB181: 0 | AC181: 0 | AD181: 0 | AE181: =IF(AND(C181=C186,B186=VLOOKUP(B181,IntervalLookup,4)),SUM(AD181:AD186),0) -> 0
A182: ='Cars+'!A182 -> 00:00:00 | B182: ='Cars+'!B182 -> 0 | C182: ='Cars+'!C182 -> 0 | D182: =SUM('Cars+:Trucks'!D182) -> 0 | E182: =SUM('Cars+:Trucks'!E182) -> 0 | F182: =SUM('Cars+:Trucks'!F182) -> 0 | G182: =SUM('Cars+:Trucks'!G182) -> 0 | H182: =SUM('Cars+:Trucks'!H182) -> 0 | I182: =SUM('Cars+:Trucks'!I182) -> 0 | J182: =SUM('Cars+:Trucks'!J182) -> 0 | K182: =SUM('Cars+:Trucks'!K182) -> 0 | L182: =SUM('Cars+:Trucks'!L182) -> 0 | M182: =SUM('Cars+:Trucks'!M182) -> 0 | N182: =SUM('Cars+:Trucks'!N182) -> 0 | O182: =SUM('Cars+:Trucks'!O182) -> 0 | P182: =SUM('Cars+:Trucks'!P182) -> 0 | Q182: =SUM('Cars+:Trucks'!Q182) -> 0 | R182: =SUM('Cars+:Trucks'!R182) -> 0 | S182: =SUM('Cars+:Trucks'!S182) -> 0 | T182: =SUM('Cars+:Trucks'!T182) -> 0 | U182: =SUM('Cars+:Trucks'!U182) -> 0 | V182: =SUM('Cars+:Trucks'!V182) -> 0 | W182: =SUM('Cars+:Trucks'!W182) -> 0 | X182: 0 | Y182: 0 | Z182: 0 | AA182: 0 | AB182: 0 | AC182: 0 | AD182: 0 | AE182: =IF(AND(C182=C185,B185=VLOOKUP(B182,IntervalLookup,4)),SUM(AD182:AD185),0) -> 0
A183: ='Cars+'!A183 -> 00:00:00 | B183: ='Cars+'!B183 -> 0 | C183: ='Cars+'!C183 -> 0 | D183: =SUM('Cars+:Trucks'!D183) -> 0 | E183: =SUM('Cars+:Trucks'!E183) -> 0 | F183: =SUM('Cars+:Trucks'!F183) -> 0 | G183: =SUM('Cars+:Trucks'!G183) -> 0 | H183: =SUM('Cars+:Trucks'!H183) -> 0 | I183: =SUM('Cars+:Trucks'!I183) -> 0 | J183: =SUM('Cars+:Trucks'!J183) -> 0 | K183: =SUM('Cars+:Trucks'!K183) -> 0 | L183: =SUM('Cars+:Trucks'!L183) -> 0 | M183: =SUM('Cars+:Trucks'!M183) -> 0 | N183: =SUM('Cars+:Trucks'!N183) -> 0 | O183: =SUM('Cars+:Trucks'!O183) -> 0 | P183: =SUM('Cars+:Trucks'!P183) -> 0 | Q183: =SUM('Cars+:Trucks'!Q183) -> 0 | R183: =SUM('Cars+:Trucks'!R183) -> 0 | S183: =SUM('Cars+:Trucks'!S183) -> 0 | T183: =SUM('Cars+:Trucks'!T183) -> 0 | U183: =SUM('Cars+:Trucks'!U183) -> 0 | V183: =SUM('Cars+:Trucks'!V183) -> 0 | W183: =SUM('Cars+:Trucks'!W183) -> 0 | X183: 0 | Y183: 0 | Z183: 0 | AA183: 0 | AB183: 0 | AC183: 0 | AD183: 0 | AE183: 0
A184: ='Cars+'!A184 -> 00:00:00 | B184: ='Cars+'!B184 -> 0 | C184: ='Cars+'!C184 -> 0 | D184: =SUM('Cars+:Trucks'!D184) -> 0 | E184: =SUM('Cars+:Trucks'!E184) -> 0 | F184: =SUM('Cars+:Trucks'!F184) -> 0 | G184: =SUM('Cars+:Trucks'!G184) -> 0 | H184: =SUM('Cars+:Trucks'!H184) -> 0 | I184: =SUM('Cars+:Trucks'!I184) -> 0 | J184: =SUM('Cars+:Trucks'!J184) -> 0 | K184: =SUM('Cars+:Trucks'!K184) -> 0 | L184: =SUM('Cars+:Trucks'!L184) -> 0 | M184: =SUM('Cars+:Trucks'!M184) -> 0 | N184: =SUM('Cars+:Trucks'!N184) -> 0 | O184: =SUM('Cars+:Trucks'!O184) -> 0 | P184: =SUM('Cars+:Trucks'!P184) -> 0 | Q184: =SUM('Cars+:Trucks'!Q184) -> 0 | R184: =SUM('Cars+:Trucks'!R184) -> 0 | S184: =SUM('Cars+:Trucks'!S184) -> 0 | T184: =SUM('Cars+:Trucks'!T184) -> 0 | U184: =SUM('Cars+:Trucks'!U184) -> 0 | V184: =SUM('Cars+:Trucks'!V184) -> 0 | W184: =SUM('Cars+:Trucks'!W184) -> 0 | X184: 0 | Y184: 0 | Z184: 0 | AA184: 0 | AB184: 0 | AC184: 0 | AD184: 0 | AE184: 0
A185: ='Cars+'!A185 -> 00:00:00 | B185: ='Cars+'!B185 -> 0 | C185: ='Cars+'!C185 -> 0 | D185: =SUM('Cars+:Trucks'!D185) -> 0 | E185: =SUM('Cars+:Trucks'!E185) -> 0 | F185: =SUM('Cars+:Trucks'!F185) -> 0 | G185: =SUM('Cars+:Trucks'!G185) -> 0 | H185: =SUM('Cars+:Trucks'!H185) -> 0 | I185: =SUM('Cars+:Trucks'!I185) -> 0 | J185: =SUM('Cars+:Trucks'!J185) -> 0 | K185: =SUM('Cars+:Trucks'!K185) -> 0 | L185: =SUM('Cars+:Trucks'!L185) -> 0 | M185: =SUM('Cars+:Trucks'!M185) -> 0 | N185: =SUM('Cars+:Trucks'!N185) -> 0 | O185: =SUM('Cars+:Trucks'!O185) -> 0 | P185: =SUM('Cars+:Trucks'!P185) -> 0 | Q185: =SUM('Cars+:Trucks'!Q185) -> 0 | R185: =SUM('Cars+:Trucks'!R185) -> 0 | S185: =SUM('Cars+:Trucks'!S185) -> 0 | T185: =SUM('Cars+:Trucks'!T185) -> 0 | U185: =SUM('Cars+:Trucks'!U185) -> 0 | V185: =SUM('Cars+:Trucks'!V185) -> 0 | W185: =SUM('Cars+:Trucks'!W185) -> 0 | X185: 0 | Y185: 0 | Z185: 0 | AA185: 0 | AB185: 0 | AC185: 0 | AD185: 0 | AE185: 0
A186: ='Cars+'!A186 -> 00:00:00 | B186: ='Cars+'!B186 -> 0 | C186: ='Cars+'!C186 -> 0 | D186: =SUM('Cars+:Trucks'!D186) -> 0 | E186: =SUM('Cars+:Trucks'!E186) -> 0 | F186: =SUM('Cars+:Trucks'!F186) -> 0 | G186: =SUM('Cars+:Trucks'!G186) -> 0 | H186: =SUM('Cars+:Trucks'!H186) -> 0 | I186: =SUM('Cars+:Trucks'!I186) -> 0 | J186: =SUM('Cars+:Trucks'!J186) -> 0 | K186: =SUM('Cars+:Trucks'!K186) -> 0 | L186: =SUM('Cars+:Trucks'!L186) -> 0 | M186: =SUM('Cars+:Trucks'!M186) -> 0 | N186: =SUM('Cars+:Trucks'!N186) -> 0 | O186: =SUM('Cars+:Trucks'!O186) -> 0 | P186: =SUM('Cars+:Trucks'!P186) -> 0 | Q186: =SUM('Cars+:Trucks'!Q186) -> 0 | R186: =SUM('Cars+:Trucks'!R186) -> 0 | S186: =SUM('Cars+:Trucks'!S186) -> 0 | T186: =SUM('Cars+:Trucks'!T186) -> 0 | U186: =SUM('Cars+:Trucks'!U186) -> 0 | V186: =SUM('Cars+:Trucks'!V186) -> 0 | W186: =SUM('Cars+:Trucks'!W186) -> 0 | X186: 0 | Y186: 0 | Z186: 0 | AA186: 0 | AB186: 0 | AC186: 0 | AD186: 0 | AE186: 0
A187: ='Cars+'!A187 -> 00:00:00 | B187: ='Cars+'!B187 -> 0 | C187: ='Cars+'!C187 -> 0 | D187: =SUM('Cars+:Trucks'!D187) -> 0 | E187: =SUM('Cars+:Trucks'!E187) -> 0 | F187: =SUM('Cars+:Trucks'!F187) -> 0 | G187: =SUM('Cars+:Trucks'!G187) -> 0 | H187: =SUM('Cars+:Trucks'!H187) -> 0 | I187: =SUM('Cars+:Trucks'!I187) -> 0 | J187: =SUM('Cars+:Trucks'!J187) -> 0 | K187: =SUM('Cars+:Trucks'!K187) -> 0 | L187: =SUM('Cars+:Trucks'!L187) -> 0 | M187: =SUM('Cars+:Trucks'!M187) -> 0 | N187: =SUM('Cars+:Trucks'!N187) -> 0 | O187: =SUM('Cars+:Trucks'!O187) -> 0 | P187: =SUM('Cars+:Trucks'!P187) -> 0 | Q187: =SUM('Cars+:Trucks'!Q187) -> 0 | R187: =SUM('Cars+:Trucks'!R187) -> 0 | S187: =SUM('Cars+:Trucks'!S187) -> 0 | T187: =SUM('Cars+:Trucks'!T187) -> 0 | U187: =SUM('Cars+:Trucks'!U187) -> 0 | V187: =SUM('Cars+:Trucks'!V187) -> 0 | W187: =SUM('Cars+:Trucks'!W187) -> 0 | X187: 0 | Y187: 0 | Z187: 0 | AA187: 0 | AB187: 0 | AC187: 0 | AD187: 0 | AE187: 0
A188: ='Cars+'!A188 -> 00:00:00 | B188: ='Cars+'!B188 -> 0 | C188: ='Cars+'!C188 -> 0 | D188: =SUM('Cars+:Trucks'!D188) -> 0 | E188: =SUM('Cars+:Trucks'!E188) -> 0 | F188: =SUM('Cars+:Trucks'!F188) -> 0 | G188: =SUM('Cars+:Trucks'!G188) -> 0 | H188: =SUM('Cars+:Trucks'!H188) -> 0 | I188: =SUM('Cars+:Trucks'!I188) -> 0 | J188: =SUM('Cars+:Trucks'!J188) -> 0 | K188: =SUM('Cars+:Trucks'!K188) -> 0 | L188: =SUM('Cars+:Trucks'!L188) -> 0 | M188: =SUM('Cars+:Trucks'!M188) -> 0 | N188: =SUM('Cars+:Trucks'!N188) -> 0 | O188: =SUM('Cars+:Trucks'!O188) -> 0 | P188: =SUM('Cars+:Trucks'!P188) -> 0 | Q188: =SUM('Cars+:Trucks'!Q188) -> 0 | R188: =SUM('Cars+:Trucks'!R188) -> 0 | S188: =SUM('Cars+:Trucks'!S188) -> 0 | T188: =SUM('Cars+:Trucks'!T188) -> 0 | U188: =SUM('Cars+:Trucks'!U188) -> 0 | V188: =SUM('Cars+:Trucks'!V188) -> 0 | W188: =SUM('Cars+:Trucks'!W188) -> 0 | X188: 0 | Y188: 0 | Z188: 0 | AA188: 0 | AB188: 0 | AC188: 0 | AD188: 0 | AE188: 0
A189: ='Cars+'!A189 -> 00:00:00 | B189: ='Cars+'!B189 -> 0 | C189: ='Cars+'!C189 -> 0 | D189: =SUM('Cars+:Trucks'!D189) -> 0 | E189: =SUM('Cars+:Trucks'!E189) -> 0 | F189: =SUM('Cars+:Trucks'!F189) -> 0 | G189: =SUM('Cars+:Trucks'!G189) -> 0 | H189: =SUM('Cars+:Trucks'!H189) -> 0 | I189: =SUM('Cars+:Trucks'!I189) -> 0 | J189: =SUM('Cars+:Trucks'!J189) -> 0 | K189: =SUM('Cars+:Trucks'!K189) -> 0 | L189: =SUM('Cars+:Trucks'!L189) -> 0 | M189: =SUM('Cars+:Trucks'!M189) -> 0 | N189: =SUM('Cars+:Trucks'!N189) -> 0 | O189: =SUM('Cars+:Trucks'!O189) -> 0 | P189: =SUM('Cars+:Trucks'!P189) -> 0 | Q189: =SUM('Cars+:Trucks'!Q189) -> 0 | R189: =SUM('Cars+:Trucks'!R189) -> 0 | S189: =SUM('Cars+:Trucks'!S189) -> 0 | T189: =SUM('Cars+:Trucks'!T189) -> 0 | U189: =SUM('Cars+:Trucks'!U189) -> 0 | V189: =SUM('Cars+:Trucks'!V189) -> 0 | W189: =SUM('Cars+:Trucks'!W189) -> 0 | X189: 0 | Y189: 0 | Z189: 0 | AA189: 0 | AB189: 0 | AC189: 0 | AD189: 0 | AE189: 0
A190: ='Cars+'!A190 -> 00:00:00 | B190: ='Cars+'!B190 -> 0 | C190: ='Cars+'!C190 -> 0 | D190: =SUM('Cars+:Trucks'!D190) -> 0 | E190: =SUM('Cars+:Trucks'!E190) -> 0 | F190: =SUM('Cars+:Trucks'!F190) -> 0 | G190: =SUM('Cars+:Trucks'!G190) -> 0 | H190: =SUM('Cars+:Trucks'!H190) -> 0 | I190: =SUM('Cars+:Trucks'!I190) -> 0 | J190: =SUM('Cars+:Trucks'!J190) -> 0 | K190: =SUM('Cars+:Trucks'!K190) -> 0 | L190: =SUM('Cars+:Trucks'!L190) -> 0 | M190: =SUM('Cars+:Trucks'!M190) -> 0 | N190: =SUM('Cars+:Trucks'!N190) -> 0 | O190: =SUM('Cars+:Trucks'!O190) -> 0 | P190: =SUM('Cars+:Trucks'!P190) -> 0 | Q190: =SUM('Cars+:Trucks'!Q190) -> 0 | R190: =SUM('Cars+:Trucks'!R190) -> 0 | S190: =SUM('Cars+:Trucks'!S190) -> 0 | T190: =SUM('Cars+:Trucks'!T190) -> 0 | U190: =SUM('Cars+:Trucks'!U190) -> 0 | V190: =SUM('Cars+:Trucks'!V190) -> 0 | W190: =SUM('Cars+:Trucks'!W190) -> 0 | X190: 0 | Y190: 0 | Z190: 0 | AA190: 0 | AB190: 0 | AC190: 0 | AD190: 0 | AE190: 0
A191: ='Cars+'!A191 -> 00:00:00 | B191: ='Cars+'!B191 -> 0 | C191: ='Cars+'!C191 -> 0 | D191: =SUM('Cars+:Trucks'!D191) -> 0 | E191: =SUM('Cars+:Trucks'!E191) -> 0 | F191: =SUM('Cars+:Trucks'!F191) -> 0 | G191: =SUM('Cars+:Trucks'!G191) -> 0 | H191: =SUM('Cars+:Trucks'!H191) -> 0 | I191: =SUM('Cars+:Trucks'!I191) -> 0 | J191: =SUM('Cars+:Trucks'!J191) -> 0 | K191: =SUM('Cars+:Trucks'!K191) -> 0 | L191: =SUM('Cars+:Trucks'!L191) -> 0 | M191: =SUM('Cars+:Trucks'!M191) -> 0 | N191: =SUM('Cars+:Trucks'!N191) -> 0 | O191: =SUM('Cars+:Trucks'!O191) -> 0 | P191: =SUM('Cars+:Trucks'!P191) -> 0 | Q191: =SUM('Cars+:Trucks'!Q191) -> 0 | R191: =SUM('Cars+:Trucks'!R191) -> 0 | S191: =SUM('Cars+:Trucks'!S191) -> 0 | T191: =SUM('Cars+:Trucks'!T191) -> 0 | U191: =SUM('Cars+:Trucks'!U191) -> 0 | V191: =SUM('Cars+:Trucks'!V191) -> 0 | W191: =SUM('Cars+:Trucks'!W191) -> 0 | X191: 0 | Y191: 0 | Z191: 0 | AA191: 0 | AB191: 0 | AC191: 0 | AD191: 0 | AE191: 0
A192: ='Cars+'!A192 -> 00:00:00 | B192: ='Cars+'!B192 -> 0 | C192: ='Cars+'!C192 -> 0 | D192: =SUM('Cars+:Trucks'!D192) -> 0 | E192: =SUM('Cars+:Trucks'!E192) -> 0 | F192: =SUM('Cars+:Trucks'!F192) -> 0 | G192: =SUM('Cars+:Trucks'!G192) -> 0 | H192: =SUM('Cars+:Trucks'!H192) -> 0 | I192: =SUM('Cars+:Trucks'!I192) -> 0 | J192: =SUM('Cars+:Trucks'!J192) -> 0 | K192: =SUM('Cars+:Trucks'!K192) -> 0 | L192: =SUM('Cars+:Trucks'!L192) -> 0 | M192: =SUM('Cars+:Trucks'!M192) -> 0 | N192: =SUM('Cars+:Trucks'!N192) -> 0 | O192: =SUM('Cars+:Trucks'!O192) -> 0 | P192: =SUM('Cars+:Trucks'!P192) -> 0 | Q192: =SUM('Cars+:Trucks'!Q192) -> 0 | R192: =SUM('Cars+:Trucks'!R192) -> 0 | S192: =SUM('Cars+:Trucks'!S192) -> 0 | T192: =SUM('Cars+:Trucks'!T192) -> 0 | U192: =SUM('Cars+:Trucks'!U192) -> 0 | V192: =SUM('Cars+:Trucks'!V192) -> 0 | W192: =SUM('Cars+:Trucks'!W192) -> 0 | X192: 0 | Y192: 0 | Z192: 0 | AA192: 0 | AB192: 0 | AC192: 0 | AD192: 0 | AE192: 0
A193: ='Cars+'!A193 -> 00:00:00 | B193: ='Cars+'!B193 -> 0 | C193: ='Cars+'!C193 -> 0 | D193: =SUM('Cars+:Trucks'!D193) -> 0 | E193: =SUM('Cars+:Trucks'!E193) -> 0 | F193: =SUM('Cars+:Trucks'!F193) -> 0 | G193: =SUM('Cars+:Trucks'!G193) -> 0 | H193: =SUM('Cars+:Trucks'!H193) -> 0 | I193: =SUM('Cars+:Trucks'!I193) -> 0 | J193: =SUM('Cars+:Trucks'!J193) -> 0 | K193: =SUM('Cars+:Trucks'!K193) -> 0 | L193: =SUM('Cars+:Trucks'!L193) -> 0 | M193: =SUM('Cars+:Trucks'!M193) -> 0 | N193: =SUM('Cars+:Trucks'!N193) -> 0 | O193: =SUM('Cars+:Trucks'!O193) -> 0 | P193: =SUM('Cars+:Trucks'!P193) -> 0 | Q193: =SUM('Cars+:Trucks'!Q193) -> 0 | R193: =SUM('Cars+:Trucks'!R193) -> 0 | S193: =SUM('Cars+:Trucks'!S193) -> 0 | T193: =SUM('Cars+:Trucks'!T193) -> 0 | U193: =SUM('Cars+:Trucks'!U193) -> 0 | V193: =SUM('Cars+:Trucks'!V193) -> 0 | W193: =SUM('Cars+:Trucks'!W193) -> 0 | X193: 0 | Y193: 0 | Z193: 0 | AA193: 0 | AB193: 0 | AC193: 0 | AD193: 0 | AE193: 0
A194: ='Cars+'!A194 -> 00:00:00 | B194: ='Cars+'!B194 -> 0 | C194: ='Cars+'!C194 -> 0 | D194: =SUM('Cars+:Trucks'!D194) -> 0 | E194: =SUM('Cars+:Trucks'!E194) -> 0 | F194: =SUM('Cars+:Trucks'!F194) -> 0 | G194: =SUM('Cars+:Trucks'!G194) -> 0 | H194: =SUM('Cars+:Trucks'!H194) -> 0 | I194: =SUM('Cars+:Trucks'!I194) -> 0 | J194: =SUM('Cars+:Trucks'!J194) -> 0 | K194: =SUM('Cars+:Trucks'!K194) -> 0 | L194: =SUM('Cars+:Trucks'!L194) -> 0 | M194: =SUM('Cars+:Trucks'!M194) -> 0 | N194: =SUM('Cars+:Trucks'!N194) -> 0 | O194: =SUM('Cars+:Trucks'!O194) -> 0 | P194: =SUM('Cars+:Trucks'!P194) -> 0 | Q194: =SUM('Cars+:Trucks'!Q194) -> 0 | R194: =SUM('Cars+:Trucks'!R194) -> 0 | S194: =SUM('Cars+:Trucks'!S194) -> 0 | T194: =SUM('Cars+:Trucks'!T194) -> 0 | U194: =SUM('Cars+:Trucks'!U194) -> 0 | V194: =SUM('Cars+:Trucks'!V194) -> 0 | W194: =SUM('Cars+:Trucks'!W194) -> 0 | X194: 0 | Y194: 0 | Z194: 0 | AA194: 0 | AB194: 0 | AC194: 0 | AD194: 0 | AE194: 0
A195: ='Cars+'!A195 -> 00:00:00 | B195: ='Cars+'!B195 -> 0 | C195: ='Cars+'!C195 -> 0 | D195: =SUM('Cars+:Trucks'!D195) -> 0 | E195: =SUM('Cars+:Trucks'!E195) -> 0 | F195: =SUM('Cars+:Trucks'!F195) -> 0 | G195: =SUM('Cars+:Trucks'!G195) -> 0 | H195: =SUM('Cars+:Trucks'!H195) -> 0 | I195: =SUM('Cars+:Trucks'!I195) -> 0 | J195: =SUM('Cars+:Trucks'!J195) -> 0 | K195: =SUM('Cars+:Trucks'!K195) -> 0 | L195: =SUM('Cars+:Trucks'!L195) -> 0 | M195: =SUM('Cars+:Trucks'!M195) -> 0 | N195: =SUM('Cars+:Trucks'!N195) -> 0 | O195: =SUM('Cars+:Trucks'!O195) -> 0 | P195: =SUM('Cars+:Trucks'!P195) -> 0 | Q195: =SUM('Cars+:Trucks'!Q195) -> 0 | R195: =SUM('Cars+:Trucks'!R195) -> 0 | S195: =SUM('Cars+:Trucks'!S195) -> 0 | T195: =SUM('Cars+:Trucks'!T195) -> 0 | U195: =SUM('Cars+:Trucks'!U195) -> 0 | V195: =SUM('Cars+:Trucks'!V195) -> 0 | W195: =SUM('Cars+:Trucks'!W195) -> 0 | X195: 0 | Y195: 0 | Z195: 0 | AA195: 0 | AB195: 0 | AC195: 0 | AD195: 0 | AE195: 0
A196: ='Cars+'!A196 -> 00:00:00 | B196: ='Cars+'!B196 -> 0 | C196: ='Cars+'!C196 -> 0 | D196: =SUM('Cars+:Trucks'!D196) -> 0 | E196: =SUM('Cars+:Trucks'!E196) -> 0 | F196: =SUM('Cars+:Trucks'!F196) -> 0 | G196: =SUM('Cars+:Trucks'!G196) -> 0 | H196: =SUM('Cars+:Trucks'!H196) -> 0 | I196: =SUM('Cars+:Trucks'!I196) -> 0 | J196: =SUM('Cars+:Trucks'!J196) -> 0 | K196: =SUM('Cars+:Trucks'!K196) -> 0 | L196: =SUM('Cars+:Trucks'!L196) -> 0 | M196: =SUM('Cars+:Trucks'!M196) -> 0 | N196: =SUM('Cars+:Trucks'!N196) -> 0 | O196: =SUM('Cars+:Trucks'!O196) -> 0 | P196: =SUM('Cars+:Trucks'!P196) -> 0 | Q196: =SUM('Cars+:Trucks'!Q196) -> 0 | R196: =SUM('Cars+:Trucks'!R196) -> 0 | S196: =SUM('Cars+:Trucks'!S196) -> 0 | T196: =SUM('Cars+:Trucks'!T196) -> 0 | U196: =SUM('Cars+:Trucks'!U196) -> 0 | V196: =SUM('Cars+:Trucks'!V196) -> 0 | W196: =SUM('Cars+:Trucks'!W196) -> 0 | X196: 0 | Y196: 0 | Z196: 0 | AA196: 0 | AB196: 0 | AC196: 0 | AD196: 0 | AE196: 0
A197: ='Cars+'!A197 -> 00:00:00 | B197: ='Cars+'!B197 -> 0 | C197: ='Cars+'!C197 -> 0 | D197: =SUM('Cars+:Trucks'!D197) -> 0 | E197: =SUM('Cars+:Trucks'!E197) -> 0 | F197: =SUM('Cars+:Trucks'!F197) -> 0 | G197: =SUM('Cars+:Trucks'!G197) -> 0 | H197: =SUM('Cars+:Trucks'!H197) -> 0 | I197: =SUM('Cars+:Trucks'!I197) -> 0 | J197: =SUM('Cars+:Trucks'!J197) -> 0 | K197: =SUM('Cars+:Trucks'!K197) -> 0 | L197: =SUM('Cars+:Trucks'!L197) -> 0 | M197: =SUM('Cars+:Trucks'!M197) -> 0 | N197: =SUM('Cars+:Trucks'!N197) -> 0 | O197: =SUM('Cars+:Trucks'!O197) -> 0 | P197: =SUM('Cars+:Trucks'!P197) -> 0 | Q197: =SUM('Cars+:Trucks'!Q197) -> 0 | R197: =SUM('Cars+:Trucks'!R197) -> 0 | S197: =SUM('Cars+:Trucks'!S197) -> 0 | T197: =SUM('Cars+:Trucks'!T197) -> 0 | U197: =SUM('Cars+:Trucks'!U197) -> 0 | V197: =SUM('Cars+:Trucks'!V197) -> 0 | W197: =SUM('Cars+:Trucks'!W197) -> 0 | X197: =SUMIF($D$2:$W$2,X$3,$D197:$W197) -> 0 | Y197: 0 | Z197: 0 | AA197: 0 | AB197: =X197+Y197 -> 0 | AC197: =Z197+AA197 -> 0 | AD197: =SUM(D197:W197) -> 0 | AE197: 0
A198: ='Cars+'!A198 -> 00:00:00 | B198: ='Cars+'!B198 -> 0 | C198: ='Cars+'!C198 -> 0 | D198: =SUM('Cars+:Trucks'!D198) -> 0 | E198: =SUM('Cars+:Trucks'!E198) -> 0 | F198: =SUM('Cars+:Trucks'!F198) -> 0 | G198: =SUM('Cars+:Trucks'!G198) -> 0 | H198: =SUM('Cars+:Trucks'!H198) -> 0 | I198: =SUM('Cars+:Trucks'!I198) -> 0 | J198: =SUM('Cars+:Trucks'!J198) -> 0 | K198: =SUM('Cars+:Trucks'!K198) -> 0 | L198: =SUM('Cars+:Trucks'!L198) -> 0 | M198: =SUM('Cars+:Trucks'!M198) -> 0 | N198: =SUM('Cars+:Trucks'!N198) -> 0 | O198: =SUM('Cars+:Trucks'!O198) -> 0 | P198: =SUM('Cars+:Trucks'!P198) -> 0 | Q198: =SUM('Cars+:Trucks'!Q198) -> 0 | R198: =SUM('Cars+:Trucks'!R198) -> 0 | S198: =SUM('Cars+:Trucks'!S198) -> 0 | T198: =SUM('Cars+:Trucks'!T198) -> 0 | U198: =SUM('Cars+:Trucks'!U198) -> 0 | V198: =SUM('Cars+:Trucks'!V198) -> 0 | W198: =SUM('Cars+:Trucks'!W198) -> 0 | X198: 0 | Y198: 0 | Z198: 0 | AA198: 0 | AB198: 0 | AC198: 0 | AD198: 0 | AE198: 0
A199: ='Cars+'!A199 -> 00:00:00 | B199: ='Cars+'!B199 -> 0 | C199: ='Cars+'!C199 -> 0 | D199: =SUM('Cars+:Trucks'!D199) -> 0 | E199: =SUM('Cars+:Trucks'!E199) -> 0 | F199: =SUM('Cars+:Trucks'!F199) -> 0 | G199: =SUM('Cars+:Trucks'!G199) -> 0 | H199: =SUM('Cars+:Trucks'!H199) -> 0 | I199: =SUM('Cars+:Trucks'!I199) -> 0 | J199: =SUM('Cars+:Trucks'!J199) -> 0 | K199: =SUM('Cars+:Trucks'!K199) -> 0 | L199: =SUM('Cars+:Trucks'!L199) -> 0 | M199: =SUM('Cars+:Trucks'!M199) -> 0 | N199: =SUM('Cars+:Trucks'!N199) -> 0 | O199: =SUM('Cars+:Trucks'!O199) -> 0 | P199: =SUM('Cars+:Trucks'!P199) -> 0 | Q199: =SUM('Cars+:Trucks'!Q199) -> 0 | R199: =SUM('Cars+:Trucks'!R199) -> 0 | S199: =SUM('Cars+:Trucks'!S199) -> 0 | T199: =SUM('Cars+:Trucks'!T199) -> 0 | U199: =SUM('Cars+:Trucks'!U199) -> 0 | V199: =SUM('Cars+:Trucks'!V199) -> 0 | W199: =SUM('Cars+:Trucks'!W199) -> 0 | X199: 0 | Y199: 0 | Z199: 0 | AA199: 0 | AB199: 0 | AC199: 0 | AD199: 0 | AE199: 0
A200: ='Cars+'!A200 -> 00:00:00 | B200: ='Cars+'!B200 -> 0 | C200: ='Cars+'!C200 -> 0 | D200: =SUM('Cars+:Trucks'!D200) -> 0 | E200: =SUM('Cars+:Trucks'!E200) -> 0 | F200: =SUM('Cars+:Trucks'!F200) -> 0 | G200: =SUM('Cars+:Trucks'!G200) -> 0 | H200: =SUM('Cars+:Trucks'!H200) -> 0 | I200: =SUM('Cars+:Trucks'!I200) -> 0 | J200: =SUM('Cars+:Trucks'!J200) -> 0 | K200: =SUM('Cars+:Trucks'!K200) -> 0 | L200: =SUM('Cars+:Trucks'!L200) -> 0 | M200: =SUM('Cars+:Trucks'!M200) -> 0 | N200: =SUM('Cars+:Trucks'!N200) -> 0 | O200: =SUM('Cars+:Trucks'!O200) -> 0 | P200: =SUM('Cars+:Trucks'!P200) -> 0 | Q200: =SUM('Cars+:Trucks'!Q200) -> 0 | R200: =SUM('Cars+:Trucks'!R200) -> 0 | S200: =SUM('Cars+:Trucks'!S200) -> 0 | T200: =SUM('Cars+:Trucks'!T200) -> 0 | U200: =SUM('Cars+:Trucks'!U200) -> 0 | V200: =SUM('Cars+:Trucks'!V200) -> 0 | W200: =SUM('Cars+:Trucks'!W200) -> 0 | X200: 0 | Y200: 0 | Z200: 0 | AA200: 0 | AB200: 0 | AC200: 0 | AD200: 0 | AE200: 0
... 1800 more rows

Sheet Data (hidden)
A3: Sum of EBWB | B3: Column Labels
A4: Row Labels | B4: 810 | C4: 820 | D4: Grand Total
A5: 600 | B5: 77 | C5: 89 | D5: 166
A6: 615 | B6: 75 | C6: 99 | D6: 174
A7: 630 | B7: 86 | C7: 117 | D7: 203
A8: 645 | B8: 77 | C8: 169 | D8: 246
A9: 700 | B9: 57 | C9: 117 | D9: 174
A10: 715 | B10: 46 | C10: 125 | D10: 171
A11: 730 | B11: 38 | C11: 131 | D11: 169
A12: 745 | B12: 61 | C12: 192 | D12: 253
A13: 800 | B13: 53 | C13: 119 | D13: 172
A14: 815 | B14: 53 | C14: 107 | D14: 160
A15: 830 | B15: 55 | C15: 97 | D15: 152
A16: 845 | B16: 63 | C16: 125 | D16: 188
A17: 900 | B17: 0 | C17: 0 | D17: 0
A18: 915 | B18: 0 | C18: 0 | D18: 0
A19: 930 | B19: 0 | C19: 0 | D19: 0
A20: 945 | B20: 0 | C20: 0 | D20: 0
A21: 1000 | B21: 0 | C21: 0 | D21: 0
A22: 1015 | B22: 0 | C22: 0 | D22: 0
A23: 1030 | B23: 0 | C23: 0 | D23: 0
A24: 1045 | B24: 0 | C24: 0 | D24: 0
A25: 1100 | B25: 48 | C25: 84 | D25: 132
A26: 1115 | B26: 52 | C26: 73 | D26: 125
A27: 1130 | B27: 56 | C27: 80 | D27: 136
A28: 1145 | B28: 75 | C28: 96 | D28: 171
A29: 1200 | B29: 69 | C29: 106 | D29: 175
A30: 1215 | B30: 98 | C30: 90 | D30: 188
A31: 1230 | B31: 91 | C31: 91 | D31: 182
A32: 1245 | B32: 86 | C32: 88 | D32: 174
A33: 1300 | B33: 0 | C33: 0 | D33: 0
A34: 1315 | B34: 0 | C34: 0 | D34: 0
A35: 1330 | B35: 0 | C35: 0 | D35: 0
A36: 1345 | B36: 0 | C36: 0 | D36: 0
A37: 1400 | B37: 0 | C37: 0 | D37: 0
A38: 1415 | B38: 0 | C38: 0 | D38: 0
A39: 1430 | B39: 0 | C39: 0 | D39: 0
A40: 1445 | B40: 0 | C40: 0 | D40: 0
A41: 1500 | B41: 58 | C41: 114 | D41: 172
A42: 1515 | B42: 64 | C42: 156 | D42: 220
A43: 1530 | B43: 55 | C43: 164 | D43: 219
A44: 1545 | B44: 51 | C44: 186 | D44: 237
A45: 1600 | B45: 51 | C45: 174 | D45: 225
A46: 1615 | B46: 42 | C46: 189 | D46: 231
A47: 1630 | B47: 38 | C47: 185 | D47: 223
A48: 1645 | B48: 50 | C48: 182 | D48: 232
A49: 1700 | B49: 49 | C49: 174 | D49: 223
A50: 1715 | B50: 34 | C50: 172 | D50: 206
A51: 1730 | B51: 39 | C51: 177 | D51: 216
A52: 1745 | B52: 47 | C52: 131 | D52: 178
A53: Grand Total | B53: 1894 | C53: 4199 | D53: 6093
A101: Sum of NBSB | B101: Column Labels
A102: Row Labels | B102: 810 | C102: 820 | D102: Grand Total
A103: 600 | B103: 194 | C103: 217 | D103: 411
A104: 615 | B104: 307 | C104: 331 | D104: 638
A105: 630 | B105: 386 | C105: 313 | D105: 699
A106: 645 | B106: 387 | C106: 334 | D106: 721
A107: 700 | B107: 493 | C107: 416 | D107: 909
A108: 715 | B108: 520 | C108: 395 | D108: 915
A109: 730 | B109: 583 | C109: 433 | D109: 1016
A110: 745 | B110: 587 | C110: 396 | D110: 983
A111: 800 | B111: 423 | C111: 351 | D111: 774
A112: 815 | B112: 397 | C112: 336 | D112: 733
A113: 830 | B113: 333 | C113: 306 | D113: 639
A114: 845 | B114: 310 | C114: 239 | D114: 549
A115: 900 | B115: 0 | C115: 0 | D115: 0
A116: 915 | B116: 0 | C116: 0 | D116: 0
A117: 930 | B117: 0 | C117: 0 | D117: 0
A118: 945 | B118: 0 | C118: 0 | D118: 0
A119: 1000 | B119: 0 | C119: 0 | D119: 0
A120: 1015 | B120: 0 | C120: 0 | D120: 0
A121: 1030 | B121: 0 | C121: 0 | D121: 0
A122: 1045 | B122: 0 | C122: 0 | D122: 0
A123: 1100 | B123: 201 | C123: 227 | D123: 428
A124: 1115 | B124: 183 | C124: 210 | D124: 393
A125: 1130 | B125: 213 | C125: 246 | D125: 459
A126: 1145 | B126: 227 | C126: 277 | D126: 504
A127: 1200 | B127: 205 | C127: 266 | D127: 471
A128: 1215 | B128: 215 | C128: 278 | D128: 493
A129: 1230 | B129: 223 | C129: 254 | D129: 477
A130: 1245 | B130: 218 | C130: 233 | D130: 451
A131: 1300 | B131: 0 | C131: 0 | D131: 0
A132: 1315 | B132: 0 | C132: 0 | D132: 0
A133: 1330 | B133: 0 | C133: 0 | D133: 0
A134: 1345 | B134: 0 | C134: 0 | D134: 0
A135: 1400 | B135: 0 | C135: 0 | D135: 0
A136: 1415 | B136: 0 | C136: 0 | D136: 0
A137: 1430 | B137: 0 | C137: 0 | D137: 0
A138: 1445 | B138: 0 | C138: 0 | D138: 0
A139: 1500 | B139: 354 | C139: 330 | D139: 684
A140: 1515 | B140: 398 | C140: 330 | D140: 728
A141: 1530 | B141: 437 | C141: 384 | D141: 821
A142: 1545 | B142: 518 | C142: 396 | D142: 914
A143: 1600 | B143: 566 | C143: 491 | D143: 1057
A144: 1615 | B144: 556 | C144: 423 | D144: 979
A145: 1630 | B145: 579 | C145: 483 | D145: 1062
A146: 1645 | B146: 539 | C146: 459 | D146: 998
A147: 1700 | B147: 621 | C147: 561 | D147: 1182
A148: 1715 | B148: 555 | C148: 406 | D148: 961
A149: 1730 | B149: 434 | C149: 342 | D149: 776
A150: 1745 | B150: 367 | C150: 292 | D150: 659
A151: Grand Total | B151: 12529 | C151: 10955 | D151: 23484
A201: Sum of Total | B201: Column Labels
A202: Row Labels | B202: 810 | C202: 820 | D202: Grand Total
A203: 600 | B203: 271 | C203: 306 | D203: 577
A204: 615 | B204: 382 | C204: 430 | D204: 812
A205: 630 | B205: 472 | C205: 430 | D205: 902
A206: 645 | B206: 464 | C206: 503 | D206: 967
A207: 700 | B207: 550 | C207: 533 | D207: 1083
A208: 715 | B208: 566 | C208: 520 | D208: 1086
A209: 730 | B209: 621 | C209: 564 | D209: 1185
A210: 745 | B210: 648 | C210: 588 | D210: 1236
A211: 800 | B211: 476 | C211: 470 | D211: 946
A212: 815 | B212: 450 | C212: 443 | D212: 893
A213: 830 | B213: 388 | C213: 403 | D213: 791
A214: 845 | B214: 374 | C214: 365 | D214: 739
A215: 900 | B215: 0 | C215: 0 | D215: 0
A216: 915 | B216: 0 | C216: 0 | D216: 0
A217: 930 | B217: 0 | C217: 0 | D217: 0
A218: 945 | B218: 0 | C218: 0 | D218: 0
A219: 1000 | B219: 0 | C219: 0 | D219: 0
A220: 1015 | B220: 0 | C220: 0 | D220: 0
A221: 1030 | B221: 0 | C221: 0 | D221: 0
A222: 1045 | B222: 0 | C222: 0 | D222: 0
A223: 1100 | B223: 249 | C223: 312 | D223: 561
A224: 1115 | B224: 235 | C224: 283 | D224: 518
A225: 1130 | B225: 269 | C225: 326 | D225: 595
A226: 1145 | B226: 302 | C226: 373 | D226: 675
A227: 1200 | B227: 274 | C227: 372 | D227: 646
A228: 1215 | B228: 313 | C228: 368 | D228: 681
A229: 1230 | B229: 314 | C229: 345 | D229: 659
A230: 1245 | B230: 305 | C230: 322 | D230: 627
A231: 1300 | B231: 0 | C231: 0 | D231: 0
A232: 1315 | B232: 0 | C232: 0 | D232: 0
A233: 1330 | B233: 0 | C233: 0 | D233: 0
A234: 1345 | B234: 0 | C234: 0 | D234: 0
A235: 1400 | B235: 0 | C235: 0 | D235: 0
A236: 1415 | B236: 0 | C236: 0 | D236: 0
A237: 1430 | B237: 0 | C237: 0 | D237: 0
A238: 1445 | B238: 0 | C238: 0 | D238: 0
A239: 1500 | B239: 412 | C239: 444 | D239: 856
A240: 1515 | B240: 462 | C240: 486 | D240: 948
A241: 1530 | B241: 492 | C241: 548 | D241: 1040
A242: 1545 | B242: 569 | C242: 582 | D242: 1151
A243: 1600 | B243: 617 | C243: 665 | D243: 1282
A244: 1615 | B244: 598 | C244: 612 | D244: 1210
A245: 1630 | B245: 617 | C245: 668 | D245: 1285
A246: 1645 | B246: 589 | C246: 641 | D246: 1230
A247: 1700 | B247: 670 | C247: 735 | D247: 1405
A248: 1715 | B248: 589 | C248: 578 | D248: 1167
A249: 1730 | B249: 473 | C249: 519 | D249: 992
A250: 1745 | B250: 414 | C250: 423 | D250: 837
A251: Grand Total | B251: 14425 | C251: 15157 | D251: 29582

Sheet Track
A1: INTID | B1: =B2 -> 0 | F1: =F2 -> 100 | J1: =J2 -> 200 | N1: =N2 -> 300 | R1: =R2 -> 400 | V1: =V2 -> 500 | Z1: =Z2 -> 600 | AD1: =AD2 -> 700 | AH1: =AH2 -> 800 | AL1: =AL2 -> 900 | AP1: =AP2 -> 1000 | AT1: =AT2 -> 1100 | AX1: =AX2 -> 1200 | BB1: =BB2 -> 1300 | BF1: =BF2 -> 1400 | BJ1: =BJ2 -> 1500 | BN1: =BN2 -> 1600 | BR1: =BR2 -> 1700 | BV1: =BV2 -> 1800 | BZ1: =BZ2 -> 1900 | CD1: =CD2 -> 2000 | CH1: =CH2 -> 2100 | CL1: =CL2 -> 2200 | CP1: =CP2 -> 2300
B2: 0 | C2: 15 | D2: 30 | E2: 45 | F2: 100 | G2: 115 | H2: 130 | I2: 145 | J2: 200 | K2: 215 | L2: 230 | M2: 245 | N2: 300 | O2: 315 | P2: 330 | Q2: 345 | R2: 400 | S2: 415 | T2: 430 | U2: 445 | V2: 500 | W2: 515 | X2: 530 | Y2: 545 | Z2: 600 | AA2: 615 | AB2: 630 | AC2: 645 | AD2: 700 | AE2: 715 | AF2: 730 | AG2: 745 | AH2: 800 | AI2: 815 | AJ2: 830 | AK2: 845 | AL2: 900 | AM2: 915 | AN2: 930 | AO2: 945 | AP2: 1000 | AQ2: 1015 | AR2: 1030 | AS2: 1045 | AT2: 1100 | AU2: 1115 | AV2: 1130 | AW2: 1145 | AX2: 1200 | AY2: 1215 | AZ2: 1230 | BA2: 1245 | BB2: 1300 | BC2: 1315 | BD2: 1330 | BE2: 1345 | BF2: 1400 | BG2: 1415 | BH2: 1430 | BI2: 1445 | BJ2: 1500 | BK2: 1515 | BL2: 1530 | BM2: 1545 | BN2: 1600 | BO2: 1615 | BP2: 1630 | BQ2: 1645 | BR2: 1700 | BS2: 1715 | BT2: 1730 | BU2: 1745 | BV2: 1800 | BW2: 1815 | BX2: 1830 | BY2: 1845 | BZ2: 1900 | CA2: 1915 | CB2: 1930 | CC2: 1945 | CD2: 2000 | CE2: 2015 | CF2: 2030 | CG2: 2045 | CH2: 2100 | CI2: 2115 | CJ2: 2130 | CK2: 2145 | CL2: 2200 | CM2: 2215 | CN2: 2230 | CO2: 2245 | CP2: 2300 | CQ2: 2315 | CR2: 2330 | CS2: 2345
A3: =VLOOKUP(ROW()-2,INTIDLookup,2) -> 810 | B3: =COUNTIFS('Cars+'!$C:$C,Track!$A3,'Cars+'!$B:$B,Track!B$2,'Cars+'!$Y:$Y,">0") -> 0 | C3: =COUNTIFS('Cars+'!$C:$C,Track!$A3,'Cars+'!$B:$B,Track!C$2,'Cars+'!$Y:$Y,">0") -> 0 | D3: =COUNTIFS('Cars+'!$C:$C,Track!$A3,'Cars+'!$B:$B,Track!D$2,'Cars+'!$Y:$Y,">0") -> 0 | E3: =COUNTIFS('Cars+'!$C:$C,Track!$A3,'Cars+'!$B:$B,Track!E$2,'Cars+'!$Y:$Y,">0") -> 0 | F3: =COUNTIFS('Cars+'!$C:$C,Track!$A3,'Cars+'!$B:$B,Track!F$2,'Cars+'!$Y:$Y,">0") -> 0 | G3: =COUNTIFS('Cars+'!$C:$C,Track!$A3,'Cars+'!$B:$B,Track!G$2,'Cars+'!$Y:$Y,">0") -> 0 | H3: =COUNTIFS('Cars+'!$C:$C,Track!$A3,'Cars+'!$B:$B,Track!H$2,'Cars+'!$Y:$Y,">0") -> 0 | I3: =COUNTIFS('Cars+'!$C:$C,Track!$A3,'Cars+'!$B:$B,Track!I$2,'Cars+'!$Y:$Y,">0") -> 0 | J3: =COUNTIFS('Cars+'!$C:$C,Track!$A3,'Cars+'!$B:$B,Track!J$2,'Cars+'!$Y:$Y,">0") -> 0 | K3: =COUNTIFS('Cars+'!$C:$C,Track!$A3,'Cars+'!$B:$B,Track!K$2,'Cars+'!$Y:$Y,">0") -> 0 | L3: =COUNTIFS('Cars+'!$C:$C,Track!$A3,'Cars+'!$B:$B,Track!L$2,'Cars+'!$Y:$Y,">0") -> 0 | M3: =COUNTIFS('Cars+'!$C:$C,Track!$A3,'Cars+'!$B:$B,Track!M$2,'Cars+'!$Y:$Y,">0") -> 0 | N3: =COUNTIFS('Cars+'!$C:$C,Track!$A3,'Cars+'!$B:$B,Track!N$2,'Cars+'!$Y:$Y,">0") -> 0 | O3: =COUNTIFS('Cars+'!$C:$C,Track!$A3,'Cars+'!$B:$B,Track!O$2,'Cars+'!$Y:$Y,">0") -> 0 | P3: =COUNTIFS('Cars+'!$C:$C,Track!$A3,'Cars+'!$B:$B,Track!P$2,'Cars+'!$Y:$Y,">0") -> 0 | Q3: =COUNTIFS('Cars+'!$C:$C,Track!$A3,'Cars+'!$B:$B,Track!Q$2,'Cars+'!$Y:$Y,">0") -> 0 | R3: =COUNTIFS('Cars+'!$C:$C,Track!$A3,'Cars+'!$B:$B,Track!R$2,'Cars+'!$Y:$Y,">0") -> 0 | S3: =COUNTIFS('Cars+'!$C:$C,Track!$A3,'Cars+'!$B:$B,Track!S$2,'Cars+'!$Y:$Y,">0") -> 0 | T3: =COUNTIFS('Cars+'!$C:$C,Track!$A3,'Cars+'!$B:$B,Track!T$2,'Cars+'!$Y:$Y,">0") -> 0 | U3: =COUNTIFS('Cars+'!$C:$C,Track!$A3,'Cars+'!$B:$B,Track!U$2,'Cars+'!$Y:$Y,">0") -> 0 | V3: =COUNTIFS('Cars+'!$C:$C,Track!$A3,'Cars+'!$B:$B,Track!V$2,'Cars+'!$Y:$Y,">0") -> 0 | W3: =COUNTIFS('Cars+'!$C:$C,Track!$A3,'Cars+'!$B:$B,Track!W$2,'Cars+'!$Y:$Y,">0") -> 0 | X3: =COUNTIFS('Cars+'!$C:$C,Track!$A3,'Cars+'!$B:$B,Track!X$2,'Cars+'!$Y:$Y,">0") -> 0 | Y3: =COUNTIFS('Cars+'!$C:$C,Track!$A3,'Cars+'!$B:$B,Track!Y$2,'Cars+'!$Y:$Y,">0") -> 0 | Z3: =COUNTIFS('Cars+'!$C:$C,Track!$A3,'Cars+'!$B:$B,Track!Z$2,'Cars+'!$Y:$Y,">0") -> 1 | AA3: =COUNTIFS('Cars+'!$C:$C,Track!$A3,'Cars+'!$B:$B,Track!AA$2,'Cars+'!$Y:$Y,">0") -> 1 | AB3: =COUNTIFS('Cars+'!$C:$C,Track!$A3,'Cars+'!$B:$B,Track!AB$2,'Cars+'!$Y:$Y,">0") -> 1 | AC3: =COUNTIFS('Cars+'!$C:$C,Track!$A3,'Cars+'!$B:$B,Track!AC$2,'Cars+'!$Y:$Y,">0") -> 1 | AD3: =COUNTIFS('Cars+'!$C:$C,Track!$A3,'Cars+'!$B:$B,Track!AD$2,'Cars+'!$Y:$Y,">0") -> 1 | AE3: =COUNTIFS('Cars+'!$C:$C,Track!$A3,'Cars+'!$B:$B,Track!AE$2,'Cars+'!$Y:$Y,">0") -> 1 | AF3: =COUNTIFS('Cars+'!$C:$C,Track!$A3,'Cars+'!$B:$B,Track!AF$2,'Cars+'!$Y:$Y,">0") -> 1 | AG3: =COUNTIFS('Cars+'!$C:$C,Track!$A3,'Cars+'!$B:$B,Track!AG$2,'Cars+'!$Y:$Y,">0") -> 1 | AH3: =COUNTIFS('Cars+'!$C:$C,Track!$A3,'Cars+'!$B:$B,Track!AH$2,'Cars+'!$Y:$Y,">0") -> 1 | AI3: =COUNTIFS('Cars+'!$C:$C,Track!$A3,'Cars+'!$B:$B,Track!AI$2,'Cars+'!$Y:$Y,">0") -> 1 | AJ3: =COUNTIFS('Cars+'!$C:$C,Track!$A3,'Cars+'!$B:$B,Track!AJ$2,'Cars+'!$Y:$Y,">0") -> 1 | AK3: =COUNTIFS('Cars+'!$C:$C,Track!$A3,'Cars+'!$B:$B,Track!AK$2,'Cars+'!$Y:$Y,">0") -> 1 | AL3: =COUNTIFS('Cars+'!$C:$C,Track!$A3,'Cars+'!$B:$B,Track!AL$2,'Cars+'!$Y:$Y,">0") -> 0 | AM3: =COUNTIFS('Cars+'!$C:$C,Track!$A3,'Cars+'!$B:$B,Track!AM$2,'Cars+'!$Y:$Y,">0") -> 0 | AN3: =COUNTIFS('Cars+'!$C:$C,Track!$A3,'Cars+'!$B:$B,Track!AN$2,'Cars+'!$Y:$Y,">0") -> 0 | AO3: =COUNTIFS('Cars+'!$C:$C,Track!$A3,'Cars+'!$B:$B,Track!AO$2,'Cars+'!$Y:$Y,">0") -> 0 | AP3: =COUNTIFS('Cars+'!$C:$C,Track!$A3,'Cars+'!$B:$B,Track!AP$2,'Cars+'!$Y:$Y,">0") -> 0 | AQ3: =COUNTIFS('Cars+'!$C:$C,Track!$A3,'Cars+'!$B:$B,Track!AQ$2,'Cars+'!$Y:$Y,">0") -> 0 | AR3: =COUNTIFS('Cars+'!$C:$C,Track!$A3,'Cars+'!$B:$B,Track!AR$2,'Cars+'!$Y:$Y,">0") -> 0 | AS3: =COUNTIFS('Cars+'!$C:$C,Track!$A3,'Cars+'!$B:$B,Track!AS$2,'Cars+'!$Y:$Y,">0") -> 0 | AT3: =COUNTIFS('Cars+'!$C:$C,Track!$A3,'Cars+'!$B:$B,Track!AT$2,'Cars+'!$Y:$Y,">0") -> 1 | AU3: =COUNTIFS('Cars+'!$C:$C,Track!$A3,'Cars+'!$B:$B,Track!AU$2,'Cars+'!$Y:$Y,">0") -> 1 | AV3: =COUNTIFS('Cars+'!$C:$C,Track!$A3,'Cars+'!$B:$B,Track!AV$2,'Cars+'!$Y:$Y,">0") -> 1 | AW3: =COUNTIFS('Cars+'!$C:$C,Track!$A3,'Cars+'!$B:$B,Track!AW$2,'Cars+'!$Y:$Y,">0") -> 1 | AX3: =COUNTIFS('Cars+'!$C:$C,Track!$A3,'Cars+'!$B:$B,Track!AX$2,'Cars+'!$Y:$Y,">0") -> 1 | AY3: =COUNTIFS('Cars+'!$C:$C,Track!$A3,'Cars+'!$B:$B,Track!AY$2,'Cars+'!$Y:$Y,">0") -> 1 | AZ3: =COUNTIFS('Cars+'!$C:$C,Track!$A3,'Cars+'!$B:$B,Track!AZ$2,'Cars+'!$Y:$Y,">0") -> 1 | BA3: =COUNTIFS('Cars+'!$C:$C,Track!$A3,'Cars+'!$B:$B,Track!BA$2,'Cars+'!$Y:$Y,">0") -> 1 | BB3: =COUNTIFS('Cars+'!$C:$C,Track!$A3,'Cars+'!$B:$B,Track!BB$2,'Cars+'!$Y:$Y,">0") -> 0 | BC3: =COUNTIFS('Cars+'!$C:$C,Track!$A3,'Cars+'!$B:$B,Track!BC$2,'Cars+'!$Y:$Y,">0") -> 0 | BD3: =COUNTIFS('Cars+'!$C:$C,Track!$A3,'Cars+'!$B:$B,Track!BD$2,'Cars+'!$Y:$Y,">0") -> 0 | BE3: =COUNTIFS('Cars+'!$C:$C,Track!$A3,'Cars+'!$B:$B,Track!BE$2,'Cars+'!$Y:$Y,">0") -> 0 | BF3: =COUNTIFS('Cars+'!$C:$C,Track!$A3,'Cars+'!$B:$B,Track!BF$2,'Cars+'!$Y:$Y,">0") -> 0 | BG3: =COUNTIFS('Cars+'!$C:$C,Track!$A3,'Cars+'!$B:$B,Track!BG$2,'Cars+'!$Y:$Y,">0") -> 0 | BH3: =COUNTIFS('Cars+'!$C:$C,Track!$A3,'Cars+'!$B:$B,Track!BH$2,'Cars+'!$Y:$Y,">0") -> 0 | BI3: =COUNTIFS('Cars+'!$C:$C,Track!$A3,'Cars+'!$B:$B,Track!BI$2,'Cars+'!$Y:$Y,">0") -> 0 | BJ3: =COUNTIFS('Cars+'!$C:$C,Track!$A3,'Cars+'!$B:$B,Track!BJ$2,'Cars+'!$Y:$Y,">0") -> 1 | BK3: =COUNTIFS('Cars+'!$C:$C,Track!$A3,'Cars+'!$B:$B,Track!BK$2,'Cars+'!$Y:$Y,">0") -> 1 | BL3: =COUNTIFS('Cars+'!$C:$C,Track!$A3,'Cars+'!$B:$B,Track!BL$2,'Cars+'!$Y:$Y,">0") -> 1 | BM3: =COUNTIFS('Cars+'!$C:$C,Track!$A3,'Cars+'!$B:$B,Track!BM$2,'Cars+'!$Y:$Y,">0") -> 1 | BN3: =COUNTIFS('Cars+'!$C:$C,Track!$A3,'Cars+'!$B:$B,Track!BN$2,'Cars+'!$Y:$Y,">0") -> 1 | BO3: =COUNTIFS('Cars+'!$C:$C,Track!$A3,'Cars+'!$B:$B,Track!BO$2,'Cars+'!$Y:$Y,">0") -> 1 | BP3: =COUNTIFS('Cars+'!$C:$C,Track!$A3,'Cars+'!$B:$B,Track!BP$2,'Cars+'!$Y:$Y,">0") -> 1 | BQ3: =COUNTIFS('Cars+'!$C:$C,Track!$A3,'Cars+'!$B:$B,Track!BQ$2,'Cars+'!$Y:$Y,">0") -> 1 | BR3: =COUNTIFS('Cars+'!$C:$C,Track!$A3,'Cars+'!$B:$B,Track!BR$2,'Cars+'!$Y:$Y,">0") -> 1 | BS3: =COUNTIFS('Cars+'!$C:$C,Track!$A3,'Cars+'!$B:$B,Track!BS$2,'Cars+'!$Y:$Y,">0") -> 1 | BT3: =COUNTIFS('Cars+'!$C:$C,Track!$A3,'Cars+'!$B:$B,Track!BT$2,'Cars+'!$Y:$Y,">0") -> 1 | BU3: =COUNTIFS('Cars+'!$C:$C,Track!$A3,'Cars+'!$B:$B,Track!BU$2,'Cars+'!$Y:$Y,">0") -> 1 | BV3: =COUNTIFS('Cars+'!$C:$C,Track!$A3,'Cars+'!$B:$B,Track!BV$2,'Cars+'!$Y:$Y,">0") -> 0 | BW3: =COUNTIFS('Cars+'!$C:$C,Track!$A3,'Cars+'!$B:$B,Track!BW$2,'Cars+'!$Y:$Y,">0") -> 0 | BX3: =COUNTIFS('Cars+'!$C:$C,Track!$A3,'Cars+'!$B:$B,Track!BX$2,'Cars+'!$Y:$Y,">0") -> 0 | BY3: =COUNTIFS('Cars+'!$C:$C,Track!$A3,'Cars+'!$B:$B,Track!BY$2,'Cars+'!$Y:$Y,">0") -> 0 | BZ3: =COUNTIFS('Cars+'!$C:$C,Track!$A3,'Cars+'!$B:$B,Track!BZ$2,'Cars+'!$Y:$Y,">0") -> 0 | CA3: =COUNTIFS('Cars+'!$C:$C,Track!$A3,'Cars+'!$B:$B,Track!CA$2,'Cars+'!$Y:$Y,">0") -> 0 | CB3: =COUNTIFS('Cars+'!$C:$C,Track!$A3,'Cars+'!$B:$B,Track!CB$2,'Cars+'!$Y:$Y,">0") -> 0 | CC3: =COUNTIFS('Cars+'!$C:$C,Track!$A3,'Cars+'!$B:$B,Track!CC$2,'Cars+'!$Y:$Y,">0") -> 0 | CD3: =COUNTIFS('Cars+'!$C:$C,Track!$A3,'Cars+'!$B:$B,Track!CD$2,'Cars+'!$Y:$Y,">0") -> 0 | CE3: =COUNTIFS('Cars+'!$C:$C,Track!$A3,'Cars+'!$B:$B,Track!CE$2,'Cars+'!$Y:$Y,">0") -> 0 | CF3: =COUNTIFS('Cars+'!$C:$C,Track!$A3,'Cars+'!$B:$B,Track!CF$2,'Cars+'!$Y:$Y,">0") -> 0 | CG3: =COUNTIFS('Cars+'!$C:$C,Track!$A3,'Cars+'!$B:$B,Track!CG$2,'Cars+'!$Y:$Y,">0") -> 0 | CH3: =COUNTIFS('Cars+'!$C:$C,Track!$A3,'Cars+'!$B:$B,Track!CH$2,'Cars+'!$Y:$Y,">0") -> 0 | CI3: =COUNTIFS('Cars+'!$C:$C,Track!$A3,'Cars+'!$B:$B,Track!CI$2,'Cars+'!$Y:$Y,">0") -> 0 | CJ3: =COUNTIFS('Cars+'!$C:$C,Track!$A3,'Cars+'!$B:$B,Track!CJ$2,'Cars+'!$Y:$Y,">0") -> 0 | CK3: =COUNTIFS('Cars+'!$C:$C,Track!$A3,'Cars+'!$B:$B,Track!CK$2,'Cars+'!$Y:$Y,">0") -> 0 | CL3: =COUNTIFS('Cars+'!$C:$C,Track!$A3,'Cars+'!$B:$B,Track!CL$2,'Cars+'!$Y:$Y,">0") -> 0 | CM3: =COUNTIFS('Cars+'!$C:$C,Track!$A3,'Cars+'!$B:$B,Track!CM$2,'Cars+'!$Y:$Y,">0") -> 0 | CN3: =COUNTIFS('Cars+'!$C:$C,Track!$A3,'Cars+'!$B:$B,Track!CN$2,'Cars+'!$Y:$Y,">0") -> 0 | CO3: =COUNTIFS('Cars+'!$C:$C,Track!$A3,'Cars+'!$B:$B,Track!CO$2,'Cars+'!$Y:$Y,">0") -> 0 | CP3: =COUNTIFS('Cars+'!$C:$C,Track!$A3,'Cars+'!$B:$B,Track!CP$2,'Cars+'!$Y:$Y,">0") -> 0 | CQ3: =COUNTIFS('Cars+'!$C:$C,Track!$A3,'Cars+'!$B:$B,Track!CQ$2,'Cars+'!$Y:$Y,">0") -> 0 | CR3: =COUNTIFS('Cars+'!$C:$C,Track!$A3,'Cars+'!$B:$B,Track!CR$2,'Cars+'!$Y:$Y,">0") -> 0 | CS3: =COUNTIFS('Cars+'!$C:$C,Track!$A3,'Cars+'!$B:$B,Track!CS$2,'Cars+'!$Y:$Y,">0") -> 0
A4: 820 | B4: =COUNTIFS('Cars+'!$C:$C,Track!$A4,'Cars+'!$B:$B,Track!B$2,'Cars+'!$Y:$Y,">0") -> 0 | C4: =COUNTIFS('Cars+'!$C:$C,Track!$A4,'Cars+'!$B:$B,Track!C$2,'Cars+'!$Y:$Y,">0") -> 0 | D4: =COUNTIFS('Cars+'!$C:$C,Track!$A4,'Cars+'!$B:$B,Track!D$2,'Cars+'!$Y:$Y,">0") -> 0 | E4: =COUNTIFS('Cars+'!$C:$C,Track!$A4,'Cars+'!$B:$B,Track!E$2,'Cars+'!$Y:$Y,">0") -> 0 | F4: =COUNTIFS('Cars+'!$C:$C,Track!$A4,'Cars+'!$B:$B,Track!F$2,'Cars+'!$Y:$Y,">0") -> 0 | G4: =COUNTIFS('Cars+'!$C:$C,Track!$A4,'Cars+'!$B:$B,Track!G$2,'Cars+'!$Y:$Y,">0") -> 0 | H4: =COUNTIFS('Cars+'!$C:$C,Track!$A4,'Cars+'!$B:$B,Track!H$2,'Cars+'!$Y:$Y,">0") -> 0 | I4: =COUNTIFS('Cars+'!$C:$C,Track!$A4,'Cars+'!$B:$B,Track!I$2,'Cars+'!$Y:$Y,">0") -> 0 | J4: =COUNTIFS('Cars+'!$C:$C,Track!$A4,'Cars+'!$B:$B,Track!J$2,'Cars+'!$Y:$Y,">0") -> 0 | K4: =COUNTIFS('Cars+'!$C:$C,Track!$A4,'Cars+'!$B:$B,Track!K$2,'Cars+'!$Y:$Y,">0") -> 0 | L4: =COUNTIFS('Cars+'!$C:$C,Track!$A4,'Cars+'!$B:$B,Track!L$2,'Cars+'!$Y:$Y,">0") -> 0 | M4: =COUNTIFS('Cars+'!$C:$C,Track!$A4,'Cars+'!$B:$B,Track!M$2,'Cars+'!$Y:$Y,">0") -> 0 | N4: =COUNTIFS('Cars+'!$C:$C,Track!$A4,'Cars+'!$B:$B,Track!N$2,'Cars+'!$Y:$Y,">0") -> 0 | O4: =COUNTIFS('Cars+'!$C:$C,Track!$A4,'Cars+'!$B:$B,Track!O$2,'Cars+'!$Y:$Y,">0") -> 0 | P4: =COUNTIFS('Cars+'!$C:$C,Track!$A4,'Cars+'!$B:$B,Track!P$2,'Cars+'!$Y:$Y,">0") -> 0 | Q4: =COUNTIFS('Cars+'!$C:$C,Track!$A4,'Cars+'!$B:$B,Track!Q$2,'Cars+'!$Y:$Y,">0") -> 0 | R4: =COUNTIFS('Cars+'!$C:$C,Track!$A4,'Cars+'!$B:$B,Track!R$2,'Cars+'!$Y:$Y,">0") -> 0 | S4: =COUNTIFS('Cars+'!$C:$C,Track!$A4,'Cars+'!$B:$B,Track!S$2,'Cars+'!$Y:$Y,">0") -> 0 | T4: =COUNTIFS('Cars+'!$C:$C,Track!$A4,'Cars+'!$B:$B,Track!T$2,'Cars+'!$Y:$Y,">0") -> 0 | U4: =COUNTIFS('Cars+'!$C:$C,Track!$A4,'Cars+'!$B:$B,Track!U$2,'Cars+'!$Y:$Y,">0") -> 0 | V4: =COUNTIFS('Cars+'!$C:$C,Track!$A4,'Cars+'!$B:$B,Track!V$2,'Cars+'!$Y:$Y,">0") -> 0 | W4: =COUNTIFS('Cars+'!$C:$C,Track!$A4,'Cars+'!$B:$B,Track!W$2,'Cars+'!$Y:$Y,">0") -> 0 | X4: =COUNTIFS('Cars+'!$C:$C,Track!$A4,'Cars+'!$B:$B,Track!X$2,'Cars+'!$Y:$Y,">0") -> 0 | Y4: =COUNTIFS('Cars+'!$C:$C,Track!$A4,'Cars+'!$B:$B,Track!Y$2,'Cars+'!$Y:$Y,">0") -> 0 | Z4: =COUNTIFS('Cars+'!$C:$C,Track!$A4,'Cars+'!$B:$B,Track!Z$2,'Cars+'!$Y:$Y,">0") -> 1 | AA4: =COUNTIFS('Cars+'!$C:$C,Track!$A4,'Cars+'!$B:$B,Track!AA$2,'Cars+'!$Y:$Y,">0") -> 1 | AB4: =COUNTIFS('Cars+'!$C:$C,Track!$A4,'Cars+'!$B:$B,Track!AB$2,'Cars+'!$Y:$Y,">0") -> 1 | AC4: =COUNTIFS('Cars+'!$C:$C,Track!$A4,'Cars+'!$B:$B,Track!AC$2,'Cars+'!$Y:$Y,">0") -> 1 | AD4: =COUNTIFS('Cars+'!$C:$C,Track!$A4,'Cars+'!$B:$B,Track!AD$2,'Cars+'!$Y:$Y,">0") -> 1 | AE4: =COUNTIFS('Cars+'!$C:$C,Track!$A4,'Cars+'!$B:$B,Track!AE$2,'Cars+'!$Y:$Y,">0") -> 1 | AF4: =COUNTIFS('Cars+'!$C:$C,Track!$A4,'Cars+'!$B:$B,Track!AF$2,'Cars+'!$Y:$Y,">0") -> 1 | AG4: =COUNTIFS('Cars+'!$C:$C,Track!$A4,'Cars+'!$B:$B,Track!AG$2,'Cars+'!$Y:$Y,">0") -> 1 | AH4: =COUNTIFS('Cars+'!$C:$C,Track!$A4,'Cars+'!$B:$B,Track!AH$2,'Cars+'!$Y:$Y,">0") -> 1 | AI4: =COUNTIFS('Cars+'!$C:$C,Track!$A4,'Cars+'!$B:$B,Track!AI$2,'Cars+'!$Y:$Y,">0") -> 1 | AJ4: =COUNTIFS('Cars+'!$C:$C,Track!$A4,'Cars+'!$B:$B,Track!AJ$2,'Cars+'!$Y:$Y,">0") -> 1 | AK4: =COUNTIFS('Cars+'!$C:$C,Track!$A4,'Cars+'!$B:$B,Track!AK$2,'Cars+'!$Y:$Y,">0") -> 1 | AL4: =COUNTIFS('Cars+'!$C:$C,Track!$A4,'Cars+'!$B:$B,Track!AL$2,'Cars+'!$Y:$Y,">0") -> 0 | AM4: =COUNTIFS('Cars+'!$C:$C,Track!$A4,'Cars+'!$B:$B,Track!AM$2,'Cars+'!$Y:$Y,">0") -> 0 | AN4: =COUNTIFS('Cars+'!$C:$C,Track!$A4,'Cars+'!$B:$B,Track!AN$2,'Cars+'!$Y:$Y,">0") -> 0 | AO4: =COUNTIFS('Cars+'!$C:$C,Track!$A4,'Cars+'!$B:$B,Track!AO$2,'Cars+'!$Y:$Y,">0") -> 0 | AP4: =COUNTIFS('Cars+'!$C:$C,Track!$A4,'Cars+'!$B:$B,Track!AP$2,'Cars+'!$Y:$Y,">0") -> 0 | AQ4: =COUNTIFS('Cars+'!$C:$C,Track!$A4,'Cars+'!$B:$B,Track!AQ$2,'Cars+'!$Y:$Y,">0") -> 0 | AR4: =COUNTIFS('Cars+'!$C:$C,Track!$A4,'Cars+'!$B:$B,Track!AR$2,'Cars+'!$Y:$Y,">0") -> 0 | AS4: =COUNTIFS('Cars+'!$C:$C,Track!$A4,'Cars+'!$B:$B,Track!AS$2,'Cars+'!$Y:$Y,">0") -> 0 | AT4: =COUNTIFS('Cars+'!$C:$C,Track!$A4,'Cars+'!$B:$B,Track!AT$2,'Cars+'!$Y:$Y,">0") -> 1 | AU4: =COUNTIFS('Cars+'!$C:$C,Track!$A4,'Cars+'!$B:$B,Track!AU$2,'Cars+'!$Y:$Y,">0") -> 1 | AV4: =COUNTIFS('Cars+'!$C:$C,Track!$A4,'Cars+'!$B:$B,Track!AV$2,'Cars+'!$Y:$Y,">0") -> 1 | AW4: =COUNTIFS('Cars+'!$C:$C,Track!$A4,'Cars+'!$B:$B,Track!AW$2,'Cars+'!$Y:$Y,">0") -> 1 | AX4: =COUNTIFS('Cars+'!$C:$C,Track!$A4,'Cars+'!$B:$B,Track!AX$2,'Cars+'!$Y:$Y,">0") -> 1 | AY4: =COUNTIFS('Cars+'!$C:$C,Track!$A4,'Cars+'!$B:$B,Track!AY$2,'Cars+'!$Y:$Y,">0") -> 1 | AZ4: =COUNTIFS('Cars+'!$C:$C,Track!$A4,'Cars+'!$B:$B,Track!AZ$2,'Cars+'!$Y:$Y,">0") -> 1 | BA4: =COUNTIFS('Cars+'!$C:$C,Track!$A4,'Cars+'!$B:$B,Track!BA$2,'Cars+'!$Y:$Y,">0") -> 1 | BB4: =COUNTIFS('Cars+'!$C:$C,Track!$A4,'Cars+'!$B:$B,Track!BB$2,'Cars+'!$Y:$Y,">0") -> 0 | BC4: =COUNTIFS('Cars+'!$C:$C,Track!$A4,'Cars+'!$B:$B,Track!BC$2,'Cars+'!$Y:$Y,">0") -> 0 | BD4: =COUNTIFS('Cars+'!$C:$C,Track!$A4,'Cars+'!$B:$B,Track!BD$2,'Cars+'!$Y:$Y,">0") -> 0 | BE4: =COUNTIFS('Cars+'!$C:$C,Track!$A4,'Cars+'!$B:$B,Track!BE$2,'Cars+'!$Y:$Y,">0") -> 0 | BF4: =COUNTIFS('Cars+'!$C:$C,Track!$A4,'Cars+'!$B:$B,Track!BF$2,'Cars+'!$Y:$Y,">0") -> 0 | BG4: =COUNTIFS('Cars+'!$C:$C,Track!$A4,'Cars+'!$B:$B,Track!BG$2,'Cars+'!$Y:$Y,">0") -> 0 | BH4: =COUNTIFS('Cars+'!$C:$C,Track!$A4,'Cars+'!$B:$B,Track!BH$2,'Cars+'!$Y:$Y,">0") -> 0 | BI4: =COUNTIFS('Cars+'!$C:$C,Track!$A4,'Cars+'!$B:$B,Track!BI$2,'Cars+'!$Y:$Y,">0") -> 0 | BJ4: =COUNTIFS('Cars+'!$C:$C,Track!$A4,'Cars+'!$B:$B,Track!BJ$2,'Cars+'!$Y:$Y,">0") -> 1 | BK4: =COUNTIFS('Cars+'!$C:$C,Track!$A4,'Cars+'!$B:$B,Track!BK$2,'Cars+'!$Y:$Y,">0") -> 1 | BL4: =COUNTIFS('Cars+'!$C:$C,Track!$A4,'Cars+'!$B:$B,Track!BL$2,'Cars+'!$Y:$Y,">0") -> 1 | BM4: =COUNTIFS('Cars+'!$C:$C,Track!$A4,'Cars+'!$B:$B,Track!BM$2,'Cars+'!$Y:$Y,">0") -> 1 | BN4: =COUNTIFS('Cars+'!$C:$C,Track!$A4,'Cars+'!$B:$B,Track!BN$2,'Cars+'!$Y:$Y,">0") -> 1 | BO4: =COUNTIFS('Cars+'!$C:$C,Track!$A4,'Cars+'!$B:$B,Track!BO$2,'Cars+'!$Y:$Y,">0") -> 1 | BP4: =COUNTIFS('Cars+'!$C:$C,Track!$A4,'Cars+'!$B:$B,Track!BP$2,'Cars+'!$Y:$Y,">0") -> 1 | BQ4: =COUNTIFS('Cars+'!$C:$C,Track!$A4,'Cars+'!$B:$B,Track!BQ$2,'Cars+'!$Y:$Y,">0") -> 1 | BR4: =COUNTIFS('Cars+'!$C:$C,Track!$A4,'Cars+'!$B:$B,Track!BR$2,'Cars+'!$Y:$Y,">0") -> 1 | BS4: =COUNTIFS('Cars+'!$C:$C,Track!$A4,'Cars+'!$B:$B,Track!BS$2,'Cars+'!$Y:$Y,">0") -> 1 | BT4: =COUNTIFS('Cars+'!$C:$C,Track!$A4,'Cars+'!$B:$B,Track!BT$2,'Cars+'!$Y:$Y,">0") -> 1 | BU4: =COUNTIFS('Cars+'!$C:$C,Track!$A4,'Cars+'!$B:$B,Track!BU$2,'Cars+'!$Y:$Y,">0") -> 1 | BV4: =COUNTIFS('Cars+'!$C:$C,Track!$A4,'Cars+'!$B:$B,Track!BV$2,'Cars+'!$Y:$Y,">0") -> 0 | BW4: =COUNTIFS('Cars+'!$C:$C,Track!$A4,'Cars+'!$B:$B,Track!BW$2,'Cars+'!$Y:$Y,">0") -> 0 | BX4: =COUNTIFS('Cars+'!$C:$C,Track!$A4,'Cars+'!$B:$B,Track!BX$2,'Cars+'!$Y:$Y,">0") -> 0 | BY4: =COUNTIFS('Cars+'!$C:$C,Track!$A4,'Cars+'!$B:$B,Track!BY$2,'Cars+'!$Y:$Y,">0") -> 0 | BZ4: =COUNTIFS('Cars+'!$C:$C,Track!$A4,'Cars+'!$B:$B,Track!BZ$2,'Cars+'!$Y:$Y,">0") -> 0 | CA4: =COUNTIFS('Cars+'!$C:$C,Track!$A4,'Cars+'!$B:$B,Track!CA$2,'Cars+'!$Y:$Y,">0") -> 0 | CB4: =COUNTIFS('Cars+'!$C:$C,Track!$A4,'Cars+'!$B:$B,Track!CB$2,'Cars+'!$Y:$Y,">0") -> 0 | CC4: =COUNTIFS('Cars+'!$C:$C,Track!$A4,'Cars+'!$B:$B,Track!CC$2,'Cars+'!$Y:$Y,">0") -> 0 | CD4: =COUNTIFS('Cars+'!$C:$C,Track!$A4,'Cars+'!$B:$B,Track!CD$2,'Cars+'!$Y:$Y,">0") -> 0 | CE4: =COUNTIFS('Cars+'!$C:$C,Track!$A4,'Cars+'!$B:$B,Track!CE$2,'Cars+'!$Y:$Y,">0") -> 0 | CF4: =COUNTIFS('Cars+'!$C:$C,Track!$A4,'Cars+'!$B:$B,Track!CF$2,'Cars+'!$Y:$Y,">0") -> 0 | CG4: =COUNTIFS('Cars+'!$C:$C,Track!$A4,'Cars+'!$B:$B,Track!CG$2,'Cars+'!$Y:$Y,">0") -> 0 | CH4: =COUNTIFS('Cars+'!$C:$C,Track!$A4,'Cars+'!$B:$B,Track!CH$2,'Cars+'!$Y:$Y,">0") -> 0 | CI4: =COUNTIFS('Cars+'!$C:$C,Track!$A4,'Cars+'!$B:$B,Track!CI$2,'Cars+'!$Y:$Y,">0") -> 0 | CJ4: =COUNTIFS('Cars+'!$C:$C,Track!$A4,'Cars+'!$B:$B,Track!CJ$2,'Cars+'!$Y:$Y,">0") -> 0 | CK4: =COUNTIFS('Cars+'!$C:$C,Track!$A4,'Cars+'!$B:$B,Track!CK$2,'Cars+'!$Y:$Y,">0") -> 0 | CL4: =COUNTIFS('Cars+'!$C:$C,Track!$A4,'Cars+'!$B:$B,Track!CL$2,'Cars+'!$Y:$Y,">0") -> 0 | CM4: =COUNTIFS('Cars+'!$C:$C,Track!$A4,'Cars+'!$B:$B,Track!CM$2,'Cars+'!$Y:$Y,">0") -> 0 | CN4: =COUNTIFS('Cars+'!$C:$C,Track!$A4,'Cars+'!$B:$B,Track!CN$2,'Cars+'!$Y:$Y,">0") -> 0 | CO4: =COUNTIFS('Cars+'!$C:$C,Track!$A4,'Cars+'!$B:$B,Track!CO$2,'Cars+'!$Y:$Y,">0") -> 0 | CP4: =COUNTIFS('Cars+'!$C:$C,Track!$A4,'Cars+'!$B:$B,Track!CP$2,'Cars+'!$Y:$Y,">0") -> 0 | CQ4: =COUNTIFS('Cars+'!$C:$C,Track!$A4,'Cars+'!$B:$B,Track!CQ$2,'Cars+'!$Y:$Y,">0") -> 0 | CR4: =COUNTIFS('Cars+'!$C:$C,Track!$A4,'Cars+'!$B:$B,Track!CR$2,'Cars+'!$Y:$Y,">0") -> 0 | CS4: =COUNTIFS('Cars+'!$C:$C,Track!$A4,'Cars+'!$B:$B,Track!CS$2,'Cars+'!$Y:$Y,">0") -> 0
